Workbook

Sheet Einstellungen
A1: Punktevergabe | F1: Bezeichnung: Rennserienvorlage 50TNx20L-EL Stand: 01.12.2015
A2: Rang | B2: Punkte | D2: Anzahl der | F2: Funktionsumfang:
A3: 1 | B3: 20 | D3: Läufe insgesamt: | E3: 10 | F3: Die Vorlage kann verwendet werden für:
A4: 2 | B4: 18 | D4: erforderl. Wertungsläufe: | E4: 1 | F4: - max. 50 Teilnehmer
A5: 3 | B5: 16 | D5: Steichergebnisse: | E5: 3 | F5: - max. 20 Läufe
A6: 4 | B6: 15 | D6: Rang bei Punktegleichstand: | E6: unverändert | F6: Die Vergabe von Zusatzpunkten ist nicht möglich.
A7: 5 | B7: 14
A8: 6 | B8: 13 | D8: Bezeichnung der Rennserie: | F8: Wichtig:
A9: 7 | B9: 12 | D9: DTM2019 | F9: Vorlage funktioniert nur, wenn Makros aktiviert sind!
A10: 8 | B10: 11
A11: 9 | B11: 10 | D11: Start der Rennserie (Datum): | E11: 2018-12-04
A12: 10 | B12: 9 | D12: Wiederholung in Tagen: | E12: 28
A13: 11 | B13: 8
A14: 12 | B14: 7 | D14: Allgemeines:
A15: 13 | B15: 6 | D15: Gelb hinterlegte Felder sind Eingabefelder. Bei Fehlern wechselt die Hintergrund- oder Schriftfarbe auf Rot.
A16: 14 | B16: 5 | D16: Nullwerte werden nicht angezeigt.
A17: 15 | B17: 4 | D17: Außerhalb der Eingabefelder dürfen in keiner Tabelle Änderungen vorgenommen werden.
A18: 16 | B18: 3 | D18: Bei Fehlanzeigen überprüfen Sie, ob die Eingaben in den Tabellen "Einstellungen" und "Runden" korrekt sind.
A19: 17 | B19: 2 | D19: Außer zu "Bezeichnung der Rennserie", "Teilnehmer" und "Datum" sind nur numerische Daten zulässig!
A20: 18 | B20: 1
A21: 19 | B21: 1 | D21: Punktevergabe:
A22: 20 | B22: 1 | D22: Die vorgegebenen Punkte können geändert werden.
A23: 21 | B23: 1 | D23: Jede Änderung während einer Rennserie bewirkt eine Neuberechnung der gesamten Punktetabelle.
A24: 22 | B24: 1
A25: 23 | B25: 1 | D25: Läufe insgesamt:
A26: 24 | B26: 1 | D26: Entsprechend der eingebenen Anzahl werden in den Tabellen "Runden" und "Punkte" die erforderlichen
A27: 25 | B27: 1 | D27: Spalten eingerichtet. Eine nachträgliche Reduzierung der Anzahl der Läufe wirkt sich nur auf die Läufe aus,
A28: 26 | B28: 1 | D28: zu denen noch keine Ergebnisse erfasst sind.
A29: 27 | B29: 1
A30: 28 | B30: 1 | D30: "erforderliche Wertungen" und "Streichergebnisse":
A31: 29 | B31: 1 | D31: In der Punktetabelle wird neben der Summe der Punkte aller Läufe (Ergebnis aus allen Läufen) auch der
A32: 30 | B32: 1 | D32: Endstand berechnet. Fahrer, die nicht mindestens an der vorgegebenen Anzahl von Läufen teilgenommen
A33: 31 | B33: 1 | D33: haben, werden im "Endstand" nicht berücksichtigt.
A34: 32 | B34: 1 | D34: Die Berechnung des "Endstandes" erfolgt unter Berücksichtigung der vorgegebenen Anzahl der Steicher-
A35: 33 | B35: 1 | D35: gebnisse.
A36: 34 | B36: 1
A37: 35 | B37: 1 | D37: Rang bei Punktegleichstand:
A38: 36 | B38: 1 | D38: Bei gleichem Punktestand entscheidet über die bessere Platzierung bei Einstellung
A39: 37 | B39: 1 | D39: - Gesamtrunden: die größere Anzahl der Gesamtrunden
A40: 38 | B40: 1 | D40: - bester Platz: die Anzahl der besseren Platzierungen (bis einschl. Platz 24)
A41: 39 | B41: 1 | D41: - unverändert: bei gleichem Punktestand wird auch die gleiche Platzierung vergeben
A42: 40 | B42: 1 | D42: "Gesamtrunden" und "bester Platz" berücksichtigen unabhängig von der Anzahl der Streicher die Ergebnisse
A43: 41 | B43: 1 | D43: aus allen Läufen.
A44: 42 | B44: 1
A45: 43 | B45: 1 | D45: Bezeichnung der Rennserie:
A46: 44 | B46: 1 | D46: Die hier eingegebene Bezeichnung wird in die Tabellen "Runden" und "Punkte" übernommen.
A47: 45 | B47: 1
A48: 46 | B48: 1 | D48: Datum des Laufes in den Tabellen "Runden" und "Punkte":
A49: 47 | B49: 1 | D49: Ein in der Tabelle "Runden" eingegebenes Datum des Laufes wird in die Tabelle "Punkte" übernommen.
A50: 48 | B50: 1
A51: 49 | B51: 1 | D51: Automatische Sortierung:
A52: 50 | B52: 1 | D52: Die Tabellen "Punkte" und "Ergebnis Lauf" werden automatisch nach dem aktuellen Stand sortiert.
D53: Mit dem letzten Lauf wird die Tabelle "Punkte" nach dem Endstand sortiert.
D55: Manuelle Sortierung:
D56: In eine beliebige Zelle der Spalte, die sortiert werden soll, klicken und auf die Schaltfläche "Sortieren" klicken.
D57: In der Tabelle "Runden" können nur die Spalten "Name" und "Ges-Runden" sortiert werden.
D58: Die Tabelle "Ergenis Lauf" kann nicht sortiert werden.
D60: Schaltfläche "gelöscht" in der Rundentabelle:
D61: Fahrer, die an mindestens einem Lauf teilgenommen haben, können nicht gelöscht werden, da sich sonst die
D62: Punkte aller Teilnehmer ändern würden. Fahrer mit Ergebnissen werden daher nicht endgültig gelöscht, son-
D63: dern in den Tabellen ausgeblendet.
D64: Wollen Sie einen ausgeblendeten Fahrer wieder in den Tabellen anzeigen, gehen sie wie folgt vor:
D65: 1. Schaltfläche "gelöscht" anklicken (es werden alle Teilnehmer angezeigt, die ausgeblendet waren)
D66: 2. Klicken Sie doppelt auf den Fahrer, der in den Tabellen wieder eingeblendet werden soll
D67: 3. Löschen Sie den Zusatz " (gelöscht)"
D68: 4. Klicken Sie auf die Schaltfläche "gelöscht" (Danach wird wieder die vollständige Eingabetabelle angezeigt)
D70: Tabelle "Punkte":
D71: Leere Zeilen und "gelöschte Teilnehmer" werden nicht angezeigt.
D72: Die Ergebnisse werden ausschließlich auf der Grundlage der Eingaben in der Tabelle "Runden" berechnet.
D74: Tabelle "Ergebnis Lauf"
D75: Eingaben sind nicht möglich. Es werden lediglich Daten aus den übrigen Tabellenblättern zusammengefasst.
D76: Aus dem linken Teil ergeben sich alle Daten des letzten Laufes. Fahrer, die am letzten Lauf nicht teilgenommen
D77: haben, sind in der Reihenfolge ihrer Platzierung angefügt. Dadurch ergibt sich die Startaufstellung für den
D78: nächsten Lauf.
D79: Aus dem rechten Teil ergibt sich die aktuelle Platzierung aller Teilnehmer.
D80: Hierbei werden weder "Streichergebnisse" noch die "Anzahl erforderlicher Wertungsläufe" berücksichtigt.
D81: Der "Endstand" unter Berücksichtigung dieser Faktoren ergibt sich ausschließlich aus der Tabelle "Punkte".

Sheet Runden
A1: =Einstellungen!D9&" (gefahrene Runden)" -> DTM2019 (gefahrene Runden)
B2: 1. Lauf | C2: 2. Lauf | D2: 3. Lauf | E2: 4. Lauf | F2: 5. Lauf | G2: 6. Lauf | H2: 7. Lauf | I2: 8. Lauf | J2: 9. Lauf | K2: 10. Lauf | L2: 11. Lauf | M2: 12. Lauf | N2: 13. Lauf | O2: 14. Lauf | P2: 15. Lauf | Q2: 16. Lauf | R2: 17. Lauf | S2: 18. Lauf | T2: 19. Lauf | U2: 20. Lauf | V2: Gesamt- | W2: Platz aus
A3: Teilnehmer / Datum | B3: =Startdatum -> 2018-12-04 | C3: =B3+IF(B3>0,Wiederholung,) -> 2019-01-01 | D3: 2019-01-29 | E3: 2019-02-26 | F3: 2019-03-26 | G3: 2019-04-23 | H3: 2019-05-21 | I3: 2019-06-18 | J3: 2019-07-16 | K3: 2019-08-13 | L3: 2019-09-10 | M3: 2019-10-08 | N3: 2019-11-05 | O3: 2019-12-03 | P3: 2019-12-31 | Q3: 2020-01-28 | R3: 2020-02-25 | S3: 2020-03-24 | T3: 2020-04-21 | U3: 2020-05-19 | V3: Runden | W3: Runden
A4: Ronald | B4: 134.65 | V4: =SUM(B4:U4) -> 134.65 | W4: =IF(V4>0,RANK(V4,$V$4:$V$53,0),0) -> 7
A5: Günter | B5: 136.03 | V5: 136.03 | W5: 5
A6: Marcus | B6: 135.39 | V6: 135.39 | W6: 6
A7: Dietmar | V7: 0 | W7: 0
A8: Hans | B8: 137.3 | V8: 137.3 | W8: 4
A9: Chris | B9: 139.4 | V9: 139.4 | W9: 2
A10: Ewald | B10: 143.05 | V10: 143.05 | W10: 1
A11: Sven | V11: 0 | W11: 0
A12: Thomas G. | B12: 117.71 | V12: 117.71 | W12: 10
A13: Thomas S. | B13: 120.57 | V13: 120.57 | W13: 9
A14: Thomas V. | B14: 138.22 | V14: 138.22 | W14: 3
A15: Christoph | B15: 124.57 | V15: 124.57 | W15: 8
A16: Olli | V16: 0 | W16: 0
A17: Horst | V17: 0 | W17: 0
V18: 0 | W18: 0
V19: 0 | W19: 0
V20: =SUM(B20:U20) -> 0 | W20: =IF(V20>0,RANK(V20,$V$4:$V$53,0),0) -> 0
V21: 0 | W21: 0
V22: 0 | W22: 0
V23: 0 | W23: 0
V24: 0 | W24: 0
V25: 0 | W25: 0
V26: 0 | W26: 0
V27: 0 | W27: 0
V28: 0 | W28: 0
V29: 0 | W29: 0
V30: 0 | W30: 0
V31: 0 | W31: 0
V32: 0 | W32: 0
V33: 0 | W33: 0
V34: 0 | W34: 0
V35: 0 | W35: 0
V36: 0 | W36: =IF(V36>0,RANK(V36,$V$4:$V$53,0),0) -> 0
V37: 0 | W37: 0
V38: 0 | W38: 0
V39: 0 | W39: 0
V40: 0 | W40: 0
V41: 0 | W41: 0
V42: 0 | W42: 0
V43: 0 | W43: 0
V44: 0 | W44: 0
V45: 0 | W45: 0
V46: 0 | W46: 0
V47: 0 | W47: 0
V48: 0 | W48: 0
V49: 0 | W49: 0
V50: 0 | W50: 0
V51: 0 | W51: 0
V52: 0 | W52: 0
V53: 0 | W53: 0 | Y53: Anzahl der durchgeführten Läufe:
A54: =COUNTA(A4:A53) -> 14 | B54: =COUNTA(B4:B53) -> 10 | C54: =COUNTA(C4:C53) -> 0 | D54: 0 | E54: 0 | F54: 0 | G54: 0 | H54: 0 | I54: 0 | J54: 0 | K54: =COUNTA(K4:K53) -> 0 | L54: 0 | M54: 0 | N54: 0 | O54: 0 | P54: 0 | Q54: 0 | R54: 0 | S54: 0 | T54: 0 | U54: 0 | Y54: =COUNTIF(B54:U54,">0") -> 1

Sheet Rang (hidden)
A1: =Einstellungen!D9&" (Rang)" -> DTM2019 (Rang) | AU1: Wiederholung: Rang | BE1: aufsteigender | BP1: aufsteigender | CA1: aufsteigender | CC1: Platzierungs- | CD1: absteigender Rang
A2: Anzahl Teilnehmer: | B2: =50-COUNTIF(B4:B53,0) -> 10 | C2: =50-COUNTIF(C4:C53,0) -> 0 | D2: 0 | E2: 0 | F2: 0 | G2: 0 | H2: 0 | I2: 0 | J2: 0 | K2: 0 | L2: 0 | M2: 0 | N2: 0 | O2: 0 | P2: 0 | Q2: 0 | R2: 0 | S2: 0 | T2: 0 | U2: 0 | W2: Anzahl Platzierung | AU2: aus Platzierungswerten | AV2: Wert der ersten 8 Platzierungen | BE2: Rang aus | BG2: Wert der Platzierungen 9-16 | BP2: Rang aus | BR2: Wert der Platzierungen 17-24 | CA2: Rang aus | CC2: wert aus den | CD2: aus Platzierungs-
A3: Namen | B3: 1. Lauf | C3: 2. Lauf | D3: 3. Lauf | E3: 4. Lauf | F3: 5. Lauf | G3: 6. Lauf | H3: 7. Lauf | I3: 8. Lauf | J3: 9. Lauf | K3: 10. Lauf | L3: 11. Lauf | M3: 12. Lauf | N3: 13. Lauf | O3: 14. Lauf | P3: 15. Lauf | Q3: 16. Lauf | R3: 17. Lauf | S3: 18. Lauf | T3: 19. Lauf | U3: 20. Lauf | W3: 1 | X3: 2 | Y3: 3 | Z3: 4 | AA3: 5 | AB3: 6 | AC3: 7 | AD3: 8 | AE3: 9 | AF3: 10 | AG3: 11 | AH3: 12 | AI3: 13 | AJ3: 14 | AK3: 15 | AL3: 16 | AM3: 17 | AN3: 18 | AO3: 19 | AP3: 20 | AQ3: 21 | AR3: 22 | AS3: 23 | AT3: 24 | AU3: (aus Spalte "CD") | AV3: 1 | AW3: 2 | AX3: 3 | AY3: 4 | AZ3: 5 | BA3: 6 | BB3: 7 | BC3: 8 | BD3: Summe | BE3: Summe | BG3: 9 | BH3: 10 | BI3: 11 | BJ3: 12 | BK3: 13 | BL3: 14 | BM3: 15 | BN3: 16 | BO3: Summe | BP3: Summe | BR3: 17 | BS3: 18 | BT3: 19 | BU3: 20 | BV3: 21 | BW3: 22 | BX3: 23 | BY3: 24 | BZ3: Summe | CA3: Summe | CC3: Plätzen 1-24 | CD3: werten
A4: =IF(Runden!A4="","",Runden!A4) -> Ronald | B4: =IF(Runden!B4>0,RANK(Runden!B4,Runden!B$4:B$53,0),0) -> 7 | C4: =IF(Runden!C4>0,RANK(Runden!C4,Runden!C$4:C$53,0),0) -> 0 | D4: =IF(Runden!D4>0,RANK(Runden!D4,Runden!D$4:D$53,0),0) -> 0 | E4: =IF(Runden!E4>0,RANK(Runden!E4,Runden!E$4:E$53,0),0) -> 0 | F4: =IF(Runden!F4>0,RANK(Runden!F4,Runden!F$4:F$53,0),0) -> 0 | G4: =IF(Runden!G4>0,RANK(Runden!G4,Runden!G$4:G$53,0),0) -> 0 | H4: =IF(Runden!H4>0,RANK(Runden!H4,Runden!H$4:H$53,0),0) -> 0 | I4: =IF(Runden!I4>0,RANK(Runden!I4,Runden!I$4:I$53,0),0) -> 0 | J4: =IF(Runden!J4>0,RANK(Runden!J4,Runden!J$4:J$53,0),0) -> 0 | K4: =IF(Runden!K4>0,RANK(Runden!K4,Runden!K$4:K$53,0),0) -> 0 | L4: =IF(Runden!L4>0,RANK(Runden!L4,Runden!L$4:L$53,0),0) -> 0 | M4: =IF(Runden!M4>0,RANK(Runden!M4,Runden!M$4:M$53,0),0) -> 0 | N4: =IF(Runden!N4>0,RANK(Runden!N4,Runden!N$4:N$53,0),0) -> 0 | O4: =IF(Runden!O4>0,RANK(Runden!O4,Runden!O$4:O$53,0),0) -> 0 | P4: =IF(Runden!P4>0,RANK(Runden!P4,Runden!P$4:P$53,0),0) -> 0 | Q4: =IF(Runden!Q4>0,RANK(Runden!Q4,Runden!Q$4:Q$53,0),0) -> 0 | R4: =IF(Runden!R4>0,RANK(Runden!R4,Runden!R$4:R$53,0),0) -> 0 | S4: =IF(Runden!S4>0,RANK(Runden!S4,Runden!S$4:S$53,0),0) -> 0 | T4: =IF(Runden!T4>0,RANK(Runden!T4,Runden!T$4:T$53,0),0) -> 0 | U4: =IF(Runden!U4>0,RANK(Runden!U4,Runden!U$4:U$53,0),0) -> 0 | W4: =COUNTIF($B4:$U4,W$3) -> 0 | X4: =COUNTIF($B4:$U4,X$3) -> 0 | Y4: 0 | Z4: 0 | AA4: 0 | AB4: 0 | AC4: 1 | AD4: 0 | AE4: 0 | AF4: 0 | AG4: 0 | AH4: 0 | AI4: 0 | AJ4: 0 | AK4: 0 | AL4: 0 | AM4: 0 | AN4: 0 | AO4: 0 | AP4: =COUNTIF($B4:$U4,AP$3) -> 0 | AQ4: 0 | AR4: 0 | AS4: 0 | AT4: 0 | AU4: =CD4 -> 44 | AV4: =W4% -> 0 | AW4: =X4%% -> 0 | AX4: =Y4%%% -> 0 | AY4: =Z4%%%% -> 0 | AZ4: =AA4%%%%% -> 0 | BA4: =AB4%%%%%% -> 0 | BB4: =AC4%%%%%%% -> 1e-14 | BC4: =AD4%%%%%%%% -> 0 | BD4: =SUM(AV4:BC4) -> 1e-14 | BE4: =IF(BD4=0,0,RANK(BD4,$BD$4:$BD$53,1)) -> 44 | BF4: =BE4/1000 -> 0.044 | BG4: =AE4% -> 0 | BH4: =AF4%% -> 0 | BI4: =AG4%%% -> 0 | BJ4: =AH4%%%% -> 0 | BK4: =AI4%%%%% -> 0 | BL4: =AJ4%%%%%% -> 0 | BM4: =AK4%%%%%%% -> 0 | BN4: =AL4%%%%%%%% -> 0 | BO4: =SUM(BG4:BN4) -> 0 | BP4: =IF(BO4=0,0,RANK(BO4,$BO$4:$BO$53,1)) -> 0 | BQ4: =BP4/100000 -> 0 | BR4: =AM4% -> 0 | BS4: =AN4%% -> 0 | BT4: =AO4%%% -> 0 | BU4: =AP4%%%% -> 0 | BV4: =AQ4%%%%% -> 0 | BW4: =AR4%%%%%% -> 0 | BX4: =AS4%%%%%%% -> 0 | BY4: =AT4%%%%%%%% -> 0 | BZ4: =SUM(BR4:BY4) -> 0 | CA4: =IF(BZ4=0,0,RANK(BZ4,$BZ$4:$BZ$53,1)) -> 0 | CB4: =CA4/10000000 -> 0 | CC4: =BF4+BQ4+CB4 -> 0.044 | CD4: =RANK(CC4,$CC$4:$CC$53,1) -> 44
A5: =IF(Runden!A5="","",Runden!A5) -> Günter | B5: =IF(Runden!B5>0,RANK(Runden!B5,Runden!B$4:B$53,0),0) -> 5 | C5: =IF(Runden!C5>0,RANK(Runden!C5,Runden!C$4:C$53,0),0) -> 0 | D5: =IF(Runden!D5>0,RANK(Runden!D5,Runden!D$4:D$53,0),0) -> 0 | E5: =IF(Runden!E5>0,RANK(Runden!E5,Runden!E$4:E$53,0),0) -> 0 | F5: =IF(Runden!F5>0,RANK(Runden!F5,Runden!F$4:F$53,0),0) -> 0 | G5: =IF(Runden!G5>0,RANK(Runden!G5,Runden!G$4:G$53,0),0) -> 0 | H5: =IF(Runden!H5>0,RANK(Runden!H5,Runden!H$4:H$53,0),0) -> 0 | I5: =IF(Runden!I5>0,RANK(Runden!I5,Runden!I$4:I$53,0),0) -> 0 | J5: =IF(Runden!J5>0,RANK(Runden!J5,Runden!J$4:J$53,0),0) -> 0 | K5: =IF(Runden!K5>0,RANK(Runden!K5,Runden!K$4:K$53,0),0) -> 0 | L5: =IF(Runden!L5>0,RANK(Runden!L5,Runden!L$4:L$53,0),0) -> 0 | M5: =IF(Runden!M5>0,RANK(Runden!M5,Runden!M$4:M$53,0),0) -> 0 | N5: =IF(Runden!N5>0,RANK(Runden!N5,Runden!N$4:N$53,0),0) -> 0 | O5: =IF(Runden!O5>0,RANK(Runden!O5,Runden!O$4:O$53,0),0) -> 0 | P5: =IF(Runden!P5>0,RANK(Runden!P5,Runden!P$4:P$53,0),0) -> 0 | Q5: =IF(Runden!Q5>0,RANK(Runden!Q5,Runden!Q$4:Q$53,0),0) -> 0 | R5: =IF(Runden!R5>0,RANK(Runden!R5,Runden!R$4:R$53,0),0) -> 0 | S5: =IF(Runden!S5>0,RANK(Runden!S5,Runden!S$4:S$53,0),0) -> 0 | T5: =IF(Runden!T5>0,RANK(Runden!T5,Runden!T$4:T$53,0),0) -> 0 | U5: =IF(Runden!U5>0,RANK(Runden!U5,Runden!U$4:U$53,0),0) -> 0 | W5: =COUNTIF($B5:$U5,W$3) -> 0 | X5: 0 | Y5: 0 | Z5: 0 | AA5: 1 | AB5: 0 | AC5: 0 | AD5: 0 | AE5: 0 | AF5: 0 | AG5: 0 | AH5: 0 | AI5: 0 | AJ5: 0 | AK5: 0 | AL5: 0 | AM5: 0 | AN5: 0 | AO5: 0 | AP5: 0 | AQ5: 0 | AR5: 0 | AS5: 0 | AT5: 0 | AU5: =CD5 -> 46 | AV5: =W5% -> 0 | AW5: =X5%% -> 0 | AX5: =Y5%%% -> 0 | AY5: =Z5%%%% -> 0 | AZ5: =AA5%%%%% -> 1e-10 | BA5: =AB5%%%%%% -> 0 | BB5: =AC5%%%%%%% -> 0 | BC5: =AD5%%%%%%%% -> 0 | BD5: 1e-10 | BE5: =IF(BD5=0,0,RANK(BD5,$BD$4:$BD$53,1)) -> 46 | BF5: =BE5/1000 -> 0.046 | BG5: =AE5% -> 0 | BH5: =AF5%% -> 0 | BI5: =AG5%%% -> 0 | BJ5: =AH5%%%% -> 0 | BK5: =AI5%%%%% -> 0 | BL5: =AJ5%%%%%% -> 0 | BM5: =AK5%%%%%%% -> 0 | BN5: =AL5%%%%%%%% -> 0 | BO5: 0 | BP5: =IF(BO5=0,0,RANK(BO5,$BO$4:$BO$53,1)) -> 0 | BQ5: =BP5/100000 -> 0 | BR5: =AM5% -> 0 | BS5: =AN5%% -> 0 | BT5: =AO5%%% -> 0 | BU5: =AP5%%%% -> 0 | BV5: =AQ5%%%%% -> 0 | BW5: =AR5%%%%%% -> 0 | BX5: =AS5%%%%%%% -> 0 | BY5: =AT5%%%%%%%% -> 0 | BZ5: 0 | CA5: =IF(BZ5=0,0,RANK(BZ5,$BZ$4:$BZ$53,1)) -> 0 | CB5: =CA5/10000000 -> 0 | CC5: =BF5+BQ5+CB5 -> 0.046 | CD5: =RANK(CC5,$CC$4:$CC$53,1) -> 46
A6: =IF(Runden!A6="","",Runden!A6) -> Marcus | B6: =IF(Runden!B6>0,RANK(Runden!B6,Runden!B$4:B$53,0),0) -> 6 | C6: =IF(Runden!C6>0,RANK(Runden!C6,Runden!C$4:C$53,0),0) -> 0 | D6: =IF(Runden!D6>0,RANK(Runden!D6,Runden!D$4:D$53,0),0) -> 0 | E6: =IF(Runden!E6>0,RANK(Runden!E6,Runden!E$4:E$53,0),0) -> 0 | F6: =IF(Runden!F6>0,RANK(Runden!F6,Runden!F$4:F$53,0),0) -> 0 | G6: =IF(Runden!G6>0,RANK(Runden!G6,Runden!G$4:G$53,0),0) -> 0 | H6: =IF(Runden!H6>0,RANK(Runden!H6,Runden!H$4:H$53,0),0) -> 0 | I6: =IF(Runden!I6>0,RANK(Runden!I6,Runden!I$4:I$53,0),0) -> 0 | J6: =IF(Runden!J6>0,RANK(Runden!J6,Runden!J$4:J$53,0),0) -> 0 | K6: =IF(Runden!K6>0,RANK(Runden!K6,Runden!K$4:K$53,0),0) -> 0 | L6: =IF(Runden!L6>0,RANK(Runden!L6,Runden!L$4:L$53,0),0) -> 0 | M6: =IF(Runden!M6>0,RANK(Runden!M6,Runden!M$4:M$53,0),0) -> 0 | N6: =IF(Runden!N6>0,RANK(Runden!N6,Runden!N$4:N$53,0),0) -> 0 | O6: =IF(Runden!O6>0,RANK(Runden!O6,Runden!O$4:O$53,0),0) -> 0 | P6: =IF(Runden!P6>0,RANK(Runden!P6,Runden!P$4:P$53,0),0) -> 0 | Q6: =IF(Runden!Q6>0,RANK(Runden!Q6,Runden!Q$4:Q$53,0),0) -> 0 | R6: =IF(Runden!R6>0,RANK(Runden!R6,Runden!R$4:R$53,0),0) -> 0 | S6: =IF(Runden!S6>0,RANK(Runden!S6,Runden!S$4:S$53,0),0) -> 0 | T6: =IF(Runden!T6>0,RANK(Runden!T6,Runden!T$4:T$53,0),0) -> 0 | U6: =IF(Runden!U6>0,RANK(Runden!U6,Runden!U$4:U$53,0),0) -> 0 | W6: 0 | X6: 0 | Y6: 0 | Z6: 0 | AA6: 0 | AB6: 1 | AC6: 0 | AD6: 0 | AE6: 0 | AF6: 0 | AG6: 0 | AH6: 0 | AI6: 0 | AJ6: 0 | AK6: 0 | AL6: 0 | AM6: 0 | AN6: 0 | AO6: 0 | AP6: 0 | AQ6: 0 | AR6: 0 | AS6: 0 | AT6: 0 | AU6: =CD6 -> 45 | AV6: 0 | AW6: 0 | AX6: 0 | AY6: 0 | AZ6: 0 | BA6: 1e-12 | BB6: 0 | BC6: 0 | BD6: 1e-12 | BE6: 45 | BF6: 0.045 | BG6: 0 | BH6: 0 | BI6: 0 | BJ6: 0 | BK6: 0 | BL6: 0 | BM6: 0 | BN6: 0 | BO6: 0 | BP6: 0 | BQ6: 0 | BR6: 0 | BS6: 0 | BT6: 0 | BU6: 0 | BV6: 0 | BW6: 0 | BX6: 0 | BY6: 0 | BZ6: 0 | CA6: 0 | CB6: 0 | CC6: 0.045 | CD6: 45
A7: =IF(Runden!A7="","",Runden!A7) -> Dietmar | B7: =IF(Runden!B7>0,RANK(Runden!B7,Runden!B$4:B$53,0),0) -> 0 | C7: =IF(Runden!C7>0,RANK(Runden!C7,Runden!C$4:C$53,0),0) -> 0 | D7: =IF(Runden!D7>0,RANK(Runden!D7,Runden!D$4:D$53,0),0) -> 0 | E7: =IF(Runden!E7>0,RANK(Runden!E7,Runden!E$4:E$53,0),0) -> 0 | F7: =IF(Runden!F7>0,RANK(Runden!F7,Runden!F$4:F$53,0),0) -> 0 | G7: =IF(Runden!G7>0,RANK(Runden!G7,Runden!G$4:G$53,0),0) -> 0 | H7: =IF(Runden!H7>0,RANK(Runden!H7,Runden!H$4:H$53,0),0) -> 0 | I7: =IF(Runden!I7>0,RANK(Runden!I7,Runden!I$4:I$53,0),0) -> 0 | J7: =IF(Runden!J7>0,RANK(Runden!J7,Runden!J$4:J$53,0),0) -> 0 | K7: =IF(Runden!K7>0,RANK(Runden!K7,Runden!K$4:K$53,0),0) -> 0 | L7: =IF(Runden!L7>0,RANK(Runden!L7,Runden!L$4:L$53,0),0) -> 0 | M7: =IF(Runden!M7>0,RANK(Runden!M7,Runden!M$4:M$53,0),0) -> 0 | N7: =IF(Runden!N7>0,RANK(Runden!N7,Runden!N$4:N$53,0),0) -> 0 | O7: =IF(Runden!O7>0,RANK(Runden!O7,Runden!O$4:O$53,0),0) -> 0 | P7: =IF(Runden!P7>0,RANK(Runden!P7,Runden!P$4:P$53,0),0) -> 0 | Q7: =IF(Runden!Q7>0,RANK(Runden!Q7,Runden!Q$4:Q$53,0),0) -> 0 | R7: =IF(Runden!R7>0,RANK(Runden!R7,Runden!R$4:R$53,0),0) -> 0 | S7: =IF(Runden!S7>0,RANK(Runden!S7,Runden!S$4:S$53,0),0) -> 0 | T7: =IF(Runden!T7>0,RANK(Runden!T7,Runden!T$4:T$53,0),0) -> 0 | U7: =IF(Runden!U7>0,RANK(Runden!U7,Runden!U$4:U$53,0),0) -> 0 | W7: 0 | X7: 0 | Y7: 0 | Z7: 0 | AA7: 0 | AB7: 0 | AC7: 0 | AD7: 0 | AE7: 0 | AF7: 0 | AG7: 0 | AH7: 0 | AI7: 0 | AJ7: 0 | AK7: 0 | AL7: 0 | AM7: 0 | AN7: 0 | AO7: 0 | AP7: 0 | AQ7: 0 | AR7: 0 | AS7: 0 | AT7: 0 | AU7: 1 | AV7: 0 | AW7: 0 | AX7: 0 | AY7: 0 | AZ7: 0 | BA7: 0 | BB7: 0 | BC7: 0 | BD7: 0 | BE7: 0 | BF7: 0 | BG7: 0 | BH7: 0 | BI7: 0 | BJ7: 0 | BK7: 0 | BL7: 0 | BM7: 0 | BN7: 0 | BO7: 0 | BP7: 0 | BQ7: 0 | BR7: 0 | BS7: 0 | BT7: 0 | BU7: 0 | BV7: 0 | BW7: 0 | BX7: 0 | BY7: 0 | BZ7: 0 | CA7: 0 | CB7: 0 | CC7: 0 | CD7: 1
A8: =IF(Runden!A8="","",Runden!A8) -> Hans | B8: =IF(Runden!B8>0,RANK(Runden!B8,Runden!B$4:B$53,0),0) -> 4 | C8: =IF(Runden!C8>0,RANK(Runden!C8,Runden!C$4:C$53,0),0) -> 0 | D8: =IF(Runden!D8>0,RANK(Runden!D8,Runden!D$4:D$53,0),0) -> 0 | E8: =IF(Runden!E8>0,RANK(Runden!E8,Runden!E$4:E$53,0),0) -> 0 | F8: =IF(Runden!F8>0,RANK(Runden!F8,Runden!F$4:F$53,0),0) -> 0 | G8: =IF(Runden!G8>0,RANK(Runden!G8,Runden!G$4:G$53,0),0) -> 0 | H8: =IF(Runden!H8>0,RANK(Runden!H8,Runden!H$4:H$53,0),0) -> 0 | I8: =IF(Runden!I8>0,RANK(Runden!I8,Runden!I$4:I$53,0),0) -> 0 | J8: =IF(Runden!J8>0,RANK(Runden!J8,Runden!J$4:J$53,0),0) -> 0 | K8: =IF(Runden!K8>0,RANK(Runden!K8,Runden!K$4:K$53,0),0) -> 0 | L8: =IF(Runden!L8>0,RANK(Runden!L8,Runden!L$4:L$53,0),0) -> 0 | M8: =IF(Runden!M8>0,RANK(Runden!M8,Runden!M$4:M$53,0),0) -> 0 | N8: =IF(Runden!N8>0,RANK(Runden!N8,Runden!N$4:N$53,0),0) -> 0 | O8: =IF(Runden!O8>0,RANK(Runden!O8,Runden!O$4:O$53,0),0) -> 0 | P8: =IF(Runden!P8>0,RANK(Runden!P8,Runden!P$4:P$53,0),0) -> 0 | Q8: =IF(Runden!Q8>0,RANK(Runden!Q8,Runden!Q$4:Q$53,0),0) -> 0 | R8: =IF(Runden!R8>0,RANK(Runden!R8,Runden!R$4:R$53,0),0) -> 0 | S8: =IF(Runden!S8>0,RANK(Runden!S8,Runden!S$4:S$53,0),0) -> 0 | T8: =IF(Runden!T8>0,RANK(Runden!T8,Runden!T$4:T$53,0),0) -> 0 | U8: =IF(Runden!U8>0,RANK(Runden!U8,Runden!U$4:U$53,0),0) -> 0 | W8: 0 | X8: 0 | Y8: 0 | Z8: 1 | AA8: 0 | AB8: 0 | AC8: 0 | AD8: 0 | AE8: 0 | AF8: 0 | AG8: 0 | AH8: 0 | AI8: 0 | AJ8: 0 | AK8: 0 | AL8: 0 | AM8: 0 | AN8: 0 | AO8: 0 | AP8: 0 | AQ8: 0 | AR8: 0 | AS8: 0 | AT8: 0 | AU8: 47 | AV8: 0 | AW8: 0 | AX8: 0 | AY8: 1e-08 | AZ8: 0 | BA8: 0 | BB8: 0 | BC8: 0 | BD8: 1e-08 | BE8: 47 | BF8: 0.047 | BG8: 0 | BH8: 0 | BI8: 0 | BJ8: 0 | BK8: 0 | BL8: 0 | BM8: 0 | BN8: 0 | BO8: 0 | BP8: 0 | BQ8: 0 | BR8: 0 | BS8: 0 | BT8: 0 | BU8: 0 | BV8: 0 | BW8: 0 | BX8: 0 | BY8: 0 | BZ8: 0 | CA8: 0 | CB8: 0 | CC8: 0.047 | CD8: 47
A9: =IF(Runden!A9="","",Runden!A9) -> Chris | B9: =IF(Runden!B9>0,RANK(Runden!B9,Runden!B$4:B$53,0),0) -> 2 | C9: =IF(Runden!C9>0,RANK(Runden!C9,Runden!C$4:C$53,0),0) -> 0 | D9: =IF(Runden!D9>0,RANK(Runden!D9,Runden!D$4:D$53,0),0) -> 0 | E9: =IF(Runden!E9>0,RANK(Runden!E9,Runden!E$4:E$53,0),0) -> 0 | F9: =IF(Runden!F9>0,RANK(Runden!F9,Runden!F$4:F$53,0),0) -> 0 | G9: =IF(Runden!G9>0,RANK(Runden!G9,Runden!G$4:G$53,0),0) -> 0 | H9: =IF(Runden!H9>0,RANK(Runden!H9,Runden!H$4:H$53,0),0) -> 0 | I9: =IF(Runden!I9>0,RANK(Runden!I9,Runden!I$4:I$53,0),0) -> 0 | J9: =IF(Runden!J9>0,RANK(Runden!J9,Runden!J$4:J$53,0),0) -> 0 | K9: =IF(Runden!K9>0,RANK(Runden!K9,Runden!K$4:K$53,0),0) -> 0 | L9: =IF(Runden!L9>0,RANK(Runden!L9,Runden!L$4:L$53,0),0) -> 0 | M9: =IF(Runden!M9>0,RANK(Runden!M9,Runden!M$4:M$53,0),0) -> 0 | N9: =IF(Runden!N9>0,RANK(Runden!N9,Runden!N$4:N$53,0),0) -> 0 | O9: =IF(Runden!O9>0,RANK(Runden!O9,Runden!O$4:O$53,0),0) -> 0 | P9: =IF(Runden!P9>0,RANK(Runden!P9,Runden!P$4:P$53,0),0) -> 0 | Q9: =IF(Runden!Q9>0,RANK(Runden!Q9,Runden!Q$4:Q$53,0),0) -> 0 | R9: =IF(Runden!R9>0,RANK(Runden!R9,Runden!R$4:R$53,0),0) -> 0 | S9: =IF(Runden!S9>0,RANK(Runden!S9,Runden!S$4:S$53,0),0) -> 0 | T9: =IF(Runden!T9>0,RANK(Runden!T9,Runden!T$4:T$53,0),0) -> 0 | U9: =IF(Runden!U9>0,RANK(Runden!U9,Runden!U$4:U$53,0),0) -> 0 | W9: 0 | X9: 1 | Y9: 0 | Z9: 0 | AA9: 0 | AB9: 0 | AC9: 0 | AD9: 0 | AE9: 0 | AF9: 0 | AG9: 0 | AH9: =COUNTIF($B9:$U9,AH$3) -> 0 | AI9: 0 | AJ9: 0 | AK9: 0 | AL9: 0 | AM9: 0 | AN9: 0 | AO9: 0 | AP9: 0 | AQ9: 0 | AR9: 0 | AS9: 0 | AT9: 0 | AU9: 49 | AV9: 0 | AW9: 0.0001 | AX9: 0 | AY9: 0 | AZ9: 0 | BA9: 0 | BB9: 0 | BC9: 0 | BD9: 0.0001 | BE9: 49 | BF9: 0.049 | BG9: 0 | BH9: 0 | BI9: 0 | BJ9: 0 | BK9: 0 | BL9: 0 | BM9: 0 | BN9: 0 | BO9: 0 | BP9: 0 | BQ9: 0 | BR9: 0 | BS9: 0 | BT9: 0 | BU9: 0 | BV9: 0 | BW9: 0 | BX9: 0 | BY9: 0 | BZ9: 0 | CA9: 0 | CB9: 0 | CC9: 0.049 | CD9: 49
A10: =IF(Runden!A10="","",Runden!A10) -> Ewald | B10: =IF(Runden!B10>0,RANK(Runden!B10,Runden!B$4:B$53,0),0) -> 1 | C10: =IF(Runden!C10>0,RANK(Runden!C10,Runden!C$4:C$53,0),0) -> 0 | D10: =IF(Runden!D10>0,RANK(Runden!D10,Runden!D$4:D$53,0),0) -> 0 | E10: =IF(Runden!E10>0,RANK(Runden!E10,Runden!E$4:E$53,0),0) -> 0 | F10: =IF(Runden!F10>0,RANK(Runden!F10,Runden!F$4:F$53,0),0) -> 0 | G10: =IF(Runden!G10>0,RANK(Runden!G10,Runden!G$4:G$53,0),0) -> 0 | H10: =IF(Runden!H10>0,RANK(Runden!H10,Runden!H$4:H$53,0),0) -> 0 | I10: =IF(Runden!I10>0,RANK(Runden!I10,Runden!I$4:I$53,0),0) -> 0 | J10: =IF(Runden!J10>0,RANK(Runden!J10,Runden!J$4:J$53,0),0) -> 0 | K10: =IF(Runden!K10>0,RANK(Runden!K10,Runden!K$4:K$53,0),0) -> 0 | L10: =IF(Runden!L10>0,RANK(Runden!L10,Runden!L$4:L$53,0),0) -> 0 | M10: =IF(Runden!M10>0,RANK(Runden!M10,Runden!M$4:M$53,0),0) -> 0 | N10: =IF(Runden!N10>0,RANK(Runden!N10,Runden!N$4:N$53,0),0) -> 0 | O10: =IF(Runden!O10>0,RANK(Runden!O10,Runden!O$4:O$53,0),0) -> 0 | P10: =IF(Runden!P10>0,RANK(Runden!P10,Runden!P$4:P$53,0),0) -> 0 | Q10: =IF(Runden!Q10>0,RANK(Runden!Q10,Runden!Q$4:Q$53,0),0) -> 0 | R10: =IF(Runden!R10>0,RANK(Runden!R10,Runden!R$4:R$53,0),0) -> 0 | S10: =IF(Runden!S10>0,RANK(Runden!S10,Runden!S$4:S$53,0),0) -> 0 | T10: =IF(Runden!T10>0,RANK(Runden!T10,Runden!T$4:T$53,0),0) -> 0 | U10: =IF(Runden!U10>0,RANK(Runden!U10,Runden!U$4:U$53,0),0) -> 0 | W10: 1 | X10: 0 | Y10: 0 | Z10: 0 | AA10: 0 | AB10: 0 | AC10: 0 | AD10: 0 | AE10: 0 | AF10: 0 | AG10: 0 | AH10: 0 | AI10: 0 | AJ10: 0 | AK10: 0 | AL10: 0 | AM10: =COUNTIF($B10:$U10,AM$3) -> 0 | AN10: 0 | AO10: 0 | AP10: 0 | AQ10: 0 | AR10: 0 | AS10: 0 | AT10: 0 | AU10: 50 | AV10: 0.01 | AW10: 0 | AX10: 0 | AY10: 0 | AZ10: 0 | BA10: 0 | BB10: 0 | BC10: 0 | BD10: 0.01 | BE10: 50 | BF10: 0.05 | BG10: 0 | BH10: 0 | BI10: 0 | BJ10: 0 | BK10: 0 | BL10: 0 | BM10: 0 | BN10: 0 | BO10: 0 | BP10: 0 | BQ10: 0 | BR10: 0 | BS10: 0 | BT10: 0 | BU10: 0 | BV10: 0 | BW10: 0 | BX10: 0 | BY10: 0 | BZ10: 0 | CA10: 0 | CB10: 0 | CC10: 0.05 | CD10: 50
A11: =IF(Runden!A11="","",Runden!A11) -> Sven | B11: =IF(Runden!B11>0,RANK(Runden!B11,Runden!B$4:B$53,0),0) -> 0 | C11: =IF(Runden!C11>0,RANK(Runden!C11,Runden!C$4:C$53,0),0) -> 0 | D11: =IF(Runden!D11>0,RANK(Runden!D11,Runden!D$4:D$53,0),0) -> 0 | E11: =IF(Runden!E11>0,RANK(Runden!E11,Runden!E$4:E$53,0),0) -> 0 | F11: =IF(Runden!F11>0,RANK(Runden!F11,Runden!F$4:F$53,0),0) -> 0 | G11: =IF(Runden!G11>0,RANK(Runden!G11,Runden!G$4:G$53,0),0) -> 0 | H11: =IF(Runden!H11>0,RANK(Runden!H11,Runden!H$4:H$53,0),0) -> 0 | I11: =IF(Runden!I11>0,RANK(Runden!I11,Runden!I$4:I$53,0),0) -> 0 | J11: =IF(Runden!J11>0,RANK(Runden!J11,Runden!J$4:J$53,0),0) -> 0 | K11: =IF(Runden!K11>0,RANK(Runden!K11,Runden!K$4:K$53,0),0) -> 0 | L11: =IF(Runden!L11>0,RANK(Runden!L11,Runden!L$4:L$53,0),0) -> 0 | M11: =IF(Runden!M11>0,RANK(Runden!M11,Runden!M$4:M$53,0),0) -> 0 | N11: =IF(Runden!N11>0,RANK(Runden!N11,Runden!N$4:N$53,0),0) -> 0 | O11: =IF(Runden!O11>0,RANK(Runden!O11,Runden!O$4:O$53,0),0) -> 0 | P11: =IF(Runden!P11>0,RANK(Runden!P11,Runden!P$4:P$53,0),0) -> 0 | Q11: =IF(Runden!Q11>0,RANK(Runden!Q11,Runden!Q$4:Q$53,0),0) -> 0 | R11: =IF(Runden!R11>0,RANK(Runden!R11,Runden!R$4:R$53,0),0) -> 0 | S11: =IF(Runden!S11>0,RANK(Runden!S11,Runden!S$4:S$53,0),0) -> 0 | T11: =IF(Runden!T11>0,RANK(Runden!T11,Runden!T$4:T$53,0),0) -> 0 | U11: =IF(Runden!U11>0,RANK(Runden!U11,Runden!U$4:U$53,0),0) -> 0 | W11: 0 | X11: 0 | Y11: 0 | Z11: 0 | AA11: 0 | AB11: 0 | AC11: 0 | AD11: 0 | AE11: 0 | AF11: 0 | AG11: 0 | AH11: 0 | AI11: 0 | AJ11: 0 | AK11: 0 | AL11: 0 | AM11: 0 | AN11: 0 | AO11: 0 | AP11: 0 | AQ11: 0 | AR11: 0 | AS11: 0 | AT11: 0 | AU11: 1 | AV11: 0 | AW11: 0 | AX11: 0 | AY11: 0 | AZ11: 0 | BA11: 0 | BB11: 0 | BC11: 0 | BD11: 0 | BE11: 0 | BF11: 0 | BG11: 0 | BH11: 0 | BI11: 0 | BJ11: 0 | BK11: 0 | BL11: 0 | BM11: 0 | BN11: 0 | BO11: 0 | BP11: 0 | BQ11: 0 | BR11: 0 | BS11: 0 | BT11: 0 | BU11: 0 | BV11: 0 | BW11: 0 | BX11: 0 | BY11: 0 | BZ11: 0 | CA11: 0 | CB11: 0 | CC11: 0 | CD11: 1
A12: =IF(Runden!A12="","",Runden!A12) -> Thomas G. | B12: =IF(Runden!B12>0,RANK(Runden!B12,Runden!B$4:B$53,0),0) -> 10 | C12: =IF(Runden!C12>0,RANK(Runden!C12,Runden!C$4:C$53,0),0) -> 0 | D12: =IF(Runden!D12>0,RANK(Runden!D12,Runden!D$4:D$53,0),0) -> 0 | E12: =IF(Runden!E12>0,RANK(Runden!E12,Runden!E$4:E$53,0),0) -> 0 | F12: =IF(Runden!F12>0,RANK(Runden!F12,Runden!F$4:F$53,0),0) -> 0 | G12: =IF(Runden!G12>0,RANK(Runden!G12,Runden!G$4:G$53,0),0) -> 0 | H12: =IF(Runden!H12>0,RANK(Runden!H12,Runden!H$4:H$53,0),0) -> 0 | I12: =IF(Runden!I12>0,RANK(Runden!I12,Runden!I$4:I$53,0),0) -> 0 | J12: =IF(Runden!J12>0,RANK(Runden!J12,Runden!J$4:J$53,0),0) -> 0 | K12: =IF(Runden!K12>0,RANK(Runden!K12,Runden!K$4:K$53,0),0) -> 0 | L12: =IF(Runden!L12>0,RANK(Runden!L12,Runden!L$4:L$53,0),0) -> 0 | M12: =IF(Runden!M12>0,RANK(Runden!M12,Runden!M$4:M$53,0),0) -> 0 | N12: =IF(Runden!N12>0,RANK(Runden!N12,Runden!N$4:N$53,0),0) -> 0 | O12: =IF(Runden!O12>0,RANK(Runden!O12,Runden!O$4:O$53,0),0) -> 0 | P12: =IF(Runden!P12>0,RANK(Runden!P12,Runden!P$4:P$53,0),0) -> 0 | Q12: =IF(Runden!Q12>0,RANK(Runden!Q12,Runden!Q$4:Q$53,0),0) -> 0 | R12: =IF(Runden!R12>0,RANK(Runden!R12,Runden!R$4:R$53,0),0) -> 0 | S12: =IF(Runden!S12>0,RANK(Runden!S12,Runden!S$4:S$53,0),0) -> 0 | T12: =IF(Runden!T12>0,RANK(Runden!T12,Runden!T$4:T$53,0),0) -> 0 | U12: =IF(Runden!U12>0,RANK(Runden!U12,Runden!U$4:U$53,0),0) -> 0 | W12: 0 | X12: 0 | Y12: 0 | Z12: 0 | AA12: 0 | AB12: 0 | AC12: 0 | AD12: 0 | AE12: 0 | AF12: 1 | AG12: 0 | AH12: 0 | AI12: 0 | AJ12: 0 | AK12: 0 | AL12: 0 | AM12: 0 | AN12: 0 | AO12: 0 | AP12: 0 | AQ12: 0 | AR12: 0 | AS12: 0 | AT12: 0 | AU12: 41 | AV12: =W12% -> 0 | AW12: 0 | AX12: 0 | AY12: 0 | AZ12: 0 | BA12: 0 | BB12: 0 | BC12: 0 | BD12: 0 | BE12: 0 | BF12: 0 | BG12: 0 | BH12: 0.0001 | BI12: 0 | BJ12: 0 | BK12: 0 | BL12: 0 | BM12: 0 | BN12: 0 | BO12: 0.0001 | BP12: 49 | BQ12: 0.00049 | BR12: 0 | BS12: 0 | BT12: 0 | BU12: 0 | BV12: 0 | BW12: 0 | BX12: 0 | BY12: 0 | BZ12: 0 | CA12: 0 | CB12: 0 | CC12: 0.00049 | CD12: 41
A13: =IF(Runden!A13="","",Runden!A13) -> Thomas S. | B13: =IF(Runden!B13>0,RANK(Runden!B13,Runden!B$4:B$53,0),0) -> 9 | C13: =IF(Runden!C13>0,RANK(Runden!C13,Runden!C$4:C$53,0),0) -> 0 | D13: =IF(Runden!D13>0,RANK(Runden!D13,Runden!D$4:D$53,0),0) -> 0 | E13: =IF(Runden!E13>0,RANK(Runden!E13,Runden!E$4:E$53,0),0) -> 0 | F13: =IF(Runden!F13>0,RANK(Runden!F13,Runden!F$4:F$53,0),0) -> 0 | G13: =IF(Runden!G13>0,RANK(Runden!G13,Runden!G$4:G$53,0),0) -> 0 | H13: =IF(Runden!H13>0,RANK(Runden!H13,Runden!H$4:H$53,0),0) -> 0 | I13: =IF(Runden!I13>0,RANK(Runden!I13,Runden!I$4:I$53,0),0) -> 0 | J13: =IF(Runden!J13>0,RANK(Runden!J13,Runden!J$4:J$53,0),0) -> 0 | K13: =IF(Runden!K13>0,RANK(Runden!K13,Runden!K$4:K$53,0),0) -> 0 | L13: =IF(Runden!L13>0,RANK(Runden!L13,Runden!L$4:L$53,0),0) -> 0 | M13: =IF(Runden!M13>0,RANK(Runden!M13,Runden!M$4:M$53,0),0) -> 0 | N13: =IF(Runden!N13>0,RANK(Runden!N13,Runden!N$4:N$53,0),0) -> 0 | O13: =IF(Runden!O13>0,RANK(Runden!O13,Runden!O$4:O$53,0),0) -> 0 | P13: =IF(Runden!P13>0,RANK(Runden!P13,Runden!P$4:P$53,0),0) -> 0 | Q13: =IF(Runden!Q13>0,RANK(Runden!Q13,Runden!Q$4:Q$53,0),0) -> 0 | R13: =IF(Runden!R13>0,RANK(Runden!R13,Runden!R$4:R$53,0),0) -> 0 | S13: =IF(Runden!S13>0,RANK(Runden!S13,Runden!S$4:S$53,0),0) -> 0 | T13: =IF(Runden!T13>0,RANK(Runden!T13,Runden!T$4:T$53,0),0) -> 0 | U13: =IF(Runden!U13>0,RANK(Runden!U13,Runden!U$4:U$53,0),0) -> 0 | W13: 0 | X13: 0 | Y13: 0 | Z13: 0 | AA13: 0 | AB13: 0 | AC13: 0 | AD13: 0 | AE13: 1 | AF13: 0 | AG13: 0 | AH13: 0 | AI13: 0 | AJ13: 0 | AK13: 0 | AL13: 0 | AM13: 0 | AN13: 0 | AO13: 0 | AP13: 0 | AQ13: 0 | AR13: 0 | AS13: 0 | AT13: 0 | AU13: 42 | AV13: 0 | AW13: 0 | AX13: 0 | AY13: 0 | AZ13: 0 | BA13: 0 | BB13: 0 | BC13: 0 | BD13: 0 | BE13: =IF(BD13=0,0,RANK(BD13,$BD$4:$BD$53,1)) -> 0 | BF13: 0 | BG13: 0.01 | BH13: 0 | BI13: 0 | BJ13: 0 | BK13: 0 | BL13: 0 | BM13: 0 | BN13: 0 | BO13: 0.01 | BP13: 50 | BQ13: 0.0005 | BR13: 0 | BS13: 0 | BT13: 0 | BU13: 0 | BV13: 0 | BW13: 0 | BX13: 0 | BY13: 0 | BZ13: 0 | CA13: 0 | CB13: 0 | CC13: 0.0005 | CD13: 42
A14: =IF(Runden!A14="","",Runden!A14) -> Thomas V. | B14: =IF(Runden!B14>0,RANK(Runden!B14,Runden!B$4:B$53,0),0) -> 3 | C14: =IF(Runden!C14>0,RANK(Runden!C14,Runden!C$4:C$53,0),0) -> 0 | D14: =IF(Runden!D14>0,RANK(Runden!D14,Runden!D$4:D$53,0),0) -> 0 | E14: =IF(Runden!E14>0,RANK(Runden!E14,Runden!E$4:E$53,0),0) -> 0 | F14: =IF(Runden!F14>0,RANK(Runden!F14,Runden!F$4:F$53,0),0) -> 0 | G14: =IF(Runden!G14>0,RANK(Runden!G14,Runden!G$4:G$53,0),0) -> 0 | H14: =IF(Runden!H14>0,RANK(Runden!H14,Runden!H$4:H$53,0),0) -> 0 | I14: =IF(Runden!I14>0,RANK(Runden!I14,Runden!I$4:I$53,0),0) -> 0 | J14: =IF(Runden!J14>0,RANK(Runden!J14,Runden!J$4:J$53,0),0) -> 0 | K14: =IF(Runden!K14>0,RANK(Runden!K14,Runden!K$4:K$53,0),0) -> 0 | L14: =IF(Runden!L14>0,RANK(Runden!L14,Runden!L$4:L$53,0),0) -> 0 | M14: =IF(Runden!M14>0,RANK(Runden!M14,Runden!M$4:M$53,0),0) -> 0 | N14: =IF(Runden!N14>0,RANK(Runden!N14,Runden!N$4:N$53,0),0) -> 0 | O14: =IF(Runden!O14>0,RANK(Runden!O14,Runden!O$4:O$53,0),0) -> 0 | P14: =IF(Runden!P14>0,RANK(Runden!P14,Runden!P$4:P$53,0),0) -> 0 | Q14: =IF(Runden!Q14>0,RANK(Runden!Q14,Runden!Q$4:Q$53,0),0) -> 0 | R14: =IF(Runden!R14>0,RANK(Runden!R14,Runden!R$4:R$53,0),0) -> 0 | S14: =IF(Runden!S14>0,RANK(Runden!S14,Runden!S$4:S$53,0),0) -> 0 | T14: =IF(Runden!T14>0,RANK(Runden!T14,Runden!T$4:T$53,0),0) -> 0 | U14: =IF(Runden!U14>0,RANK(Runden!U14,Runden!U$4:U$53,0),0) -> 0 | W14: 0 | X14: 0 | Y14: 1 | Z14: 0 | AA14: 0 | AB14: 0 | AC14: 0 | AD14: 0 | AE14: 0 | AF14: 0 | AG14: 0 | AH14: 0 | AI14: 0 | AJ14: 0 | AK14: 0 | AL14: 0 | AM14: 0 | AN14: 0 | AO14: 0 | AP14: 0 | AQ14: 0 | AR14: 0 | AS14: 0 | AT14: 0 | AU14: 48 | AV14: 0 | AW14: 0 | AX14: 1e-06 | AY14: 0 | AZ14: 0 | BA14: 0 | BB14: 0 | BC14: 0 | BD14: 1e-06 | BE14: 48 | BF14: 0.048 | BG14: 0 | BH14: 0 | BI14: 0 | BJ14: 0 | BK14: 0 | BL14: 0 | BM14: 0 | BN14: 0 | BO14: 0 | BP14: 0 | BQ14: 0 | BR14: 0 | BS14: 0 | BT14: 0 | BU14: 0 | BV14: 0 | BW14: 0 | BX14: 0 | BY14: 0 | BZ14: 0 | CA14: 0 | CB14: 0 | CC14: 0.048 | CD14: 48
A15: =IF(Runden!A15="","",Runden!A15) -> Christoph | B15: =IF(Runden!B15>0,RANK(Runden!B15,Runden!B$4:B$53,0),0) -> 8 | C15: =IF(Runden!C15>0,RANK(Runden!C15,Runden!C$4:C$53,0),0) -> 0 | D15: =IF(Runden!D15>0,RANK(Runden!D15,Runden!D$4:D$53,0),0) -> 0 | E15: =IF(Runden!E15>0,RANK(Runden!E15,Runden!E$4:E$53,0),0) -> 0 | F15: =IF(Runden!F15>0,RANK(Runden!F15,Runden!F$4:F$53,0),0) -> 0 | G15: =IF(Runden!G15>0,RANK(Runden!G15,Runden!G$4:G$53,0),0) -> 0 | H15: =IF(Runden!H15>0,RANK(Runden!H15,Runden!H$4:H$53,0),0) -> 0 | I15: =IF(Runden!I15>0,RANK(Runden!I15,Runden!I$4:I$53,0),0) -> 0 | J15: =IF(Runden!J15>0,RANK(Runden!J15,Runden!J$4:J$53,0),0) -> 0 | K15: =IF(Runden!K15>0,RANK(Runden!K15,Runden!K$4:K$53,0),0) -> 0 | L15: =IF(Runden!L15>0,RANK(Runden!L15,Runden!L$4:L$53,0),0) -> 0 | M15: =IF(Runden!M15>0,RANK(Runden!M15,Runden!M$4:M$53,0),0) -> 0 | N15: =IF(Runden!N15>0,RANK(Runden!N15,Runden!N$4:N$53,0),0) -> 0 | O15: =IF(Runden!O15>0,RANK(Runden!O15,Runden!O$4:O$53,0),0) -> 0 | P15: =IF(Runden!P15>0,RANK(Runden!P15,Runden!P$4:P$53,0),0) -> 0 | Q15: =IF(Runden!Q15>0,RANK(Runden!Q15,Runden!Q$4:Q$53,0),0) -> 0 | R15: =IF(Runden!R15>0,RANK(Runden!R15,Runden!R$4:R$53,0),0) -> 0 | S15: =IF(Runden!S15>0,RANK(Runden!S15,Runden!S$4:S$53,0),0) -> 0 | T15: =IF(Runden!T15>0,RANK(Runden!T15,Runden!T$4:T$53,0),0) -> 0 | U15: =IF(Runden!U15>0,RANK(Runden!U15,Runden!U$4:U$53,0),0) -> 0 | W15: 0 | X15: 0 | Y15: 0 | Z15: 0 | AA15: 0 | AB15: 0 | AC15: 0 | AD15: 1 | AE15: 0 | AF15: 0 | AG15: 0 | AH15: 0 | AI15: 0 | AJ15: 0 | AK15: 0 | AL15: 0 | AM15: 0 | AN15: 0 | AO15: 0 | AP15: 0 | AQ15: 0 | AR15: 0 | AS15: 0 | AT15: 0 | AU15: 43 | AV15: 0 | AW15: 0 | AX15: 0 | AY15: 0 | AZ15: 0 | BA15: 0 | BB15: 0 | BC15: 1e-16 | BD15: 1e-16 | BE15: 43 | BF15: 0.043 | BG15: 0 | BH15: 0 | BI15: 0 | BJ15: 0 | BK15: 0 | BL15: 0 | BM15: 0 | BN15: 0 | BO15: 0 | BP15: 0 | BQ15: 0 | BR15: 0 | BS15: 0 | BT15: 0 | BU15: 0 | BV15: 0 | BW15: 0 | BX15: 0 | BY15: 0 | BZ15: 0 | CA15: 0 | CB15: 0 | CC15: 0.043 | CD15: 43
A16: =IF(Runden!A16="","",Runden!A16) -> Olli | B16: =IF(Runden!B16>0,RANK(Runden!B16,Runden!B$4:B$53,0),0) -> 0 | C16: =IF(Runden!C16>0,RANK(Runden!C16,Runden!C$4:C$53,0),0) -> 0 | D16: =IF(Runden!D16>0,RANK(Runden!D16,Runden!D$4:D$53,0),0) -> 0 | E16: =IF(Runden!E16>0,RANK(Runden!E16,Runden!E$4:E$53,0),0) -> 0 | F16: =IF(Runden!F16>0,RANK(Runden!F16,Runden!F$4:F$53,0),0) -> 0 | G16: =IF(Runden!G16>0,RANK(Runden!G16,Runden!G$4:G$53,0),0) -> 0 | H16: =IF(Runden!H16>0,RANK(Runden!H16,Runden!H$4:H$53,0),0) -> 0 | I16: =IF(Runden!I16>0,RANK(Runden!I16,Runden!I$4:I$53,0),0) -> 0 | J16: =IF(Runden!J16>0,RANK(Runden!J16,Runden!J$4:J$53,0),0) -> 0 | K16: =IF(Runden!K16>0,RANK(Runden!K16,Runden!K$4:K$53,0),0) -> 0 | L16: =IF(Runden!L16>0,RANK(Runden!L16,Runden!L$4:L$53,0),0) -> 0 | M16: =IF(Runden!M16>0,RANK(Runden!M16,Runden!M$4:M$53,0),0) -> 0 | N16: =IF(Runden!N16>0,RANK(Runden!N16,Runden!N$4:N$53,0),0) -> 0 | O16: =IF(Runden!O16>0,RANK(Runden!O16,Runden!O$4:O$53,0),0) -> 0 | P16: =IF(Runden!P16>0,RANK(Runden!P16,Runden!P$4:P$53,0),0) -> 0 | Q16: =IF(Runden!Q16>0,RANK(Runden!Q16,Runden!Q$4:Q$53,0),0) -> 0 | R16: =IF(Runden!R16>0,RANK(Runden!R16,Runden!R$4:R$53,0),0) -> 0 | S16: =IF(Runden!S16>0,RANK(Runden!S16,Runden!S$4:S$53,0),0) -> 0 | T16: =IF(Runden!T16>0,RANK(Runden!T16,Runden!T$4:T$53,0),0) -> 0 | U16: =IF(Runden!U16>0,RANK(Runden!U16,Runden!U$4:U$53,0),0) -> 0 | W16: 0 | X16: 0 | Y16: 0 | Z16: 0 | AA16: 0 | AB16: 0 | AC16: 0 | AD16: 0 | AE16: 0 | AF16: 0 | AG16: 0 | AH16: 0 | AI16: 0 | AJ16: 0 | AK16: 0 | AL16: 0 | AM16: 0 | AN16: 0 | AO16: 0 | AP16: 0 | AQ16: 0 | AR16: 0 | AS16: 0 | AT16: 0 | AU16: 1 | AV16: 0 | AW16: 0 | AX16: 0 | AY16: 0 | AZ16: 0 | BA16: 0 | BB16: 0 | BC16: 0 | BD16: 0 | BE16: 0 | BF16: 0 | BG16: 0 | BH16: 0 | BI16: 0 | BJ16: 0 | BK16: 0 | BL16: 0 | BM16: 0 | BN16: 0 | BO16: 0 | BP16: 0 | BQ16: 0 | BR16: 0 | BS16: 0 | BT16: 0 | BU16: 0 | BV16: 0 | BW16: 0 | BX16: 0 | BY16: 0 | BZ16: 0 | CA16: 0 | CB16: 0 | CC16: 0 | CD16: 1
A17: =IF(Runden!A17="","",Runden!A17) -> Horst | B17: =IF(Runden!B17>0,RANK(Runden!B17,Runden!B$4:B$53,0),0) -> 0 | C17: =IF(Runden!C17>0,RANK(Runden!C17,Runden!C$4:C$53,0),0) -> 0 | D17: =IF(Runden!D17>0,RANK(Runden!D17,Runden!D$4:D$53,0),0) -> 0 | E17: =IF(Runden!E17>0,RANK(Runden!E17,Runden!E$4:E$53,0),0) -> 0 | F17: =IF(Runden!F17>0,RANK(Runden!F17,Runden!F$4:F$53,0),0) -> 0 | G17: =IF(Runden!G17>0,RANK(Runden!G17,Runden!G$4:G$53,0),0) -> 0 | H17: =IF(Runden!H17>0,RANK(Runden!H17,Runden!H$4:H$53,0),0) -> 0 | I17: =IF(Runden!I17>0,RANK(Runden!I17,Runden!I$4:I$53,0),0) -> 0 | J17: =IF(Runden!J17>0,RANK(Runden!J17,Runden!J$4:J$53,0),0) -> 0 | K17: =IF(Runden!K17>0,RANK(Runden!K17,Runden!K$4:K$53,0),0) -> 0 | L17: =IF(Runden!L17>0,RANK(Runden!L17,Runden!L$4:L$53,0),0) -> 0 | M17: =IF(Runden!M17>0,RANK(Runden!M17,Runden!M$4:M$53,0),0) -> 0 | N17: =IF(Runden!N17>0,RANK(Runden!N17,Runden!N$4:N$53,0),0) -> 0 | O17: =IF(Runden!O17>0,RANK(Runden!O17,Runden!O$4:O$53,0),0) -> 0 | P17: =IF(Runden!P17>0,RANK(Runden!P17,Runden!P$4:P$53,0),0) -> 0 | Q17: =IF(Runden!Q17>0,RANK(Runden!Q17,Runden!Q$4:Q$53,0),0) -> 0 | R17: =IF(Runden!R17>0,RANK(Runden!R17,Runden!R$4:R$53,0),0) -> 0 | S17: =IF(Runden!S17>0,RANK(Runden!S17,Runden!S$4:S$53,0),0) -> 0 | T17: =IF(Runden!T17>0,RANK(Runden!T17,Runden!T$4:T$53,0),0) -> 0 | U17: =IF(Runden!U17>0,RANK(Runden!U17,Runden!U$4:U$53,0),0) -> 0 | W17: 0 | X17: 0 | Y17: 0 | Z17: 0 | AA17: 0 | AB17: 0 | AC17: 0 | AD17: 0 | AE17: 0 | AF17: 0 | AG17: 0 | AH17: 0 | AI17: 0 | AJ17: 0 | AK17: 0 | AL17: 0 | AM17: 0 | AN17: 0 | AO17: 0 | AP17: 0 | AQ17: 0 | AR17: 0 | AS17: 0 | AT17: 0 | AU17: 1 | AV17: 0 | AW17: 0 | AX17: 0 | AY17: 0 | AZ17: 0 | BA17: 0 | BB17: 0 | BC17: 0 | BD17: 0 | BE17: 0 | BF17: 0 | BG17: 0 | BH17: 0 | BI17: 0 | BJ17: 0 | BK17: 0 | BL17: 0 | BM17: 0 | BN17: 0 | BO17: 0 | BP17: 0 | BQ17: 0 | BR17: 0 | BS17: 0 | BT17: 0 | BU17: 0 | BV17: 0 | BW17: 0 | BX17: 0 | BY17: 0 | BZ17: 0 | CA17: 0 | CB17: 0 | CC17: 0 | CD17: 1
A18: =IF(Runden!A18="","",Runden!A18) ->  | B18: =IF(Runden!B18>0,RANK(Runden!B18,Runden!B$4:B$53,0),0) -> 0 | C18: =IF(Runden!C18>0,RANK(Runden!C18,Runden!C$4:C$53,0),0) -> 0 | D18: =IF(Runden!D18>0,RANK(Runden!D18,Runden!D$4:D$53,0),0) -> 0 | E18: =IF(Runden!E18>0,RANK(Runden!E18,Runden!E$4:E$53,0),0) -> 0 | F18: =IF(Runden!F18>0,RANK(Runden!F18,Runden!F$4:F$53,0),0) -> 0 | G18: =IF(Runden!G18>0,RANK(Runden!G18,Runden!G$4:G$53,0),0) -> 0 | H18: =IF(Runden!H18>0,RANK(Runden!H18,Runden!H$4:H$53,0),0) -> 0 | I18: =IF(Runden!I18>0,RANK(Runden!I18,Runden!I$4:I$53,0),0) -> 0 | J18: =IF(Runden!J18>0,RANK(Runden!J18,Runden!J$4:J$53,0),0) -> 0 | K18: =IF(Runden!K18>0,RANK(Runden!K18,Runden!K$4:K$53,0),0) -> 0 | L18: =IF(Runden!L18>0,RANK(Runden!L18,Runden!L$4:L$53,0),0) -> 0 | M18: =IF(Runden!M18>0,RANK(Runden!M18,Runden!M$4:M$53,0),0) -> 0 | N18: =IF(Runden!N18>0,RANK(Runden!N18,Runden!N$4:N$53,0),0) -> 0 | O18: =IF(Runden!O18>0,RANK(Runden!O18,Runden!O$4:O$53,0),0) -> 0 | P18: =IF(Runden!P18>0,RANK(Runden!P18,Runden!P$4:P$53,0),0) -> 0 | Q18: =IF(Runden!Q18>0,RANK(Runden!Q18,Runden!Q$4:Q$53,0),0) -> 0 | R18: =IF(Runden!R18>0,RANK(Runden!R18,Runden!R$4:R$53,0),0) -> 0 | S18: =IF(Runden!S18>0,RANK(Runden!S18,Runden!S$4:S$53,0),0) -> 0 | T18: =IF(Runden!T18>0,RANK(Runden!T18,Runden!T$4:T$53,0),0) -> 0 | U18: =IF(Runden!U18>0,RANK(Runden!U18,Runden!U$4:U$53,0),0) -> 0 | W18: 0 | X18: 0 | Y18: 0 | Z18: 0 | AA18: 0 | AB18: 0 | AC18: 0 | AD18: 0 | AE18: 0 | AF18: 0 | AG18: 0 | AH18: 0 | AI18: 0 | AJ18: 0 | AK18: 0 | AL18: 0 | AM18: 0 | AN18: 0 | AO18: 0 | AP18: 0 | AQ18: 0 | AR18: 0 | AS18: 0 | AT18: 0 | AU18: 1 | AV18: 0 | AW18: 0 | AX18: 0 | AY18: 0 | AZ18: 0 | BA18: 0 | BB18: 0 | BC18: 0 | BD18: 0 | BE18: 0 | BF18: 0 | BG18: 0 | BH18: 0 | BI18: 0 | BJ18: 0 | BK18: 0 | BL18: 0 | BM18: 0 | BN18: 0 | BO18: 0 | BP18: 0 | BQ18: 0 | BR18: 0 | BS18: 0 | BT18: 0 | BU18: 0 | BV18: 0 | BW18: 0 | BX18: 0 | BY18: 0 | BZ18: 0 | CA18: 0 | CB18: 0 | CC18: 0 | CD18: 1
A19: =IF(Runden!A19="","",Runden!A19) ->  | B19: =IF(Runden!B19>0,RANK(Runden!B19,Runden!B$4:B$53,0),0) -> 0 | C19: =IF(Runden!C19>0,RANK(Runden!C19,Runden!C$4:C$53,0),0) -> 0 | D19: =IF(Runden!D19>0,RANK(Runden!D19,Runden!D$4:D$53,0),0) -> 0 | E19: =IF(Runden!E19>0,RANK(Runden!E19,Runden!E$4:E$53,0),0) -> 0 | F19: =IF(Runden!F19>0,RANK(Runden!F19,Runden!F$4:F$53,0),0) -> 0 | G19: =IF(Runden!G19>0,RANK(Runden!G19,Runden!G$4:G$53,0),0) -> 0 | H19: =IF(Runden!H19>0,RANK(Runden!H19,Runden!H$4:H$53,0),0) -> 0 | I19: =IF(Runden!I19>0,RANK(Runden!I19,Runden!I$4:I$53,0),0) -> 0 | J19: =IF(Runden!J19>0,RANK(Runden!J19,Runden!J$4:J$53,0),0) -> 0 | K19: =IF(Runden!K19>0,RANK(Runden!K19,Runden!K$4:K$53,0),0) -> 0 | L19: =IF(Runden!L19>0,RANK(Runden!L19,Runden!L$4:L$53,0),0) -> 0 | M19: =IF(Runden!M19>0,RANK(Runden!M19,Runden!M$4:M$53,0),0) -> 0 | N19: =IF(Runden!N19>0,RANK(Runden!N19,Runden!N$4:N$53,0),0) -> 0 | O19: =IF(Runden!O19>0,RANK(Runden!O19,Runden!O$4:O$53,0),0) -> 0 | P19: =IF(Runden!P19>0,RANK(Runden!P19,Runden!P$4:P$53,0),0) -> 0 | Q19: =IF(Runden!Q19>0,RANK(Runden!Q19,Runden!Q$4:Q$53,0),0) -> 0 | R19: =IF(Runden!R19>0,RANK(Runden!R19,Runden!R$4:R$53,0),0) -> 0 | S19: =IF(Runden!S19>0,RANK(Runden!S19,Runden!S$4:S$53,0),0) -> 0 | T19: =IF(Runden!T19>0,RANK(Runden!T19,Runden!T$4:T$53,0),0) -> 0 | U19: =IF(Runden!U19>0,RANK(Runden!U19,Runden!U$4:U$53,0),0) -> 0 | W19: 0 | X19: 0 | Y19: 0 | Z19: 0 | AA19: 0 | AB19: 0 | AC19: 0 | AD19: 0 | AE19: 0 | AF19: 0 | AG19: 0 | AH19: 0 | AI19: 0 | AJ19: 0 | AK19: 0 | AL19: 0 | AM19: 0 | AN19: 0 | AO19: 0 | AP19: 0 | AQ19: 0 | AR19: 0 | AS19: 0 | AT19: 0 | AU19: 1 | AV19: 0 | AW19: 0 | AX19: 0 | AY19: 0 | AZ19: 0 | BA19: 0 | BB19: 0 | BC19: 0 | BD19: 0 | BE19: 0 | BF19: 0 | BG19: 0 | BH19: 0 | BI19: 0 | BJ19: 0 | BK19: 0 | BL19: 0 | BM19: 0 | BN19: 0 | BO19: 0 | BP19: 0 | BQ19: 0 | BR19: 0 | BS19: 0 | BT19: 0 | BU19: 0 | BV19: 0 | BW19: 0 | BX19: 0 | BY19: 0 | BZ19: 0 | CA19: 0 | CB19: 0 | CC19: 0 | CD19: 1
A20: =IF(Runden!A20="","",Runden!A20) ->  | B20: =IF(Runden!B20>0,RANK(Runden!B20,Runden!B$4:B$53,0),0) -> 0 | C20: =IF(Runden!C20>0,RANK(Runden!C20,Runden!C$4:C$53,0),0) -> 0 | D20: =IF(Runden!D20>0,RANK(Runden!D20,Runden!D$4:D$53,0),0) -> 0 | E20: =IF(Runden!E20>0,RANK(Runden!E20,Runden!E$4:E$53,0),0) -> 0 | F20: =IF(Runden!F20>0,RANK(Runden!F20,Runden!F$4:F$53,0),0) -> 0 | G20: =IF(Runden!G20>0,RANK(Runden!G20,Runden!G$4:G$53,0),0) -> 0 | H20: =IF(Runden!H20>0,RANK(Runden!H20,Runden!H$4:H$53,0),0) -> 0 | I20: =IF(Runden!I20>0,RANK(Runden!I20,Runden!I$4:I$53,0),0) -> 0 | J20: =IF(Runden!J20>0,RANK(Runden!J20,Runden!J$4:J$53,0),0) -> 0 | K20: =IF(Runden!K20>0,RANK(Runden!K20,Runden!K$4:K$53,0),0) -> 0 | L20: =IF(Runden!L20>0,RANK(Runden!L20,Runden!L$4:L$53,0),0) -> 0 | M20: =IF(Runden!M20>0,RANK(Runden!M20,Runden!M$4:M$53,0),0) -> 0 | N20: =IF(Runden!N20>0,RANK(Runden!N20,Runden!N$4:N$53,0),0) -> 0 | O20: =IF(Runden!O20>0,RANK(Runden!O20,Runden!O$4:O$53,0),0) -> 0 | P20: =IF(Runden!P20>0,RANK(Runden!P20,Runden!P$4:P$53,0),0) -> 0 | Q20: =IF(Runden!Q20>0,RANK(Runden!Q20,Runden!Q$4:Q$53,0),0) -> 0 | R20: =IF(Runden!R20>0,RANK(Runden!R20,Runden!R$4:R$53,0),0) -> 0 | S20: =IF(Runden!S20>0,RANK(Runden!S20,Runden!S$4:S$53,0),0) -> 0 | T20: =IF(Runden!T20>0,RANK(Runden!T20,Runden!T$4:T$53,0),0) -> 0 | U20: =IF(Runden!U20>0,RANK(Runden!U20,Runden!U$4:U$53,0),0) -> 0 | W20: 0 | X20: 0 | Y20: 0 | Z20: 0 | AA20: 0 | AB20: 0 | AC20: 0 | AD20: 0 | AE20: 0 | AF20: 0 | AG20: 0 | AH20: 0 | AI20: 0 | AJ20: 0 | AK20: 0 | AL20: 0 | AM20: 0 | AN20: 0 | AO20: 0 | AP20: 0 | AQ20: =COUNTIF($B20:$U20,AQ$3) -> 0 | AR20: 0 | AS20: 0 | AT20: 0 | AU20: 1 | AV20: 0 | AW20: 0 | AX20: 0 | AY20: 0 | AZ20: 0 | BA20: 0 | BB20: 0 | BC20: 0 | BD20: 0 | BE20: 0 | BF20: 0 | BG20: 0 | BH20: 0 | BI20: 0 | BJ20: 0 | BK20: 0 | BL20: 0 | BM20: 0 | BN20: 0 | BO20: 0 | BP20: 0 | BQ20: 0 | BR20: 0 | BS20: 0 | BT20: 0 | BU20: 0 | BV20: 0 | BW20: 0 | BX20: 0 | BY20: 0 | BZ20: 0 | CA20: 0 | CB20: 0 | CC20: 0 | CD20: 1
A21: =IF(Runden!A21="","",Runden!A21) ->  | B21: =IF(Runden!B21>0,RANK(Runden!B21,Runden!B$4:B$53,0),0) -> 0 | C21: =IF(Runden!C21>0,RANK(Runden!C21,Runden!C$4:C$53,0),0) -> 0 | D21: =IF(Runden!D21>0,RANK(Runden!D21,Runden!D$4:D$53,0),0) -> 0 | E21: =IF(Runden!E21>0,RANK(Runden!E21,Runden!E$4:E$53,0),0) -> 0 | F21: =IF(Runden!F21>0,RANK(Runden!F21,Runden!F$4:F$53,0),0) -> 0 | G21: =IF(Runden!G21>0,RANK(Runden!G21,Runden!G$4:G$53,0),0) -> 0 | H21: =IF(Runden!H21>0,RANK(Runden!H21,Runden!H$4:H$53,0),0) -> 0 | I21: =IF(Runden!I21>0,RANK(Runden!I21,Runden!I$4:I$53,0),0) -> 0 | J21: =IF(Runden!J21>0,RANK(Runden!J21,Runden!J$4:J$53,0),0) -> 0 | K21: =IF(Runden!K21>0,RANK(Runden!K21,Runden!K$4:K$53,0),0) -> 0 | L21: =IF(Runden!L21>0,RANK(Runden!L21,Runden!L$4:L$53,0),0) -> 0 | M21: =IF(Runden!M21>0,RANK(Runden!M21,Runden!M$4:M$53,0),0) -> 0 | N21: =IF(Runden!N21>0,RANK(Runden!N21,Runden!N$4:N$53,0),0) -> 0 | O21: =IF(Runden!O21>0,RANK(Runden!O21,Runden!O$4:O$53,0),0) -> 0 | P21: =IF(Runden!P21>0,RANK(Runden!P21,Runden!P$4:P$53,0),0) -> 0 | Q21: =IF(Runden!Q21>0,RANK(Runden!Q21,Runden!Q$4:Q$53,0),0) -> 0 | R21: =IF(Runden!R21>0,RANK(Runden!R21,Runden!R$4:R$53,0),0) -> 0 | S21: =IF(Runden!S21>0,RANK(Runden!S21,Runden!S$4:S$53,0),0) -> 0 | T21: =IF(Runden!T21>0,RANK(Runden!T21,Runden!T$4:T$53,0),0) -> 0 | U21: =IF(Runden!U21>0,RANK(Runden!U21,Runden!U$4:U$53,0),0) -> 0 | W21: 0 | X21: 0 | Y21: 0 | Z21: 0 | AA21: 0 | AB21: 0 | AC21: 0 | AD21: 0 | AE21: 0 | AF21: 0 | AG21: 0 | AH21: 0 | AI21: 0 | AJ21: 0 | AK21: 0 | AL21: 0 | AM21: 0 | AN21: 0 | AO21: 0 | AP21: 0 | AQ21: 0 | AR21: 0 | AS21: 0 | AT21: 0 | AU21: 1 | AV21: 0 | AW21: 0 | AX21: 0 | AY21: 0 | AZ21: 0 | BA21: 0 | BB21: 0 | BC21: 0 | BD21: 0 | BE21: 0 | BF21: 0 | BG21: 0 | BH21: 0 | BI21: 0 | BJ21: 0 | BK21: 0 | BL21: 0 | BM21: 0 | BN21: 0 | BO21: 0 | BP21: 0 | BQ21: 0 | BR21: 0 | BS21: 0 | BT21: 0 | BU21: 0 | BV21: 0 | BW21: 0 | BX21: 0 | BY21: 0 | BZ21: 0 | CA21: 0 | CB21: 0 | CC21: 0 | CD21: 1
A22: =IF(Runden!A22="","",Runden!A22) ->  | B22: =IF(Runden!B22>0,RANK(Runden!B22,Runden!B$4:B$53,0),0) -> 0 | C22: =IF(Runden!C22>0,RANK(Runden!C22,Runden!C$4:C$53,0),0) -> 0 | D22: =IF(Runden!D22>0,RANK(Runden!D22,Runden!D$4:D$53,0),0) -> 0 | E22: =IF(Runden!E22>0,RANK(Runden!E22,Runden!E$4:E$53,0),0) -> 0 | F22: =IF(Runden!F22>0,RANK(Runden!F22,Runden!F$4:F$53,0),0) -> 0 | G22: =IF(Runden!G22>0,RANK(Runden!G22,Runden!G$4:G$53,0),0) -> 0 | H22: =IF(Runden!H22>0,RANK(Runden!H22,Runden!H$4:H$53,0),0) -> 0 | I22: =IF(Runden!I22>0,RANK(Runden!I22,Runden!I$4:I$53,0),0) -> 0 | J22: =IF(Runden!J22>0,RANK(Runden!J22,Runden!J$4:J$53,0),0) -> 0 | K22: =IF(Runden!K22>0,RANK(Runden!K22,Runden!K$4:K$53,0),0) -> 0 | L22: =IF(Runden!L22>0,RANK(Runden!L22,Runden!L$4:L$53,0),0) -> 0 | M22: =IF(Runden!M22>0,RANK(Runden!M22,Runden!M$4:M$53,0),0) -> 0 | N22: =IF(Runden!N22>0,RANK(Runden!N22,Runden!N$4:N$53,0),0) -> 0 | O22: =IF(Runden!O22>0,RANK(Runden!O22,Runden!O$4:O$53,0),0) -> 0 | P22: =IF(Runden!P22>0,RANK(Runden!P22,Runden!P$4:P$53,0),0) -> 0 | Q22: =IF(Runden!Q22>0,RANK(Runden!Q22,Runden!Q$4:Q$53,0),0) -> 0 | R22: =IF(Runden!R22>0,RANK(Runden!R22,Runden!R$4:R$53,0),0) -> 0 | S22: =IF(Runden!S22>0,RANK(Runden!S22,Runden!S$4:S$53,0),0) -> 0 | T22: =IF(Runden!T22>0,RANK(Runden!T22,Runden!T$4:T$53,0),0) -> 0 | U22: =IF(Runden!U22>0,RANK(Runden!U22,Runden!U$4:U$53,0),0) -> 0 | W22: 0 | X22: 0 | Y22: 0 | Z22: 0 | AA22: 0 | AB22: 0 | AC22: 0 | AD22: 0 | AE22: 0 | AF22: 0 | AG22: 0 | AH22: 0 | AI22: 0 | AJ22: 0 | AK22: 0 | AL22: 0 | AM22: 0 | AN22: 0 | AO22: 0 | AP22: 0 | AQ22: 0 | AR22: 0 | AS22: 0 | AT22: 0 | AU22: 1 | AV22: 0 | AW22: 0 | AX22: 0 | AY22: 0 | AZ22: 0 | BA22: 0 | BB22: 0 | BC22: 0 | BD22: 0 | BE22: 0 | BF22: 0 | BG22: 0 | BH22: 0 | BI22: 0 | BJ22: 0 | BK22: 0 | BL22: 0 | BM22: 0 | BN22: 0 | BO22: 0 | BP22: 0 | BQ22: 0 | BR22: 0 | BS22: 0 | BT22: 0 | BU22: 0 | BV22: 0 | BW22: 0 | BX22: 0 | BY22: 0 | BZ22: 0 | CA22: 0 | CB22: 0 | CC22: 0 | CD22: 1
A23: =IF(Runden!A23="","",Runden!A23) ->  | B23: =IF(Runden!B23>0,RANK(Runden!B23,Runden!B$4:B$53,0),0) -> 0 | C23: =IF(Runden!C23>0,RANK(Runden!C23,Runden!C$4:C$53,0),0) -> 0 | D23: =IF(Runden!D23>0,RANK(Runden!D23,Runden!D$4:D$53,0),0) -> 0 | E23: =IF(Runden!E23>0,RANK(Runden!E23,Runden!E$4:E$53,0),0) -> 0 | F23: =IF(Runden!F23>0,RANK(Runden!F23,Runden!F$4:F$53,0),0) -> 0 | G23: =IF(Runden!G23>0,RANK(Runden!G23,Runden!G$4:G$53,0),0) -> 0 | H23: =IF(Runden!H23>0,RANK(Runden!H23,Runden!H$4:H$53,0),0) -> 0 | I23: =IF(Runden!I23>0,RANK(Runden!I23,Runden!I$4:I$53,0),0) -> 0 | J23: =IF(Runden!J23>0,RANK(Runden!J23,Runden!J$4:J$53,0),0) -> 0 | K23: =IF(Runden!K23>0,RANK(Runden!K23,Runden!K$4:K$53,0),0) -> 0 | L23: =IF(Runden!L23>0,RANK(Runden!L23,Runden!L$4:L$53,0),0) -> 0 | M23: =IF(Runden!M23>0,RANK(Runden!M23,Runden!M$4:M$53,0),0) -> 0 | N23: =IF(Runden!N23>0,RANK(Runden!N23,Runden!N$4:N$53,0),0) -> 0 | O23: =IF(Runden!O23>0,RANK(Runden!O23,Runden!O$4:O$53,0),0) -> 0 | P23: =IF(Runden!P23>0,RANK(Runden!P23,Runden!P$4:P$53,0),0) -> 0 | Q23: =IF(Runden!Q23>0,RANK(Runden!Q23,Runden!Q$4:Q$53,0),0) -> 0 | R23: =IF(Runden!R23>0,RANK(Runden!R23,Runden!R$4:R$53,0),0) -> 0 | S23: =IF(Runden!S23>0,RANK(Runden!S23,Runden!S$4:S$53,0),0) -> 0 | T23: =IF(Runden!T23>0,RANK(Runden!T23,Runden!T$4:T$53,0),0) -> 0 | U23: =IF(Runden!U23>0,RANK(Runden!U23,Runden!U$4:U$53,0),0) -> 0 | W23: 0 | X23: 0 | Y23: 0 | Z23: 0 | AA23: 0 | AB23: 0 | AC23: 0 | AD23: 0 | AE23: 0 | AF23: 0 | AG23: 0 | AH23: 0 | AI23: 0 | AJ23: 0 | AK23: 0 | AL23: 0 | AM23: 0 | AN23: 0 | AO23: 0 | AP23: 0 | AQ23: 0 | AR23: 0 | AS23: 0 | AT23: 0 | AU23: 1 | AV23: 0 | AW23: 0 | AX23: 0 | AY23: 0 | AZ23: 0 | BA23: 0 | BB23: 0 | BC23: 0 | BD23: 0 | BE23: 0 | BF23: 0 | BG23: 0 | BH23: 0 | BI23: 0 | BJ23: 0 | BK23: 0 | BL23: 0 | BM23: 0 | BN23: 0 | BO23: 0 | BP23: 0 | BQ23: 0 | BR23: 0 | BS23: 0 | BT23: 0 | BU23: 0 | BV23: 0 | BW23: 0 | BX23: 0 | BY23: 0 | BZ23: 0 | CA23: 0 | CB23: 0 | CC23: 0 | CD23: 1
A24: =IF(Runden!A24="","",Runden!A24) ->  | B24: =IF(Runden!B24>0,RANK(Runden!B24,Runden!B$4:B$53,0),0) -> 0 | C24: =IF(Runden!C24>0,RANK(Runden!C24,Runden!C$4:C$53,0),0) -> 0 | D24: =IF(Runden!D24>0,RANK(Runden!D24,Runden!D$4:D$53,0),0) -> 0 | E24: =IF(Runden!E24>0,RANK(Runden!E24,Runden!E$4:E$53,0),0) -> 0 | F24: =IF(Runden!F24>0,RANK(Runden!F24,Runden!F$4:F$53,0),0) -> 0 | G24: =IF(Runden!G24>0,RANK(Runden!G24,Runden!G$4:G$53,0),0) -> 0 | H24: =IF(Runden!H24>0,RANK(Runden!H24,Runden!H$4:H$53,0),0) -> 0 | I24: =IF(Runden!I24>0,RANK(Runden!I24,Runden!I$4:I$53,0),0) -> 0 | J24: =IF(Runden!J24>0,RANK(Runden!J24,Runden!J$4:J$53,0),0) -> 0 | K24: =IF(Runden!K24>0,RANK(Runden!K24,Runden!K$4:K$53,0),0) -> 0 | L24: =IF(Runden!L24>0,RANK(Runden!L24,Runden!L$4:L$53,0),0) -> 0 | M24: =IF(Runden!M24>0,RANK(Runden!M24,Runden!M$4:M$53,0),0) -> 0 | N24: =IF(Runden!N24>0,RANK(Runden!N24,Runden!N$4:N$53,0),0) -> 0 | O24: =IF(Runden!O24>0,RANK(Runden!O24,Runden!O$4:O$53,0),0) -> 0 | P24: =IF(Runden!P24>0,RANK(Runden!P24,Runden!P$4:P$53,0),0) -> 0 | Q24: =IF(Runden!Q24>0,RANK(Runden!Q24,Runden!Q$4:Q$53,0),0) -> 0 | R24: =IF(Runden!R24>0,RANK(Runden!R24,Runden!R$4:R$53,0),0) -> 0 | S24: =IF(Runden!S24>0,RANK(Runden!S24,Runden!S$4:S$53,0),0) -> 0 | T24: =IF(Runden!T24>0,RANK(Runden!T24,Runden!T$4:T$53,0),0) -> 0 | U24: =IF(Runden!U24>0,RANK(Runden!U24,Runden!U$4:U$53,0),0) -> 0 | W24: 0 | X24: 0 | Y24: 0 | Z24: 0 | AA24: 0 | AB24: 0 | AC24: 0 | AD24: 0 | AE24: 0 | AF24: 0 | AG24: 0 | AH24: 0 | AI24: 0 | AJ24: 0 | AK24: 0 | AL24: 0 | AM24: 0 | AN24: 0 | AO24: 0 | AP24: 0 | AQ24: 0 | AR24: 0 | AS24: 0 | AT24: 0 | AU24: 1 | AV24: 0 | AW24: 0 | AX24: 0 | AY24: 0 | AZ24: 0 | BA24: 0 | BB24: 0 | BC24: 0 | BD24: 0 | BE24: 0 | BF24: 0 | BG24: 0 | BH24: 0 | BI24: 0 | BJ24: 0 | BK24: 0 | BL24: 0 | BM24: 0 | BN24: 0 | BO24: 0 | BP24: 0 | BQ24: 0 | BR24: 0 | BS24: 0 | BT24: 0 | BU24: 0 | BV24: 0 | BW24: 0 | BX24: 0 | BY24: 0 | BZ24: 0 | CA24: 0 | CB24: 0 | CC24: 0 | CD24: 1
A25: =IF(Runden!A25="","",Runden!A25) ->  | B25: =IF(Runden!B25>0,RANK(Runden!B25,Runden!B$4:B$53,0),0) -> 0 | C25: =IF(Runden!C25>0,RANK(Runden!C25,Runden!C$4:C$53,0),0) -> 0 | D25: =IF(Runden!D25>0,RANK(Runden!D25,Runden!D$4:D$53,0),0) -> 0 | E25: =IF(Runden!E25>0,RANK(Runden!E25,Runden!E$4:E$53,0),0) -> 0 | F25: =IF(Runden!F25>0,RANK(Runden!F25,Runden!F$4:F$53,0),0) -> 0 | G25: =IF(Runden!G25>0,RANK(Runden!G25,Runden!G$4:G$53,0),0) -> 0 | H25: =IF(Runden!H25>0,RANK(Runden!H25,Runden!H$4:H$53,0),0) -> 0 | I25: =IF(Runden!I25>0,RANK(Runden!I25,Runden!I$4:I$53,0),0) -> 0 | J25: =IF(Runden!J25>0,RANK(Runden!J25,Runden!J$4:J$53,0),0) -> 0 | K25: =IF(Runden!K25>0,RANK(Runden!K25,Runden!K$4:K$53,0),0) -> 0 | L25: =IF(Runden!L25>0,RANK(Runden!L25,Runden!L$4:L$53,0),0) -> 0 | M25: =IF(Runden!M25>0,RANK(Runden!M25,Runden!M$4:M$53,0),0) -> 0 | N25: =IF(Runden!N25>0,RANK(Runden!N25,Runden!N$4:N$53,0),0) -> 0 | O25: =IF(Runden!O25>0,RANK(Runden!O25,Runden!O$4:O$53,0),0) -> 0 | P25: =IF(Runden!P25>0,RANK(Runden!P25,Runden!P$4:P$53,0),0) -> 0 | Q25: =IF(Runden!Q25>0,RANK(Runden!Q25,Runden!Q$4:Q$53,0),0) -> 0 | R25: =IF(Runden!R25>0,RANK(Runden!R25,Runden!R$4:R$53,0),0) -> 0 | S25: =IF(Runden!S25>0,RANK(Runden!S25,Runden!S$4:S$53,0),0) -> 0 | T25: =IF(Runden!T25>0,RANK(Runden!T25,Runden!T$4:T$53,0),0) -> 0 | U25: =IF(Runden!U25>0,RANK(Runden!U25,Runden!U$4:U$53,0),0) -> 0 | W25: 0 | X25: 0 | Y25: 0 | Z25: 0 | AA25: 0 | AB25: 0 | AC25: 0 | AD25: 0 | AE25: 0 | AF25: 0 | AG25: =COUNTIF($B25:$U25,AG$3) -> 0 | AH25: 0 | AI25: 0 | AJ25: 0 | AK25: 0 | AL25: 0 | AM25: 0 | AN25: 0 | AO25: 0 | AP25: 0 | AQ25: 0 | AR25: 0 | AS25: 0 | AT25: 0 | AU25: 1 | AV25: 0 | AW25: 0 | AX25: 0 | AY25: 0 | AZ25: 0 | BA25: 0 | BB25: 0 | BC25: 0 | BD25: 0 | BE25: 0 | BF25: 0 | BG25: 0 | BH25: 0 | BI25: 0 | BJ25: 0 | BK25: 0 | BL25: 0 | BM25: 0 | BN25: 0 | BO25: 0 | BP25: 0 | BQ25: 0 | BR25: 0 | BS25: 0 | BT25: 0 | BU25: 0 | BV25: 0 | BW25: 0 | BX25: 0 | BY25: 0 | BZ25: 0 | CA25: 0 | CB25: 0 | CC25: 0 | CD25: 1
A26: =IF(Runden!A26="","",Runden!A26) ->  | B26: =IF(Runden!B26>0,RANK(Runden!B26,Runden!B$4:B$53,0),0) -> 0 | C26: =IF(Runden!C26>0,RANK(Runden!C26,Runden!C$4:C$53,0),0) -> 0 | D26: =IF(Runden!D26>0,RANK(Runden!D26,Runden!D$4:D$53,0),0) -> 0 | E26: =IF(Runden!E26>0,RANK(Runden!E26,Runden!E$4:E$53,0),0) -> 0 | F26: =IF(Runden!F26>0,RANK(Runden!F26,Runden!F$4:F$53,0),0) -> 0 | G26: =IF(Runden!G26>0,RANK(Runden!G26,Runden!G$4:G$53,0),0) -> 0 | H26: =IF(Runden!H26>0,RANK(Runden!H26,Runden!H$4:H$53,0),0) -> 0 | I26: =IF(Runden!I26>0,RANK(Runden!I26,Runden!I$4:I$53,0),0) -> 0 | J26: =IF(Runden!J26>0,RANK(Runden!J26,Runden!J$4:J$53,0),0) -> 0 | K26: =IF(Runden!K26>0,RANK(Runden!K26,Runden!K$4:K$53,0),0) -> 0 | L26: =IF(Runden!L26>0,RANK(Runden!L26,Runden!L$4:L$53,0),0) -> 0 | M26: =IF(Runden!M26>0,RANK(Runden!M26,Runden!M$4:M$53,0),0) -> 0 | N26: =IF(Runden!N26>0,RANK(Runden!N26,Runden!N$4:N$53,0),0) -> 0 | O26: =IF(Runden!O26>0,RANK(Runden!O26,Runden!O$4:O$53,0),0) -> 0 | P26: =IF(Runden!P26>0,RANK(Runden!P26,Runden!P$4:P$53,0),0) -> 0 | Q26: =IF(Runden!Q26>0,RANK(Runden!Q26,Runden!Q$4:Q$53,0),0) -> 0 | R26: =IF(Runden!R26>0,RANK(Runden!R26,Runden!R$4:R$53,0),0) -> 0 | S26: =IF(Runden!S26>0,RANK(Runden!S26,Runden!S$4:S$53,0),0) -> 0 | T26: =IF(Runden!T26>0,RANK(Runden!T26,Runden!T$4:T$53,0),0) -> 0 | U26: =IF(Runden!U26>0,RANK(Runden!U26,Runden!U$4:U$53,0),0) -> 0 | W26: =COUNTIF($B26:$U26,W$3) -> 0 | X26: 0 | Y26: 0 | Z26: 0 | AA26: 0 | AB26: 0 | AC26: 0 | AD26: 0 | AE26: 0 | AF26: 0 | AG26: 0 | AH26: 0 | AI26: 0 | AJ26: 0 | AK26: 0 | AL26: 0 | AM26: 0 | AN26: 0 | AO26: 0 | AP26: 0 | AQ26: 0 | AR26: 0 | AS26: 0 | AT26: 0 | AU26: 1 | AV26: 0 | AW26: 0 | AX26: 0 | AY26: 0 | AZ26: 0 | BA26: 0 | BB26: 0 | BC26: 0 | BD26: 0 | BE26: 0 | BF26: 0 | BG26: 0 | BH26: 0 | BI26: 0 | BJ26: 0 | BK26: 0 | BL26: 0 | BM26: 0 | BN26: 0 | BO26: 0 | BP26: 0 | BQ26: 0 | BR26: 0 | BS26: 0 | BT26: 0 | BU26: 0 | BV26: 0 | BW26: 0 | BX26: 0 | BY26: 0 | BZ26: 0 | CA26: 0 | CB26: 0 | CC26: 0 | CD26: 1
A27: =IF(Runden!A27="","",Runden!A27) ->  | B27: =IF(Runden!B27>0,RANK(Runden!B27,Runden!B$4:B$53,0),0) -> 0 | C27: =IF(Runden!C27>0,RANK(Runden!C27,Runden!C$4:C$53,0),0) -> 0 | D27: =IF(Runden!D27>0,RANK(Runden!D27,Runden!D$4:D$53,0),0) -> 0 | E27: =IF(Runden!E27>0,RANK(Runden!E27,Runden!E$4:E$53,0),0) -> 0 | F27: =IF(Runden!F27>0,RANK(Runden!F27,Runden!F$4:F$53,0),0) -> 0 | G27: =IF(Runden!G27>0,RANK(Runden!G27,Runden!G$4:G$53,0),0) -> 0 | H27: =IF(Runden!H27>0,RANK(Runden!H27,Runden!H$4:H$53,0),0) -> 0 | I27: =IF(Runden!I27>0,RANK(Runden!I27,Runden!I$4:I$53,0),0) -> 0 | J27: =IF(Runden!J27>0,RANK(Runden!J27,Runden!J$4:J$53,0),0) -> 0 | K27: =IF(Runden!K27>0,RANK(Runden!K27,Runden!K$4:K$53,0),0) -> 0 | L27: =IF(Runden!L27>0,RANK(Runden!L27,Runden!L$4:L$53,0),0) -> 0 | M27: =IF(Runden!M27>0,RANK(Runden!M27,Runden!M$4:M$53,0),0) -> 0 | N27: =IF(Runden!N27>0,RANK(Runden!N27,Runden!N$4:N$53,0),0) -> 0 | O27: =IF(Runden!O27>0,RANK(Runden!O27,Runden!O$4:O$53,0),0) -> 0 | P27: =IF(Runden!P27>0,RANK(Runden!P27,Runden!P$4:P$53,0),0) -> 0 | Q27: =IF(Runden!Q27>0,RANK(Runden!Q27,Runden!Q$4:Q$53,0),0) -> 0 | R27: =IF(Runden!R27>0,RANK(Runden!R27,Runden!R$4:R$53,0),0) -> 0 | S27: =IF(Runden!S27>0,RANK(Runden!S27,Runden!S$4:S$53,0),0) -> 0 | T27: =IF(Runden!T27>0,RANK(Runden!T27,Runden!T$4:T$53,0),0) -> 0 | U27: =IF(Runden!U27>0,RANK(Runden!U27,Runden!U$4:U$53,0),0) -> 0 | W27: 0 | X27: 0 | Y27: 0 | Z27: 0 | AA27: 0 | AB27: 0 | AC27: 0 | AD27: 0 | AE27: 0 | AF27: 0 | AG27: 0 | AH27: 0 | AI27: 0 | AJ27: 0 | AK27: 0 | AL27: 0 | AM27: 0 | AN27: 0 | AO27: 0 | AP27: 0 | AQ27: 0 | AR27: 0 | AS27: 0 | AT27: 0 | AU27: 1 | AV27: 0 | AW27: 0 | AX27: 0 | AY27: 0 | AZ27: 0 | BA27: 0 | BB27: 0 | BC27: 0 | BD27: 0 | BE27: 0 | BF27: 0 | BG27: 0 | BH27: 0 | BI27: 0 | BJ27: 0 | BK27: 0 | BL27: 0 | BM27: 0 | BN27: 0 | BO27: 0 | BP27: 0 | BQ27: 0 | BR27: 0 | BS27: 0 | BT27: 0 | BU27: 0 | BV27: 0 | BW27: 0 | BX27: 0 | BY27: 0 | BZ27: 0 | CA27: 0 | CB27: 0 | CC27: 0 | CD27: 1
A28: =IF(Runden!A28="","",Runden!A28) ->  | B28: =IF(Runden!B28>0,RANK(Runden!B28,Runden!B$4:B$53,0),0) -> 0 | C28: =IF(Runden!C28>0,RANK(Runden!C28,Runden!C$4:C$53,0),0) -> 0 | D28: =IF(Runden!D28>0,RANK(Runden!D28,Runden!D$4:D$53,0),0) -> 0 | E28: =IF(Runden!E28>0,RANK(Runden!E28,Runden!E$4:E$53,0),0) -> 0 | F28: =IF(Runden!F28>0,RANK(Runden!F28,Runden!F$4:F$53,0),0) -> 0 | G28: =IF(Runden!G28>0,RANK(Runden!G28,Runden!G$4:G$53,0),0) -> 0 | H28: =IF(Runden!H28>0,RANK(Runden!H28,Runden!H$4:H$53,0),0) -> 0 | I28: =IF(Runden!I28>0,RANK(Runden!I28,Runden!I$4:I$53,0),0) -> 0 | J28: =IF(Runden!J28>0,RANK(Runden!J28,Runden!J$4:J$53,0),0) -> 0 | K28: =IF(Runden!K28>0,RANK(Runden!K28,Runden!K$4:K$53,0),0) -> 0 | L28: =IF(Runden!L28>0,RANK(Runden!L28,Runden!L$4:L$53,0),0) -> 0 | M28: =IF(Runden!M28>0,RANK(Runden!M28,Runden!M$4:M$53,0),0) -> 0 | N28: =IF(Runden!N28>0,RANK(Runden!N28,Runden!N$4:N$53,0),0) -> 0 | O28: =IF(Runden!O28>0,RANK(Runden!O28,Runden!O$4:O$53,0),0) -> 0 | P28: =IF(Runden!P28>0,RANK(Runden!P28,Runden!P$4:P$53,0),0) -> 0 | Q28: =IF(Runden!Q28>0,RANK(Runden!Q28,Runden!Q$4:Q$53,0),0) -> 0 | R28: =IF(Runden!R28>0,RANK(Runden!R28,Runden!R$4:R$53,0),0) -> 0 | S28: =IF(Runden!S28>0,RANK(Runden!S28,Runden!S$4:S$53,0),0) -> 0 | T28: =IF(Runden!T28>0,RANK(Runden!T28,Runden!T$4:T$53,0),0) -> 0 | U28: =IF(Runden!U28>0,RANK(Runden!U28,Runden!U$4:U$53,0),0) -> 0 | W28: 0 | X28: 0 | Y28: 0 | Z28: 0 | AA28: 0 | AB28: 0 | AC28: 0 | AD28: 0 | AE28: 0 | AF28: 0 | AG28: 0 | AH28: 0 | AI28: 0 | AJ28: 0 | AK28: 0 | AL28: 0 | AM28: 0 | AN28: 0 | AO28: 0 | AP28: 0 | AQ28: 0 | AR28: 0 | AS28: 0 | AT28: 0 | AU28: 1 | AV28: 0 | AW28: 0 | AX28: 0 | AY28: 0 | AZ28: 0 | BA28: 0 | BB28: 0 | BC28: 0 | BD28: 0 | BE28: 0 | BF28: 0 | BG28: 0 | BH28: 0 | BI28: 0 | BJ28: 0 | BK28: 0 | BL28: 0 | BM28: 0 | BN28: 0 | BO28: 0 | BP28: 0 | BQ28: 0 | BR28: 0 | BS28: 0 | BT28: 0 | BU28: 0 | BV28: 0 | BW28: 0 | BX28: 0 | BY28: 0 | BZ28: 0 | CA28: 0 | CB28: 0 | CC28: 0 | CD28: 1
A29: =IF(Runden!A29="","",Runden!A29) ->  | B29: =IF(Runden!B29>0,RANK(Runden!B29,Runden!B$4:B$53,0),0) -> 0 | C29: =IF(Runden!C29>0,RANK(Runden!C29,Runden!C$4:C$53,0),0) -> 0 | D29: =IF(Runden!D29>0,RANK(Runden!D29,Runden!D$4:D$53,0),0) -> 0 | E29: =IF(Runden!E29>0,RANK(Runden!E29,Runden!E$4:E$53,0),0) -> 0 | F29: =IF(Runden!F29>0,RANK(Runden!F29,Runden!F$4:F$53,0),0) -> 0 | G29: =IF(Runden!G29>0,RANK(Runden!G29,Runden!G$4:G$53,0),0) -> 0 | H29: =IF(Runden!H29>0,RANK(Runden!H29,Runden!H$4:H$53,0),0) -> 0 | I29: =IF(Runden!I29>0,RANK(Runden!I29,Runden!I$4:I$53,0),0) -> 0 | J29: =IF(Runden!J29>0,RANK(Runden!J29,Runden!J$4:J$53,0),0) -> 0 | K29: =IF(Runden!K29>0,RANK(Runden!K29,Runden!K$4:K$53,0),0) -> 0 | L29: =IF(Runden!L29>0,RANK(Runden!L29,Runden!L$4:L$53,0),0) -> 0 | M29: =IF(Runden!M29>0,RANK(Runden!M29,Runden!M$4:M$53,0),0) -> 0 | N29: =IF(Runden!N29>0,RANK(Runden!N29,Runden!N$4:N$53,0),0) -> 0 | O29: =IF(Runden!O29>0,RANK(Runden!O29,Runden!O$4:O$53,0),0) -> 0 | P29: =IF(Runden!P29>0,RANK(Runden!P29,Runden!P$4:P$53,0),0) -> 0 | Q29: =IF(Runden!Q29>0,RANK(Runden!Q29,Runden!Q$4:Q$53,0),0) -> 0 | R29: =IF(Runden!R29>0,RANK(Runden!R29,Runden!R$4:R$53,0),0) -> 0 | S29: =IF(Runden!S29>0,RANK(Runden!S29,Runden!S$4:S$53,0),0) -> 0 | T29: =IF(Runden!T29>0,RANK(Runden!T29,Runden!T$4:T$53,0),0) -> 0 | U29: =IF(Runden!U29>0,RANK(Runden!U29,Runden!U$4:U$53,0),0) -> 0 | W29: 0 | X29: 0 | Y29: 0 | Z29: 0 | AA29: 0 | AB29: 0 | AC29: 0 | AD29: 0 | AE29: 0 | AF29: 0 | AG29: 0 | AH29: 0 | AI29: 0 | AJ29: 0 | AK29: 0 | AL29: 0 | AM29: 0 | AN29: 0 | AO29: 0 | AP29: 0 | AQ29: 0 | AR29: 0 | AS29: 0 | AT29: 0 | AU29: 1 | AV29: 0 | AW29: 0 | AX29: 0 | AY29: 0 | AZ29: 0 | BA29: 0 | BB29: 0 | BC29: 0 | BD29: 0 | BE29: 0 | BF29: 0 | BG29: 0 | BH29: 0 | BI29: 0 | BJ29: 0 | BK29: 0 | BL29: 0 | BM29: 0 | BN29: 0 | BO29: 0 | BP29: 0 | BQ29: 0 | BR29: 0 | BS29: 0 | BT29: 0 | BU29: 0 | BV29: 0 | BW29: 0 | BX29: 0 | BY29: 0 | BZ29: 0 | CA29: 0 | CB29: 0 | CC29: 0 | CD29: 1
A30: =IF(Runden!A30="","",Runden!A30) ->  | B30: =IF(Runden!B30>0,RANK(Runden!B30,Runden!B$4:B$53,0),0) -> 0 | C30: =IF(Runden!C30>0,RANK(Runden!C30,Runden!C$4:C$53,0),0) -> 0 | D30: =IF(Runden!D30>0,RANK(Runden!D30,Runden!D$4:D$53,0),0) -> 0 | E30: =IF(Runden!E30>0,RANK(Runden!E30,Runden!E$4:E$53,0),0) -> 0 | F30: =IF(Runden!F30>0,RANK(Runden!F30,Runden!F$4:F$53,0),0) -> 0 | G30: =IF(Runden!G30>0,RANK(Runden!G30,Runden!G$4:G$53,0),0) -> 0 | H30: =IF(Runden!H30>0,RANK(Runden!H30,Runden!H$4:H$53,0),0) -> 0 | I30: =IF(Runden!I30>0,RANK(Runden!I30,Runden!I$4:I$53,0),0) -> 0 | J30: =IF(Runden!J30>0,RANK(Runden!J30,Runden!J$4:J$53,0),0) -> 0 | K30: =IF(Runden!K30>0,RANK(Runden!K30,Runden!K$4:K$53,0),0) -> 0 | L30: =IF(Runden!L30>0,RANK(Runden!L30,Runden!L$4:L$53,0),0) -> 0 | M30: =IF(Runden!M30>0,RANK(Runden!M30,Runden!M$4:M$53,0),0) -> 0 | N30: =IF(Runden!N30>0,RANK(Runden!N30,Runden!N$4:N$53,0),0) -> 0 | O30: =IF(Runden!O30>0,RANK(Runden!O30,Runden!O$4:O$53,0),0) -> 0 | P30: =IF(Runden!P30>0,RANK(Runden!P30,Runden!P$4:P$53,0),0) -> 0 | Q30: =IF(Runden!Q30>0,RANK(Runden!Q30,Runden!Q$4:Q$53,0),0) -> 0 | R30: =IF(Runden!R30>0,RANK(Runden!R30,Runden!R$4:R$53,0),0) -> 0 | S30: =IF(Runden!S30>0,RANK(Runden!S30,Runden!S$4:S$53,0),0) -> 0 | T30: =IF(Runden!T30>0,RANK(Runden!T30,Runden!T$4:T$53,0),0) -> 0 | U30: =IF(Runden!U30>0,RANK(Runden!U30,Runden!U$4:U$53,0),0) -> 0 | W30: 0 | X30: 0 | Y30: 0 | Z30: 0 | AA30: 0 | AB30: 0 | AC30: 0 | AD30: 0 | AE30: 0 | AF30: 0 | AG30: 0 | AH30: 0 | AI30: 0 | AJ30: 0 | AK30: 0 | AL30: 0 | AM30: 0 | AN30: 0 | AO30: 0 | AP30: 0 | AQ30: 0 | AR30: 0 | AS30: 0 | AT30: 0 | AU30: 1 | AV30: 0 | AW30: 0 | AX30: 0 | AY30: 0 | AZ30: 0 | BA30: 0 | BB30: 0 | BC30: 0 | BD30: 0 | BE30: 0 | BF30: 0 | BG30: 0 | BH30: 0 | BI30: 0 | BJ30: 0 | BK30: 0 | BL30: 0 | BM30: 0 | BN30: 0 | BO30: 0 | BP30: 0 | BQ30: 0 | BR30: 0 | BS30: 0 | BT30: 0 | BU30: 0 | BV30: 0 | BW30: 0 | BX30: 0 | BY30: 0 | BZ30: 0 | CA30: 0 | CB30: 0 | CC30: 0 | CD30: 1
A31: =IF(Runden!A31="","",Runden!A31) ->  | B31: =IF(Runden!B31>0,RANK(Runden!B31,Runden!B$4:B$53,0),0) -> 0 | C31: =IF(Runden!C31>0,RANK(Runden!C31,Runden!C$4:C$53,0),0) -> 0 | D31: =IF(Runden!D31>0,RANK(Runden!D31,Runden!D$4:D$53,0),0) -> 0 | E31: =IF(Runden!E31>0,RANK(Runden!E31,Runden!E$4:E$53,0),0) -> 0 | F31: =IF(Runden!F31>0,RANK(Runden!F31,Runden!F$4:F$53,0),0) -> 0 | G31: =IF(Runden!G31>0,RANK(Runden!G31,Runden!G$4:G$53,0),0) -> 0 | H31: =IF(Runden!H31>0,RANK(Runden!H31,Runden!H$4:H$53,0),0) -> 0 | I31: =IF(Runden!I31>0,RANK(Runden!I31,Runden!I$4:I$53,0),0) -> 0 | J31: =IF(Runden!J31>0,RANK(Runden!J31,Runden!J$4:J$53,0),0) -> 0 | K31: =IF(Runden!K31>0,RANK(Runden!K31,Runden!K$4:K$53,0),0) -> 0 | L31: =IF(Runden!L31>0,RANK(Runden!L31,Runden!L$4:L$53,0),0) -> 0 | M31: =IF(Runden!M31>0,RANK(Runden!M31,Runden!M$4:M$53,0),0) -> 0 | N31: =IF(Runden!N31>0,RANK(Runden!N31,Runden!N$4:N$53,0),0) -> 0 | O31: =IF(Runden!O31>0,RANK(Runden!O31,Runden!O$4:O$53,0),0) -> 0 | P31: =IF(Runden!P31>0,RANK(Runden!P31,Runden!P$4:P$53,0),0) -> 0 | Q31: =IF(Runden!Q31>0,RANK(Runden!Q31,Runden!Q$4:Q$53,0),0) -> 0 | R31: =IF(Runden!R31>0,RANK(Runden!R31,Runden!R$4:R$53,0),0) -> 0 | S31: =IF(Runden!S31>0,RANK(Runden!S31,Runden!S$4:S$53,0),0) -> 0 | T31: =IF(Runden!T31>0,RANK(Runden!T31,Runden!T$4:T$53,0),0) -> 0 | U31: =IF(Runden!U31>0,RANK(Runden!U31,Runden!U$4:U$53,0),0) -> 0 | W31: 0 | X31: 0 | Y31: 0 | Z31: 0 | AA31: 0 | AB31: 0 | AC31: 0 | AD31: 0 | AE31: 0 | AF31: 0 | AG31: 0 | AH31: 0 | AI31: 0 | AJ31: 0 | AK31: 0 | AL31: 0 | AM31: 0 | AN31: 0 | AO31: 0 | AP31: 0 | AQ31: 0 | AR31: 0 | AS31: 0 | AT31: 0 | AU31: 1 | AV31: 0 | AW31: 0 | AX31: 0 | AY31: 0 | AZ31: 0 | BA31: 0 | BB31: 0 | BC31: 0 | BD31: 0 | BE31: 0 | BF31: 0 | BG31: 0 | BH31: 0 | BI31: 0 | BJ31: 0 | BK31: 0 | BL31: 0 | BM31: 0 | BN31: 0 | BO31: 0 | BP31: 0 | BQ31: 0 | BR31: 0 | BS31: 0 | BT31: 0 | BU31: 0 | BV31: 0 | BW31: 0 | BX31: 0 | BY31: 0 | BZ31: 0 | CA31: 0 | CB31: 0 | CC31: 0 | CD31: 1
A32: =IF(Runden!A32="","",Runden!A32) ->  | B32: =IF(Runden!B32>0,RANK(Runden!B32,Runden!B$4:B$53,0),0) -> 0 | C32: =IF(Runden!C32>0,RANK(Runden!C32,Runden!C$4:C$53,0),0) -> 0 | D32: =IF(Runden!D32>0,RANK(Runden!D32,Runden!D$4:D$53,0),0) -> 0 | E32: =IF(Runden!E32>0,RANK(Runden!E32,Runden!E$4:E$53,0),0) -> 0 | F32: =IF(Runden!F32>0,RANK(Runden!F32,Runden!F$4:F$53,0),0) -> 0 | G32: =IF(Runden!G32>0,RANK(Runden!G32,Runden!G$4:G$53,0),0) -> 0 | H32: =IF(Runden!H32>0,RANK(Runden!H32,Runden!H$4:H$53,0),0) -> 0 | I32: =IF(Runden!I32>0,RANK(Runden!I32,Runden!I$4:I$53,0),0) -> 0 | J32: =IF(Runden!J32>0,RANK(Runden!J32,Runden!J$4:J$53,0),0) -> 0 | K32: =IF(Runden!K32>0,RANK(Runden!K32,Runden!K$4:K$53,0),0) -> 0 | L32: =IF(Runden!L32>0,RANK(Runden!L32,Runden!L$4:L$53,0),0) -> 0 | M32: =IF(Runden!M32>0,RANK(Runden!M32,Runden!M$4:M$53,0),0) -> 0 | N32: =IF(Runden!N32>0,RANK(Runden!N32,Runden!N$4:N$53,0),0) -> 0 | O32: =IF(Runden!O32>0,RANK(Runden!O32,Runden!O$4:O$53,0),0) -> 0 | P32: =IF(Runden!P32>0,RANK(Runden!P32,Runden!P$4:P$53,0),0) -> 0 | Q32: =IF(Runden!Q32>0,RANK(Runden!Q32,Runden!Q$4:Q$53,0),0) -> 0 | R32: =IF(Runden!R32>0,RANK(Runden!R32,Runden!R$4:R$53,0),0) -> 0 | S32: =IF(Runden!S32>0,RANK(Runden!S32,Runden!S$4:S$53,0),0) -> 0 | T32: =IF(Runden!T32>0,RANK(Runden!T32,Runden!T$4:T$53,0),0) -> 0 | U32: =IF(Runden!U32>0,RANK(Runden!U32,Runden!U$4:U$53,0),0) -> 0 | W32: 0 | X32: 0 | Y32: 0 | Z32: 0 | AA32: 0 | AB32: 0 | AC32: 0 | AD32: 0 | AE32: 0 | AF32: 0 | AG32: 0 | AH32: 0 | AI32: 0 | AJ32: 0 | AK32: 0 | AL32: 0 | AM32: 0 | AN32: 0 | AO32: 0 | AP32: 0 | AQ32: 0 | AR32: 0 | AS32: 0 | AT32: 0 | AU32: 1 | AV32: 0 | AW32: 0 | AX32: 0 | AY32: 0 | AZ32: 0 | BA32: 0 | BB32: 0 | BC32: 0 | BD32: 0 | BE32: 0 | BF32: 0 | BG32: 0 | BH32: 0 | BI32: 0 | BJ32: 0 | BK32: 0 | BL32: 0 | BM32: 0 | BN32: 0 | BO32: 0 | BP32: 0 | BQ32: 0 | BR32: 0 | BS32: 0 | BT32: 0 | BU32: 0 | BV32: 0 | BW32: 0 | BX32: 0 | BY32: 0 | BZ32: 0 | CA32: 0 | CB32: 0 | CC32: 0 | CD32: 1
A33: =IF(Runden!A33="","",Runden!A33) ->  | B33: =IF(Runden!B33>0,RANK(Runden!B33,Runden!B$4:B$53,0),0) -> 0 | C33: =IF(Runden!C33>0,RANK(Runden!C33,Runden!C$4:C$53,0),0) -> 0 | D33: =IF(Runden!D33>0,RANK(Runden!D33,Runden!D$4:D$53,0),0) -> 0 | E33: =IF(Runden!E33>0,RANK(Runden!E33,Runden!E$4:E$53,0),0) -> 0 | F33: =IF(Runden!F33>0,RANK(Runden!F33,Runden!F$4:F$53,0),0) -> 0 | G33: =IF(Runden!G33>0,RANK(Runden!G33,Runden!G$4:G$53,0),0) -> 0 | H33: =IF(Runden!H33>0,RANK(Runden!H33,Runden!H$4:H$53,0),0) -> 0 | I33: =IF(Runden!I33>0,RANK(Runden!I33,Runden!I$4:I$53,0),0) -> 0 | J33: =IF(Runden!J33>0,RANK(Runden!J33,Runden!J$4:J$53,0),0) -> 0 | K33: =IF(Runden!K33>0,RANK(Runden!K33,Runden!K$4:K$53,0),0) -> 0 | L33: =IF(Runden!L33>0,RANK(Runden!L33,Runden!L$4:L$53,0),0) -> 0 | M33: =IF(Runden!M33>0,RANK(Runden!M33,Runden!M$4:M$53,0),0) -> 0 | N33: =IF(Runden!N33>0,RANK(Runden!N33,Runden!N$4:N$53,0),0) -> 0 | O33: =IF(Runden!O33>0,RANK(Runden!O33,Runden!O$4:O$53,0),0) -> 0 | P33: =IF(Runden!P33>0,RANK(Runden!P33,Runden!P$4:P$53,0),0) -> 0 | Q33: =IF(Runden!Q33>0,RANK(Runden!Q33,Runden!Q$4:Q$53,0),0) -> 0 | R33: =IF(Runden!R33>0,RANK(Runden!R33,Runden!R$4:R$53,0),0) -> 0 | S33: =IF(Runden!S33>0,RANK(Runden!S33,Runden!S$4:S$53,0),0) -> 0 | T33: =IF(Runden!T33>0,RANK(Runden!T33,Runden!T$4:T$53,0),0) -> 0 | U33: =IF(Runden!U33>0,RANK(Runden!U33,Runden!U$4:U$53,0),0) -> 0 | W33: 0 | X33: 0 | Y33: 0 | Z33: 0 | AA33: 0 | AB33: 0 | AC33: 0 | AD33: 0 | AE33: 0 | AF33: 0 | AG33: 0 | AH33: 0 | AI33: 0 | AJ33: 0 | AK33: 0 | AL33: 0 | AM33: 0 | AN33: 0 | AO33: 0 | AP33: 0 | AQ33: 0 | AR33: 0 | AS33: 0 | AT33: 0 | AU33: 1 | AV33: 0 | AW33: 0 | AX33: 0 | AY33: 0 | AZ33: 0 | BA33: 0 | BB33: 0 | BC33: 0 | BD33: 0 | BE33: 0 | BF33: 0 | BG33: 0 | BH33: 0 | BI33: 0 | BJ33: 0 | BK33: 0 | BL33: 0 | BM33: 0 | BN33: 0 | BO33: 0 | BP33: 0 | BQ33: 0 | BR33: 0 | BS33: 0 | BT33: 0 | BU33: 0 | BV33: 0 | BW33: 0 | BX33: 0 | BY33: 0 | BZ33: 0 | CA33: 0 | CB33: 0 | CC33: 0 | CD33: 1
A34: =IF(Runden!A34="","",Runden!A34) ->  | B34: =IF(Runden!B34>0,RANK(Runden!B34,Runden!B$4:B$53,0),0) -> 0 | C34: =IF(Runden!C34>0,RANK(Runden!C34,Runden!C$4:C$53,0),0) -> 0 | D34: =IF(Runden!D34>0,RANK(Runden!D34,Runden!D$4:D$53,0),0) -> 0 | E34: =IF(Runden!E34>0,RANK(Runden!E34,Runden!E$4:E$53,0),0) -> 0 | F34: =IF(Runden!F34>0,RANK(Runden!F34,Runden!F$4:F$53,0),0) -> 0 | G34: =IF(Runden!G34>0,RANK(Runden!G34,Runden!G$4:G$53,0),0) -> 0 | H34: =IF(Runden!H34>0,RANK(Runden!H34,Runden!H$4:H$53,0),0) -> 0 | I34: =IF(Runden!I34>0,RANK(Runden!I34,Runden!I$4:I$53,0),0) -> 0 | J34: =IF(Runden!J34>0,RANK(Runden!J34,Runden!J$4:J$53,0),0) -> 0 | K34: =IF(Runden!K34>0,RANK(Runden!K34,Runden!K$4:K$53,0),0) -> 0 | L34: =IF(Runden!L34>0,RANK(Runden!L34,Runden!L$4:L$53,0),0) -> 0 | M34: =IF(Runden!M34>0,RANK(Runden!M34,Runden!M$4:M$53,0),0) -> 0 | N34: =IF(Runden!N34>0,RANK(Runden!N34,Runden!N$4:N$53,0),0) -> 0 | O34: =IF(Runden!O34>0,RANK(Runden!O34,Runden!O$4:O$53,0),0) -> 0 | P34: =IF(Runden!P34>0,RANK(Runden!P34,Runden!P$4:P$53,0),0) -> 0 | Q34: =IF(Runden!Q34>0,RANK(Runden!Q34,Runden!Q$4:Q$53,0),0) -> 0 | R34: =IF(Runden!R34>0,RANK(Runden!R34,Runden!R$4:R$53,0),0) -> 0 | S34: =IF(Runden!S34>0,RANK(Runden!S34,Runden!S$4:S$53,0),0) -> 0 | T34: =IF(Runden!T34>0,RANK(Runden!T34,Runden!T$4:T$53,0),0) -> 0 | U34: =IF(Runden!U34>0,RANK(Runden!U34,Runden!U$4:U$53,0),0) -> 0 | W34: 0 | X34: 0 | Y34: 0 | Z34: 0 | AA34: 0 | AB34: 0 | AC34: 0 | AD34: 0 | AE34: 0 | AF34: 0 | AG34: 0 | AH34: 0 | AI34: 0 | AJ34: 0 | AK34: 0 | AL34: 0 | AM34: 0 | AN34: 0 | AO34: 0 | AP34: 0 | AQ34: 0 | AR34: 0 | AS34: 0 | AT34: 0 | AU34: 1 | AV34: 0 | AW34: 0 | AX34: 0 | AY34: 0 | AZ34: 0 | BA34: 0 | BB34: 0 | BC34: 0 | BD34: 0 | BE34: 0 | BF34: 0 | BG34: 0 | BH34: 0 | BI34: 0 | BJ34: 0 | BK34: 0 | BL34: 0 | BM34: 0 | BN34: 0 | BO34: 0 | BP34: 0 | BQ34: 0 | BR34: 0 | BS34: 0 | BT34: 0 | BU34: 0 | BV34: 0 | BW34: 0 | BX34: 0 | BY34: 0 | BZ34: 0 | CA34: 0 | CB34: 0 | CC34: 0 | CD34: 1
A35: =IF(Runden!A35="","",Runden!A35) ->  | B35: =IF(Runden!B35>0,RANK(Runden!B35,Runden!B$4:B$53,0),0) -> 0 | C35: =IF(Runden!C35>0,RANK(Runden!C35,Runden!C$4:C$53,0),0) -> 0 | D35: =IF(Runden!D35>0,RANK(Runden!D35,Runden!D$4:D$53,0),0) -> 0 | E35: =IF(Runden!E35>0,RANK(Runden!E35,Runden!E$4:E$53,0),0) -> 0 | F35: =IF(Runden!F35>0,RANK(Runden!F35,Runden!F$4:F$53,0),0) -> 0 | G35: =IF(Runden!G35>0,RANK(Runden!G35,Runden!G$4:G$53,0),0) -> 0 | H35: =IF(Runden!H35>0,RANK(Runden!H35,Runden!H$4:H$53,0),0) -> 0 | I35: =IF(Runden!I35>0,RANK(Runden!I35,Runden!I$4:I$53,0),0) -> 0 | J35: =IF(Runden!J35>0,RANK(Runden!J35,Runden!J$4:J$53,0),0) -> 0 | K35: =IF(Runden!K35>0,RANK(Runden!K35,Runden!K$4:K$53,0),0) -> 0 | L35: =IF(Runden!L35>0,RANK(Runden!L35,Runden!L$4:L$53,0),0) -> 0 | M35: =IF(Runden!M35>0,RANK(Runden!M35,Runden!M$4:M$53,0),0) -> 0 | N35: =IF(Runden!N35>0,RANK(Runden!N35,Runden!N$4:N$53,0),0) -> 0 | O35: =IF(Runden!O35>0,RANK(Runden!O35,Runden!O$4:O$53,0),0) -> 0 | P35: =IF(Runden!P35>0,RANK(Runden!P35,Runden!P$4:P$53,0),0) -> 0 | Q35: =IF(Runden!Q35>0,RANK(Runden!Q35,Runden!Q$4:Q$53,0),0) -> 0 | R35: =IF(Runden!R35>0,RANK(Runden!R35,Runden!R$4:R$53,0),0) -> 0 | S35: =IF(Runden!S35>0,RANK(Runden!S35,Runden!S$4:S$53,0),0) -> 0 | T35: =IF(Runden!T35>0,RANK(Runden!T35,Runden!T$4:T$53,0),0) -> 0 | U35: =IF(Runden!U35>0,RANK(Runden!U35,Runden!U$4:U$53,0),0) -> 0 | W35: 0 | X35: 0 | Y35: 0 | Z35: 0 | AA35: 0 | AB35: 0 | AC35: 0 | AD35: 0 | AE35: 0 | AF35: 0 | AG35: 0 | AH35: 0 | AI35: 0 | AJ35: 0 | AK35: 0 | AL35: 0 | AM35: 0 | AN35: 0 | AO35: 0 | AP35: 0 | AQ35: 0 | AR35: 0 | AS35: 0 | AT35: 0 | AU35: 1 | AV35: 0 | AW35: 0 | AX35: 0 | AY35: 0 | AZ35: 0 | BA35: 0 | BB35: 0 | BC35: 0 | BD35: 0 | BE35: 0 | BF35: 0 | BG35: 0 | BH35: 0 | BI35: 0 | BJ35: 0 | BK35: 0 | BL35: 0 | BM35: 0 | BN35: 0 | BO35: 0 | BP35: 0 | BQ35: 0 | BR35: 0 | BS35: 0 | BT35: 0 | BU35: 0 | BV35: 0 | BW35: 0 | BX35: 0 | BY35: 0 | BZ35: 0 | CA35: 0 | CB35: 0 | CC35: 0 | CD35: 1
A36: =IF(Runden!A36="","",Runden!A36) ->  | B36: =IF(Runden!B36>0,RANK(Runden!B36,Runden!B$4:B$53,0),0) -> 0 | C36: =IF(Runden!C36>0,RANK(Runden!C36,Runden!C$4:C$53,0),0) -> 0 | D36: =IF(Runden!D36>0,RANK(Runden!D36,Runden!D$4:D$53,0),0) -> 0 | E36: =IF(Runden!E36>0,RANK(Runden!E36,Runden!E$4:E$53,0),0) -> 0 | F36: =IF(Runden!F36>0,RANK(Runden!F36,Runden!F$4:F$53,0),0) -> 0 | G36: =IF(Runden!G36>0,RANK(Runden!G36,Runden!G$4:G$53,0),0) -> 0 | H36: =IF(Runden!H36>0,RANK(Runden!H36,Runden!H$4:H$53,0),0) -> 0 | I36: =IF(Runden!I36>0,RANK(Runden!I36,Runden!I$4:I$53,0),0) -> 0 | J36: =IF(Runden!J36>0,RANK(Runden!J36,Runden!J$4:J$53,0),0) -> 0 | K36: =IF(Runden!K36>0,RANK(Runden!K36,Runden!K$4:K$53,0),0) -> 0 | L36: =IF(Runden!L36>0,RANK(Runden!L36,Runden!L$4:L$53,0),0) -> 0 | M36: =IF(Runden!M36>0,RANK(Runden!M36,Runden!M$4:M$53,0),0) -> 0 | N36: =IF(Runden!N36>0,RANK(Runden!N36,Runden!N$4:N$53,0),0) -> 0 | O36: =IF(Runden!O36>0,RANK(Runden!O36,Runden!O$4:O$53,0),0) -> 0 | P36: =IF(Runden!P36>0,RANK(Runden!P36,Runden!P$4:P$53,0),0) -> 0 | Q36: =IF(Runden!Q36>0,RANK(Runden!Q36,Runden!Q$4:Q$53,0),0) -> 0 | R36: =IF(Runden!R36>0,RANK(Runden!R36,Runden!R$4:R$53,0),0) -> 0 | S36: =IF(Runden!S36>0,RANK(Runden!S36,Runden!S$4:S$53,0),0) -> 0 | T36: =IF(Runden!T36>0,RANK(Runden!T36,Runden!T$4:T$53,0),0) -> 0 | U36: =IF(Runden!U36>0,RANK(Runden!U36,Runden!U$4:U$53,0),0) -> 0 | W36: 0 | X36: 0 | Y36: 0 | Z36: 0 | AA36: 0 | AB36: 0 | AC36: 0 | AD36: 0 | AE36: 0 | AF36: 0 | AG36: 0 | AH36: 0 | AI36: 0 | AJ36: 0 | AK36: 0 | AL36: 0 | AM36: 0 | AN36: 0 | AO36: 0 | AP36: 0 | AQ36: 0 | AR36: 0 | AS36: 0 | AT36: 0 | AU36: 1 | AV36: 0 | AW36: 0 | AX36: 0 | AY36: 0 | AZ36: 0 | BA36: 0 | BB36: 0 | BC36: 0 | BD36: =SUM(AV36:BC36) -> 0 | BE36: 0 | BF36: 0 | BG36: 0 | BH36: 0 | BI36: 0 | BJ36: 0 | BK36: 0 | BL36: 0 | BM36: 0 | BN36: 0 | BO36: =SUM(BG36:BN36) -> 0 | BP36: 0 | BQ36: 0 | BR36: 0 | BS36: 0 | BT36: 0 | BU36: 0 | BV36: 0 | BW36: 0 | BX36: 0 | BY36: 0 | BZ36: =SUM(BR36:BY36) -> 0 | CA36: 0 | CB36: 0 | CC36: 0 | CD36: 1
A37: =IF(Runden!A37="","",Runden!A37) ->  | B37: =IF(Runden!B37>0,RANK(Runden!B37,Runden!B$4:B$53,0),0) -> 0 | C37: =IF(Runden!C37>0,RANK(Runden!C37,Runden!C$4:C$53,0),0) -> 0 | D37: =IF(Runden!D37>0,RANK(Runden!D37,Runden!D$4:D$53,0),0) -> 0 | E37: =IF(Runden!E37>0,RANK(Runden!E37,Runden!E$4:E$53,0),0) -> 0 | F37: =IF(Runden!F37>0,RANK(Runden!F37,Runden!F$4:F$53,0),0) -> 0 | G37: =IF(Runden!G37>0,RANK(Runden!G37,Runden!G$4:G$53,0),0) -> 0 | H37: =IF(Runden!H37>0,RANK(Runden!H37,Runden!H$4:H$53,0),0) -> 0 | I37: =IF(Runden!I37>0,RANK(Runden!I37,Runden!I$4:I$53,0),0) -> 0 | J37: =IF(Runden!J37>0,RANK(Runden!J37,Runden!J$4:J$53,0),0) -> 0 | K37: =IF(Runden!K37>0,RANK(Runden!K37,Runden!K$4:K$53,0),0) -> 0 | L37: =IF(Runden!L37>0,RANK(Runden!L37,Runden!L$4:L$53,0),0) -> 0 | M37: =IF(Runden!M37>0,RANK(Runden!M37,Runden!M$4:M$53,0),0) -> 0 | N37: =IF(Runden!N37>0,RANK(Runden!N37,Runden!N$4:N$53,0),0) -> 0 | O37: =IF(Runden!O37>0,RANK(Runden!O37,Runden!O$4:O$53,0),0) -> 0 | P37: =IF(Runden!P37>0,RANK(Runden!P37,Runden!P$4:P$53,0),0) -> 0 | Q37: =IF(Runden!Q37>0,RANK(Runden!Q37,Runden!Q$4:Q$53,0),0) -> 0 | R37: =IF(Runden!R37>0,RANK(Runden!R37,Runden!R$4:R$53,0),0) -> 0 | S37: =IF(Runden!S37>0,RANK(Runden!S37,Runden!S$4:S$53,0),0) -> 0 | T37: =IF(Runden!T37>0,RANK(Runden!T37,Runden!T$4:T$53,0),0) -> 0 | U37: =IF(Runden!U37>0,RANK(Runden!U37,Runden!U$4:U$53,0),0) -> 0 | W37: 0 | X37: 0 | Y37: 0 | Z37: 0 | AA37: 0 | AB37: 0 | AC37: 0 | AD37: 0 | AE37: 0 | AF37: 0 | AG37: 0 | AH37: 0 | AI37: 0 | AJ37: 0 | AK37: 0 | AL37: 0 | AM37: 0 | AN37: 0 | AO37: 0 | AP37: 0 | AQ37: 0 | AR37: 0 | AS37: 0 | AT37: 0 | AU37: 1 | AV37: 0 | AW37: 0 | AX37: 0 | AY37: 0 | AZ37: 0 | BA37: 0 | BB37: 0 | BC37: 0 | BD37: 0 | BE37: 0 | BF37: 0 | BG37: 0 | BH37: 0 | BI37: 0 | BJ37: 0 | BK37: 0 | BL37: 0 | BM37: 0 | BN37: 0 | BO37: 0 | BP37: 0 | BQ37: 0 | BR37: 0 | BS37: 0 | BT37: 0 | BU37: 0 | BV37: 0 | BW37: 0 | BX37: 0 | BY37: 0 | BZ37: 0 | CA37: 0 | CB37: 0 | CC37: 0 | CD37: 1
A38: =IF(Runden!A38="","",Runden!A38) ->  | B38: =IF(Runden!B38>0,RANK(Runden!B38,Runden!B$4:B$53,0),0) -> 0 | C38: =IF(Runden!C38>0,RANK(Runden!C38,Runden!C$4:C$53,0),0) -> 0 | D38: =IF(Runden!D38>0,RANK(Runden!D38,Runden!D$4:D$53,0),0) -> 0 | E38: =IF(Runden!E38>0,RANK(Runden!E38,Runden!E$4:E$53,0),0) -> 0 | F38: =IF(Runden!F38>0,RANK(Runden!F38,Runden!F$4:F$53,0),0) -> 0 | G38: =IF(Runden!G38>0,RANK(Runden!G38,Runden!G$4:G$53,0),0) -> 0 | H38: =IF(Runden!H38>0,RANK(Runden!H38,Runden!H$4:H$53,0),0) -> 0 | I38: =IF(Runden!I38>0,RANK(Runden!I38,Runden!I$4:I$53,0),0) -> 0 | J38: =IF(Runden!J38>0,RANK(Runden!J38,Runden!J$4:J$53,0),0) -> 0 | K38: =IF(Runden!K38>0,RANK(Runden!K38,Runden!K$4:K$53,0),0) -> 0 | L38: =IF(Runden!L38>0,RANK(Runden!L38,Runden!L$4:L$53,0),0) -> 0 | M38: =IF(Runden!M38>0,RANK(Runden!M38,Runden!M$4:M$53,0),0) -> 0 | N38: =IF(Runden!N38>0,RANK(Runden!N38,Runden!N$4:N$53,0),0) -> 0 | O38: =IF(Runden!O38>0,RANK(Runden!O38,Runden!O$4:O$53,0),0) -> 0 | P38: =IF(Runden!P38>0,RANK(Runden!P38,Runden!P$4:P$53,0),0) -> 0 | Q38: =IF(Runden!Q38>0,RANK(Runden!Q38,Runden!Q$4:Q$53,0),0) -> 0 | R38: =IF(Runden!R38>0,RANK(Runden!R38,Runden!R$4:R$53,0),0) -> 0 | S38: =IF(Runden!S38>0,RANK(Runden!S38,Runden!S$4:S$53,0),0) -> 0 | T38: =IF(Runden!T38>0,RANK(Runden!T38,Runden!T$4:T$53,0),0) -> 0 | U38: =IF(Runden!U38>0,RANK(Runden!U38,Runden!U$4:U$53,0),0) -> 0 | W38: 0 | X38: 0 | Y38: 0 | Z38: 0 | AA38: 0 | AB38: 0 | AC38: 0 | AD38: 0 | AE38: 0 | AF38: 0 | AG38: 0 | AH38: 0 | AI38: 0 | AJ38: 0 | AK38: 0 | AL38: 0 | AM38: 0 | AN38: 0 | AO38: 0 | AP38: 0 | AQ38: 0 | AR38: 0 | AS38: 0 | AT38: 0 | AU38: 1 | AV38: 0 | AW38: 0 | AX38: 0 | AY38: 0 | AZ38: 0 | BA38: 0 | BB38: 0 | BC38: 0 | BD38: 0 | BE38: 0 | BF38: 0 | BG38: 0 | BH38: 0 | BI38: 0 | BJ38: 0 | BK38: 0 | BL38: 0 | BM38: 0 | BN38: 0 | BO38: 0 | BP38: 0 | BQ38: 0 | BR38: 0 | BS38: 0 | BT38: 0 | BU38: 0 | BV38: 0 | BW38: 0 | BX38: 0 | BY38: 0 | BZ38: 0 | CA38: 0 | CB38: 0 | CC38: 0 | CD38: 1
A39: =IF(Runden!A39="","",Runden!A39) ->  | B39: =IF(Runden!B39>0,RANK(Runden!B39,Runden!B$4:B$53,0),0) -> 0 | C39: =IF(Runden!C39>0,RANK(Runden!C39,Runden!C$4:C$53,0),0) -> 0 | D39: =IF(Runden!D39>0,RANK(Runden!D39,Runden!D$4:D$53,0),0) -> 0 | E39: =IF(Runden!E39>0,RANK(Runden!E39,Runden!E$4:E$53,0),0) -> 0 | F39: =IF(Runden!F39>0,RANK(Runden!F39,Runden!F$4:F$53,0),0) -> 0 | G39: =IF(Runden!G39>0,RANK(Runden!G39,Runden!G$4:G$53,0),0) -> 0 | H39: =IF(Runden!H39>0,RANK(Runden!H39,Runden!H$4:H$53,0),0) -> 0 | I39: =IF(Runden!I39>0,RANK(Runden!I39,Runden!I$4:I$53,0),0) -> 0 | J39: =IF(Runden!J39>0,RANK(Runden!J39,Runden!J$4:J$53,0),0) -> 0 | K39: =IF(Runden!K39>0,RANK(Runden!K39,Runden!K$4:K$53,0),0) -> 0 | L39: =IF(Runden!L39>0,RANK(Runden!L39,Runden!L$4:L$53,0),0) -> 0 | M39: =IF(Runden!M39>0,RANK(Runden!M39,Runden!M$4:M$53,0),0) -> 0 | N39: =IF(Runden!N39>0,RANK(Runden!N39,Runden!N$4:N$53,0),0) -> 0 | O39: =IF(Runden!O39>0,RANK(Runden!O39,Runden!O$4:O$53,0),0) -> 0 | P39: =IF(Runden!P39>0,RANK(Runden!P39,Runden!P$4:P$53,0),0) -> 0 | Q39: =IF(Runden!Q39>0,RANK(Runden!Q39,Runden!Q$4:Q$53,0),0) -> 0 | R39: =IF(Runden!R39>0,RANK(Runden!R39,Runden!R$4:R$53,0),0) -> 0 | S39: =IF(Runden!S39>0,RANK(Runden!S39,Runden!S$4:S$53,0),0) -> 0 | T39: =IF(Runden!T39>0,RANK(Runden!T39,Runden!T$4:T$53,0),0) -> 0 | U39: =IF(Runden!U39>0,RANK(Runden!U39,Runden!U$4:U$53,0),0) -> 0 | W39: 0 | X39: 0 | Y39: 0 | Z39: 0 | AA39: 0 | AB39: 0 | AC39: 0 | AD39: 0 | AE39: 0 | AF39: 0 | AG39: 0 | AH39: 0 | AI39: 0 | AJ39: 0 | AK39: 0 | AL39: 0 | AM39: 0 | AN39: 0 | AO39: 0 | AP39: 0 | AQ39: 0 | AR39: 0 | AS39: 0 | AT39: 0 | AU39: 1 | AV39: 0 | AW39: 0 | AX39: 0 | AY39: 0 | AZ39: 0 | BA39: 0 | BB39: 0 | BC39: 0 | BD39: 0 | BE39: 0 | BF39: 0 | BG39: 0 | BH39: 0 | BI39: 0 | BJ39: 0 | BK39: 0 | BL39: 0 | BM39: 0 | BN39: 0 | BO39: 0 | BP39: 0 | BQ39: 0 | BR39: 0 | BS39: 0 | BT39: 0 | BU39: 0 | BV39: 0 | BW39: 0 | BX39: 0 | BY39: 0 | BZ39: 0 | CA39: 0 | CB39: 0 | CC39: 0 | CD39: 1
A40: =IF(Runden!A40="","",Runden!A40) ->  | B40: =IF(Runden!B40>0,RANK(Runden!B40,Runden!B$4:B$53,0),0) -> 0 | C40: =IF(Runden!C40>0,RANK(Runden!C40,Runden!C$4:C$53,0),0) -> 0 | D40: =IF(Runden!D40>0,RANK(Runden!D40,Runden!D$4:D$53,0),0) -> 0 | E40: =IF(Runden!E40>0,RANK(Runden!E40,Runden!E$4:E$53,0),0) -> 0 | F40: =IF(Runden!F40>0,RANK(Runden!F40,Runden!F$4:F$53,0),0) -> 0 | G40: =IF(Runden!G40>0,RANK(Runden!G40,Runden!G$4:G$53,0),0) -> 0 | H40: =IF(Runden!H40>0,RANK(Runden!H40,Runden!H$4:H$53,0),0) -> 0 | I40: =IF(Runden!I40>0,RANK(Runden!I40,Runden!I$4:I$53,0),0) -> 0 | J40: =IF(Runden!J40>0,RANK(Runden!J40,Runden!J$4:J$53,0),0) -> 0 | K40: =IF(Runden!K40>0,RANK(Runden!K40,Runden!K$4:K$53,0),0) -> 0 | L40: =IF(Runden!L40>0,RANK(Runden!L40,Runden!L$4:L$53,0),0) -> 0 | M40: =IF(Runden!M40>0,RANK(Runden!M40,Runden!M$4:M$53,0),0) -> 0 | N40: =IF(Runden!N40>0,RANK(Runden!N40,Runden!N$4:N$53,0),0) -> 0 | O40: =IF(Runden!O40>0,RANK(Runden!O40,Runden!O$4:O$53,0),0) -> 0 | P40: =IF(Runden!P40>0,RANK(Runden!P40,Runden!P$4:P$53,0),0) -> 0 | Q40: =IF(Runden!Q40>0,RANK(Runden!Q40,Runden!Q$4:Q$53,0),0) -> 0 | R40: =IF(Runden!R40>0,RANK(Runden!R40,Runden!R$4:R$53,0),0) -> 0 | S40: =IF(Runden!S40>0,RANK(Runden!S40,Runden!S$4:S$53,0),0) -> 0 | T40: =IF(Runden!T40>0,RANK(Runden!T40,Runden!T$4:T$53,0),0) -> 0 | U40: =IF(Runden!U40>0,RANK(Runden!U40,Runden!U$4:U$53,0),0) -> 0 | W40: 0 | X40: 0 | Y40: 0 | Z40: 0 | AA40: 0 | AB40: 0 | AC40: 0 | AD40: 0 | AE40: 0 | AF40: 0 | AG40: 0 | AH40: 0 | AI40: 0 | AJ40: 0 | AK40: 0 | AL40: 0 | AM40: 0 | AN40: 0 | AO40: 0 | AP40: 0 | AQ40: 0 | AR40: 0 | AS40: 0 | AT40: 0 | AU40: 1 | AV40: 0 | AW40: 0 | AX40: 0 | AY40: 0 | AZ40: 0 | BA40: 0 | BB40: 0 | BC40: 0 | BD40: 0 | BE40: 0 | BF40: 0 | BG40: 0 | BH40: 0 | BI40: 0 | BJ40: 0 | BK40: 0 | BL40: 0 | BM40: 0 | BN40: 0 | BO40: 0 | BP40: 0 | BQ40: 0 | BR40: 0 | BS40: 0 | BT40: 0 | BU40: 0 | BV40: 0 | BW40: 0 | BX40: 0 | BY40: 0 | BZ40: 0 | CA40: 0 | CB40: 0 | CC40: 0 | CD40: 1
A41: =IF(Runden!A41="","",Runden!A41) ->  | B41: =IF(Runden!B41>0,RANK(Runden!B41,Runden!B$4:B$53,0),0) -> 0 | C41: =IF(Runden!C41>0,RANK(Runden!C41,Runden!C$4:C$53,0),0) -> 0 | D41: =IF(Runden!D41>0,RANK(Runden!D41,Runden!D$4:D$53,0),0) -> 0 | E41: =IF(Runden!E41>0,RANK(Runden!E41,Runden!E$4:E$53,0),0) -> 0 | F41: =IF(Runden!F41>0,RANK(Runden!F41,Runden!F$4:F$53,0),0) -> 0 | G41: =IF(Runden!G41>0,RANK(Runden!G41,Runden!G$4:G$53,0),0) -> 0 | H41: =IF(Runden!H41>0,RANK(Runden!H41,Runden!H$4:H$53,0),0) -> 0 | I41: =IF(Runden!I41>0,RANK(Runden!I41,Runden!I$4:I$53,0),0) -> 0 | J41: =IF(Runden!J41>0,RANK(Runden!J41,Runden!J$4:J$53,0),0) -> 0 | K41: =IF(Runden!K41>0,RANK(Runden!K41,Runden!K$4:K$53,0),0) -> 0 | L41: =IF(Runden!L41>0,RANK(Runden!L41,Runden!L$4:L$53,0),0) -> 0 | M41: =IF(Runden!M41>0,RANK(Runden!M41,Runden!M$4:M$53,0),0) -> 0 | N41: =IF(Runden!N41>0,RANK(Runden!N41,Runden!N$4:N$53,0),0) -> 0 | O41: =IF(Runden!O41>0,RANK(Runden!O41,Runden!O$4:O$53,0),0) -> 0 | P41: =IF(Runden!P41>0,RANK(Runden!P41,Runden!P$4:P$53,0),0) -> 0 | Q41: =IF(Runden!Q41>0,RANK(Runden!Q41,Runden!Q$4:Q$53,0),0) -> 0 | R41: =IF(Runden!R41>0,RANK(Runden!R41,Runden!R$4:R$53,0),0) -> 0 | S41: =IF(Runden!S41>0,RANK(Runden!S41,Runden!S$4:S$53,0),0) -> 0 | T41: =IF(Runden!T41>0,RANK(Runden!T41,Runden!T$4:T$53,0),0) -> 0 | U41: =IF(Runden!U41>0,RANK(Runden!U41,Runden!U$4:U$53,0),0) -> 0 | W41: 0 | X41: 0 | Y41: 0 | Z41: 0 | AA41: 0 | AB41: 0 | AC41: 0 | AD41: 0 | AE41: 0 | AF41: 0 | AG41: 0 | AH41: 0 | AI41: 0 | AJ41: 0 | AK41: 0 | AL41: =COUNTIF($B41:$U41,AL$3) -> 0 | AM41: 0 | AN41: 0 | AO41: 0 | AP41: 0 | AQ41: 0 | AR41: 0 | AS41: 0 | AT41: 0 | AU41: 1 | AV41: 0 | AW41: 0 | AX41: 0 | AY41: 0 | AZ41: 0 | BA41: 0 | BB41: 0 | BC41: 0 | BD41: 0 | BE41: 0 | BF41: 0 | BG41: 0 | BH41: 0 | BI41: 0 | BJ41: 0 | BK41: 0 | BL41: 0 | BM41: 0 | BN41: 0 | BO41: 0 | BP41: 0 | BQ41: 0 | BR41: 0 | BS41: 0 | BT41: 0 | BU41: 0 | BV41: 0 | BW41: 0 | BX41: 0 | BY41: 0 | BZ41: 0 | CA41: 0 | CB41: 0 | CC41: 0 | CD41: 1
A42: =IF(Runden!A42="","",Runden!A42) ->  | B42: =IF(Runden!B42>0,RANK(Runden!B42,Runden!B$4:B$53,0),0) -> 0 | C42: =IF(Runden!C42>0,RANK(Runden!C42,Runden!C$4:C$53,0),0) -> 0 | D42: =IF(Runden!D42>0,RANK(Runden!D42,Runden!D$4:D$53,0),0) -> 0 | E42: =IF(Runden!E42>0,RANK(Runden!E42,Runden!E$4:E$53,0),0) -> 0 | F42: =IF(Runden!F42>0,RANK(Runden!F42,Runden!F$4:F$53,0),0) -> 0 | G42: =IF(Runden!G42>0,RANK(Runden!G42,Runden!G$4:G$53,0),0) -> 0 | H42: =IF(Runden!H42>0,RANK(Runden!H42,Runden!H$4:H$53,0),0) -> 0 | I42: =IF(Runden!I42>0,RANK(Runden!I42,Runden!I$4:I$53,0),0) -> 0 | J42: =IF(Runden!J42>0,RANK(Runden!J42,Runden!J$4:J$53,0),0) -> 0 | K42: =IF(Runden!K42>0,RANK(Runden!K42,Runden!K$4:K$53,0),0) -> 0 | L42: =IF(Runden!L42>0,RANK(Runden!L42,Runden!L$4:L$53,0),0) -> 0 | M42: =IF(Runden!M42>0,RANK(Runden!M42,Runden!M$4:M$53,0),0) -> 0 | N42: =IF(Runden!N42>0,RANK(Runden!N42,Runden!N$4:N$53,0),0) -> 0 | O42: =IF(Runden!O42>0,RANK(Runden!O42,Runden!O$4:O$53,0),0) -> 0 | P42: =IF(Runden!P42>0,RANK(Runden!P42,Runden!P$4:P$53,0),0) -> 0 | Q42: =IF(Runden!Q42>0,RANK(Runden!Q42,Runden!Q$4:Q$53,0),0) -> 0 | R42: =IF(Runden!R42>0,RANK(Runden!R42,Runden!R$4:R$53,0),0) -> 0 | S42: =IF(Runden!S42>0,RANK(Runden!S42,Runden!S$4:S$53,0),0) -> 0 | T42: =IF(Runden!T42>0,RANK(Runden!T42,Runden!T$4:T$53,0),0) -> 0 | U42: =IF(Runden!U42>0,RANK(Runden!U42,Runden!U$4:U$53,0),0) -> 0 | W42: =COUNTIF($B42:$U42,W$3) -> 0 | X42: 0 | Y42: 0 | Z42: 0 | AA42: 0 | AB42: 0 | AC42: 0 | AD42: 0 | AE42: 0 | AF42: 0 | AG42: 0 | AH42: 0 | AI42: 0 | AJ42: 0 | AK42: 0 | AL42: 0 | AM42: 0 | AN42: 0 | AO42: 0 | AP42: 0 | AQ42: 0 | AR42: 0 | AS42: 0 | AT42: 0 | AU42: 1 | AV42: 0 | AW42: 0 | AX42: 0 | AY42: 0 | AZ42: 0 | BA42: 0 | BB42: 0 | BC42: 0 | BD42: 0 | BE42: 0 | BF42: 0 | BG42: 0 | BH42: 0 | BI42: 0 | BJ42: 0 | BK42: 0 | BL42: 0 | BM42: 0 | BN42: 0 | BO42: 0 | BP42: 0 | BQ42: 0 | BR42: 0 | BS42: 0 | BT42: 0 | BU42: 0 | BV42: 0 | BW42: 0 | BX42: 0 | BY42: 0 | BZ42: 0 | CA42: 0 | CB42: 0 | CC42: 0 | CD42: 1
A43: =IF(Runden!A43="","",Runden!A43) ->  | B43: =IF(Runden!B43>0,RANK(Runden!B43,Runden!B$4:B$53,0),0) -> 0 | C43: =IF(Runden!C43>0,RANK(Runden!C43,Runden!C$4:C$53,0),0) -> 0 | D43: =IF(Runden!D43>0,RANK(Runden!D43,Runden!D$4:D$53,0),0) -> 0 | E43: =IF(Runden!E43>0,RANK(Runden!E43,Runden!E$4:E$53,0),0) -> 0 | F43: =IF(Runden!F43>0,RANK(Runden!F43,Runden!F$4:F$53,0),0) -> 0 | G43: =IF(Runden!G43>0,RANK(Runden!G43,Runden!G$4:G$53,0),0) -> 0 | H43: =IF(Runden!H43>0,RANK(Runden!H43,Runden!H$4:H$53,0),0) -> 0 | I43: =IF(Runden!I43>0,RANK(Runden!I43,Runden!I$4:I$53,0),0) -> 0 | J43: =IF(Runden!J43>0,RANK(Runden!J43,Runden!J$4:J$53,0),0) -> 0 | K43: =IF(Runden!K43>0,RANK(Runden!K43,Runden!K$4:K$53,0),0) -> 0 | L43: =IF(Runden!L43>0,RANK(Runden!L43,Runden!L$4:L$53,0),0) -> 0 | M43: =IF(Runden!M43>0,RANK(Runden!M43,Runden!M$4:M$53,0),0) -> 0 | N43: =IF(Runden!N43>0,RANK(Runden!N43,Runden!N$4:N$53,0),0) -> 0 | O43: =IF(Runden!O43>0,RANK(Runden!O43,Runden!O$4:O$53,0),0) -> 0 | P43: =IF(Runden!P43>0,RANK(Runden!P43,Runden!P$4:P$53,0),0) -> 0 | Q43: =IF(Runden!Q43>0,RANK(Runden!Q43,Runden!Q$4:Q$53,0),0) -> 0 | R43: =IF(Runden!R43>0,RANK(Runden!R43,Runden!R$4:R$53,0),0) -> 0 | S43: =IF(Runden!S43>0,RANK(Runden!S43,Runden!S$4:S$53,0),0) -> 0 | T43: =IF(Runden!T43>0,RANK(Runden!T43,Runden!T$4:T$53,0),0) -> 0 | U43: =IF(Runden!U43>0,RANK(Runden!U43,Runden!U$4:U$53,0),0) -> 0 | W43: 0 | X43: 0 | Y43: 0 | Z43: 0 | AA43: 0 | AB43: 0 | AC43: 0 | AD43: 0 | AE43: 0 | AF43: 0 | AG43: 0 | AH43: 0 | AI43: 0 | AJ43: 0 | AK43: 0 | AL43: 0 | AM43: 0 | AN43: 0 | AO43: 0 | AP43: 0 | AQ43: 0 | AR43: 0 | AS43: 0 | AT43: 0 | AU43: 1 | AV43: 0 | AW43: 0 | AX43: 0 | AY43: 0 | AZ43: 0 | BA43: 0 | BB43: 0 | BC43: 0 | BD43: 0 | BE43: 0 | BF43: 0 | BG43: 0 | BH43: 0 | BI43: 0 | BJ43: 0 | BK43: 0 | BL43: 0 | BM43: 0 | BN43: 0 | BO43: 0 | BP43: 0 | BQ43: 0 | BR43: 0 | BS43: 0 | BT43: 0 | BU43: 0 | BV43: 0 | BW43: 0 | BX43: 0 | BY43: 0 | BZ43: 0 | CA43: 0 | CB43: 0 | CC43: 0 | CD43: 1
A44: =IF(Runden!A44="","",Runden!A44) ->  | B44: =IF(Runden!B44>0,RANK(Runden!B44,Runden!B$4:B$53,0),0) -> 0 | C44: =IF(Runden!C44>0,RANK(Runden!C44,Runden!C$4:C$53,0),0) -> 0 | D44: =IF(Runden!D44>0,RANK(Runden!D44,Runden!D$4:D$53,0),0) -> 0 | E44: =IF(Runden!E44>0,RANK(Runden!E44,Runden!E$4:E$53,0),0) -> 0 | F44: =IF(Runden!F44>0,RANK(Runden!F44,Runden!F$4:F$53,0),0) -> 0 | G44: =IF(Runden!G44>0,RANK(Runden!G44,Runden!G$4:G$53,0),0) -> 0 | H44: =IF(Runden!H44>0,RANK(Runden!H44,Runden!H$4:H$53,0),0) -> 0 | I44: =IF(Runden!I44>0,RANK(Runden!I44,Runden!I$4:I$53,0),0) -> 0 | J44: =IF(Runden!J44>0,RANK(Runden!J44,Runden!J$4:J$53,0),0) -> 0 | K44: =IF(Runden!K44>0,RANK(Runden!K44,Runden!K$4:K$53,0),0) -> 0 | L44: =IF(Runden!L44>0,RANK(Runden!L44,Runden!L$4:L$53,0),0) -> 0 | M44: =IF(Runden!M44>0,RANK(Runden!M44,Runden!M$4:M$53,0),0) -> 0 | N44: =IF(Runden!N44>0,RANK(Runden!N44,Runden!N$4:N$53,0),0) -> 0 | O44: =IF(Runden!O44>0,RANK(Runden!O44,Runden!O$4:O$53,0),0) -> 0 | P44: =IF(Runden!P44>0,RANK(Runden!P44,Runden!P$4:P$53,0),0) -> 0 | Q44: =IF(Runden!Q44>0,RANK(Runden!Q44,Runden!Q$4:Q$53,0),0) -> 0 | R44: =IF(Runden!R44>0,RANK(Runden!R44,Runden!R$4:R$53,0),0) -> 0 | S44: =IF(Runden!S44>0,RANK(Runden!S44,Runden!S$4:S$53,0),0) -> 0 | T44: =IF(Runden!T44>0,RANK(Runden!T44,Runden!T$4:T$53,0),0) -> 0 | U44: =IF(Runden!U44>0,RANK(Runden!U44,Runden!U$4:U$53,0),0) -> 0 | W44: 0 | X44: 0 | Y44: 0 | Z44: 0 | AA44: 0 | AB44: 0 | AC44: 0 | AD44: 0 | AE44: 0 | AF44: 0 | AG44: 0 | AH44: 0 | AI44: 0 | AJ44: 0 | AK44: 0 | AL44: 0 | AM44: 0 | AN44: 0 | AO44: 0 | AP44: 0 | AQ44: 0 | AR44: 0 | AS44: 0 | AT44: 0 | AU44: 1 | AV44: 0 | AW44: 0 | AX44: 0 | AY44: 0 | AZ44: 0 | BA44: 0 | BB44: 0 | BC44: 0 | BD44: 0 | BE44: 0 | BF44: 0 | BG44: 0 | BH44: 0 | BI44: 0 | BJ44: 0 | BK44: 0 | BL44: 0 | BM44: 0 | BN44: 0 | BO44: 0 | BP44: 0 | BQ44: 0 | BR44: 0 | BS44: 0 | BT44: 0 | BU44: 0 | BV44: 0 | BW44: 0 | BX44: 0 | BY44: 0 | BZ44: 0 | CA44: 0 | CB44: 0 | CC44: 0 | CD44: 1
A45: =IF(Runden!A45="","",Runden!A45) ->  | B45: =IF(Runden!B45>0,RANK(Runden!B45,Runden!B$4:B$53,0),0) -> 0 | C45: =IF(Runden!C45>0,RANK(Runden!C45,Runden!C$4:C$53,0),0) -> 0 | D45: =IF(Runden!D45>0,RANK(Runden!D45,Runden!D$4:D$53,0),0) -> 0 | E45: =IF(Runden!E45>0,RANK(Runden!E45,Runden!E$4:E$53,0),0) -> 0 | F45: =IF(Runden!F45>0,RANK(Runden!F45,Runden!F$4:F$53,0),0) -> 0 | G45: =IF(Runden!G45>0,RANK(Runden!G45,Runden!G$4:G$53,0),0) -> 0 | H45: =IF(Runden!H45>0,RANK(Runden!H45,Runden!H$4:H$53,0),0) -> 0 | I45: =IF(Runden!I45>0,RANK(Runden!I45,Runden!I$4:I$53,0),0) -> 0 | J45: =IF(Runden!J45>0,RANK(Runden!J45,Runden!J$4:J$53,0),0) -> 0 | K45: =IF(Runden!K45>0,RANK(Runden!K45,Runden!K$4:K$53,0),0) -> 0 | L45: =IF(Runden!L45>0,RANK(Runden!L45,Runden!L$4:L$53,0),0) -> 0 | M45: =IF(Runden!M45>0,RANK(Runden!M45,Runden!M$4:M$53,0),0) -> 0 | N45: =IF(Runden!N45>0,RANK(Runden!N45,Runden!N$4:N$53,0),0) -> 0 | O45: =IF(Runden!O45>0,RANK(Runden!O45,Runden!O$4:O$53,0),0) -> 0 | P45: =IF(Runden!P45>0,RANK(Runden!P45,Runden!P$4:P$53,0),0) -> 0 | Q45: =IF(Runden!Q45>0,RANK(Runden!Q45,Runden!Q$4:Q$53,0),0) -> 0 | R45: =IF(Runden!R45>0,RANK(Runden!R45,Runden!R$4:R$53,0),0) -> 0 | S45: =IF(Runden!S45>0,RANK(Runden!S45,Runden!S$4:S$53,0),0) -> 0 | T45: =IF(Runden!T45>0,RANK(Runden!T45,Runden!T$4:T$53,0),0) -> 0 | U45: =IF(Runden!U45>0,RANK(Runden!U45,Runden!U$4:U$53,0),0) -> 0 | W45: 0 | X45: 0 | Y45: 0 | Z45: 0 | AA45: 0 | AB45: 0 | AC45: 0 | AD45: 0 | AE45: 0 | AF45: 0 | AG45: 0 | AH45: 0 | AI45: 0 | AJ45: 0 | AK45: 0 | AL45: 0 | AM45: 0 | AN45: 0 | AO45: 0 | AP45: 0 | AQ45: 0 | AR45: 0 | AS45: 0 | AT45: 0 | AU45: 1 | AV45: 0 | AW45: 0 | AX45: 0 | AY45: 0 | AZ45: 0 | BA45: 0 | BB45: 0 | BC45: 0 | BD45: 0 | BE45: 0 | BF45: 0 | BG45: 0 | BH45: 0 | BI45: 0 | BJ45: 0 | BK45: 0 | BL45: 0 | BM45: 0 | BN45: 0 | BO45: 0 | BP45: 0 | BQ45: 0 | BR45: 0 | BS45: 0 | BT45: 0 | BU45: 0 | BV45: 0 | BW45: 0 | BX45: 0 | BY45: 0 | BZ45: 0 | CA45: 0 | CB45: 0 | CC45: 0 | CD45: 1
A46: =IF(Runden!A46="","",Runden!A46) ->  | B46: =IF(Runden!B46>0,RANK(Runden!B46,Runden!B$4:B$53,0),0) -> 0 | C46: =IF(Runden!C46>0,RANK(Runden!C46,Runden!C$4:C$53,0),0) -> 0 | D46: =IF(Runden!D46>0,RANK(Runden!D46,Runden!D$4:D$53,0),0) -> 0 | E46: =IF(Runden!E46>0,RANK(Runden!E46,Runden!E$4:E$53,0),0) -> 0 | F46: =IF(Runden!F46>0,RANK(Runden!F46,Runden!F$4:F$53,0),0) -> 0 | G46: =IF(Runden!G46>0,RANK(Runden!G46,Runden!G$4:G$53,0),0) -> 0 | H46: =IF(Runden!H46>0,RANK(Runden!H46,Runden!H$4:H$53,0),0) -> 0 | I46: =IF(Runden!I46>0,RANK(Runden!I46,Runden!I$4:I$53,0),0) -> 0 | J46: =IF(Runden!J46>0,RANK(Runden!J46,Runden!J$4:J$53,0),0) -> 0 | K46: =IF(Runden!K46>0,RANK(Runden!K46,Runden!K$4:K$53,0),0) -> 0 | L46: =IF(Runden!L46>0,RANK(Runden!L46,Runden!L$4:L$53,0),0) -> 0 | M46: =IF(Runden!M46>0,RANK(Runden!M46,Runden!M$4:M$53,0),0) -> 0 | N46: =IF(Runden!N46>0,RANK(Runden!N46,Runden!N$4:N$53,0),0) -> 0 | O46: =IF(Runden!O46>0,RANK(Runden!O46,Runden!O$4:O$53,0),0) -> 0 | P46: =IF(Runden!P46>0,RANK(Runden!P46,Runden!P$4:P$53,0),0) -> 0 | Q46: =IF(Runden!Q46>0,RANK(Runden!Q46,Runden!Q$4:Q$53,0),0) -> 0 | R46: =IF(Runden!R46>0,RANK(Runden!R46,Runden!R$4:R$53,0),0) -> 0 | S46: =IF(Runden!S46>0,RANK(Runden!S46,Runden!S$4:S$53,0),0) -> 0 | T46: =IF(Runden!T46>0,RANK(Runden!T46,Runden!T$4:T$53,0),0) -> 0 | U46: =IF(Runden!U46>0,RANK(Runden!U46,Runden!U$4:U$53,0),0) -> 0 | W46: 0 | X46: 0 | Y46: 0 | Z46: 0 | AA46: 0 | AB46: 0 | AC46: 0 | AD46: 0 | AE46: 0 | AF46: 0 | AG46: 0 | AH46: 0 | AI46: 0 | AJ46: 0 | AK46: 0 | AL46: 0 | AM46: 0 | AN46: 0 | AO46: 0 | AP46: 0 | AQ46: 0 | AR46: 0 | AS46: 0 | AT46: 0 | AU46: 1 | AV46: 0 | AW46: 0 | AX46: 0 | AY46: 0 | AZ46: 0 | BA46: 0 | BB46: 0 | BC46: 0 | BD46: 0 | BE46: 0 | BF46: 0 | BG46: 0 | BH46: 0 | BI46: 0 | BJ46: 0 | BK46: 0 | BL46: 0 | BM46: 0 | BN46: 0 | BO46: 0 | BP46: 0 | BQ46: 0 | BR46: 0 | BS46: 0 | BT46: 0 | BU46: 0 | BV46: 0 | BW46: 0 | BX46: 0 | BY46: 0 | BZ46: 0 | CA46: 0 | CB46: 0 | CC46: 0 | CD46: 1
A47: =IF(Runden!A47="","",Runden!A47) ->  | B47: =IF(Runden!B47>0,RANK(Runden!B47,Runden!B$4:B$53,0),0) -> 0 | C47: =IF(Runden!C47>0,RANK(Runden!C47,Runden!C$4:C$53,0),0) -> 0 | D47: =IF(Runden!D47>0,RANK(Runden!D47,Runden!D$4:D$53,0),0) -> 0 | E47: =IF(Runden!E47>0,RANK(Runden!E47,Runden!E$4:E$53,0),0) -> 0 | F47: =IF(Runden!F47>0,RANK(Runden!F47,Runden!F$4:F$53,0),0) -> 0 | G47: =IF(Runden!G47>0,RANK(Runden!G47,Runden!G$4:G$53,0),0) -> 0 | H47: =IF(Runden!H47>0,RANK(Runden!H47,Runden!H$4:H$53,0),0) -> 0 | I47: =IF(Runden!I47>0,RANK(Runden!I47,Runden!I$4:I$53,0),0) -> 0 | J47: =IF(Runden!J47>0,RANK(Runden!J47,Runden!J$4:J$53,0),0) -> 0 | K47: =IF(Runden!K47>0,RANK(Runden!K47,Runden!K$4:K$53,0),0) -> 0 | L47: =IF(Runden!L47>0,RANK(Runden!L47,Runden!L$4:L$53,0),0) -> 0 | M47: =IF(Runden!M47>0,RANK(Runden!M47,Runden!M$4:M$53,0),0) -> 0 | N47: =IF(Runden!N47>0,RANK(Runden!N47,Runden!N$4:N$53,0),0) -> 0 | O47: =IF(Runden!O47>0,RANK(Runden!O47,Runden!O$4:O$53,0),0) -> 0 | P47: =IF(Runden!P47>0,RANK(Runden!P47,Runden!P$4:P$53,0),0) -> 0 | Q47: =IF(Runden!Q47>0,RANK(Runden!Q47,Runden!Q$4:Q$53,0),0) -> 0 | R47: =IF(Runden!R47>0,RANK(Runden!R47,Runden!R$4:R$53,0),0) -> 0 | S47: =IF(Runden!S47>0,RANK(Runden!S47,Runden!S$4:S$53,0),0) -> 0 | T47: =IF(Runden!T47>0,RANK(Runden!T47,Runden!T$4:T$53,0),0) -> 0 | U47: =IF(Runden!U47>0,RANK(Runden!U47,Runden!U$4:U$53,0),0) -> 0 | W47: 0 | X47: 0 | Y47: 0 | Z47: 0 | AA47: 0 | AB47: 0 | AC47: 0 | AD47: 0 | AE47: 0 | AF47: 0 | AG47: 0 | AH47: 0 | AI47: 0 | AJ47: 0 | AK47: 0 | AL47: 0 | AM47: 0 | AN47: 0 | AO47: 0 | AP47: 0 | AQ47: 0 | AR47: 0 | AS47: 0 | AT47: 0 | AU47: 1 | AV47: 0 | AW47: 0 | AX47: 0 | AY47: 0 | AZ47: 0 | BA47: 0 | BB47: 0 | BC47: 0 | BD47: 0 | BE47: 0 | BF47: 0 | BG47: 0 | BH47: 0 | BI47: 0 | BJ47: 0 | BK47: 0 | BL47: 0 | BM47: 0 | BN47: 0 | BO47: 0 | BP47: 0 | BQ47: 0 | BR47: 0 | BS47: 0 | BT47: 0 | BU47: 0 | BV47: 0 | BW47: 0 | BX47: 0 | BY47: 0 | BZ47: 0 | CA47: 0 | CB47: 0 | CC47: 0 | CD47: 1
A48: =IF(Runden!A48="","",Runden!A48) ->  | B48: =IF(Runden!B48>0,RANK(Runden!B48,Runden!B$4:B$53,0),0) -> 0 | C48: =IF(Runden!C48>0,RANK(Runden!C48,Runden!C$4:C$53,0),0) -> 0 | D48: =IF(Runden!D48>0,RANK(Runden!D48,Runden!D$4:D$53,0),0) -> 0 | E48: =IF(Runden!E48>0,RANK(Runden!E48,Runden!E$4:E$53,0),0) -> 0 | F48: =IF(Runden!F48>0,RANK(Runden!F48,Runden!F$4:F$53,0),0) -> 0 | G48: =IF(Runden!G48>0,RANK(Runden!G48,Runden!G$4:G$53,0),0) -> 0 | H48: =IF(Runden!H48>0,RANK(Runden!H48,Runden!H$4:H$53,0),0) -> 0 | I48: =IF(Runden!I48>0,RANK(Runden!I48,Runden!I$4:I$53,0),0) -> 0 | J48: =IF(Runden!J48>0,RANK(Runden!J48,Runden!J$4:J$53,0),0) -> 0 | K48: =IF(Runden!K48>0,RANK(Runden!K48,Runden!K$4:K$53,0),0) -> 0 | L48: =IF(Runden!L48>0,RANK(Runden!L48,Runden!L$4:L$53,0),0) -> 0 | M48: =IF(Runden!M48>0,RANK(Runden!M48,Runden!M$4:M$53,0),0) -> 0 | N48: =IF(Runden!N48>0,RANK(Runden!N48,Runden!N$4:N$53,0),0) -> 0 | O48: =IF(Runden!O48>0,RANK(Runden!O48,Runden!O$4:O$53,0),0) -> 0 | P48: =IF(Runden!P48>0,RANK(Runden!P48,Runden!P$4:P$53,0),0) -> 0 | Q48: =IF(Runden!Q48>0,RANK(Runden!Q48,Runden!Q$4:Q$53,0),0) -> 0 | R48: =IF(Runden!R48>0,RANK(Runden!R48,Runden!R$4:R$53,0),0) -> 0 | S48: =IF(Runden!S48>0,RANK(Runden!S48,Runden!S$4:S$53,0),0) -> 0 | T48: =IF(Runden!T48>0,RANK(Runden!T48,Runden!T$4:T$53,0),0) -> 0 | U48: =IF(Runden!U48>0,RANK(Runden!U48,Runden!U$4:U$53,0),0) -> 0 | W48: 0 | X48: 0 | Y48: 0 | Z48: 0 | AA48: 0 | AB48: 0 | AC48: 0 | AD48: 0 | AE48: 0 | AF48: 0 | AG48: 0 | AH48: 0 | AI48: 0 | AJ48: 0 | AK48: 0 | AL48: 0 | AM48: 0 | AN48: 0 | AO48: 0 | AP48: 0 | AQ48: 0 | AR48: 0 | AS48: 0 | AT48: 0 | AU48: 1 | AV48: 0 | AW48: 0 | AX48: 0 | AY48: 0 | AZ48: 0 | BA48: 0 | BB48: 0 | BC48: 0 | BD48: 0 | BE48: 0 | BF48: 0 | BG48: 0 | BH48: 0 | BI48: 0 | BJ48: 0 | BK48: 0 | BL48: 0 | BM48: 0 | BN48: 0 | BO48: 0 | BP48: 0 | BQ48: 0 | BR48: 0 | BS48: 0 | BT48: 0 | BU48: 0 | BV48: 0 | BW48: 0 | BX48: 0 | BY48: 0 | BZ48: 0 | CA48: 0 | CB48: 0 | CC48: 0 | CD48: 1
A49: =IF(Runden!A49="","",Runden!A49) ->  | B49: =IF(Runden!B49>0,RANK(Runden!B49,Runden!B$4:B$53,0),0) -> 0 | C49: =IF(Runden!C49>0,RANK(Runden!C49,Runden!C$4:C$53,0),0) -> 0 | D49: =IF(Runden!D49>0,RANK(Runden!D49,Runden!D$4:D$53,0),0) -> 0 | E49: =IF(Runden!E49>0,RANK(Runden!E49,Runden!E$4:E$53,0),0) -> 0 | F49: =IF(Runden!F49>0,RANK(Runden!F49,Runden!F$4:F$53,0),0) -> 0 | G49: =IF(Runden!G49>0,RANK(Runden!G49,Runden!G$4:G$53,0),0) -> 0 | H49: =IF(Runden!H49>0,RANK(Runden!H49,Runden!H$4:H$53,0),0) -> 0 | I49: =IF(Runden!I49>0,RANK(Runden!I49,Runden!I$4:I$53,0),0) -> 0 | J49: =IF(Runden!J49>0,RANK(Runden!J49,Runden!J$4:J$53,0),0) -> 0 | K49: =IF(Runden!K49>0,RANK(Runden!K49,Runden!K$4:K$53,0),0) -> 0 | L49: =IF(Runden!L49>0,RANK(Runden!L49,Runden!L$4:L$53,0),0) -> 0 | M49: =IF(Runden!M49>0,RANK(Runden!M49,Runden!M$4:M$53,0),0) -> 0 | N49: =IF(Runden!N49>0,RANK(Runden!N49,Runden!N$4:N$53,0),0) -> 0 | O49: =IF(Runden!O49>0,RANK(Runden!O49,Runden!O$4:O$53,0),0) -> 0 | P49: =IF(Runden!P49>0,RANK(Runden!P49,Runden!P$4:P$53,0),0) -> 0 | Q49: =IF(Runden!Q49>0,RANK(Runden!Q49,Runden!Q$4:Q$53,0),0) -> 0 | R49: =IF(Runden!R49>0,RANK(Runden!R49,Runden!R$4:R$53,0),0) -> 0 | S49: =IF(Runden!S49>0,RANK(Runden!S49,Runden!S$4:S$53,0),0) -> 0 | T49: =IF(Runden!T49>0,RANK(Runden!T49,Runden!T$4:T$53,0),0) -> 0 | U49: =IF(Runden!U49>0,RANK(Runden!U49,Runden!U$4:U$53,0),0) -> 0 | W49: 0 | X49: 0 | Y49: 0 | Z49: 0 | AA49: 0 | AB49: 0 | AC49: 0 | AD49: 0 | AE49: 0 | AF49: 0 | AG49: 0 | AH49: 0 | AI49: 0 | AJ49: 0 | AK49: 0 | AL49: 0 | AM49: 0 | AN49: 0 | AO49: 0 | AP49: 0 | AQ49: 0 | AR49: 0 | AS49: 0 | AT49: 0 | AU49: 1 | AV49: 0 | AW49: 0 | AX49: 0 | AY49: 0 | AZ49: 0 | BA49: 0 | BB49: 0 | BC49: 0 | BD49: 0 | BE49: 0 | BF49: 0 | BG49: 0 | BH49: 0 | BI49: 0 | BJ49: 0 | BK49: 0 | BL49: 0 | BM49: 0 | BN49: 0 | BO49: 0 | BP49: 0 | BQ49: 0 | BR49: 0 | BS49: 0 | BT49: 0 | BU49: 0 | BV49: 0 | BW49: 0 | BX49: 0 | BY49: 0 | BZ49: 0 | CA49: 0 | CB49: 0 | CC49: 0 | CD49: 1
A50: =IF(Runden!A50="","",Runden!A50) ->  | B50: =IF(Runden!B50>0,RANK(Runden!B50,Runden!B$4:B$53,0),0) -> 0 | C50: =IF(Runden!C50>0,RANK(Runden!C50,Runden!C$4:C$53,0),0) -> 0 | D50: =IF(Runden!D50>0,RANK(Runden!D50,Runden!D$4:D$53,0),0) -> 0 | E50: =IF(Runden!E50>0,RANK(Runden!E50,Runden!E$4:E$53,0),0) -> 0 | F50: =IF(Runden!F50>0,RANK(Runden!F50,Runden!F$4:F$53,0),0) -> 0 | G50: =IF(Runden!G50>0,RANK(Runden!G50,Runden!G$4:G$53,0),0) -> 0 | H50: =IF(Runden!H50>0,RANK(Runden!H50,Runden!H$4:H$53,0),0) -> 0 | I50: =IF(Runden!I50>0,RANK(Runden!I50,Runden!I$4:I$53,0),0) -> 0 | J50: =IF(Runden!J50>0,RANK(Runden!J50,Runden!J$4:J$53,0),0) -> 0 | K50: =IF(Runden!K50>0,RANK(Runden!K50,Runden!K$4:K$53,0),0) -> 0 | L50: =IF(Runden!L50>0,RANK(Runden!L50,Runden!L$4:L$53,0),0) -> 0 | M50: =IF(Runden!M50>0,RANK(Runden!M50,Runden!M$4:M$53,0),0) -> 0 | N50: =IF(Runden!N50>0,RANK(Runden!N50,Runden!N$4:N$53,0),0) -> 0 | O50: =IF(Runden!O50>0,RANK(Runden!O50,Runden!O$4:O$53,0),0) -> 0 | P50: =IF(Runden!P50>0,RANK(Runden!P50,Runden!P$4:P$53,0),0) -> 0 | Q50: =IF(Runden!Q50>0,RANK(Runden!Q50,Runden!Q$4:Q$53,0),0) -> 0 | R50: =IF(Runden!R50>0,RANK(Runden!R50,Runden!R$4:R$53,0),0) -> 0 | S50: =IF(Runden!S50>0,RANK(Runden!S50,Runden!S$4:S$53,0),0) -> 0 | T50: =IF(Runden!T50>0,RANK(Runden!T50,Runden!T$4:T$53,0),0) -> 0 | U50: =IF(Runden!U50>0,RANK(Runden!U50,Runden!U$4:U$53,0),0) -> 0 | W50: 0 | X50: 0 | Y50: 0 | Z50: 0 | AA50: 0 | AB50: 0 | AC50: 0 | AD50: 0 | AE50: 0 | AF50: 0 | AG50: 0 | AH50: 0 | AI50: 0 | AJ50: 0 | AK50: 0 | AL50: 0 | AM50: 0 | AN50: 0 | AO50: 0 | AP50: 0 | AQ50: 0 | AR50: 0 | AS50: 0 | AT50: 0 | AU50: 1 | AV50: 0 | AW50: 0 | AX50: 0 | AY50: 0 | AZ50: 0 | BA50: 0 | BB50: 0 | BC50: 0 | BD50: 0 | BE50: 0 | BF50: 0 | BG50: 0 | BH50: 0 | BI50: 0 | BJ50: 0 | BK50: 0 | BL50: 0 | BM50: 0 | BN50: 0 | BO50: 0 | BP50: 0 | BQ50: 0 | BR50: 0 | BS50: 0 | BT50: 0 | BU50: 0 | BV50: 0 | BW50: 0 | BX50: 0 | BY50: 0 | BZ50: 0 | CA50: 0 | CB50: 0 | CC50: 0 | CD50: 1
A51: =IF(Runden!A51="","",Runden!A51) ->  | B51: =IF(Runden!B51>0,RANK(Runden!B51,Runden!B$4:B$53,0),0) -> 0 | C51: =IF(Runden!C51>0,RANK(Runden!C51,Runden!C$4:C$53,0),0) -> 0 | D51: =IF(Runden!D51>0,RANK(Runden!D51,Runden!D$4:D$53,0),0) -> 0 | E51: =IF(Runden!E51>0,RANK(Runden!E51,Runden!E$4:E$53,0),0) -> 0 | F51: =IF(Runden!F51>0,RANK(Runden!F51,Runden!F$4:F$53,0),0) -> 0 | G51: =IF(Runden!G51>0,RANK(Runden!G51,Runden!G$4:G$53,0),0) -> 0 | H51: =IF(Runden!H51>0,RANK(Runden!H51,Runden!H$4:H$53,0),0) -> 0 | I51: =IF(Runden!I51>0,RANK(Runden!I51,Runden!I$4:I$53,0),0) -> 0 | J51: =IF(Runden!J51>0,RANK(Runden!J51,Runden!J$4:J$53,0),0) -> 0 | K51: =IF(Runden!K51>0,RANK(Runden!K51,Runden!K$4:K$53,0),0) -> 0 | L51: =IF(Runden!L51>0,RANK(Runden!L51,Runden!L$4:L$53,0),0) -> 0 | M51: =IF(Runden!M51>0,RANK(Runden!M51,Runden!M$4:M$53,0),0) -> 0 | N51: =IF(Runden!N51>0,RANK(Runden!N51,Runden!N$4:N$53,0),0) -> 0 | O51: =IF(Runden!O51>0,RANK(Runden!O51,Runden!O$4:O$53,0),0) -> 0 | P51: =IF(Runden!P51>0,RANK(Runden!P51,Runden!P$4:P$53,0),0) -> 0 | Q51: =IF(Runden!Q51>0,RANK(Runden!Q51,Runden!Q$4:Q$53,0),0) -> 0 | R51: =IF(Runden!R51>0,RANK(Runden!R51,Runden!R$4:R$53,0),0) -> 0 | S51: =IF(Runden!S51>0,RANK(Runden!S51,Runden!S$4:S$53,0),0) -> 0 | T51: =IF(Runden!T51>0,RANK(Runden!T51,Runden!T$4:T$53,0),0) -> 0 | U51: =IF(Runden!U51>0,RANK(Runden!U51,Runden!U$4:U$53,0),0) -> 0 | W51: 0 | X51: 0 | Y51: 0 | Z51: 0 | AA51: 0 | AB51: 0 | AC51: 0 | AD51: 0 | AE51: 0 | AF51: 0 | AG51: 0 | AH51: 0 | AI51: 0 | AJ51: 0 | AK51: 0 | AL51: 0 | AM51: 0 | AN51: 0 | AO51: 0 | AP51: 0 | AQ51: 0 | AR51: 0 | AS51: 0 | AT51: 0 | AU51: 1 | AV51: 0 | AW51: 0 | AX51: 0 | AY51: 0 | AZ51: 0 | BA51: 0 | BB51: 0 | BC51: 0 | BD51: 0 | BE51: 0 | BF51: 0 | BG51: 0 | BH51: 0 | BI51: 0 | BJ51: 0 | BK51: 0 | BL51: 0 | BM51: 0 | BN51: 0 | BO51: 0 | BP51: 0 | BQ51: 0 | BR51: 0 | BS51: 0 | BT51: 0 | BU51: 0 | BV51: 0 | BW51: 0 | BX51: 0 | BY51: 0 | BZ51: 0 | CA51: 0 | CB51: 0 | CC51: 0 | CD51: 1
A52: =IF(Runden!A52="","",Runden!A52) ->  | B52: =IF(Runden!B52>0,RANK(Runden!B52,Runden!B$4:B$53,0),0) -> 0 | C52: =IF(Runden!C52>0,RANK(Runden!C52,Runden!C$4:C$53,0),0) -> 0 | D52: =IF(Runden!D52>0,RANK(Runden!D52,Runden!D$4:D$53,0),0) -> 0 | E52: =IF(Runden!E52>0,RANK(Runden!E52,Runden!E$4:E$53,0),0) -> 0 | F52: =IF(Runden!F52>0,RANK(Runden!F52,Runden!F$4:F$53,0),0) -> 0 | G52: =IF(Runden!G52>0,RANK(Runden!G52,Runden!G$4:G$53,0),0) -> 0 | H52: =IF(Runden!H52>0,RANK(Runden!H52,Runden!H$4:H$53,0),0) -> 0 | I52: =IF(Runden!I52>0,RANK(Runden!I52,Runden!I$4:I$53,0),0) -> 0 | J52: =IF(Runden!J52>0,RANK(Runden!J52,Runden!J$4:J$53,0),0) -> 0 | K52: =IF(Runden!K52>0,RANK(Runden!K52,Runden!K$4:K$53,0),0) -> 0 | L52: =IF(Runden!L52>0,RANK(Runden!L52,Runden!L$4:L$53,0),0) -> 0 | M52: =IF(Runden!M52>0,RANK(Runden!M52,Runden!M$4:M$53,0),0) -> 0 | N52: =IF(Runden!N52>0,RANK(Runden!N52,Runden!N$4:N$53,0),0) -> 0 | O52: =IF(Runden!O52>0,RANK(Runden!O52,Runden!O$4:O$53,0),0) -> 0 | P52: =IF(Runden!P52>0,RANK(Runden!P52,Runden!P$4:P$53,0),0) -> 0 | Q52: =IF(Runden!Q52>0,RANK(Runden!Q52,Runden!Q$4:Q$53,0),0) -> 0 | R52: =IF(Runden!R52>0,RANK(Runden!R52,Runden!R$4:R$53,0),0) -> 0 | S52: =IF(Runden!S52>0,RANK(Runden!S52,Runden!S$4:S$53,0),0) -> 0 | T52: =IF(Runden!T52>0,RANK(Runden!T52,Runden!T$4:T$53,0),0) -> 0 | U52: =IF(Runden!U52>0,RANK(Runden!U52,Runden!U$4:U$53,0),0) -> 0 | W52: 0 | X52: 0 | Y52: 0 | Z52: 0 | AA52: 0 | AB52: 0 | AC52: 0 | AD52: 0 | AE52: 0 | AF52: 0 | AG52: 0 | AH52: 0 | AI52: 0 | AJ52: 0 | AK52: 0 | AL52: 0 | AM52: 0 | AN52: 0 | AO52: 0 | AP52: 0 | AQ52: 0 | AR52: 0 | AS52: 0 | AT52: 0 | AU52: 1 | AV52: 0 | AW52: 0 | AX52: 0 | AY52: 0 | AZ52: 0 | BA52: 0 | BB52: 0 | BC52: 0 | BD52: 0 | BE52: 0 | BF52: 0 | BG52: 0 | BH52: 0 | BI52: 0 | BJ52: 0 | BK52: 0 | BL52: 0 | BM52: 0 | BN52: 0 | BO52: 0 | BP52: 0 | BQ52: 0 | BR52: 0 | BS52: 0 | BT52: 0 | BU52: 0 | BV52: 0 | BW52: 0 | BX52: 0 | BY52: 0 | BZ52: 0 | CA52: 0 | CB52: 0 | CC52: 0 | CD52: 1
A53: =IF(Runden!A53="","",Runden!A53) ->  | B53: =IF(Runden!B53>0,RANK(Runden!B53,Runden!B$4:B$53,0),0) -> 0 | C53: =IF(Runden!C53>0,RANK(Runden!C53,Runden!C$4:C$53,0),0) -> 0 | D53: =IF(Runden!D53>0,RANK(Runden!D53,Runden!D$4:D$53,0),0) -> 0 | E53: =IF(Runden!E53>0,RANK(Runden!E53,Runden!E$4:E$53,0),0) -> 0 | F53: =IF(Runden!F53>0,RANK(Runden!F53,Runden!F$4:F$53,0),0) -> 0 | G53: =IF(Runden!G53>0,RANK(Runden!G53,Runden!G$4:G$53,0),0) -> 0 | H53: =IF(Runden!H53>0,RANK(Runden!H53,Runden!H$4:H$53,0),0) -> 0 | I53: =IF(Runden!I53>0,RANK(Runden!I53,Runden!I$4:I$53,0),0) -> 0 | J53: =IF(Runden!J53>0,RANK(Runden!J53,Runden!J$4:J$53,0),0) -> 0 | K53: =IF(Runden!K53>0,RANK(Runden!K53,Runden!K$4:K$53,0),0) -> 0 | L53: =IF(Runden!L53>0,RANK(Runden!L53,Runden!L$4:L$53,0),0) -> 0 | M53: =IF(Runden!M53>0,RANK(Runden!M53,Runden!M$4:M$53,0),0) -> 0 | N53: =IF(Runden!N53>0,RANK(Runden!N53,Runden!N$4:N$53,0),0) -> 0 | O53: =IF(Runden!O53>0,RANK(Runden!O53,Runden!O$4:O$53,0),0) -> 0 | P53: =IF(Runden!P53>0,RANK(Runden!P53,Runden!P$4:P$53,0),0) -> 0 | Q53: =IF(Runden!Q53>0,RANK(Runden!Q53,Runden!Q$4:Q$53,0),0) -> 0 | R53: =IF(Runden!R53>0,RANK(Runden!R53,Runden!R$4:R$53,0),0) -> 0 | S53: =IF(Runden!S53>0,RANK(Runden!S53,Runden!S$4:S$53,0),0) -> 0 | T53: =IF(Runden!T53>0,RANK(Runden!T53,Runden!T$4:T$53,0),0) -> 0 | U53: =IF(Runden!U53>0,RANK(Runden!U53,Runden!U$4:U$53,0),0) -> 0 | W53: 0 | X53: 0 | Y53: 0 | Z53: 0 | AA53: 0 | AB53: 0 | AC53: 0 | AD53: 0 | AE53: 0 | AF53: 0 | AG53: 0 | AH53: 0 | AI53: 0 | AJ53: 0 | AK53: 0 | AL53: 0 | AM53: 0 | AN53: 0 | AO53: 0 | AP53: 0 | AQ53: 0 | AR53: 0 | AS53: 0 | AT53: 0 | AU53: 1 | AV53: 0 | AW53: 0 | AX53: 0 | AY53: 0 | AZ53: 0 | BA53: 0 | BB53: 0 | BC53: 0 | BD53: 0 | BE53: 0 | BF53: 0 | BG53: 0 | BH53: 0 | BI53: 0 | BJ53: 0 | BK53: 0 | BL53: 0 | BM53: 0 | BN53: 0 | BO53: 0 | BP53: 0 | BQ53: 0 | BR53: 0 | BS53: 0 | BT53: 0 | BU53: 0 | BV53: 0 | BW53: 0 | BX53: 0 | BY53: 0 | BZ53: 0 | CA53: 0 | CB53: 0 | CC53: 0 | CD53: 1

Sheet Punkte
A1: =Einstellungen!D9&" (Punkte)" -> DTM2019 (Punkte) | W1: Ergebnis | Y1: Gewertete | Z1: =IF(AnzahlLäufeGefahren<LäufeInsgesamt,"vorläufiger Endstand", "Endstand") -> vorläufiger Endstand | AY1: Rang aus | AZ1: 1/1000sel aus | BA1: Wert aus | BB1: Rang aus | BC1: 1/1000stel aus
B2: 1. Lauf | C2: 2. Lauf | D2: 3. Lauf | E2: 4. Lauf | F2: 5. Lauf | G2: 6. Lauf | H2: 7. Lauf | I2: 8. Lauf | J2: 9. Lauf | K2: 10. Lauf | L2: 11. Lauf | M2: 12. Lauf | N2: 13. Lauf | O2: 14. Lauf | P2: 15. Lauf | Q2: 16. Lauf | R2: 17. Lauf | S2: 18. Lauf | T2: 19. Lauf | U2: 20. Lauf | V2: (aus allen Läufen) | Y2: Läufe | Z2: ="(mind. "&Einstellungen!E4& IF(Einstellungen!E4=1," Lauf "," Läufe ")&" "&"bei "&Einstellungen!E5&IF(Einstellungen!E5=1," Streicher)"," Streichern)") -> (mind. 1 Lauf bei 3 Streichern) | AD2: Anzahl | AE2: max. Anzahl der Wertungsläufe: | AL2: =Einstellungen!E3-Einstellungen!E5 -> 7 | AN2: erforderliche Wertungsläufe: | AT2: =Einstellungen!E4 -> 1 | AY2: =Einstellungen!E6 -> unverändert | AZ2: absteigendem Rang aus | BA2: Punkte+ | BB2: Punkten+ | BC2: absteigendem Rang aus
A3: Teilnehmer | B3: =Runden!B3 -> 2018-12-04 | C3: =Runden!C3 -> 2019-01-01 | D3: =Runden!D3 -> 2019-01-29 | E3: =Runden!E3 -> 2019-02-26 | F3: =Runden!F3 -> 2019-03-26 | G3: =Runden!G3 -> 2019-04-23 | H3: =Runden!H3 -> 2019-05-21 | I3: =Runden!I3 -> 2019-06-18 | J3: =Runden!J3 -> 2019-07-16 | K3: =Runden!K3 -> 2019-08-13 | L3: =Runden!L3 -> 2019-09-10 | M3: =Runden!M3 -> 2019-10-08 | N3: =Runden!N3 -> 2019-11-05 | O3: =Runden!O3 -> 2019-12-03 | P3: =Runden!P3 -> 2019-12-31 | Q3: =Runden!Q3 -> 2020-01-28 | R3: =Runden!R3 -> 2020-02-25 | S3: =Runden!S3 -> 2020-03-24 | T3: =Runden!T3 -> 2020-04-21 | U3: =Runden!U3 -> 2020-05-19 | V3: Punkte | W3: Platz | X3: Runden | Y3: Anzahl | Z3: Punkte | AA3: Platz | AD3: Wertungen | AE3: 1 | AF3: 2 | AG3: 3 | AH3: 4 | AI3: 5 | AJ3: 6 | AK3: 7 | AL3: 8 | AM3: 9 | AN3: 10 | AO3: 11 | AP3: 12 | AQ3: 13 | AR3: 14 | AS3: 15 | AT3: 16 | AU3: 17 | AV3: 18 | AW3: 19 | AX3: 20 | AZ3: G-Runden | BA3: Runden | BB3: Runden | BC3: "bester Platz"
A4: =IF(Runden!A10="","",Runden!A10) -> Ewald | B4: =IF(Rang!B10>0,VLOOKUP(Rang!B10,Einstellungen!$A$3:$B$52,2,FALSE),0) -> 20 | C4: =IF(Rang!C10>0,VLOOKUP(Rang!C10,Einstellungen!$A$3:$B$52,2,FALSE),0) -> 0 | D4: =IF(Rang!D10>0,VLOOKUP(Rang!D10,Einstellungen!$A$3:$B$52,2,FALSE),0) -> 0 | E4: =IF(Rang!E10>0,VLOOKUP(Rang!E10,Einstellungen!$A$3:$B$52,2,FALSE),0) -> 0 | F4: =IF(Rang!F10>0,VLOOKUP(Rang!F10,Einstellungen!$A$3:$B$52,2,FALSE),0) -> 0 | G4: =IF(Rang!G10>0,VLOOKUP(Rang!G10,Einstellungen!$A$3:$B$52,2,FALSE),0) -> 0 | H4: =IF(Rang!H10>0,VLOOKUP(Rang!H10,Einstellungen!$A$3:$B$52,2,FALSE),0) -> 0 | I4: =IF(Rang!I10>0,VLOOKUP(Rang!I10,Einstellungen!$A$3:$B$52,2,FALSE),0) -> 0 | J4: =IF(Rang!J10>0,VLOOKUP(Rang!J10,Einstellungen!$A$3:$B$52,2,FALSE),0) -> 0 | K4: =IF(Rang!K10>0,VLOOKUP(Rang!K10,Einstellungen!$A$3:$B$52,2,FALSE),0) -> 0 | L4: =IF(Rang!L10>0,VLOOKUP(Rang!L10,Einstellungen!$A$3:$B$52,2,FALSE),0) -> 0 | M4: =IF(Rang!M10>0,VLOOKUP(Rang!M10,Einstellungen!$A$3:$B$52,2,FALSE),0) -> 0 | N4: =IF(Rang!N10>0,VLOOKUP(Rang!N10,Einstellungen!$A$3:$B$52,2,FALSE),0) -> 0 | O4: =IF(Rang!O10>0,VLOOKUP(Rang!O10,Einstellungen!$A$3:$B$52,2,FALSE),0) -> 0 | P4: =IF(Rang!P10>0,VLOOKUP(Rang!P10,Einstellungen!$A$3:$B$52,2,FALSE),0) -> 0 | Q4: =IF(Rang!Q10>0,VLOOKUP(Rang!Q10,Einstellungen!$A$3:$B$52,2,FALSE),0) -> 0 | R4: =IF(Rang!R10>0,VLOOKUP(Rang!R10,Einstellungen!$A$3:$B$52,2,FALSE),0) -> 0 | S4: =IF(Rang!S10>0,VLOOKUP(Rang!S10,Einstellungen!$A$3:$B$52,2,FALSE),0) -> 0 | T4: =IF(Rang!T10>0,VLOOKUP(Rang!T10,Einstellungen!$A$3:$B$52,2,FALSE),0) -> 0 | U4: =IF(Rang!U10>0,VLOOKUP(Rang!U10,Einstellungen!$A$3:$B$52,2,FALSE),0) -> 0 | V4: =SUM(B4:U4)+IF($AY$4=2,AZ4,0)+IF($AY$4=3,BC4,0) -> 20 | W4: =IF(SUM(B4:U4)>0,RANK(V4,$V$4:$V$53,0),0) -> 1 | X4: =IF(SUM(B4:U4)>0,VLOOKUP(A4,TabRunden,22,FALSE),0) -> 143.05 | Y4: =AD4 -> 1 | Z4: =IF(AD4>=$AT$2,LOOKUP($AL$2,$AE$3:$AX$3,AE4:AX4),0)+IF($AY$4=2,AZ4,0)+IF($AY$4=3,BC4,0) -> 20 | AA4: =IF(Z4>0,RANK(Z4,$Z$4:$Z$53,0),0) -> 1 | AB4: =IF(W4=0,51,W4)+IF(A4="",50,0) -> 1 | AC4: =IF(AA4=0,51,AA4)+IF(A4="",50,0) -> 1 | AD4: =20-COUNTIF(B4:U4,0) -> 1 | AE4: =LARGE($B4:$U4,AE$3) -> 20 | AF4: =LARGE($B4:$U4,AF$3)+AE4 -> 20 | AG4: 20 | AH4: 20 | AI4: 20 | AJ4: 20 | AK4: 20 | AL4: 20 | AM4: 20 | AN4: 20 | AO4: 20 | AP4: 20 | AQ4: 20 | AR4: 20 | AS4: 20 | AT4: 20 | AU4: 20 | AV4: 20 | AW4: 20 | AX4: 20 | AY4: =IF(AY2="unverändert",1,IF(AY2="Gesamtrunden",2,IF(AY2= "bester Platz",3,0))) -> 1 | AZ4: =IF(X4>0,RANK(X4,$X$4:$X$53,1),0)/1000 -> 0.05 | BA4: =AX4+AZ4 -> 20.05 | BB4: =IF(BA4>0,RANK(BA4,$BA$4:$BA$53,0),0) -> 1 | BC4: =IF(X4>0,VLOOKUP(A4,Rang!$A$4:$AU$53,47,FALSE))/1000 -> 0.05
A5: =IF(Runden!A9="","",Runden!A9) -> Chris | B5: =IF(Rang!B9>0,VLOOKUP(Rang!B9,Einstellungen!$A$3:$B$52,2,FALSE),0) -> 18 | C5: =IF(Rang!C9>0,VLOOKUP(Rang!C9,Einstellungen!$A$3:$B$52,2,FALSE),0) -> 0 | D5: =IF(Rang!D9>0,VLOOKUP(Rang!D9,Einstellungen!$A$3:$B$52,2,FALSE),0) -> 0 | E5: =IF(Rang!E9>0,VLOOKUP(Rang!E9,Einstellungen!$A$3:$B$52,2,FALSE),0) -> 0 | F5: =IF(Rang!F9>0,VLOOKUP(Rang!F9,Einstellungen!$A$3:$B$52,2,FALSE),0) -> 0 | G5: =IF(Rang!G9>0,VLOOKUP(Rang!G9,Einstellungen!$A$3:$B$52,2,FALSE),0) -> 0 | H5: =IF(Rang!H9>0,VLOOKUP(Rang!H9,Einstellungen!$A$3:$B$52,2,FALSE),0) -> 0 | I5: =IF(Rang!I9>0,VLOOKUP(Rang!I9,Einstellungen!$A$3:$B$52,2,FALSE),0) -> 0 | J5: =IF(Rang!J9>0,VLOOKUP(Rang!J9,Einstellungen!$A$3:$B$52,2,FALSE),0) -> 0 | K5: =IF(Rang!K9>0,VLOOKUP(Rang!K9,Einstellungen!$A$3:$B$52,2,FALSE),0) -> 0 | L5: =IF(Rang!L9>0,VLOOKUP(Rang!L9,Einstellungen!$A$3:$B$52,2,FALSE),0) -> 0 | M5: =IF(Rang!M9>0,VLOOKUP(Rang!M9,Einstellungen!$A$3:$B$52,2,FALSE),0) -> 0 | N5: =IF(Rang!N9>0,VLOOKUP(Rang!N9,Einstellungen!$A$3:$B$52,2,FALSE),0) -> 0 | O5: =IF(Rang!O9>0,VLOOKUP(Rang!O9,Einstellungen!$A$3:$B$52,2,FALSE),0) -> 0 | P5: =IF(Rang!P9>0,VLOOKUP(Rang!P9,Einstellungen!$A$3:$B$52,2,FALSE),0) -> 0 | Q5: =IF(Rang!Q9>0,VLOOKUP(Rang!Q9,Einstellungen!$A$3:$B$52,2,FALSE),0) -> 0 | R5: =IF(Rang!R9>0,VLOOKUP(Rang!R9,Einstellungen!$A$3:$B$52,2,FALSE),0) -> 0 | S5: =IF(Rang!S9>0,VLOOKUP(Rang!S9,Einstellungen!$A$3:$B$52,2,FALSE),0) -> 0 | T5: =IF(Rang!T9>0,VLOOKUP(Rang!T9,Einstellungen!$A$3:$B$52,2,FALSE),0) -> 0 | U5: =IF(Rang!U9>0,VLOOKUP(Rang!U9,Einstellungen!$A$3:$B$52,2,FALSE),0) -> 0 | V5: =SUM(B5:U5)+IF($AY$4=2,AZ5,0)+IF($AY$4=3,BC5,0) -> 18 | W5: =IF(SUM(B5:U5)>0,RANK(V5,$V$4:$V$53,0),0) -> 2 | X5: =IF(SUM(B5:U5)>0,VLOOKUP(A5,TabRunden,22,FALSE),0) -> 139.4 | Y5: =AD5 -> 1 | Z5: =IF(AD5>=$AT$2,LOOKUP($AL$2,$AE$3:$AX$3,AE5:AX5),0)+IF($AY$4=2,AZ5,0)+IF($AY$4=3,BC5,0) -> 18 | AA5: =IF(Z5>0,RANK(Z5,$Z$4:$Z$53,0),0) -> 2 | AB5: =IF(W5=0,51,W5)+IF(A5="",50,0) -> 2 | AC5: =IF(AA5=0,51,AA5)+IF(A5="",50,0) -> 2 | AD5: 1 | AE5: =LARGE($B5:$U5,AE$3) -> 18 | AF5: =LARGE($B5:$U5,AF$3)+AE5 -> 18 | AG5: 18 | AH5: 18 | AI5: 18 | AJ5: 18 | AK5: 18 | AL5: 18 | AM5: 18 | AN5: 18 | AO5: 18 | AP5: 18 | AQ5: 18 | AR5: 18 | AS5: 18 | AT5: 18 | AU5: 18 | AV5: 18 | AW5: 18 | AX5: 18 | AZ5: =IF(X5>0,RANK(X5,$X$4:$X$53,1),0)/1000 -> 0.049 | BA5: =AX5+AZ5 -> 18.049 | BB5: =IF(BA5>0,RANK(BA5,$BA$4:$BA$53,0),0) -> 2 | BC5: =IF(X5>0,VLOOKUP(A5,Rang!$A$4:$AU$53,47,FALSE))/1000 -> 0.049
A6: =IF(Runden!A14="","",Runden!A14) -> Thomas V. | B6: =IF(Rang!B14>0,VLOOKUP(Rang!B14,Einstellungen!$A$3:$B$52,2,FALSE),0) -> 16 | C6: =IF(Rang!C14>0,VLOOKUP(Rang!C14,Einstellungen!$A$3:$B$52,2,FALSE),0) -> 0 | D6: =IF(Rang!D14>0,VLOOKUP(Rang!D14,Einstellungen!$A$3:$B$52,2,FALSE),0) -> 0 | E6: =IF(Rang!E14>0,VLOOKUP(Rang!E14,Einstellungen!$A$3:$B$52,2,FALSE),0) -> 0 | F6: =IF(Rang!F14>0,VLOOKUP(Rang!F14,Einstellungen!$A$3:$B$52,2,FALSE),0) -> 0 | G6: =IF(Rang!G14>0,VLOOKUP(Rang!G14,Einstellungen!$A$3:$B$52,2,FALSE),0) -> 0 | H6: =IF(Rang!H14>0,VLOOKUP(Rang!H14,Einstellungen!$A$3:$B$52,2,FALSE),0) -> 0 | I6: =IF(Rang!I14>0,VLOOKUP(Rang!I14,Einstellungen!$A$3:$B$52,2,FALSE),0) -> 0 | J6: =IF(Rang!J14>0,VLOOKUP(Rang!J14,Einstellungen!$A$3:$B$52,2,FALSE),0) -> 0 | K6: =IF(Rang!K14>0,VLOOKUP(Rang!K14,Einstellungen!$A$3:$B$52,2,FALSE),0) -> 0 | L6: =IF(Rang!L14>0,VLOOKUP(Rang!L14,Einstellungen!$A$3:$B$52,2,FALSE),0) -> 0 | M6: =IF(Rang!M14>0,VLOOKUP(Rang!M14,Einstellungen!$A$3:$B$52,2,FALSE),0) -> 0 | N6: =IF(Rang!N14>0,VLOOKUP(Rang!N14,Einstellungen!$A$3:$B$52,2,FALSE),0) -> 0 | O6: =IF(Rang!O14>0,VLOOKUP(Rang!O14,Einstellungen!$A$3:$B$52,2,FALSE),0) -> 0 | P6: =IF(Rang!P14>0,VLOOKUP(Rang!P14,Einstellungen!$A$3:$B$52,2,FALSE),0) -> 0 | Q6: =IF(Rang!Q14>0,VLOOKUP(Rang!Q14,Einstellungen!$A$3:$B$52,2,FALSE),0) -> 0 | R6: =IF(Rang!R14>0,VLOOKUP(Rang!R14,Einstellungen!$A$3:$B$52,2,FALSE),0) -> 0 | S6: =IF(Rang!S14>0,VLOOKUP(Rang!S14,Einstellungen!$A$3:$B$52,2,FALSE),0) -> 0 | T6: =IF(Rang!T14>0,VLOOKUP(Rang!T14,Einstellungen!$A$3:$B$52,2,FALSE),0) -> 0 | U6: =IF(Rang!U14>0,VLOOKUP(Rang!U14,Einstellungen!$A$3:$B$52,2,FALSE),0) -> 0 | V6: =SUM(B6:U6)+IF($AY$4=2,AZ6,0)+IF($AY$4=3,BC6,0) -> 16 | W6: =IF(SUM(B6:U6)>0,RANK(V6,$V$4:$V$53,0),0) -> 3 | X6: =IF(SUM(B6:U6)>0,VLOOKUP(A6,TabRunden,22,FALSE),0) -> 138.22 | Y6: =AD6 -> 1 | Z6: =IF(AD6>=$AT$2,LOOKUP($AL$2,$AE$3:$AX$3,AE6:AX6),0)+IF($AY$4=2,AZ6,0)+IF($AY$4=3,BC6,0) -> 16 | AA6: =IF(Z6>0,RANK(Z6,$Z$4:$Z$53,0),0) -> 3 | AB6: =IF(W6=0,51,W6)+IF(A6="",50,0) -> 3 | AC6: =IF(AA6=0,51,AA6)+IF(A6="",50,0) -> 3 | AD6: 1 | AE6: 16 | AF6: =LARGE($B6:$U6,AF$3)+AE6 -> 16 | AG6: 16 | AH6: 16 | AI6: 16 | AJ6: 16 | AK6: 16 | AL6: 16 | AM6: 16 | AN6: 16 | AO6: 16 | AP6: 16 | AQ6: 16 | AR6: 16 | AS6: 16 | AT6: 16 | AU6: 16 | AV6: 16 | AW6: 16 | AX6: 16 | AZ6: 0.048 | BA6: =AX6+AZ6 -> 16.048 | BB6: 3 | BC6: =IF(X6>0,VLOOKUP(A6,Rang!$A$4:$AU$53,47,FALSE))/1000 -> 0.048
A7: =IF(Runden!A8="","",Runden!A8) -> Hans | B7: =IF(Rang!B8>0,VLOOKUP(Rang!B8,Einstellungen!$A$3:$B$52,2,FALSE),0) -> 15 | C7: =IF(Rang!C8>0,VLOOKUP(Rang!C8,Einstellungen!$A$3:$B$52,2,FALSE),0) -> 0 | D7: =IF(Rang!D8>0,VLOOKUP(Rang!D8,Einstellungen!$A$3:$B$52,2,FALSE),0) -> 0 | E7: =IF(Rang!E8>0,VLOOKUP(Rang!E8,Einstellungen!$A$3:$B$52,2,FALSE),0) -> 0 | F7: =IF(Rang!F8>0,VLOOKUP(Rang!F8,Einstellungen!$A$3:$B$52,2,FALSE),0) -> 0 | G7: =IF(Rang!G8>0,VLOOKUP(Rang!G8,Einstellungen!$A$3:$B$52,2,FALSE),0) -> 0 | H7: =IF(Rang!H8>0,VLOOKUP(Rang!H8,Einstellungen!$A$3:$B$52,2,FALSE),0) -> 0 | I7: =IF(Rang!I8>0,VLOOKUP(Rang!I8,Einstellungen!$A$3:$B$52,2,FALSE),0) -> 0 | J7: =IF(Rang!J8>0,VLOOKUP(Rang!J8,Einstellungen!$A$3:$B$52,2,FALSE),0) -> 0 | K7: =IF(Rang!K8>0,VLOOKUP(Rang!K8,Einstellungen!$A$3:$B$52,2,FALSE),0) -> 0 | L7: =IF(Rang!L8>0,VLOOKUP(Rang!L8,Einstellungen!$A$3:$B$52,2,FALSE),0) -> 0 | M7: =IF(Rang!M8>0,VLOOKUP(Rang!M8,Einstellungen!$A$3:$B$52,2,FALSE),0) -> 0 | N7: =IF(Rang!N8>0,VLOOKUP(Rang!N8,Einstellungen!$A$3:$B$52,2,FALSE),0) -> 0 | O7: =IF(Rang!O8>0,VLOOKUP(Rang!O8,Einstellungen!$A$3:$B$52,2,FALSE),0) -> 0 | P7: =IF(Rang!P8>0,VLOOKUP(Rang!P8,Einstellungen!$A$3:$B$52,2,FALSE),0) -> 0 | Q7: =IF(Rang!Q8>0,VLOOKUP(Rang!Q8,Einstellungen!$A$3:$B$52,2,FALSE),0) -> 0 | R7: =IF(Rang!R8>0,VLOOKUP(Rang!R8,Einstellungen!$A$3:$B$52,2,FALSE),0) -> 0 | S7: =IF(Rang!S8>0,VLOOKUP(Rang!S8,Einstellungen!$A$3:$B$52,2,FALSE),0) -> 0 | T7: =IF(Rang!T8>0,VLOOKUP(Rang!T8,Einstellungen!$A$3:$B$52,2,FALSE),0) -> 0 | U7: =IF(Rang!U8>0,VLOOKUP(Rang!U8,Einstellungen!$A$3:$B$52,2,FALSE),0) -> 0 | V7: =SUM(B7:U7)+IF($AY$4=2,AZ7,0)+IF($AY$4=3,BC7,0) -> 15 | W7: =IF(SUM(B7:U7)>0,RANK(V7,$V$4:$V$53,0),0) -> 4 | X7: =IF(SUM(B7:U7)>0,VLOOKUP(A7,TabRunden,22,FALSE),0) -> 137.3 | Y7: =AD7 -> 1 | Z7: =IF(AD7>=$AT$2,LOOKUP($AL$2,$AE$3:$AX$3,AE7:AX7),0)+IF($AY$4=2,AZ7,0)+IF($AY$4=3,BC7,0) -> 15 | AA7: =IF(Z7>0,RANK(Z7,$Z$4:$Z$53,0),0) -> 4 | AB7: =IF(W7=0,51,W7)+IF(A7="",50,0) -> 4 | AC7: =IF(AA7=0,51,AA7)+IF(A7="",50,0) -> 4 | AD7: 1 | AE7: 15 | AF7: =LARGE($B7:$U7,AF$3)+AE7 -> 15 | AG7: 15 | AH7: 15 | AI7: 15 | AJ7: 15 | AK7: 15 | AL7: 15 | AM7: 15 | AN7: 15 | AO7: 15 | AP7: 15 | AQ7: 15 | AR7: 15 | AS7: 15 | AT7: 15 | AU7: 15 | AV7: 15 | AW7: 15 | AX7: 15 | AZ7: 0.047 | BA7: 15.047 | BB7: 4 | BC7: =IF(X7>0,VLOOKUP(A7,Rang!$A$4:$AU$53,47,FALSE))/1000 -> 0.047
A8: =IF(Runden!A5="","",Runden!A5) -> Günter | B8: =IF(Rang!B5>0,VLOOKUP(Rang!B5,Einstellungen!$A$3:$B$52,2,FALSE),0) -> 14 | C8: =IF(Rang!C5>0,VLOOKUP(Rang!C5,Einstellungen!$A$3:$B$52,2,FALSE),0) -> 0 | D8: =IF(Rang!D5>0,VLOOKUP(Rang!D5,Einstellungen!$A$3:$B$52,2,FALSE),0) -> 0 | E8: =IF(Rang!E5>0,VLOOKUP(Rang!E5,Einstellungen!$A$3:$B$52,2,FALSE),0) -> 0 | F8: =IF(Rang!F5>0,VLOOKUP(Rang!F5,Einstellungen!$A$3:$B$52,2,FALSE),0) -> 0 | G8: =IF(Rang!G5>0,VLOOKUP(Rang!G5,Einstellungen!$A$3:$B$52,2,FALSE),0) -> 0 | H8: =IF(Rang!H5>0,VLOOKUP(Rang!H5,Einstellungen!$A$3:$B$52,2,FALSE),0) -> 0 | I8: =IF(Rang!I5>0,VLOOKUP(Rang!I5,Einstellungen!$A$3:$B$52,2,FALSE),0) -> 0 | J8: =IF(Rang!J5>0,VLOOKUP(Rang!J5,Einstellungen!$A$3:$B$52,2,FALSE),0) -> 0 | K8: =IF(Rang!K5>0,VLOOKUP(Rang!K5,Einstellungen!$A$3:$B$52,2,FALSE),0) -> 0 | L8: =IF(Rang!L5>0,VLOOKUP(Rang!L5,Einstellungen!$A$3:$B$52,2,FALSE),0) -> 0 | M8: =IF(Rang!M5>0,VLOOKUP(Rang!M5,Einstellungen!$A$3:$B$52,2,FALSE),0) -> 0 | N8: =IF(Rang!N5>0,VLOOKUP(Rang!N5,Einstellungen!$A$3:$B$52,2,FALSE),0) -> 0 | O8: =IF(Rang!O5>0,VLOOKUP(Rang!O5,Einstellungen!$A$3:$B$52,2,FALSE),0) -> 0 | P8: =IF(Rang!P5>0,VLOOKUP(Rang!P5,Einstellungen!$A$3:$B$52,2,FALSE),0) -> 0 | Q8: =IF(Rang!Q5>0,VLOOKUP(Rang!Q5,Einstellungen!$A$3:$B$52,2,FALSE),0) -> 0 | R8: =IF(Rang!R5>0,VLOOKUP(Rang!R5,Einstellungen!$A$3:$B$52,2,FALSE),0) -> 0 | S8: =IF(Rang!S5>0,VLOOKUP(Rang!S5,Einstellungen!$A$3:$B$52,2,FALSE),0) -> 0 | T8: =IF(Rang!T5>0,VLOOKUP(Rang!T5,Einstellungen!$A$3:$B$52,2,FALSE),0) -> 0 | U8: =IF(Rang!U5>0,VLOOKUP(Rang!U5,Einstellungen!$A$3:$B$52,2,FALSE),0) -> 0 | V8: =SUM(B8:U8)+IF($AY$4=2,AZ8,0)+IF($AY$4=3,BC8,0) -> 14 | W8: =IF(SUM(B8:U8)>0,RANK(V8,$V$4:$V$53,0),0) -> 5 | X8: =IF(SUM(B8:U8)>0,VLOOKUP(A8,TabRunden,22,FALSE),0) -> 136.03 | Y8: =AD8 -> 1 | Z8: =IF(AD8>=$AT$2,LOOKUP($AL$2,$AE$3:$AX$3,AE8:AX8),0)+IF($AY$4=2,AZ8,0)+IF($AY$4=3,BC8,0) -> 14 | AA8: =IF(Z8>0,RANK(Z8,$Z$4:$Z$53,0),0) -> 5 | AB8: =IF(W8=0,51,W8)+IF(A8="",50,0) -> 5 | AC8: =IF(AA8=0,51,AA8)+IF(A8="",50,0) -> 5 | AD8: 1 | AE8: 14 | AF8: =LARGE($B8:$U8,AF$3)+AE8 -> 14 | AG8: 14 | AH8: 14 | AI8: 14 | AJ8: 14 | AK8: 14 | AL8: 14 | AM8: 14 | AN8: 14 | AO8: 14 | AP8: 14 | AQ8: 14 | AR8: 14 | AS8: 14 | AT8: 14 | AU8: 14 | AV8: 14 | AW8: 14 | AX8: 14 | AZ8: 0.046 | BA8: 14.046 | BB8: 5 | BC8: =IF(X8>0,VLOOKUP(A8,Rang!$A$4:$AU$53,47,FALSE))/1000 -> 0.046
A9: =IF(Runden!A6="","",Runden!A6) -> Marcus | B9: =IF(Rang!B6>0,VLOOKUP(Rang!B6,Einstellungen!$A$3:$B$52,2,FALSE),0) -> 13 | C9: =IF(Rang!C6>0,VLOOKUP(Rang!C6,Einstellungen!$A$3:$B$52,2,FALSE),0) -> 0 | D9: =IF(Rang!D6>0,VLOOKUP(Rang!D6,Einstellungen!$A$3:$B$52,2,FALSE),0) -> 0 | E9: =IF(Rang!E6>0,VLOOKUP(Rang!E6,Einstellungen!$A$3:$B$52,2,FALSE),0) -> 0 | F9: =IF(Rang!F6>0,VLOOKUP(Rang!F6,Einstellungen!$A$3:$B$52,2,FALSE),0) -> 0 | G9: =IF(Rang!G6>0,VLOOKUP(Rang!G6,Einstellungen!$A$3:$B$52,2,FALSE),0) -> 0 | H9: =IF(Rang!H6>0,VLOOKUP(Rang!H6,Einstellungen!$A$3:$B$52,2,FALSE),0) -> 0 | I9: =IF(Rang!I6>0,VLOOKUP(Rang!I6,Einstellungen!$A$3:$B$52,2,FALSE),0) -> 0 | J9: =IF(Rang!J6>0,VLOOKUP(Rang!J6,Einstellungen!$A$3:$B$52,2,FALSE),0) -> 0 | K9: =IF(Rang!K6>0,VLOOKUP(Rang!K6,Einstellungen!$A$3:$B$52,2,FALSE),0) -> 0 | L9: =IF(Rang!L6>0,VLOOKUP(Rang!L6,Einstellungen!$A$3:$B$52,2,FALSE),0) -> 0 | M9: =IF(Rang!M6>0,VLOOKUP(Rang!M6,Einstellungen!$A$3:$B$52,2,FALSE),0) -> 0 | N9: =IF(Rang!N6>0,VLOOKUP(Rang!N6,Einstellungen!$A$3:$B$52,2,FALSE),0) -> 0 | O9: =IF(Rang!O6>0,VLOOKUP(Rang!O6,Einstellungen!$A$3:$B$52,2,FALSE),0) -> 0 | P9: =IF(Rang!P6>0,VLOOKUP(Rang!P6,Einstellungen!$A$3:$B$52,2,FALSE),0) -> 0 | Q9: =IF(Rang!Q6>0,VLOOKUP(Rang!Q6,Einstellungen!$A$3:$B$52,2,FALSE),0) -> 0 | R9: =IF(Rang!R6>0,VLOOKUP(Rang!R6,Einstellungen!$A$3:$B$52,2,FALSE),0) -> 0 | S9: =IF(Rang!S6>0,VLOOKUP(Rang!S6,Einstellungen!$A$3:$B$52,2,FALSE),0) -> 0 | T9: =IF(Rang!T6>0,VLOOKUP(Rang!T6,Einstellungen!$A$3:$B$52,2,FALSE),0) -> 0 | U9: =IF(Rang!U6>0,VLOOKUP(Rang!U6,Einstellungen!$A$3:$B$52,2,FALSE),0) -> 0 | V9: =SUM(B9:U9)+IF($AY$4=2,AZ9,0)+IF($AY$4=3,BC9,0) -> 13 | W9: =IF(SUM(B9:U9)>0,RANK(V9,$V$4:$V$53,0),0) -> 6 | X9: =IF(SUM(B9:U9)>0,VLOOKUP(A9,TabRunden,22,FALSE),0) -> 135.39 | Y9: =AD9 -> 1 | Z9: =IF(AD9>=$AT$2,LOOKUP($AL$2,$AE$3:$AX$3,AE9:AX9),0)+IF($AY$4=2,AZ9,0)+IF($AY$4=3,BC9,0) -> 13 | AA9: =IF(Z9>0,RANK(Z9,$Z$4:$Z$53,0),0) -> 6 | AB9: =IF(W9=0,51,W9)+IF(A9="",50,0) -> 6 | AC9: =IF(AA9=0,51,AA9)+IF(A9="",50,0) -> 6 | AD9: 1 | AE9: 13 | AF9: =LARGE($B9:$U9,AF$3)+AE9 -> 13 | AG9: 13 | AH9: 13 | AI9: 13 | AJ9: 13 | AK9: 13 | AL9: 13 | AM9: 13 | AN9: 13 | AO9: 13 | AP9: 13 | AQ9: 13 | AR9: 13 | AS9: 13 | AT9: 13 | AU9: 13 | AV9: 13 | AW9: 13 | AX9: 13 | AZ9: 0.045 | BA9: 13.045 | BB9: 6 | BC9: =IF(X9>0,VLOOKUP(A9,Rang!$A$4:$AU$53,47,FALSE))/1000 -> 0.045
A10: =IF(Runden!A4="","",Runden!A4) -> Ronald | B10: =IF(Rang!B4>0,VLOOKUP(Rang!B4,Einstellungen!$A$3:$B$52,2,FALSE),0) -> 12 | C10: =IF(Rang!C4>0,VLOOKUP(Rang!C4,Einstellungen!$A$3:$B$52,2,FALSE),0) -> 0 | D10: =IF(Rang!D4>0,VLOOKUP(Rang!D4,Einstellungen!$A$3:$B$52,2,FALSE),0) -> 0 | E10: =IF(Rang!E4>0,VLOOKUP(Rang!E4,Einstellungen!$A$3:$B$52,2,FALSE),0) -> 0 | F10: =IF(Rang!F4>0,VLOOKUP(Rang!F4,Einstellungen!$A$3:$B$52,2,FALSE),0) -> 0 | G10: =IF(Rang!G4>0,VLOOKUP(Rang!G4,Einstellungen!$A$3:$B$52,2,FALSE),0) -> 0 | H10: =IF(Rang!H4>0,VLOOKUP(Rang!H4,Einstellungen!$A$3:$B$52,2,FALSE),0) -> 0 | I10: =IF(Rang!I4>0,VLOOKUP(Rang!I4,Einstellungen!$A$3:$B$52,2,FALSE),0) -> 0 | J10: =IF(Rang!J4>0,VLOOKUP(Rang!J4,Einstellungen!$A$3:$B$52,2,FALSE),0) -> 0 | K10: =IF(Rang!K4>0,VLOOKUP(Rang!K4,Einstellungen!$A$3:$B$52,2,FALSE),0) -> 0 | L10: =IF(Rang!L4>0,VLOOKUP(Rang!L4,Einstellungen!$A$3:$B$52,2,FALSE),0) -> 0 | M10: =IF(Rang!M4>0,VLOOKUP(Rang!M4,Einstellungen!$A$3:$B$52,2,FALSE),0) -> 0 | N10: =IF(Rang!N4>0,VLOOKUP(Rang!N4,Einstellungen!$A$3:$B$52,2,FALSE),0) -> 0 | O10: =IF(Rang!O4>0,VLOOKUP(Rang!O4,Einstellungen!$A$3:$B$52,2,FALSE),0) -> 0 | P10: =IF(Rang!P4>0,VLOOKUP(Rang!P4,Einstellungen!$A$3:$B$52,2,FALSE),0) -> 0 | Q10: =IF(Rang!Q4>0,VLOOKUP(Rang!Q4,Einstellungen!$A$3:$B$52,2,FALSE),0) -> 0 | R10: =IF(Rang!R4>0,VLOOKUP(Rang!R4,Einstellungen!$A$3:$B$52,2,FALSE),0) -> 0 | S10: =IF(Rang!S4>0,VLOOKUP(Rang!S4,Einstellungen!$A$3:$B$52,2,FALSE),0) -> 0 | T10: =IF(Rang!T4>0,VLOOKUP(Rang!T4,Einstellungen!$A$3:$B$52,2,FALSE),0) -> 0 | U10: =IF(Rang!U4>0,VLOOKUP(Rang!U4,Einstellungen!$A$3:$B$52,2,FALSE),0) -> 0 | V10: =SUM(B10:U10)+IF($AY$4=2,AZ10,0)+IF($AY$4=3,BC10,0) -> 12 | W10: =IF(SUM(B10:U10)>0,RANK(V10,$V$4:$V$53,0),0) -> 7 | X10: =IF(SUM(B10:U10)>0,VLOOKUP(A10,TabRunden,22,FALSE),0) -> 134.65 | Y10: =AD10 -> 1 | Z10: =IF(AD10>=$AT$2,LOOKUP($AL$2,$AE$3:$AX$3,AE10:AX10),0)+IF($AY$4=2,AZ10,0)+IF($AY$4=3,BC10,0) -> 12 | AA10: =IF(Z10>0,RANK(Z10,$Z$4:$Z$53,0),0) -> 7 | AB10: =IF(W10=0,51,W10)+IF(A10="",50,0) -> 7 | AC10: =IF(AA10=0,51,AA10)+IF(A10="",50,0) -> 7 | AD10: 1 | AE10: 12 | AF10: =LARGE($B10:$U10,AF$3)+AE10 -> 12 | AG10: 12 | AH10: 12 | AI10: 12 | AJ10: 12 | AK10: 12 | AL10: 12 | AM10: 12 | AN10: 12 | AO10: 12 | AP10: 12 | AQ10: 12 | AR10: 12 | AS10: 12 | AT10: 12 | AU10: 12 | AV10: 12 | AW10: 12 | AX10: 12 | AZ10: 0.044 | BA10: 12.044 | BB10: 7 | BC10: =IF(X10>0,VLOOKUP(A10,Rang!$A$4:$AU$53,47,FALSE))/1000 -> 0.044
A11: =IF(Runden!A15="","",Runden!A15) -> Christoph | B11: =IF(Rang!B15>0,VLOOKUP(Rang!B15,Einstellungen!$A$3:$B$52,2,FALSE),0) -> 11 | C11: =IF(Rang!C15>0,VLOOKUP(Rang!C15,Einstellungen!$A$3:$B$52,2,FALSE),0) -> 0 | D11: =IF(Rang!D15>0,VLOOKUP(Rang!D15,Einstellungen!$A$3:$B$52,2,FALSE),0) -> 0 | E11: =IF(Rang!E15>0,VLOOKUP(Rang!E15,Einstellungen!$A$3:$B$52,2,FALSE),0) -> 0 | F11: =IF(Rang!F15>0,VLOOKUP(Rang!F15,Einstellungen!$A$3:$B$52,2,FALSE),0) -> 0 | G11: =IF(Rang!G15>0,VLOOKUP(Rang!G15,Einstellungen!$A$3:$B$52,2,FALSE),0) -> 0 | H11: =IF(Rang!H15>0,VLOOKUP(Rang!H15,Einstellungen!$A$3:$B$52,2,FALSE),0) -> 0 | I11: =IF(Rang!I15>0,VLOOKUP(Rang!I15,Einstellungen!$A$3:$B$52,2,FALSE),0) -> 0 | J11: =IF(Rang!J15>0,VLOOKUP(Rang!J15,Einstellungen!$A$3:$B$52,2,FALSE),0) -> 0 | K11: =IF(Rang!K15>0,VLOOKUP(Rang!K15,Einstellungen!$A$3:$B$52,2,FALSE),0) -> 0 | L11: =IF(Rang!L15>0,VLOOKUP(Rang!L15,Einstellungen!$A$3:$B$52,2,FALSE),0) -> 0 | M11: =IF(Rang!M15>0,VLOOKUP(Rang!M15,Einstellungen!$A$3:$B$52,2,FALSE),0) -> 0 | N11: =IF(Rang!N15>0,VLOOKUP(Rang!N15,Einstellungen!$A$3:$B$52,2,FALSE),0) -> 0 | O11: =IF(Rang!O15>0,VLOOKUP(Rang!O15,Einstellungen!$A$3:$B$52,2,FALSE),0) -> 0 | P11: =IF(Rang!P15>0,VLOOKUP(Rang!P15,Einstellungen!$A$3:$B$52,2,FALSE),0) -> 0 | Q11: =IF(Rang!Q15>0,VLOOKUP(Rang!Q15,Einstellungen!$A$3:$B$52,2,FALSE),0) -> 0 | R11: =IF(Rang!R15>0,VLOOKUP(Rang!R15,Einstellungen!$A$3:$B$52,2,FALSE),0) -> 0 | S11: =IF(Rang!S15>0,VLOOKUP(Rang!S15,Einstellungen!$A$3:$B$52,2,FALSE),0) -> 0 | T11: =IF(Rang!T15>0,VLOOKUP(Rang!T15,Einstellungen!$A$3:$B$52,2,FALSE),0) -> 0 | U11: =IF(Rang!U15>0,VLOOKUP(Rang!U15,Einstellungen!$A$3:$B$52,2,FALSE),0) -> 0 | V11: =SUM(B11:U11)+IF($AY$4=2,AZ11,0)+IF($AY$4=3,BC11,0) -> 11 | W11: =IF(SUM(B11:U11)>0,RANK(V11,$V$4:$V$53,0),0) -> 8 | X11: =IF(SUM(B11:U11)>0,VLOOKUP(A11,TabRunden,22,FALSE),0) -> 124.57 | Y11: =AD11 -> 1 | Z11: =IF(AD11>=$AT$2,LOOKUP($AL$2,$AE$3:$AX$3,AE11:AX11),0)+IF($AY$4=2,AZ11,0)+IF($AY$4=3,BC11,0) -> 11 | AA11: =IF(Z11>0,RANK(Z11,$Z$4:$Z$53,0),0) -> 8 | AB11: =IF(W11=0,51,W11)+IF(A11="",50,0) -> 8 | AC11: =IF(AA11=0,51,AA11)+IF(A11="",50,0) -> 8 | AD11: 1 | AE11: 11 | AF11: =LARGE($B11:$U11,AF$3)+AE11 -> 11 | AG11: 11 | AH11: 11 | AI11: 11 | AJ11: 11 | AK11: 11 | AL11: 11 | AM11: 11 | AN11: 11 | AO11: 11 | AP11: 11 | AQ11: 11 | AR11: 11 | AS11: 11 | AT11: 11 | AU11: 11 | AV11: 11 | AW11: 11 | AX11: 11 | AZ11: 0.043 | BA11: 11.043 | BB11: 8 | BC11: =IF(X11>0,VLOOKUP(A11,Rang!$A$4:$AU$53,47,FALSE))/1000 -> 0.043
A12: =IF(Runden!A13="","",Runden!A13) -> Thomas S. | B12: =IF(Rang!B13>0,VLOOKUP(Rang!B13,Einstellungen!$A$3:$B$52,2,FALSE),0) -> 10 | C12: =IF(Rang!C13>0,VLOOKUP(Rang!C13,Einstellungen!$A$3:$B$52,2,FALSE),0) -> 0 | D12: =IF(Rang!D13>0,VLOOKUP(Rang!D13,Einstellungen!$A$3:$B$52,2,FALSE),0) -> 0 | E12: =IF(Rang!E13>0,VLOOKUP(Rang!E13,Einstellungen!$A$3:$B$52,2,FALSE),0) -> 0 | F12: =IF(Rang!F13>0,VLOOKUP(Rang!F13,Einstellungen!$A$3:$B$52,2,FALSE),0) -> 0 | G12: =IF(Rang!G13>0,VLOOKUP(Rang!G13,Einstellungen!$A$3:$B$52,2,FALSE),0) -> 0 | H12: =IF(Rang!H13>0,VLOOKUP(Rang!H13,Einstellungen!$A$3:$B$52,2,FALSE),0) -> 0 | I12: =IF(Rang!I13>0,VLOOKUP(Rang!I13,Einstellungen!$A$3:$B$52,2,FALSE),0) -> 0 | J12: =IF(Rang!J13>0,VLOOKUP(Rang!J13,Einstellungen!$A$3:$B$52,2,FALSE),0) -> 0 | K12: =IF(Rang!K13>0,VLOOKUP(Rang!K13,Einstellungen!$A$3:$B$52,2,FALSE),0) -> 0 | L12: =IF(Rang!L13>0,VLOOKUP(Rang!L13,Einstellungen!$A$3:$B$52,2,FALSE),0) -> 0 | M12: =IF(Rang!M13>0,VLOOKUP(Rang!M13,Einstellungen!$A$3:$B$52,2,FALSE),0) -> 0 | N12: =IF(Rang!N13>0,VLOOKUP(Rang!N13,Einstellungen!$A$3:$B$52,2,FALSE),0) -> 0 | O12: =IF(Rang!O13>0,VLOOKUP(Rang!O13,Einstellungen!$A$3:$B$52,2,FALSE),0) -> 0 | P12: =IF(Rang!P13>0,VLOOKUP(Rang!P13,Einstellungen!$A$3:$B$52,2,FALSE),0) -> 0 | Q12: =IF(Rang!Q13>0,VLOOKUP(Rang!Q13,Einstellungen!$A$3:$B$52,2,FALSE),0) -> 0 | R12: =IF(Rang!R13>0,VLOOKUP(Rang!R13,Einstellungen!$A$3:$B$52,2,FALSE),0) -> 0 | S12: =IF(Rang!S13>0,VLOOKUP(Rang!S13,Einstellungen!$A$3:$B$52,2,FALSE),0) -> 0 | T12: =IF(Rang!T13>0,VLOOKUP(Rang!T13,Einstellungen!$A$3:$B$52,2,FALSE),0) -> 0 | U12: =IF(Rang!U13>0,VLOOKUP(Rang!U13,Einstellungen!$A$3:$B$52,2,FALSE),0) -> 0 | V12: =SUM(B12:U12)+IF($AY$4=2,AZ12,0)+IF($AY$4=3,BC12,0) -> 10 | W12: =IF(SUM(B12:U12)>0,RANK(V12,$V$4:$V$53,0),0) -> 9 | X12: =IF(SUM(B12:U12)>0,VLOOKUP(A12,TabRunden,22,FALSE),0) -> 120.57 | Y12: =AD12 -> 1 | Z12: =IF(AD12>=$AT$2,LOOKUP($AL$2,$AE$3:$AX$3,AE12:AX12),0)+IF($AY$4=2,AZ12,0)+IF($AY$4=3,BC12,0) -> 10 | AA12: =IF(Z12>0,RANK(Z12,$Z$4:$Z$53,0),0) -> 9 | AB12: =IF(W12=0,51,W12)+IF(A12="",50,0) -> 9 | AC12: =IF(AA12=0,51,AA12)+IF(A12="",50,0) -> 9 | AD12: 1 | AE12: 10 | AF12: =LARGE($B12:$U12,AF$3)+AE12 -> 10 | AG12: 10 | AH12: 10 | AI12: 10 | AJ12: 10 | AK12: 10 | AL12: 10 | AM12: 10 | AN12: 10 | AO12: 10 | AP12: 10 | AQ12: 10 | AR12: 10 | AS12: 10 | AT12: 10 | AU12: 10 | AV12: 10 | AW12: 10 | AX12: 10 | AZ12: 0.042 | BA12: 10.042 | BB12: 9 | BC12: =IF(X12>0,VLOOKUP(A12,Rang!$A$4:$AU$53,47,FALSE))/1000 -> 0.042
A13: =IF(Runden!A12="","",Runden!A12) -> Thomas G. | B13: =IF(Rang!B12>0,VLOOKUP(Rang!B12,Einstellungen!$A$3:$B$52,2,FALSE),0) -> 9 | C13: =IF(Rang!C12>0,VLOOKUP(Rang!C12,Einstellungen!$A$3:$B$52,2,FALSE),0) -> 0 | D13: =IF(Rang!D12>0,VLOOKUP(Rang!D12,Einstellungen!$A$3:$B$52,2,FALSE),0) -> 0 | E13: =IF(Rang!E12>0,VLOOKUP(Rang!E12,Einstellungen!$A$3:$B$52,2,FALSE),0) -> 0 | F13: =IF(Rang!F12>0,VLOOKUP(Rang!F12,Einstellungen!$A$3:$B$52,2,FALSE),0) -> 0 | G13: =IF(Rang!G12>0,VLOOKUP(Rang!G12,Einstellungen!$A$3:$B$52,2,FALSE),0) -> 0 | H13: =IF(Rang!H12>0,VLOOKUP(Rang!H12,Einstellungen!$A$3:$B$52,2,FALSE),0) -> 0 | I13: =IF(Rang!I12>0,VLOOKUP(Rang!I12,Einstellungen!$A$3:$B$52,2,FALSE),0) -> 0 | J13: =IF(Rang!J12>0,VLOOKUP(Rang!J12,Einstellungen!$A$3:$B$52,2,FALSE),0) -> 0 | K13: =IF(Rang!K12>0,VLOOKUP(Rang!K12,Einstellungen!$A$3:$B$52,2,FALSE),0) -> 0 | L13: =IF(Rang!L12>0,VLOOKUP(Rang!L12,Einstellungen!$A$3:$B$52,2,FALSE),0) -> 0 | M13: =IF(Rang!M12>0,VLOOKUP(Rang!M12,Einstellungen!$A$3:$B$52,2,FALSE),0) -> 0 | N13: =IF(Rang!N12>0,VLOOKUP(Rang!N12,Einstellungen!$A$3:$B$52,2,FALSE),0) -> 0 | O13: =IF(Rang!O12>0,VLOOKUP(Rang!O12,Einstellungen!$A$3:$B$52,2,FALSE),0) -> 0 | P13: =IF(Rang!P12>0,VLOOKUP(Rang!P12,Einstellungen!$A$3:$B$52,2,FALSE),0) -> 0 | Q13: =IF(Rang!Q12>0,VLOOKUP(Rang!Q12,Einstellungen!$A$3:$B$52,2,FALSE),0) -> 0 | R13: =IF(Rang!R12>0,VLOOKUP(Rang!R12,Einstellungen!$A$3:$B$52,2,FALSE),0) -> 0 | S13: =IF(Rang!S12>0,VLOOKUP(Rang!S12,Einstellungen!$A$3:$B$52,2,FALSE),0) -> 0 | T13: =IF(Rang!T12>0,VLOOKUP(Rang!T12,Einstellungen!$A$3:$B$52,2,FALSE),0) -> 0 | U13: =IF(Rang!U12>0,VLOOKUP(Rang!U12,Einstellungen!$A$3:$B$52,2,FALSE),0) -> 0 | V13: =SUM(B13:U13)+IF($AY$4=2,AZ13,0)+IF($AY$4=3,BC13,0) -> 9 | W13: =IF(SUM(B13:U13)>0,RANK(V13,$V$4:$V$53,0),0) -> 10 | X13: =IF(SUM(B13:U13)>0,VLOOKUP(A13,TabRunden,22,FALSE),0) -> 117.71 | Y13: =AD13 -> 1 | Z13: =IF(AD13>=$AT$2,LOOKUP($AL$2,$AE$3:$AX$3,AE13:AX13),0)+IF($AY$4=2,AZ13,0)+IF($AY$4=3,BC13,0) -> 9 | AA13: =IF(Z13>0,RANK(Z13,$Z$4:$Z$53,0),0) -> 10 | AB13: =IF(W13=0,51,W13)+IF(A13="",50,0) -> 10 | AC13: =IF(AA13=0,51,AA13)+IF(A13="",50,0) -> 10 | AD13: 1 | AE13: 9 | AF13: =LARGE($B13:$U13,AF$3)+AE13 -> 9 | AG13: 9 | AH13: 9 | AI13: 9 | AJ13: 9 | AK13: 9 | AL13: 9 | AM13: 9 | AN13: 9 | AO13: 9 | AP13: 9 | AQ13: 9 | AR13: 9 | AS13: 9 | AT13: 9 | AU13: 9 | AV13: 9 | AW13: 9 | AX13: 9 | AZ13: 0.041 | BA13: 9.041 | BB13: 10 | BC13: =IF(X13>0,VLOOKUP(A13,Rang!$A$4:$AU$53,47,FALSE))/1000 -> 0.041
A14: =IF(Runden!A7="","",Runden!A7) -> Dietmar | B14: =IF(Rang!B7>0,VLOOKUP(Rang!B7,Einstellungen!$A$3:$B$52,2,FALSE),0) -> 0 | C14: =IF(Rang!C7>0,VLOOKUP(Rang!C7,Einstellungen!$A$3:$B$52,2,FALSE),0) -> 0 | D14: =IF(Rang!D7>0,VLOOKUP(Rang!D7,Einstellungen!$A$3:$B$52,2,FALSE),0) -> 0 | E14: =IF(Rang!E7>0,VLOOKUP(Rang!E7,Einstellungen!$A$3:$B$52,2,FALSE),0) -> 0 | F14: =IF(Rang!F7>0,VLOOKUP(Rang!F7,Einstellungen!$A$3:$B$52,2,FALSE),0) -> 0 | G14: =IF(Rang!G7>0,VLOOKUP(Rang!G7,Einstellungen!$A$3:$B$52,2,FALSE),0) -> 0 | H14: =IF(Rang!H7>0,VLOOKUP(Rang!H7,Einstellungen!$A$3:$B$52,2,FALSE),0) -> 0 | I14: =IF(Rang!I7>0,VLOOKUP(Rang!I7,Einstellungen!$A$3:$B$52,2,FALSE),0) -> 0 | J14: =IF(Rang!J7>0,VLOOKUP(Rang!J7,Einstellungen!$A$3:$B$52,2,FALSE),0) -> 0 | K14: =IF(Rang!K7>0,VLOOKUP(Rang!K7,Einstellungen!$A$3:$B$52,2,FALSE),0) -> 0 | L14: =IF(Rang!L7>0,VLOOKUP(Rang!L7,Einstellungen!$A$3:$B$52,2,FALSE),0) -> 0 | M14: =IF(Rang!M7>0,VLOOKUP(Rang!M7,Einstellungen!$A$3:$B$52,2,FALSE),0) -> 0 | N14: =IF(Rang!N7>0,VLOOKUP(Rang!N7,Einstellungen!$A$3:$B$52,2,FALSE),0) -> 0 | O14: =IF(Rang!O7>0,VLOOKUP(Rang!O7,Einstellungen!$A$3:$B$52,2,FALSE),0) -> 0 | P14: =IF(Rang!P7>0,VLOOKUP(Rang!P7,Einstellungen!$A$3:$B$52,2,FALSE),0) -> 0 | Q14: =IF(Rang!Q7>0,VLOOKUP(Rang!Q7,Einstellungen!$A$3:$B$52,2,FALSE),0) -> 0 | R14: =IF(Rang!R7>0,VLOOKUP(Rang!R7,Einstellungen!$A$3:$B$52,2,FALSE),0) -> 0 | S14: =IF(Rang!S7>0,VLOOKUP(Rang!S7,Einstellungen!$A$3:$B$52,2,FALSE),0) -> 0 | T14: =IF(Rang!T7>0,VLOOKUP(Rang!T7,Einstellungen!$A$3:$B$52,2,FALSE),0) -> 0 | U14: =IF(Rang!U7>0,VLOOKUP(Rang!U7,Einstellungen!$A$3:$B$52,2,FALSE),0) -> 0 | V14: =SUM(B14:U14)+IF($AY$4=2,AZ14,0)+IF($AY$4=3,BC14,0) -> 0 | W14: =IF(SUM(B14:U14)>0,RANK(V14,$V$4:$V$53,0),0) -> 0 | X14: =IF(SUM(B14:U14)>0,VLOOKUP(A14,TabRunden,22,FALSE),0) -> 0 | Y14: =AD14 -> 0 | Z14: =IF(AD14>=$AT$2,LOOKUP($AL$2,$AE$3:$AX$3,AE14:AX14),0)+IF($AY$4=2,AZ14,0)+IF($AY$4=3,BC14,0) -> 0 | AA14: =IF(Z14>0,RANK(Z14,$Z$4:$Z$53,0),0) -> 0 | AB14: =IF(W14=0,51,W14)+IF(A14="",50,0) -> 51 | AC14: =IF(AA14=0,51,AA14)+IF(A14="",50,0) -> 51 | AD14: 0 | AE14: 0 | AF14: =LARGE($B14:$U14,AF$3)+AE14 -> 0 | AG14: 0 | AH14: 0 | AI14: 0 | AJ14: 0 | AK14: 0 | AL14: 0 | AM14: 0 | AN14: 0 | AO14: 0 | AP14: 0 | AQ14: 0 | AR14: 0 | AS14: 0 | AT14: 0 | AU14: 0 | AV14: 0 | AW14: 0 | AX14: 0 | AZ14: 0 | BA14: 0 | BB14: 0 | BC14: =IF(X14>0,VLOOKUP(A14,Rang!$A$4:$AU$53,47,FALSE))/1000 -> 0
A15: =IF(Runden!A11="","",Runden!A11) -> Sven | B15: =IF(Rang!B11>0,VLOOKUP(Rang!B11,Einstellungen!$A$3:$B$52,2,FALSE),0) -> 0 | C15: =IF(Rang!C11>0,VLOOKUP(Rang!C11,Einstellungen!$A$3:$B$52,2,FALSE),0) -> 0 | D15: =IF(Rang!D11>0,VLOOKUP(Rang!D11,Einstellungen!$A$3:$B$52,2,FALSE),0) -> 0 | E15: =IF(Rang!E11>0,VLOOKUP(Rang!E11,Einstellungen!$A$3:$B$52,2,FALSE),0) -> 0 | F15: =IF(Rang!F11>0,VLOOKUP(Rang!F11,Einstellungen!$A$3:$B$52,2,FALSE),0) -> 0 | G15: =IF(Rang!G11>0,VLOOKUP(Rang!G11,Einstellungen!$A$3:$B$52,2,FALSE),0) -> 0 | H15: =IF(Rang!H11>0,VLOOKUP(Rang!H11,Einstellungen!$A$3:$B$52,2,FALSE),0) -> 0 | I15: =IF(Rang!I11>0,VLOOKUP(Rang!I11,Einstellungen!$A$3:$B$52,2,FALSE),0) -> 0 | J15: =IF(Rang!J11>0,VLOOKUP(Rang!J11,Einstellungen!$A$3:$B$52,2,FALSE),0) -> 0 | K15: =IF(Rang!K11>0,VLOOKUP(Rang!K11,Einstellungen!$A$3:$B$52,2,FALSE),0) -> 0 | L15: =IF(Rang!L11>0,VLOOKUP(Rang!L11,Einstellungen!$A$3:$B$52,2,FALSE),0) -> 0 | M15: =IF(Rang!M11>0,VLOOKUP(Rang!M11,Einstellungen!$A$3:$B$52,2,FALSE),0) -> 0 | N15: =IF(Rang!N11>0,VLOOKUP(Rang!N11,Einstellungen!$A$3:$B$52,2,FALSE),0) -> 0 | O15: =IF(Rang!O11>0,VLOOKUP(Rang!O11,Einstellungen!$A$3:$B$52,2,FALSE),0) -> 0 | P15: =IF(Rang!P11>0,VLOOKUP(Rang!P11,Einstellungen!$A$3:$B$52,2,FALSE),0) -> 0 | Q15: =IF(Rang!Q11>0,VLOOKUP(Rang!Q11,Einstellungen!$A$3:$B$52,2,FALSE),0) -> 0 | R15: =IF(Rang!R11>0,VLOOKUP(Rang!R11,Einstellungen!$A$3:$B$52,2,FALSE),0) -> 0 | S15: =IF(Rang!S11>0,VLOOKUP(Rang!S11,Einstellungen!$A$3:$B$52,2,FALSE),0) -> 0 | T15: =IF(Rang!T11>0,VLOOKUP(Rang!T11,Einstellungen!$A$3:$B$52,2,FALSE),0) -> 0 | U15: =IF(Rang!U11>0,VLOOKUP(Rang!U11,Einstellungen!$A$3:$B$52,2,FALSE),0) -> 0 | V15: =SUM(B15:U15)+IF($AY$4=2,AZ15,0)+IF($AY$4=3,BC15,0) -> 0 | W15: =IF(SUM(B15:U15)>0,RANK(V15,$V$4:$V$53,0),0) -> 0 | X15: =IF(SUM(B15:U15)>0,VLOOKUP(A15,TabRunden,22,FALSE),0) -> 0 | Y15: =AD15 -> 0 | Z15: =IF(AD15>=$AT$2,LOOKUP($AL$2,$AE$3:$AX$3,AE15:AX15),0)+IF($AY$4=2,AZ15,0)+IF($AY$4=3,BC15,0) -> 0 | AA15: =IF(Z15>0,RANK(Z15,$Z$4:$Z$53,0),0) -> 0 | AB15: =IF(W15=0,51,W15)+IF(A15="",50,0) -> 51 | AC15: =IF(AA15=0,51,AA15)+IF(A15="",50,0) -> 51 | AD15: 0 | AE15: 0 | AF15: =LARGE($B15:$U15,AF$3)+AE15 -> 0 | AG15: 0 | AH15: 0 | AI15: 0 | AJ15: 0 | AK15: 0 | AL15: 0 | AM15: 0 | AN15: 0 | AO15: 0 | AP15: 0 | AQ15: 0 | AR15: 0 | AS15: 0 | AT15: 0 | AU15: 0 | AV15: 0 | AW15: 0 | AX15: 0 | AZ15: 0 | BA15: 0 | BB15: 0 | BC15: =IF(X15>0,VLOOKUP(A15,Rang!$A$4:$AU$53,47,FALSE))/1000 -> 0
A16: =IF(Runden!A16="","",Runden!A16) -> Olli | B16: =IF(Rang!B16>0,VLOOKUP(Rang!B16,Einstellungen!$A$3:$B$52,2,FALSE),0) -> 0 | C16: =IF(Rang!C16>0,VLOOKUP(Rang!C16,Einstellungen!$A$3:$B$52,2,FALSE),0) -> 0 | D16: =IF(Rang!D16>0,VLOOKUP(Rang!D16,Einstellungen!$A$3:$B$52,2,FALSE),0) -> 0 | E16: =IF(Rang!E16>0,VLOOKUP(Rang!E16,Einstellungen!$A$3:$B$52,2,FALSE),0) -> 0 | F16: =IF(Rang!F16>0,VLOOKUP(Rang!F16,Einstellungen!$A$3:$B$52,2,FALSE),0) -> 0 | G16: =IF(Rang!G16>0,VLOOKUP(Rang!G16,Einstellungen!$A$3:$B$52,2,FALSE),0) -> 0 | H16: =IF(Rang!H16>0,VLOOKUP(Rang!H16,Einstellungen!$A$3:$B$52,2,FALSE),0) -> 0 | I16: =IF(Rang!I16>0,VLOOKUP(Rang!I16,Einstellungen!$A$3:$B$52,2,FALSE),0) -> 0 | J16: =IF(Rang!J16>0,VLOOKUP(Rang!J16,Einstellungen!$A$3:$B$52,2,FALSE),0) -> 0 | K16: =IF(Rang!K16>0,VLOOKUP(Rang!K16,Einstellungen!$A$3:$B$52,2,FALSE),0) -> 0 | L16: =IF(Rang!L16>0,VLOOKUP(Rang!L16,Einstellungen!$A$3:$B$52,2,FALSE),0) -> 0 | M16: =IF(Rang!M16>0,VLOOKUP(Rang!M16,Einstellungen!$A$3:$B$52,2,FALSE),0) -> 0 | N16: =IF(Rang!N16>0,VLOOKUP(Rang!N16,Einstellungen!$A$3:$B$52,2,FALSE),0) -> 0 | O16: =IF(Rang!O16>0,VLOOKUP(Rang!O16,Einstellungen!$A$3:$B$52,2,FALSE),0) -> 0 | P16: =IF(Rang!P16>0,VLOOKUP(Rang!P16,Einstellungen!$A$3:$B$52,2,FALSE),0) -> 0 | Q16: =IF(Rang!Q16>0,VLOOKUP(Rang!Q16,Einstellungen!$A$3:$B$52,2,FALSE),0) -> 0 | R16: =IF(Rang!R16>0,VLOOKUP(Rang!R16,Einstellungen!$A$3:$B$52,2,FALSE),0) -> 0 | S16: =IF(Rang!S16>0,VLOOKUP(Rang!S16,Einstellungen!$A$3:$B$52,2,FALSE),0) -> 0 | T16: =IF(Rang!T16>0,VLOOKUP(Rang!T16,Einstellungen!$A$3:$B$52,2,FALSE),0) -> 0 | U16: =IF(Rang!U16>0,VLOOKUP(Rang!U16,Einstellungen!$A$3:$B$52,2,FALSE),0) -> 0 | V16: =SUM(B16:U16)+IF($AY$4=2,AZ16,0)+IF($AY$4=3,BC16,0) -> 0 | W16: =IF(SUM(B16:U16)>0,RANK(V16,$V$4:$V$53,0),0) -> 0 | X16: =IF(SUM(B16:U16)>0,VLOOKUP(A16,TabRunden,22,FALSE),0) -> 0 | Y16: =AD16 -> 0 | Z16: =IF(AD16>=$AT$2,LOOKUP($AL$2,$AE$3:$AX$3,AE16:AX16),0)+IF($AY$4=2,AZ16,0)+IF($AY$4=3,BC16,0) -> 0 | AA16: =IF(Z16>0,RANK(Z16,$Z$4:$Z$53,0),0) -> 0 | AB16: =IF(W16=0,51,W16)+IF(A16="",50,0) -> 51 | AC16: =IF(AA16=0,51,AA16)+IF(A16="",50,0) -> 51 | AD16: 0 | AE16: 0 | AF16: =LARGE($B16:$U16,AF$3)+AE16 -> 0 | AG16: 0 | AH16: 0 | AI16: 0 | AJ16: 0 | AK16: 0 | AL16: 0 | AM16: 0 | AN16: 0 | AO16: 0 | AP16: 0 | AQ16: 0 | AR16: 0 | AS16: 0 | AT16: 0 | AU16: 0 | AV16: 0 | AW16: 0 | AX16: 0 | AZ16: 0 | BA16: 0 | BB16: 0 | BC16: =IF(X16>0,VLOOKUP(A16,Rang!$A$4:$AU$53,47,FALSE))/1000 -> 0
A17: =IF(Runden!A17="","",Runden!A17) -> Horst | B17: =IF(Rang!B17>0,VLOOKUP(Rang!B17,Einstellungen!$A$3:$B$52,2,FALSE),0) -> 0 | C17: =IF(Rang!C17>0,VLOOKUP(Rang!C17,Einstellungen!$A$3:$B$52,2,FALSE),0) -> 0 | D17: =IF(Rang!D17>0,VLOOKUP(Rang!D17,Einstellungen!$A$3:$B$52,2,FALSE),0) -> 0 | E17: =IF(Rang!E17>0,VLOOKUP(Rang!E17,Einstellungen!$A$3:$B$52,2,FALSE),0) -> 0 | F17: =IF(Rang!F17>0,VLOOKUP(Rang!F17,Einstellungen!$A$3:$B$52,2,FALSE),0) -> 0 | G17: =IF(Rang!G17>0,VLOOKUP(Rang!G17,Einstellungen!$A$3:$B$52,2,FALSE),0) -> 0 | H17: =IF(Rang!H17>0,VLOOKUP(Rang!H17,Einstellungen!$A$3:$B$52,2,FALSE),0) -> 0 | I17: =IF(Rang!I17>0,VLOOKUP(Rang!I17,Einstellungen!$A$3:$B$52,2,FALSE),0) -> 0 | J17: =IF(Rang!J17>0,VLOOKUP(Rang!J17,Einstellungen!$A$3:$B$52,2,FALSE),0) -> 0 | K17: =IF(Rang!K17>0,VLOOKUP(Rang!K17,Einstellungen!$A$3:$B$52,2,FALSE),0) -> 0 | L17: =IF(Rang!L17>0,VLOOKUP(Rang!L17,Einstellungen!$A$3:$B$52,2,FALSE),0) -> 0 | M17: =IF(Rang!M17>0,VLOOKUP(Rang!M17,Einstellungen!$A$3:$B$52,2,FALSE),0) -> 0 | N17: =IF(Rang!N17>0,VLOOKUP(Rang!N17,Einstellungen!$A$3:$B$52,2,FALSE),0) -> 0 | O17: =IF(Rang!O17>0,VLOOKUP(Rang!O17,Einstellungen!$A$3:$B$52,2,FALSE),0) -> 0 | P17: =IF(Rang!P17>0,VLOOKUP(Rang!P17,Einstellungen!$A$3:$B$52,2,FALSE),0) -> 0 | Q17: =IF(Rang!Q17>0,VLOOKUP(Rang!Q17,Einstellungen!$A$3:$B$52,2,FALSE),0) -> 0 | R17: =IF(Rang!R17>0,VLOOKUP(Rang!R17,Einstellungen!$A$3:$B$52,2,FALSE),0) -> 0 | S17: =IF(Rang!S17>0,VLOOKUP(Rang!S17,Einstellungen!$A$3:$B$52,2,FALSE),0) -> 0 | T17: =IF(Rang!T17>0,VLOOKUP(Rang!T17,Einstellungen!$A$3:$B$52,2,FALSE),0) -> 0 | U17: =IF(Rang!U17>0,VLOOKUP(Rang!U17,Einstellungen!$A$3:$B$52,2,FALSE),0) -> 0 | V17: =SUM(B17:U17)+IF($AY$4=2,AZ17,0)+IF($AY$4=3,BC17,0) -> 0 | W17: =IF(SUM(B17:U17)>0,RANK(V17,$V$4:$V$53,0),0) -> 0 | X17: =IF(SUM(B17:U17)>0,VLOOKUP(A17,TabRunden,22,FALSE),0) -> 0 | Y17: =AD17 -> 0 | Z17: =IF(AD17>=$AT$2,LOOKUP($AL$2,$AE$3:$AX$3,AE17:AX17),0)+IF($AY$4=2,AZ17,0)+IF($AY$4=3,BC17,0) -> 0 | AA17: =IF(Z17>0,RANK(Z17,$Z$4:$Z$53,0),0) -> 0 | AB17: =IF(W17=0,51,W17)+IF(A17="",50,0) -> 51 | AC17: =IF(AA17=0,51,AA17)+IF(A17="",50,0) -> 51 | AD17: 0 | AE17: 0 | AF17: =LARGE($B17:$U17,AF$3)+AE17 -> 0 | AG17: 0 | AH17: 0 | AI17: 0 | AJ17: 0 | AK17: 0 | AL17: 0 | AM17: 0 | AN17: 0 | AO17: 0 | AP17: 0 | AQ17: 0 | AR17: 0 | AS17: 0 | AT17: 0 | AU17: 0 | AV17: 0 | AW17: 0 | AX17: 0 | AZ17: 0 | BA17: 0 | BB17: 0 | BC17: =IF(X17>0,VLOOKUP(A17,Rang!$A$4:$AU$53,47,FALSE))/1000 -> 0
A18: =IF(Runden!A18="","",Runden!A18) ->  | B18: =IF(Rang!B18>0,VLOOKUP(Rang!B18,Einstellungen!$A$3:$B$52,2,FALSE),0) -> 0 | C18: =IF(Rang!C18>0,VLOOKUP(Rang!C18,Einstellungen!$A$3:$B$52,2,FALSE),0) -> 0 | D18: =IF(Rang!D18>0,VLOOKUP(Rang!D18,Einstellungen!$A$3:$B$52,2,FALSE),0) -> 0 | E18: =IF(Rang!E18>0,VLOOKUP(Rang!E18,Einstellungen!$A$3:$B$52,2,FALSE),0) -> 0 | F18: =IF(Rang!F18>0,VLOOKUP(Rang!F18,Einstellungen!$A$3:$B$52,2,FALSE),0) -> 0 | G18: =IF(Rang!G18>0,VLOOKUP(Rang!G18,Einstellungen!$A$3:$B$52,2,FALSE),0) -> 0 | H18: =IF(Rang!H18>0,VLOOKUP(Rang!H18,Einstellungen!$A$3:$B$52,2,FALSE),0) -> 0 | I18: =IF(Rang!I18>0,VLOOKUP(Rang!I18,Einstellungen!$A$3:$B$52,2,FALSE),0) -> 0 | J18: =IF(Rang!J18>0,VLOOKUP(Rang!J18,Einstellungen!$A$3:$B$52,2,FALSE),0) -> 0 | K18: =IF(Rang!K18>0,VLOOKUP(Rang!K18,Einstellungen!$A$3:$B$52,2,FALSE),0) -> 0 | L18: =IF(Rang!L18>0,VLOOKUP(Rang!L18,Einstellungen!$A$3:$B$52,2,FALSE),0) -> 0 | M18: =IF(Rang!M18>0,VLOOKUP(Rang!M18,Einstellungen!$A$3:$B$52,2,FALSE),0) -> 0 | N18: =IF(Rang!N18>0,VLOOKUP(Rang!N18,Einstellungen!$A$3:$B$52,2,FALSE),0) -> 0 | O18: =IF(Rang!O18>0,VLOOKUP(Rang!O18,Einstellungen!$A$3:$B$52,2,FALSE),0) -> 0 | P18: =IF(Rang!P18>0,VLOOKUP(Rang!P18,Einstellungen!$A$3:$B$52,2,FALSE),0) -> 0 | Q18: =IF(Rang!Q18>0,VLOOKUP(Rang!Q18,Einstellungen!$A$3:$B$52,2,FALSE),0) -> 0 | R18: =IF(Rang!R18>0,VLOOKUP(Rang!R18,Einstellungen!$A$3:$B$52,2,FALSE),0) -> 0 | S18: =IF(Rang!S18>0,VLOOKUP(Rang!S18,Einstellungen!$A$3:$B$52,2,FALSE),0) -> 0 | T18: =IF(Rang!T18>0,VLOOKUP(Rang!T18,Einstellungen!$A$3:$B$52,2,FALSE),0) -> 0 | U18: =IF(Rang!U18>0,VLOOKUP(Rang!U18,Einstellungen!$A$3:$B$52,2,FALSE),0) -> 0 | V18: =SUM(B18:U18)+IF($AY$4=2,AZ18,0)+IF($AY$4=3,BC18,0) -> 0 | W18: =IF(SUM(B18:U18)>0,RANK(V18,$V$4:$V$53,0),0) -> 0 | X18: =IF(SUM(B18:U18)>0,VLOOKUP(A18,TabRunden,22,FALSE),0) -> 0 | Y18: =AD18 -> 0 | Z18: =IF(AD18>=$AT$2,LOOKUP($AL$2,$AE$3:$AX$3,AE18:AX18),0)+IF($AY$4=2,AZ18,0)+IF($AY$4=3,BC18,0) -> 0 | AA18: =IF(Z18>0,RANK(Z18,$Z$4:$Z$53,0),0) -> 0 | AB18: =IF(W18=0,51,W18)+IF(A18="",50,0) -> 101 | AC18: =IF(AA18=0,51,AA18)+IF(A18="",50,0) -> 101 | AD18: 0 | AE18: 0 | AF18: =LARGE($B18:$U18,AF$3)+AE18 -> 0 | AG18: 0 | AH18: 0 | AI18: 0 | AJ18: 0 | AK18: 0 | AL18: 0 | AM18: 0 | AN18: 0 | AO18: 0 | AP18: 0 | AQ18: 0 | AR18: 0 | AS18: 0 | AT18: 0 | AU18: 0 | AV18: 0 | AW18: 0 | AX18: 0 | AZ18: 0 | BA18: =AX18+AZ18 -> 0 | BB18: 0 | BC18: =IF(X18>0,VLOOKUP(A18,Rang!$A$4:$AU$53,47,FALSE))/1000 -> 0
A19: =IF(Runden!A19="","",Runden!A19) ->  | B19: =IF(Rang!B19>0,VLOOKUP(Rang!B19,Einstellungen!$A$3:$B$52,2,FALSE),0) -> 0 | C19: =IF(Rang!C19>0,VLOOKUP(Rang!C19,Einstellungen!$A$3:$B$52,2,FALSE),0) -> 0 | D19: =IF(Rang!D19>0,VLOOKUP(Rang!D19,Einstellungen!$A$3:$B$52,2,FALSE),0) -> 0 | E19: =IF(Rang!E19>0,VLOOKUP(Rang!E19,Einstellungen!$A$3:$B$52,2,FALSE),0) -> 0 | F19: =IF(Rang!F19>0,VLOOKUP(Rang!F19,Einstellungen!$A$3:$B$52,2,FALSE),0) -> 0 | G19: =IF(Rang!G19>0,VLOOKUP(Rang!G19,Einstellungen!$A$3:$B$52,2,FALSE),0) -> 0 | H19: =IF(Rang!H19>0,VLOOKUP(Rang!H19,Einstellungen!$A$3:$B$52,2,FALSE),0) -> 0 | I19: =IF(Rang!I19>0,VLOOKUP(Rang!I19,Einstellungen!$A$3:$B$52,2,FALSE),0) -> 0 | J19: =IF(Rang!J19>0,VLOOKUP(Rang!J19,Einstellungen!$A$3:$B$52,2,FALSE),0) -> 0 | K19: =IF(Rang!K19>0,VLOOKUP(Rang!K19,Einstellungen!$A$3:$B$52,2,FALSE),0) -> 0 | L19: =IF(Rang!L19>0,VLOOKUP(Rang!L19,Einstellungen!$A$3:$B$52,2,FALSE),0) -> 0 | M19: =IF(Rang!M19>0,VLOOKUP(Rang!M19,Einstellungen!$A$3:$B$52,2,FALSE),0) -> 0 | N19: =IF(Rang!N19>0,VLOOKUP(Rang!N19,Einstellungen!$A$3:$B$52,2,FALSE),0) -> 0 | O19: =IF(Rang!O19>0,VLOOKUP(Rang!O19,Einstellungen!$A$3:$B$52,2,FALSE),0) -> 0 | P19: =IF(Rang!P19>0,VLOOKUP(Rang!P19,Einstellungen!$A$3:$B$52,2,FALSE),0) -> 0 | Q19: =IF(Rang!Q19>0,VLOOKUP(Rang!Q19,Einstellungen!$A$3:$B$52,2,FALSE),0) -> 0 | R19: =IF(Rang!R19>0,VLOOKUP(Rang!R19,Einstellungen!$A$3:$B$52,2,FALSE),0) -> 0 | S19: =IF(Rang!S19>0,VLOOKUP(Rang!S19,Einstellungen!$A$3:$B$52,2,FALSE),0) -> 0 | T19: =IF(Rang!T19>0,VLOOKUP(Rang!T19,Einstellungen!$A$3:$B$52,2,FALSE),0) -> 0 | U19: =IF(Rang!U19>0,VLOOKUP(Rang!U19,Einstellungen!$A$3:$B$52,2,FALSE),0) -> 0 | V19: =SUM(B19:U19)+IF($AY$4=2,AZ19,0)+IF($AY$4=3,BC19,0) -> 0 | W19: =IF(SUM(B19:U19)>0,RANK(V19,$V$4:$V$53,0),0) -> 0 | X19: =IF(SUM(B19:U19)>0,VLOOKUP(A19,TabRunden,22,FALSE),0) -> 0 | Y19: =AD19 -> 0 | Z19: =IF(AD19>=$AT$2,LOOKUP($AL$2,$AE$3:$AX$3,AE19:AX19),0)+IF($AY$4=2,AZ19,0)+IF($AY$4=3,BC19,0) -> 0 | AA19: =IF(Z19>0,RANK(Z19,$Z$4:$Z$53,0),0) -> 0 | AB19: =IF(W19=0,51,W19)+IF(A19="",50,0) -> 101 | AC19: =IF(AA19=0,51,AA19)+IF(A19="",50,0) -> 101 | AD19: 0 | AE19: 0 | AF19: =LARGE($B19:$U19,AF$3)+AE19 -> 0 | AG19: 0 | AH19: 0 | AI19: 0 | AJ19: 0 | AK19: 0 | AL19: 0 | AM19: 0 | AN19: 0 | AO19: 0 | AP19: 0 | AQ19: 0 | AR19: 0 | AS19: 0 | AT19: 0 | AU19: 0 | AV19: 0 | AW19: 0 | AX19: 0 | AZ19: 0 | BA19: =AX19+AZ19 -> 0 | BB19: 0 | BC19: =IF(X19>0,VLOOKUP(A19,Rang!$A$4:$AU$53,47,FALSE))/1000 -> 0
A20: =IF(Runden!A20="","",Runden!A20) ->  | B20: =IF(Rang!B20>0,VLOOKUP(Rang!B20,Einstellungen!$A$3:$B$52,2,FALSE),0) -> 0 | C20: =IF(Rang!C20>0,VLOOKUP(Rang!C20,Einstellungen!$A$3:$B$52,2,FALSE),0) -> 0 | D20: =IF(Rang!D20>0,VLOOKUP(Rang!D20,Einstellungen!$A$3:$B$52,2,FALSE),0) -> 0 | E20: =IF(Rang!E20>0,VLOOKUP(Rang!E20,Einstellungen!$A$3:$B$52,2,FALSE),0) -> 0 | F20: =IF(Rang!F20>0,VLOOKUP(Rang!F20,Einstellungen!$A$3:$B$52,2,FALSE),0) -> 0 | G20: =IF(Rang!G20>0,VLOOKUP(Rang!G20,Einstellungen!$A$3:$B$52,2,FALSE),0) -> 0 | H20: =IF(Rang!H20>0,VLOOKUP(Rang!H20,Einstellungen!$A$3:$B$52,2,FALSE),0) -> 0 | I20: =IF(Rang!I20>0,VLOOKUP(Rang!I20,Einstellungen!$A$3:$B$52,2,FALSE),0) -> 0 | J20: =IF(Rang!J20>0,VLOOKUP(Rang!J20,Einstellungen!$A$3:$B$52,2,FALSE),0) -> 0 | K20: =IF(Rang!K20>0,VLOOKUP(Rang!K20,Einstellungen!$A$3:$B$52,2,FALSE),0) -> 0 | L20: =IF(Rang!L20>0,VLOOKUP(Rang!L20,Einstellungen!$A$3:$B$52,2,FALSE),0) -> 0 | M20: =IF(Rang!M20>0,VLOOKUP(Rang!M20,Einstellungen!$A$3:$B$52,2,FALSE),0) -> 0 | N20: =IF(Rang!N20>0,VLOOKUP(Rang!N20,Einstellungen!$A$3:$B$52,2,FALSE),0) -> 0 | O20: =IF(Rang!O20>0,VLOOKUP(Rang!O20,Einstellungen!$A$3:$B$52,2,FALSE),0) -> 0 | P20: =IF(Rang!P20>0,VLOOKUP(Rang!P20,Einstellungen!$A$3:$B$52,2,FALSE),0) -> 0 | Q20: =IF(Rang!Q20>0,VLOOKUP(Rang!Q20,Einstellungen!$A$3:$B$52,2,FALSE),0) -> 0 | R20: =IF(Rang!R20>0,VLOOKUP(Rang!R20,Einstellungen!$A$3:$B$52,2,FALSE),0) -> 0 | S20: =IF(Rang!S20>0,VLOOKUP(Rang!S20,Einstellungen!$A$3:$B$52,2,FALSE),0) -> 0 | T20: =IF(Rang!T20>0,VLOOKUP(Rang!T20,Einstellungen!$A$3:$B$52,2,FALSE),0) -> 0 | U20: =IF(Rang!U20>0,VLOOKUP(Rang!U20,Einstellungen!$A$3:$B$52,2,FALSE),0) -> 0 | V20: =SUM(B20:U20)+IF($AY$4=2,AZ20,0)+IF($AY$4=3,BC20,0) -> 0 | W20: =IF(SUM(B20:U20)>0,RANK(V20,$V$4:$V$53,0),0) -> 0 | X20: =IF(SUM(B20:U20)>0,VLOOKUP(A20,TabRunden,22,FALSE),0) -> 0 | Y20: =AD20 -> 0 | Z20: =IF(AD20>=$AT$2,LOOKUP($AL$2,$AE$3:$AX$3,AE20:AX20),0)+IF($AY$4=2,AZ20,0)+IF($AY$4=3,BC20,0) -> 0 | AA20: =IF(Z20>0,RANK(Z20,$Z$4:$Z$53,0),0) -> 0 | AB20: =IF(W20=0,51,W20)+IF(A20="",50,0) -> 101 | AC20: =IF(AA20=0,51,AA20)+IF(A20="",50,0) -> 101 | AD20: 0 | AE20: 0 | AF20: =LARGE($B20:$U20,AF$3)+AE20 -> 0 | AG20: 0 | AH20: 0 | AI20: 0 | AJ20: 0 | AK20: 0 | AL20: 0 | AM20: 0 | AN20: 0 | AO20: 0 | AP20: 0 | AQ20: 0 | AR20: 0 | AS20: 0 | AT20: 0 | AU20: 0 | AV20: 0 | AW20: 0 | AX20: 0 | AZ20: 0 | BA20: 0 | BB20: 0 | BC20: =IF(X20>0,VLOOKUP(A20,Rang!$A$4:$AU$53,47,FALSE))/1000 -> 0
A21: =IF(Runden!A21="","",Runden!A21) ->  | B21: =IF(Rang!B21>0,VLOOKUP(Rang!B21,Einstellungen!$A$3:$B$52,2,FALSE),0) -> 0 | C21: =IF(Rang!C21>0,VLOOKUP(Rang!C21,Einstellungen!$A$3:$B$52,2,FALSE),0) -> 0 | D21: =IF(Rang!D21>0,VLOOKUP(Rang!D21,Einstellungen!$A$3:$B$52,2,FALSE),0) -> 0 | E21: =IF(Rang!E21>0,VLOOKUP(Rang!E21,Einstellungen!$A$3:$B$52,2,FALSE),0) -> 0 | F21: =IF(Rang!F21>0,VLOOKUP(Rang!F21,Einstellungen!$A$3:$B$52,2,FALSE),0) -> 0 | G21: =IF(Rang!G21>0,VLOOKUP(Rang!G21,Einstellungen!$A$3:$B$52,2,FALSE),0) -> 0 | H21: =IF(Rang!H21>0,VLOOKUP(Rang!H21,Einstellungen!$A$3:$B$52,2,FALSE),0) -> 0 | I21: =IF(Rang!I21>0,VLOOKUP(Rang!I21,Einstellungen!$A$3:$B$52,2,FALSE),0) -> 0 | J21: =IF(Rang!J21>0,VLOOKUP(Rang!J21,Einstellungen!$A$3:$B$52,2,FALSE),0) -> 0 | K21: =IF(Rang!K21>0,VLOOKUP(Rang!K21,Einstellungen!$A$3:$B$52,2,FALSE),0) -> 0 | L21: =IF(Rang!L21>0,VLOOKUP(Rang!L21,Einstellungen!$A$3:$B$52,2,FALSE),0) -> 0 | M21: =IF(Rang!M21>0,VLOOKUP(Rang!M21,Einstellungen!$A$3:$B$52,2,FALSE),0) -> 0 | N21: =IF(Rang!N21>0,VLOOKUP(Rang!N21,Einstellungen!$A$3:$B$52,2,FALSE),0) -> 0 | O21: =IF(Rang!O21>0,VLOOKUP(Rang!O21,Einstellungen!$A$3:$B$52,2,FALSE),0) -> 0 | P21: =IF(Rang!P21>0,VLOOKUP(Rang!P21,Einstellungen!$A$3:$B$52,2,FALSE),0) -> 0 | Q21: =IF(Rang!Q21>0,VLOOKUP(Rang!Q21,Einstellungen!$A$3:$B$52,2,FALSE),0) -> 0 | R21: =IF(Rang!R21>0,VLOOKUP(Rang!R21,Einstellungen!$A$3:$B$52,2,FALSE),0) -> 0 | S21: =IF(Rang!S21>0,VLOOKUP(Rang!S21,Einstellungen!$A$3:$B$52,2,FALSE),0) -> 0 | T21: =IF(Rang!T21>0,VLOOKUP(Rang!T21,Einstellungen!$A$3:$B$52,2,FALSE),0) -> 0 | U21: =IF(Rang!U21>0,VLOOKUP(Rang!U21,Einstellungen!$A$3:$B$52,2,FALSE),0) -> 0 | V21: =SUM(B21:U21)+IF($AY$4=2,AZ21,0)+IF($AY$4=3,BC21,0) -> 0 | W21: =IF(SUM(B21:U21)>0,RANK(V21,$V$4:$V$53,0),0) -> 0 | X21: =IF(SUM(B21:U21)>0,VLOOKUP(A21,TabRunden,22,FALSE),0) -> 0 | Y21: =AD21 -> 0 | Z21: =IF(AD21>=$AT$2,LOOKUP($AL$2,$AE$3:$AX$3,AE21:AX21),0)+IF($AY$4=2,AZ21,0)+IF($AY$4=3,BC21,0) -> 0 | AA21: =IF(Z21>0,RANK(Z21,$Z$4:$Z$53,0),0) -> 0 | AB21: =IF(W21=0,51,W21)+IF(A21="",50,0) -> 101 | AC21: =IF(AA21=0,51,AA21)+IF(A21="",50,0) -> 101 | AD21: 0 | AE21: 0 | AF21: =LARGE($B21:$U21,AF$3)+AE21 -> 0 | AG21: 0 | AH21: 0 | AI21: 0 | AJ21: 0 | AK21: 0 | AL21: 0 | AM21: 0 | AN21: 0 | AO21: 0 | AP21: 0 | AQ21: 0 | AR21: 0 | AS21: 0 | AT21: 0 | AU21: 0 | AV21: 0 | AW21: 0 | AX21: 0 | AZ21: 0 | BA21: 0 | BB21: 0 | BC21: =IF(X21>0,VLOOKUP(A21,Rang!$A$4:$AU$53,47,FALSE))/1000 -> 0
A22: =IF(Runden!A22="","",Runden!A22) ->  | B22: =IF(Rang!B22>0,VLOOKUP(Rang!B22,Einstellungen!$A$3:$B$52,2,FALSE),0) -> 0 | C22: =IF(Rang!C22>0,VLOOKUP(Rang!C22,Einstellungen!$A$3:$B$52,2,FALSE),0) -> 0 | D22: =IF(Rang!D22>0,VLOOKUP(Rang!D22,Einstellungen!$A$3:$B$52,2,FALSE),0) -> 0 | E22: =IF(Rang!E22>0,VLOOKUP(Rang!E22,Einstellungen!$A$3:$B$52,2,FALSE),0) -> 0 | F22: =IF(Rang!F22>0,VLOOKUP(Rang!F22,Einstellungen!$A$3:$B$52,2,FALSE),0) -> 0 | G22: =IF(Rang!G22>0,VLOOKUP(Rang!G22,Einstellungen!$A$3:$B$52,2,FALSE),0) -> 0 | H22: =IF(Rang!H22>0,VLOOKUP(Rang!H22,Einstellungen!$A$3:$B$52,2,FALSE),0) -> 0 | I22: =IF(Rang!I22>0,VLOOKUP(Rang!I22,Einstellungen!$A$3:$B$52,2,FALSE),0) -> 0 | J22: =IF(Rang!J22>0,VLOOKUP(Rang!J22,Einstellungen!$A$3:$B$52,2,FALSE),0) -> 0 | K22: =IF(Rang!K22>0,VLOOKUP(Rang!K22,Einstellungen!$A$3:$B$52,2,FALSE),0) -> 0 | L22: =IF(Rang!L22>0,VLOOKUP(Rang!L22,Einstellungen!$A$3:$B$52,2,FALSE),0) -> 0 | M22: =IF(Rang!M22>0,VLOOKUP(Rang!M22,Einstellungen!$A$3:$B$52,2,FALSE),0) -> 0 | N22: =IF(Rang!N22>0,VLOOKUP(Rang!N22,Einstellungen!$A$3:$B$52,2,FALSE),0) -> 0 | O22: =IF(Rang!O22>0,VLOOKUP(Rang!O22,Einstellungen!$A$3:$B$52,2,FALSE),0) -> 0 | P22: =IF(Rang!P22>0,VLOOKUP(Rang!P22,Einstellungen!$A$3:$B$52,2,FALSE),0) -> 0 | Q22: =IF(Rang!Q22>0,VLOOKUP(Rang!Q22,Einstellungen!$A$3:$B$52,2,FALSE),0) -> 0 | R22: =IF(Rang!R22>0,VLOOKUP(Rang!R22,Einstellungen!$A$3:$B$52,2,FALSE),0) -> 0 | S22: =IF(Rang!S22>0,VLOOKUP(Rang!S22,Einstellungen!$A$3:$B$52,2,FALSE),0) -> 0 | T22: =IF(Rang!T22>0,VLOOKUP(Rang!T22,Einstellungen!$A$3:$B$52,2,FALSE),0) -> 0 | U22: =IF(Rang!U22>0,VLOOKUP(Rang!U22,Einstellungen!$A$3:$B$52,2,FALSE),0) -> 0 | V22: =SUM(B22:U22)+IF($AY$4=2,AZ22,0)+IF($AY$4=3,BC22,0) -> 0 | W22: =IF(SUM(B22:U22)>0,RANK(V22,$V$4:$V$53,0),0) -> 0 | X22: =IF(SUM(B22:U22)>0,VLOOKUP(A22,TabRunden,22,FALSE),0) -> 0 | Y22: =AD22 -> 0 | Z22: =IF(AD22>=$AT$2,LOOKUP($AL$2,$AE$3:$AX$3,AE22:AX22),0)+IF($AY$4=2,AZ22,0)+IF($AY$4=3,BC22,0) -> 0 | AA22: =IF(Z22>0,RANK(Z22,$Z$4:$Z$53,0),0) -> 0 | AB22: =IF(W22=0,51,W22)+IF(A22="",50,0) -> 101 | AC22: =IF(AA22=0,51,AA22)+IF(A22="",50,0) -> 101 | AD22: 0 | AE22: 0 | AF22: =LARGE($B22:$U22,AF$3)+AE22 -> 0 | AG22: 0 | AH22: 0 | AI22: 0 | AJ22: 0 | AK22: 0 | AL22: 0 | AM22: 0 | AN22: 0 | AO22: 0 | AP22: 0 | AQ22: 0 | AR22: 0 | AS22: 0 | AT22: 0 | AU22: 0 | AV22: 0 | AW22: 0 | AX22: 0 | AZ22: 0 | BA22: 0 | BB22: 0 | BC22: =IF(X22>0,VLOOKUP(A22,Rang!$A$4:$AU$53,47,FALSE))/1000 -> 0
A23: =IF(Runden!A23="","",Runden!A23) ->  | B23: =IF(Rang!B23>0,VLOOKUP(Rang!B23,Einstellungen!$A$3:$B$52,2,FALSE),0) -> 0 | C23: =IF(Rang!C23>0,VLOOKUP(Rang!C23,Einstellungen!$A$3:$B$52,2,FALSE),0) -> 0 | D23: =IF(Rang!D23>0,VLOOKUP(Rang!D23,Einstellungen!$A$3:$B$52,2,FALSE),0) -> 0 | E23: =IF(Rang!E23>0,VLOOKUP(Rang!E23,Einstellungen!$A$3:$B$52,2,FALSE),0) -> 0 | F23: =IF(Rang!F23>0,VLOOKUP(Rang!F23,Einstellungen!$A$3:$B$52,2,FALSE),0) -> 0 | G23: =IF(Rang!G23>0,VLOOKUP(Rang!G23,Einstellungen!$A$3:$B$52,2,FALSE),0) -> 0 | H23: =IF(Rang!H23>0,VLOOKUP(Rang!H23,Einstellungen!$A$3:$B$52,2,FALSE),0) -> 0 | I23: =IF(Rang!I23>0,VLOOKUP(Rang!I23,Einstellungen!$A$3:$B$52,2,FALSE),0) -> 0 | J23: =IF(Rang!J23>0,VLOOKUP(Rang!J23,Einstellungen!$A$3:$B$52,2,FALSE),0) -> 0 | K23: =IF(Rang!K23>0,VLOOKUP(Rang!K23,Einstellungen!$A$3:$B$52,2,FALSE),0) -> 0 | L23: =IF(Rang!L23>0,VLOOKUP(Rang!L23,Einstellungen!$A$3:$B$52,2,FALSE),0) -> 0 | M23: =IF(Rang!M23>0,VLOOKUP(Rang!M23,Einstellungen!$A$3:$B$52,2,FALSE),0) -> 0 | N23: =IF(Rang!N23>0,VLOOKUP(Rang!N23,Einstellungen!$A$3:$B$52,2,FALSE),0) -> 0 | O23: =IF(Rang!O23>0,VLOOKUP(Rang!O23,Einstellungen!$A$3:$B$52,2,FALSE),0) -> 0 | P23: =IF(Rang!P23>0,VLOOKUP(Rang!P23,Einstellungen!$A$3:$B$52,2,FALSE),0) -> 0 | Q23: =IF(Rang!Q23>0,VLOOKUP(Rang!Q23,Einstellungen!$A$3:$B$52,2,FALSE),0) -> 0 | R23: =IF(Rang!R23>0,VLOOKUP(Rang!R23,Einstellungen!$A$3:$B$52,2,FALSE),0) -> 0 | S23: =IF(Rang!S23>0,VLOOKUP(Rang!S23,Einstellungen!$A$3:$B$52,2,FALSE),0) -> 0 | T23: =IF(Rang!T23>0,VLOOKUP(Rang!T23,Einstellungen!$A$3:$B$52,2,FALSE),0) -> 0 | U23: =IF(Rang!U23>0,VLOOKUP(Rang!U23,Einstellungen!$A$3:$B$52,2,FALSE),0) -> 0 | V23: =SUM(B23:U23)+IF($AY$4=2,AZ23,0)+IF($AY$4=3,BC23,0) -> 0 | W23: =IF(SUM(B23:U23)>0,RANK(V23,$V$4:$V$53,0),0) -> 0 | X23: =IF(SUM(B23:U23)>0,VLOOKUP(A23,TabRunden,22,FALSE),0) -> 0 | Y23: =AD23 -> 0 | Z23: =IF(AD23>=$AT$2,LOOKUP($AL$2,$AE$3:$AX$3,AE23:AX23),0)+IF($AY$4=2,AZ23,0)+IF($AY$4=3,BC23,0) -> 0 | AA23: =IF(Z23>0,RANK(Z23,$Z$4:$Z$53,0),0) -> 0 | AB23: =IF(W23=0,51,W23)+IF(A23="",50,0) -> 101 | AC23: =IF(AA23=0,51,AA23)+IF(A23="",50,0) -> 101 | AD23: 0 | AE23: 0 | AF23: =LARGE($B23:$U23,AF$3)+AE23 -> 0 | AG23: 0 | AH23: 0 | AI23: 0 | AJ23: 0 | AK23: 0 | AL23: 0 | AM23: 0 | AN23: 0 | AO23: 0 | AP23: 0 | AQ23: 0 | AR23: 0 | AS23: 0 | AT23: 0 | AU23: 0 | AV23: 0 | AW23: 0 | AX23: 0 | AZ23: 0 | BA23: 0 | BB23: 0 | BC23: =IF(X23>0,VLOOKUP(A23,Rang!$A$4:$AU$53,47,FALSE))/1000 -> 0
A24: =IF(Runden!A24="","",Runden!A24) ->  | B24: =IF(Rang!B24>0,VLOOKUP(Rang!B24,Einstellungen!$A$3:$B$52,2,FALSE),0) -> 0 | C24: =IF(Rang!C24>0,VLOOKUP(Rang!C24,Einstellungen!$A$3:$B$52,2,FALSE),0) -> 0 | D24: =IF(Rang!D24>0,VLOOKUP(Rang!D24,Einstellungen!$A$3:$B$52,2,FALSE),0) -> 0 | E24: =IF(Rang!E24>0,VLOOKUP(Rang!E24,Einstellungen!$A$3:$B$52,2,FALSE),0) -> 0 | F24: =IF(Rang!F24>0,VLOOKUP(Rang!F24,Einstellungen!$A$3:$B$52,2,FALSE),0) -> 0 | G24: =IF(Rang!G24>0,VLOOKUP(Rang!G24,Einstellungen!$A$3:$B$52,2,FALSE),0) -> 0 | H24: =IF(Rang!H24>0,VLOOKUP(Rang!H24,Einstellungen!$A$3:$B$52,2,FALSE),0) -> 0 | I24: =IF(Rang!I24>0,VLOOKUP(Rang!I24,Einstellungen!$A$3:$B$52,2,FALSE),0) -> 0 | J24: =IF(Rang!J24>0,VLOOKUP(Rang!J24,Einstellungen!$A$3:$B$52,2,FALSE),0) -> 0 | K24: =IF(Rang!K24>0,VLOOKUP(Rang!K24,Einstellungen!$A$3:$B$52,2,FALSE),0) -> 0 | L24: =IF(Rang!L24>0,VLOOKUP(Rang!L24,Einstellungen!$A$3:$B$52,2,FALSE),0) -> 0 | M24: =IF(Rang!M24>0,VLOOKUP(Rang!M24,Einstellungen!$A$3:$B$52,2,FALSE),0) -> 0 | N24: =IF(Rang!N24>0,VLOOKUP(Rang!N24,Einstellungen!$A$3:$B$52,2,FALSE),0) -> 0 | O24: =IF(Rang!O24>0,VLOOKUP(Rang!O24,Einstellungen!$A$3:$B$52,2,FALSE),0) -> 0 | P24: =IF(Rang!P24>0,VLOOKUP(Rang!P24,Einstellungen!$A$3:$B$52,2,FALSE),0) -> 0 | Q24: =IF(Rang!Q24>0,VLOOKUP(Rang!Q24,Einstellungen!$A$3:$B$52,2,FALSE),0) -> 0 | R24: =IF(Rang!R24>0,VLOOKUP(Rang!R24,Einstellungen!$A$3:$B$52,2,FALSE),0) -> 0 | S24: =IF(Rang!S24>0,VLOOKUP(Rang!S24,Einstellungen!$A$3:$B$52,2,FALSE),0) -> 0 | T24: =IF(Rang!T24>0,VLOOKUP(Rang!T24,Einstellungen!$A$3:$B$52,2,FALSE),0) -> 0 | U24: =IF(Rang!U24>0,VLOOKUP(Rang!U24,Einstellungen!$A$3:$B$52,2,FALSE),0) -> 0 | V24: =SUM(B24:U24)+IF($AY$4=2,AZ24,0)+IF($AY$4=3,BC24,0) -> 0 | W24: =IF(SUM(B24:U24)>0,RANK(V24,$V$4:$V$53,0),0) -> 0 | X24: =IF(SUM(B24:U24)>0,VLOOKUP(A24,TabRunden,22,FALSE),0) -> 0 | Y24: =AD24 -> 0 | Z24: =IF(AD24>=$AT$2,LOOKUP($AL$2,$AE$3:$AX$3,AE24:AX24),0)+IF($AY$4=2,AZ24,0)+IF($AY$4=3,BC24,0) -> 0 | AA24: =IF(Z24>0,RANK(Z24,$Z$4:$Z$53,0),0) -> 0 | AB24: =IF(W24=0,51,W24)+IF(A24="",50,0) -> 101 | AC24: =IF(AA24=0,51,AA24)+IF(A24="",50,0) -> 101 | AD24: 0 | AE24: 0 | AF24: =LARGE($B24:$U24,AF$3)+AE24 -> 0 | AG24: 0 | AH24: 0 | AI24: 0 | AJ24: 0 | AK24: 0 | AL24: 0 | AM24: 0 | AN24: 0 | AO24: 0 | AP24: 0 | AQ24: 0 | AR24: 0 | AS24: 0 | AT24: 0 | AU24: 0 | AV24: 0 | AW24: 0 | AX24: 0 | AZ24: 0 | BA24: 0 | BB24: 0 | BC24: =IF(X24>0,VLOOKUP(A24,Rang!$A$4:$AU$53,47,FALSE))/1000 -> 0
A25: =IF(Runden!A25="","",Runden!A25) ->  | B25: =IF(Rang!B25>0,VLOOKUP(Rang!B25,Einstellungen!$A$3:$B$52,2,FALSE),0) -> 0 | C25: =IF(Rang!C25>0,VLOOKUP(Rang!C25,Einstellungen!$A$3:$B$52,2,FALSE),0) -> 0 | D25: =IF(Rang!D25>0,VLOOKUP(Rang!D25,Einstellungen!$A$3:$B$52,2,FALSE),0) -> 0 | E25: =IF(Rang!E25>0,VLOOKUP(Rang!E25,Einstellungen!$A$3:$B$52,2,FALSE),0) -> 0 | F25: =IF(Rang!F25>0,VLOOKUP(Rang!F25,Einstellungen!$A$3:$B$52,2,FALSE),0) -> 0 | G25: =IF(Rang!G25>0,VLOOKUP(Rang!G25,Einstellungen!$A$3:$B$52,2,FALSE),0) -> 0 | H25: =IF(Rang!H25>0,VLOOKUP(Rang!H25,Einstellungen!$A$3:$B$52,2,FALSE),0) -> 0 | I25: =IF(Rang!I25>0,VLOOKUP(Rang!I25,Einstellungen!$A$3:$B$52,2,FALSE),0) -> 0 | J25: =IF(Rang!J25>0,VLOOKUP(Rang!J25,Einstellungen!$A$3:$B$52,2,FALSE),0) -> 0 | K25: =IF(Rang!K25>0,VLOOKUP(Rang!K25,Einstellungen!$A$3:$B$52,2,FALSE),0) -> 0 | L25: =IF(Rang!L25>0,VLOOKUP(Rang!L25,Einstellungen!$A$3:$B$52,2,FALSE),0) -> 0 | M25: =IF(Rang!M25>0,VLOOKUP(Rang!M25,Einstellungen!$A$3:$B$52,2,FALSE),0) -> 0 | N25: =IF(Rang!N25>0,VLOOKUP(Rang!N25,Einstellungen!$A$3:$B$52,2,FALSE),0) -> 0 | O25: =IF(Rang!O25>0,VLOOKUP(Rang!O25,Einstellungen!$A$3:$B$52,2,FALSE),0) -> 0 | P25: =IF(Rang!P25>0,VLOOKUP(Rang!P25,Einstellungen!$A$3:$B$52,2,FALSE),0) -> 0 | Q25: =IF(Rang!Q25>0,VLOOKUP(Rang!Q25,Einstellungen!$A$3:$B$52,2,FALSE),0) -> 0 | R25: =IF(Rang!R25>0,VLOOKUP(Rang!R25,Einstellungen!$A$3:$B$52,2,FALSE),0) -> 0 | S25: =IF(Rang!S25>0,VLOOKUP(Rang!S25,Einstellungen!$A$3:$B$52,2,FALSE),0) -> 0 | T25: =IF(Rang!T25>0,VLOOKUP(Rang!T25,Einstellungen!$A$3:$B$52,2,FALSE),0) -> 0 | U25: =IF(Rang!U25>0,VLOOKUP(Rang!U25,Einstellungen!$A$3:$B$52,2,FALSE),0) -> 0 | V25: =SUM(B25:U25)+IF($AY$4=2,AZ25,0)+IF($AY$4=3,BC25,0) -> 0 | W25: =IF(SUM(B25:U25)>0,RANK(V25,$V$4:$V$53,0),0) -> 0 | X25: =IF(SUM(B25:U25)>0,VLOOKUP(A25,TabRunden,22,FALSE),0) -> 0 | Y25: =AD25 -> 0 | Z25: =IF(AD25>=$AT$2,LOOKUP($AL$2,$AE$3:$AX$3,AE25:AX25),0)+IF($AY$4=2,AZ25,0)+IF($AY$4=3,BC25,0) -> 0 | AA25: =IF(Z25>0,RANK(Z25,$Z$4:$Z$53,0),0) -> 0 | AB25: =IF(W25=0,51,W25)+IF(A25="",50,0) -> 101 | AC25: =IF(AA25=0,51,AA25)+IF(A25="",50,0) -> 101 | AD25: 0 | AE25: 0 | AF25: =LARGE($B25:$U25,AF$3)+AE25 -> 0 | AG25: 0 | AH25: 0 | AI25: 0 | AJ25: 0 | AK25: 0 | AL25: 0 | AM25: 0 | AN25: 0 | AO25: 0 | AP25: 0 | AQ25: 0 | AR25: 0 | AS25: 0 | AT25: 0 | AU25: 0 | AV25: 0 | AW25: 0 | AX25: 0 | AZ25: 0 | BA25: 0 | BB25: 0 | BC25: =IF(X25>0,VLOOKUP(A25,Rang!$A$4:$AU$53,47,FALSE))/1000 -> 0
A26: =IF(Runden!A26="","",Runden!A26) ->  | B26: =IF(Rang!B26>0,VLOOKUP(Rang!B26,Einstellungen!$A$3:$B$52,2,FALSE),0) -> 0 | C26: =IF(Rang!C26>0,VLOOKUP(Rang!C26,Einstellungen!$A$3:$B$52,2,FALSE),0) -> 0 | D26: =IF(Rang!D26>0,VLOOKUP(Rang!D26,Einstellungen!$A$3:$B$52,2,FALSE),0) -> 0 | E26: =IF(Rang!E26>0,VLOOKUP(Rang!E26,Einstellungen!$A$3:$B$52,2,FALSE),0) -> 0 | F26: =IF(Rang!F26>0,VLOOKUP(Rang!F26,Einstellungen!$A$3:$B$52,2,FALSE),0) -> 0 | G26: =IF(Rang!G26>0,VLOOKUP(Rang!G26,Einstellungen!$A$3:$B$52,2,FALSE),0) -> 0 | H26: =IF(Rang!H26>0,VLOOKUP(Rang!H26,Einstellungen!$A$3:$B$52,2,FALSE),0) -> 0 | I26: =IF(Rang!I26>0,VLOOKUP(Rang!I26,Einstellungen!$A$3:$B$52,2,FALSE),0) -> 0 | J26: =IF(Rang!J26>0,VLOOKUP(Rang!J26,Einstellungen!$A$3:$B$52,2,FALSE),0) -> 0 | K26: =IF(Rang!K26>0,VLOOKUP(Rang!K26,Einstellungen!$A$3:$B$52,2,FALSE),0) -> 0 | L26: =IF(Rang!L26>0,VLOOKUP(Rang!L26,Einstellungen!$A$3:$B$52,2,FALSE),0) -> 0 | M26: =IF(Rang!M26>0,VLOOKUP(Rang!M26,Einstellungen!$A$3:$B$52,2,FALSE),0) -> 0 | N26: =IF(Rang!N26>0,VLOOKUP(Rang!N26,Einstellungen!$A$3:$B$52,2,FALSE),0) -> 0 | O26: =IF(Rang!O26>0,VLOOKUP(Rang!O26,Einstellungen!$A$3:$B$52,2,FALSE),0) -> 0 | P26: =IF(Rang!P26>0,VLOOKUP(Rang!P26,Einstellungen!$A$3:$B$52,2,FALSE),0) -> 0 | Q26: =IF(Rang!Q26>0,VLOOKUP(Rang!Q26,Einstellungen!$A$3:$B$52,2,FALSE),0) -> 0 | R26: =IF(Rang!R26>0,VLOOKUP(Rang!R26,Einstellungen!$A$3:$B$52,2,FALSE),0) -> 0 | S26: =IF(Rang!S26>0,VLOOKUP(Rang!S26,Einstellungen!$A$3:$B$52,2,FALSE),0) -> 0 | T26: =IF(Rang!T26>0,VLOOKUP(Rang!T26,Einstellungen!$A$3:$B$52,2,FALSE),0) -> 0 | U26: =IF(Rang!U26>0,VLOOKUP(Rang!U26,Einstellungen!$A$3:$B$52,2,FALSE),0) -> 0 | V26: =SUM(B26:U26)+IF($AY$4=2,AZ26,0)+IF($AY$4=3,BC26,0) -> 0 | W26: =IF(SUM(B26:U26)>0,RANK(V26,$V$4:$V$53,0),0) -> 0 | X26: =IF(SUM(B26:U26)>0,VLOOKUP(A26,TabRunden,22,FALSE),0) -> 0 | Y26: =AD26 -> 0 | Z26: =IF(AD26>=$AT$2,LOOKUP($AL$2,$AE$3:$AX$3,AE26:AX26),0)+IF($AY$4=2,AZ26,0)+IF($AY$4=3,BC26,0) -> 0 | AA26: =IF(Z26>0,RANK(Z26,$Z$4:$Z$53,0),0) -> 0 | AB26: =IF(W26=0,51,W26)+IF(A26="",50,0) -> 101 | AC26: =IF(AA26=0,51,AA26)+IF(A26="",50,0) -> 101 | AD26: 0 | AE26: 0 | AF26: =LARGE($B26:$U26,AF$3)+AE26 -> 0 | AG26: 0 | AH26: 0 | AI26: 0 | AJ26: 0 | AK26: 0 | AL26: 0 | AM26: 0 | AN26: 0 | AO26: 0 | AP26: 0 | AQ26: 0 | AR26: 0 | AS26: 0 | AT26: 0 | AU26: 0 | AV26: 0 | AW26: 0 | AX26: 0 | AZ26: 0 | BA26: 0 | BB26: 0 | BC26: =IF(X26>0,VLOOKUP(A26,Rang!$A$4:$AU$53,47,FALSE))/1000 -> 0
A27: =IF(Runden!A27="","",Runden!A27) ->  | B27: =IF(Rang!B27>0,VLOOKUP(Rang!B27,Einstellungen!$A$3:$B$52,2,FALSE),0) -> 0 | C27: =IF(Rang!C27>0,VLOOKUP(Rang!C27,Einstellungen!$A$3:$B$52,2,FALSE),0) -> 0 | D27: =IF(Rang!D27>0,VLOOKUP(Rang!D27,Einstellungen!$A$3:$B$52,2,FALSE),0) -> 0 | E27: =IF(Rang!E27>0,VLOOKUP(Rang!E27,Einstellungen!$A$3:$B$52,2,FALSE),0) -> 0 | F27: =IF(Rang!F27>0,VLOOKUP(Rang!F27,Einstellungen!$A$3:$B$52,2,FALSE),0) -> 0 | G27: =IF(Rang!G27>0,VLOOKUP(Rang!G27,Einstellungen!$A$3:$B$52,2,FALSE),0) -> 0 | H27: =IF(Rang!H27>0,VLOOKUP(Rang!H27,Einstellungen!$A$3:$B$52,2,FALSE),0) -> 0 | I27: =IF(Rang!I27>0,VLOOKUP(Rang!I27,Einstellungen!$A$3:$B$52,2,FALSE),0) -> 0 | J27: =IF(Rang!J27>0,VLOOKUP(Rang!J27,Einstellungen!$A$3:$B$52,2,FALSE),0) -> 0 | K27: =IF(Rang!K27>0,VLOOKUP(Rang!K27,Einstellungen!$A$3:$B$52,2,FALSE),0) -> 0 | L27: =IF(Rang!L27>0,VLOOKUP(Rang!L27,Einstellungen!$A$3:$B$52,2,FALSE),0) -> 0 | M27: =IF(Rang!M27>0,VLOOKUP(Rang!M27,Einstellungen!$A$3:$B$52,2,FALSE),0) -> 0 | N27: =IF(Rang!N27>0,VLOOKUP(Rang!N27,Einstellungen!$A$3:$B$52,2,FALSE),0) -> 0 | O27: =IF(Rang!O27>0,VLOOKUP(Rang!O27,Einstellungen!$A$3:$B$52,2,FALSE),0) -> 0 | P27: =IF(Rang!P27>0,VLOOKUP(Rang!P27,Einstellungen!$A$3:$B$52,2,FALSE),0) -> 0 | Q27: =IF(Rang!Q27>0,VLOOKUP(Rang!Q27,Einstellungen!$A$3:$B$52,2,FALSE),0) -> 0 | R27: =IF(Rang!R27>0,VLOOKUP(Rang!R27,Einstellungen!$A$3:$B$52,2,FALSE),0) -> 0 | S27: =IF(Rang!S27>0,VLOOKUP(Rang!S27,Einstellungen!$A$3:$B$52,2,FALSE),0) -> 0 | T27: =IF(Rang!T27>0,VLOOKUP(Rang!T27,Einstellungen!$A$3:$B$52,2,FALSE),0) -> 0 | U27: =IF(Rang!U27>0,VLOOKUP(Rang!U27,Einstellungen!$A$3:$B$52,2,FALSE),0) -> 0 | V27: =SUM(B27:U27)+IF($AY$4=2,AZ27,0)+IF($AY$4=3,BC27,0) -> 0 | W27: =IF(SUM(B27:U27)>0,RANK(V27,$V$4:$V$53,0),0) -> 0 | X27: =IF(SUM(B27:U27)>0,VLOOKUP(A27,TabRunden,22,FALSE),0) -> 0 | Y27: =AD27 -> 0 | Z27: =IF(AD27>=$AT$2,LOOKUP($AL$2,$AE$3:$AX$3,AE27:AX27),0)+IF($AY$4=2,AZ27,0)+IF($AY$4=3,BC27,0) -> 0 | AA27: =IF(Z27>0,RANK(Z27,$Z$4:$Z$53,0),0) -> 0 | AB27: =IF(W27=0,51,W27)+IF(A27="",50,0) -> 101 | AC27: =IF(AA27=0,51,AA27)+IF(A27="",50,0) -> 101 | AD27: 0 | AE27: 0 | AF27: =LARGE($B27:$U27,AF$3)+AE27 -> 0 | AG27: 0 | AH27: 0 | AI27: 0 | AJ27: 0 | AK27: 0 | AL27: 0 | AM27: 0 | AN27: 0 | AO27: 0 | AP27: 0 | AQ27: 0 | AR27: 0 | AS27: 0 | AT27: 0 | AU27: 0 | AV27: 0 | AW27: 0 | AX27: 0 | AZ27: 0 | BA27: 0 | BB27: 0 | BC27: =IF(X27>0,VLOOKUP(A27,Rang!$A$4:$AU$53,47,FALSE))/1000 -> 0
A28: =IF(Runden!A28="","",Runden!A28) ->  | B28: =IF(Rang!B28>0,VLOOKUP(Rang!B28,Einstellungen!$A$3:$B$52,2,FALSE),0) -> 0 | C28: =IF(Rang!C28>0,VLOOKUP(Rang!C28,Einstellungen!$A$3:$B$52,2,FALSE),0) -> 0 | D28: =IF(Rang!D28>0,VLOOKUP(Rang!D28,Einstellungen!$A$3:$B$52,2,FALSE),0) -> 0 | E28: =IF(Rang!E28>0,VLOOKUP(Rang!E28,Einstellungen!$A$3:$B$52,2,FALSE),0) -> 0 | F28: =IF(Rang!F28>0,VLOOKUP(Rang!F28,Einstellungen!$A$3:$B$52,2,FALSE),0) -> 0 | G28: =IF(Rang!G28>0,VLOOKUP(Rang!G28,Einstellungen!$A$3:$B$52,2,FALSE),0) -> 0 | H28: =IF(Rang!H28>0,VLOOKUP(Rang!H28,Einstellungen!$A$3:$B$52,2,FALSE),0) -> 0 | I28: =IF(Rang!I28>0,VLOOKUP(Rang!I28,Einstellungen!$A$3:$B$52,2,FALSE),0) -> 0 | J28: =IF(Rang!J28>0,VLOOKUP(Rang!J28,Einstellungen!$A$3:$B$52,2,FALSE),0) -> 0 | K28: =IF(Rang!K28>0,VLOOKUP(Rang!K28,Einstellungen!$A$3:$B$52,2,FALSE),0) -> 0 | L28: =IF(Rang!L28>0,VLOOKUP(Rang!L28,Einstellungen!$A$3:$B$52,2,FALSE),0) -> 0 | M28: =IF(Rang!M28>0,VLOOKUP(Rang!M28,Einstellungen!$A$3:$B$52,2,FALSE),0) -> 0 | N28: =IF(Rang!N28>0,VLOOKUP(Rang!N28,Einstellungen!$A$3:$B$52,2,FALSE),0) -> 0 | O28: =IF(Rang!O28>0,VLOOKUP(Rang!O28,Einstellungen!$A$3:$B$52,2,FALSE),0) -> 0 | P28: =IF(Rang!P28>0,VLOOKUP(Rang!P28,Einstellungen!$A$3:$B$52,2,FALSE),0) -> 0 | Q28: =IF(Rang!Q28>0,VLOOKUP(Rang!Q28,Einstellungen!$A$3:$B$52,2,FALSE),0) -> 0 | R28: =IF(Rang!R28>0,VLOOKUP(Rang!R28,Einstellungen!$A$3:$B$52,2,FALSE),0) -> 0 | S28: =IF(Rang!S28>0,VLOOKUP(Rang!S28,Einstellungen!$A$3:$B$52,2,FALSE),0) -> 0 | T28: =IF(Rang!T28>0,VLOOKUP(Rang!T28,Einstellungen!$A$3:$B$52,2,FALSE),0) -> 0 | U28: =IF(Rang!U28>0,VLOOKUP(Rang!U28,Einstellungen!$A$3:$B$52,2,FALSE),0) -> 0 | V28: =SUM(B28:U28)+IF($AY$4=2,AZ28,0)+IF($AY$4=3,BC28,0) -> 0 | W28: =IF(SUM(B28:U28)>0,RANK(V28,$V$4:$V$53,0),0) -> 0 | X28: =IF(SUM(B28:U28)>0,VLOOKUP(A28,TabRunden,22,FALSE),0) -> 0 | Y28: =AD28 -> 0 | Z28: =IF(AD28>=$AT$2,LOOKUP($AL$2,$AE$3:$AX$3,AE28:AX28),0)+IF($AY$4=2,AZ28,0)+IF($AY$4=3,BC28,0) -> 0 | AA28: =IF(Z28>0,RANK(Z28,$Z$4:$Z$53,0),0) -> 0 | AB28: =IF(W28=0,51,W28)+IF(A28="",50,0) -> 101 | AC28: =IF(AA28=0,51,AA28)+IF(A28="",50,0) -> 101 | AD28: 0 | AE28: 0 | AF28: =LARGE($B28:$U28,AF$3)+AE28 -> 0 | AG28: 0 | AH28: 0 | AI28: 0 | AJ28: 0 | AK28: 0 | AL28: 0 | AM28: 0 | AN28: 0 | AO28: 0 | AP28: 0 | AQ28: 0 | AR28: 0 | AS28: 0 | AT28: 0 | AU28: 0 | AV28: 0 | AW28: 0 | AX28: 0 | AZ28: 0 | BA28: 0 | BB28: 0 | BC28: =IF(X28>0,VLOOKUP(A28,Rang!$A$4:$AU$53,47,FALSE))/1000 -> 0
A29: =IF(Runden!A29="","",Runden!A29) ->  | B29: =IF(Rang!B29>0,VLOOKUP(Rang!B29,Einstellungen!$A$3:$B$52,2,FALSE),0) -> 0 | C29: =IF(Rang!C29>0,VLOOKUP(Rang!C29,Einstellungen!$A$3:$B$52,2,FALSE),0) -> 0 | D29: =IF(Rang!D29>0,VLOOKUP(Rang!D29,Einstellungen!$A$3:$B$52,2,FALSE),0) -> 0 | E29: =IF(Rang!E29>0,VLOOKUP(Rang!E29,Einstellungen!$A$3:$B$52,2,FALSE),0) -> 0 | F29: =IF(Rang!F29>0,VLOOKUP(Rang!F29,Einstellungen!$A$3:$B$52,2,FALSE),0) -> 0 | G29: =IF(Rang!G29>0,VLOOKUP(Rang!G29,Einstellungen!$A$3:$B$52,2,FALSE),0) -> 0 | H29: =IF(Rang!H29>0,VLOOKUP(Rang!H29,Einstellungen!$A$3:$B$52,2,FALSE),0) -> 0 | I29: =IF(Rang!I29>0,VLOOKUP(Rang!I29,Einstellungen!$A$3:$B$52,2,FALSE),0) -> 0 | J29: =IF(Rang!J29>0,VLOOKUP(Rang!J29,Einstellungen!$A$3:$B$52,2,FALSE),0) -> 0 | K29: =IF(Rang!K29>0,VLOOKUP(Rang!K29,Einstellungen!$A$3:$B$52,2,FALSE),0) -> 0 | L29: =IF(Rang!L29>0,VLOOKUP(Rang!L29,Einstellungen!$A$3:$B$52,2,FALSE),0) -> 0 | M29: =IF(Rang!M29>0,VLOOKUP(Rang!M29,Einstellungen!$A$3:$B$52,2,FALSE),0) -> 0 | N29: =IF(Rang!N29>0,VLOOKUP(Rang!N29,Einstellungen!$A$3:$B$52,2,FALSE),0) -> 0 | O29: =IF(Rang!O29>0,VLOOKUP(Rang!O29,Einstellungen!$A$3:$B$52,2,FALSE),0) -> 0 | P29: =IF(Rang!P29>0,VLOOKUP(Rang!P29,Einstellungen!$A$3:$B$52,2,FALSE),0) -> 0 | Q29: =IF(Rang!Q29>0,VLOOKUP(Rang!Q29,Einstellungen!$A$3:$B$52,2,FALSE),0) -> 0 | R29: =IF(Rang!R29>0,VLOOKUP(Rang!R29,Einstellungen!$A$3:$B$52,2,FALSE),0) -> 0 | S29: =IF(Rang!S29>0,VLOOKUP(Rang!S29,Einstellungen!$A$3:$B$52,2,FALSE),0) -> 0 | T29: =IF(Rang!T29>0,VLOOKUP(Rang!T29,Einstellungen!$A$3:$B$52,2,FALSE),0) -> 0 | U29: =IF(Rang!U29>0,VLOOKUP(Rang!U29,Einstellungen!$A$3:$B$52,2,FALSE),0) -> 0 | V29: =SUM(B29:U29)+IF($AY$4=2,AZ29,0)+IF($AY$4=3,BC29,0) -> 0 | W29: =IF(SUM(B29:U29)>0,RANK(V29,$V$4:$V$53,0),0) -> 0 | X29: =IF(SUM(B29:U29)>0,VLOOKUP(A29,TabRunden,22,FALSE),0) -> 0 | Y29: =AD29 -> 0 | Z29: =IF(AD29>=$AT$2,LOOKUP($AL$2,$AE$3:$AX$3,AE29:AX29),0)+IF($AY$4=2,AZ29,0)+IF($AY$4=3,BC29,0) -> 0 | AA29: =IF(Z29>0,RANK(Z29,$Z$4:$Z$53,0),0) -> 0 | AB29: =IF(W29=0,51,W29)+IF(A29="",50,0) -> 101 | AC29: =IF(AA29=0,51,AA29)+IF(A29="",50,0) -> 101 | AD29: 0 | AE29: 0 | AF29: =LARGE($B29:$U29,AF$3)+AE29 -> 0 | AG29: 0 | AH29: 0 | AI29: 0 | AJ29: 0 | AK29: 0 | AL29: 0 | AM29: 0 | AN29: 0 | AO29: 0 | AP29: 0 | AQ29: 0 | AR29: 0 | AS29: 0 | AT29: 0 | AU29: 0 | AV29: 0 | AW29: 0 | AX29: 0 | AZ29: 0 | BA29: 0 | BB29: 0 | BC29: =IF(X29>0,VLOOKUP(A29,Rang!$A$4:$AU$53,47,FALSE))/1000 -> 0
A30: =IF(Runden!A30="","",Runden!A30) ->  | B30: =IF(Rang!B30>0,VLOOKUP(Rang!B30,Einstellungen!$A$3:$B$52,2,FALSE),0) -> 0 | C30: =IF(Rang!C30>0,VLOOKUP(Rang!C30,Einstellungen!$A$3:$B$52,2,FALSE),0) -> 0 | D30: =IF(Rang!D30>0,VLOOKUP(Rang!D30,Einstellungen!$A$3:$B$52,2,FALSE),0) -> 0 | E30: =IF(Rang!E30>0,VLOOKUP(Rang!E30,Einstellungen!$A$3:$B$52,2,FALSE),0) -> 0 | F30: =IF(Rang!F30>0,VLOOKUP(Rang!F30,Einstellungen!$A$3:$B$52,2,FALSE),0) -> 0 | G30: =IF(Rang!G30>0,VLOOKUP(Rang!G30,Einstellungen!$A$3:$B$52,2,FALSE),0) -> 0 | H30: =IF(Rang!H30>0,VLOOKUP(Rang!H30,Einstellungen!$A$3:$B$52,2,FALSE),0) -> 0 | I30: =IF(Rang!I30>0,VLOOKUP(Rang!I30,Einstellungen!$A$3:$B$52,2,FALSE),0) -> 0 | J30: =IF(Rang!J30>0,VLOOKUP(Rang!J30,Einstellungen!$A$3:$B$52,2,FALSE),0) -> 0 | K30: =IF(Rang!K30>0,VLOOKUP(Rang!K30,Einstellungen!$A$3:$B$52,2,FALSE),0) -> 0 | L30: =IF(Rang!L30>0,VLOOKUP(Rang!L30,Einstellungen!$A$3:$B$52,2,FALSE),0) -> 0 | M30: =IF(Rang!M30>0,VLOOKUP(Rang!M30,Einstellungen!$A$3:$B$52,2,FALSE),0) -> 0 | N30: =IF(Rang!N30>0,VLOOKUP(Rang!N30,Einstellungen!$A$3:$B$52,2,FALSE),0) -> 0 | O30: =IF(Rang!O30>0,VLOOKUP(Rang!O30,Einstellungen!$A$3:$B$52,2,FALSE),0) -> 0 | P30: =IF(Rang!P30>0,VLOOKUP(Rang!P30,Einstellungen!$A$3:$B$52,2,FALSE),0) -> 0 | Q30: =IF(Rang!Q30>0,VLOOKUP(Rang!Q30,Einstellungen!$A$3:$B$52,2,FALSE),0) -> 0 | R30: =IF(Rang!R30>0,VLOOKUP(Rang!R30,Einstellungen!$A$3:$B$52,2,FALSE),0) -> 0 | S30: =IF(Rang!S30>0,VLOOKUP(Rang!S30,Einstellungen!$A$3:$B$52,2,FALSE),0) -> 0 | T30: =IF(Rang!T30>0,VLOOKUP(Rang!T30,Einstellungen!$A$3:$B$52,2,FALSE),0) -> 0 | U30: =IF(Rang!U30>0,VLOOKUP(Rang!U30,Einstellungen!$A$3:$B$52,2,FALSE),0) -> 0 | V30: =SUM(B30:U30)+IF($AY$4=2,AZ30,0)+IF($AY$4=3,BC30,0) -> 0 | W30: =IF(SUM(B30:U30)>0,RANK(V30,$V$4:$V$53,0),0) -> 0 | X30: =IF(SUM(B30:U30)>0,VLOOKUP(A30,TabRunden,22,FALSE),0) -> 0 | Y30: =AD30 -> 0 | Z30: =IF(AD30>=$AT$2,LOOKUP($AL$2,$AE$3:$AX$3,AE30:AX30),0)+IF($AY$4=2,AZ30,0)+IF($AY$4=3,BC30,0) -> 0 | AA30: =IF(Z30>0,RANK(Z30,$Z$4:$Z$53,0),0) -> 0 | AB30: =IF(W30=0,51,W30)+IF(A30="",50,0) -> 101 | AC30: =IF(AA30=0,51,AA30)+IF(A30="",50,0) -> 101 | AD30: 0 | AE30: 0 | AF30: =LARGE($B30:$U30,AF$3)+AE30 -> 0 | AG30: 0 | AH30: 0 | AI30: 0 | AJ30: 0 | AK30: 0 | AL30: 0 | AM30: 0 | AN30: 0 | AO30: 0 | AP30: 0 | AQ30: 0 | AR30: 0 | AS30: 0 | AT30: 0 | AU30: 0 | AV30: 0 | AW30: 0 | AX30: 0 | AZ30: 0 | BA30: 0 | BB30: 0 | BC30: =IF(X30>0,VLOOKUP(A30,Rang!$A$4:$AU$53,47,FALSE))/1000 -> 0
A31: =IF(Runden!A31="","",Runden!A31) ->  | B31: =IF(Rang!B31>0,VLOOKUP(Rang!B31,Einstellungen!$A$3:$B$52,2,FALSE),0) -> 0 | C31: =IF(Rang!C31>0,VLOOKUP(Rang!C31,Einstellungen!$A$3:$B$52,2,FALSE),0) -> 0 | D31: =IF(Rang!D31>0,VLOOKUP(Rang!D31,Einstellungen!$A$3:$B$52,2,FALSE),0) -> 0 | E31: =IF(Rang!E31>0,VLOOKUP(Rang!E31,Einstellungen!$A$3:$B$52,2,FALSE),0) -> 0 | F31: =IF(Rang!F31>0,VLOOKUP(Rang!F31,Einstellungen!$A$3:$B$52,2,FALSE),0) -> 0 | G31: =IF(Rang!G31>0,VLOOKUP(Rang!G31,Einstellungen!$A$3:$B$52,2,FALSE),0) -> 0 | H31: =IF(Rang!H31>0,VLOOKUP(Rang!H31,Einstellungen!$A$3:$B$52,2,FALSE),0) -> 0 | I31: =IF(Rang!I31>0,VLOOKUP(Rang!I31,Einstellungen!$A$3:$B$52,2,FALSE),0) -> 0 | J31: =IF(Rang!J31>0,VLOOKUP(Rang!J31,Einstellungen!$A$3:$B$52,2,FALSE),0) -> 0 | K31: =IF(Rang!K31>0,VLOOKUP(Rang!K31,Einstellungen!$A$3:$B$52,2,FALSE),0) -> 0 | L31: =IF(Rang!L31>0,VLOOKUP(Rang!L31,Einstellungen!$A$3:$B$52,2,FALSE),0) -> 0 | M31: =IF(Rang!M31>0,VLOOKUP(Rang!M31,Einstellungen!$A$3:$B$52,2,FALSE),0) -> 0 | N31: =IF(Rang!N31>0,VLOOKUP(Rang!N31,Einstellungen!$A$3:$B$52,2,FALSE),0) -> 0 | O31: =IF(Rang!O31>0,VLOOKUP(Rang!O31,Einstellungen!$A$3:$B$52,2,FALSE),0) -> 0 | P31: =IF(Rang!P31>0,VLOOKUP(Rang!P31,Einstellungen!$A$3:$B$52,2,FALSE),0) -> 0 | Q31: =IF(Rang!Q31>0,VLOOKUP(Rang!Q31,Einstellungen!$A$3:$B$52,2,FALSE),0) -> 0 | R31: =IF(Rang!R31>0,VLOOKUP(Rang!R31,Einstellungen!$A$3:$B$52,2,FALSE),0) -> 0 | S31: =IF(Rang!S31>0,VLOOKUP(Rang!S31,Einstellungen!$A$3:$B$52,2,FALSE),0) -> 0 | T31: =IF(Rang!T31>0,VLOOKUP(Rang!T31,Einstellungen!$A$3:$B$52,2,FALSE),0) -> 0 | U31: =IF(Rang!U31>0,VLOOKUP(Rang!U31,Einstellungen!$A$3:$B$52,2,FALSE),0) -> 0 | V31: =SUM(B31:U31)+IF($AY$4=2,AZ31,0)+IF($AY$4=3,BC31,0) -> 0 | W31: =IF(SUM(B31:U31)>0,RANK(V31,$V$4:$V$53,0),0) -> 0 | X31: =IF(SUM(B31:U31)>0,VLOOKUP(A31,TabRunden,22,FALSE),0) -> 0 | Y31: =AD31 -> 0 | Z31: =IF(AD31>=$AT$2,LOOKUP($AL$2,$AE$3:$AX$3,AE31:AX31),0)+IF($AY$4=2,AZ31,0)+IF($AY$4=3,BC31,0) -> 0 | AA31: =IF(Z31>0,RANK(Z31,$Z$4:$Z$53,0),0) -> 0 | AB31: =IF(W31=0,51,W31)+IF(A31="",50,0) -> 101 | AC31: =IF(AA31=0,51,AA31)+IF(A31="",50,0) -> 101 | AD31: 0 | AE31: 0 | AF31: =LARGE($B31:$U31,AF$3)+AE31 -> 0 | AG31: 0 | AH31: 0 | AI31: 0 | AJ31: 0 | AK31: 0 | AL31: 0 | AM31: 0 | AN31: 0 | AO31: 0 | AP31: 0 | AQ31: 0 | AR31: 0 | AS31: 0 | AT31: 0 | AU31: 0 | AV31: 0 | AW31: 0 | AX31: 0 | AZ31: 0 | BA31: 0 | BB31: 0 | BC31: =IF(X31>0,VLOOKUP(A31,Rang!$A$4:$AU$53,47,FALSE))/1000 -> 0
A32: =IF(Runden!A32="","",Runden!A32) ->  | B32: =IF(Rang!B32>0,VLOOKUP(Rang!B32,Einstellungen!$A$3:$B$52,2,FALSE),0) -> 0 | C32: =IF(Rang!C32>0,VLOOKUP(Rang!C32,Einstellungen!$A$3:$B$52,2,FALSE),0) -> 0 | D32: =IF(Rang!D32>0,VLOOKUP(Rang!D32,Einstellungen!$A$3:$B$52,2,FALSE),0) -> 0 | E32: =IF(Rang!E32>0,VLOOKUP(Rang!E32,Einstellungen!$A$3:$B$52,2,FALSE),0) -> 0 | F32: =IF(Rang!F32>0,VLOOKUP(Rang!F32,Einstellungen!$A$3:$B$52,2,FALSE),0) -> 0 | G32: =IF(Rang!G32>0,VLOOKUP(Rang!G32,Einstellungen!$A$3:$B$52,2,FALSE),0) -> 0 | H32: =IF(Rang!H32>0,VLOOKUP(Rang!H32,Einstellungen!$A$3:$B$52,2,FALSE),0) -> 0 | I32: =IF(Rang!I32>0,VLOOKUP(Rang!I32,Einstellungen!$A$3:$B$52,2,FALSE),0) -> 0 | J32: =IF(Rang!J32>0,VLOOKUP(Rang!J32,Einstellungen!$A$3:$B$52,2,FALSE),0) -> 0 | K32: =IF(Rang!K32>0,VLOOKUP(Rang!K32,Einstellungen!$A$3:$B$52,2,FALSE),0) -> 0 | L32: =IF(Rang!L32>0,VLOOKUP(Rang!L32,Einstellungen!$A$3:$B$52,2,FALSE),0) -> 0 | M32: =IF(Rang!M32>0,VLOOKUP(Rang!M32,Einstellungen!$A$3:$B$52,2,FALSE),0) -> 0 | N32: =IF(Rang!N32>0,VLOOKUP(Rang!N32,Einstellungen!$A$3:$B$52,2,FALSE),0) -> 0 | O32: =IF(Rang!O32>0,VLOOKUP(Rang!O32,Einstellungen!$A$3:$B$52,2,FALSE),0) -> 0 | P32: =IF(Rang!P32>0,VLOOKUP(Rang!P32,Einstellungen!$A$3:$B$52,2,FALSE),0) -> 0 | Q32: =IF(Rang!Q32>0,VLOOKUP(Rang!Q32,Einstellungen!$A$3:$B$52,2,FALSE),0) -> 0 | R32: =IF(Rang!R32>0,VLOOKUP(Rang!R32,Einstellungen!$A$3:$B$52,2,FALSE),0) -> 0 | S32: =IF(Rang!S32>0,VLOOKUP(Rang!S32,Einstellungen!$A$3:$B$52,2,FALSE),0) -> 0 | T32: =IF(Rang!T32>0,VLOOKUP(Rang!T32,Einstellungen!$A$3:$B$52,2,FALSE),0) -> 0 | U32: =IF(Rang!U32>0,VLOOKUP(Rang!U32,Einstellungen!$A$3:$B$52,2,FALSE),0) -> 0 | V32: =SUM(B32:U32)+IF($AY$4=2,AZ32,0)+IF($AY$4=3,BC32,0) -> 0 | W32: =IF(SUM(B32:U32)>0,RANK(V32,$V$4:$V$53,0),0) -> 0 | X32: =IF(SUM(B32:U32)>0,VLOOKUP(A32,TabRunden,22,FALSE),0) -> 0 | Y32: =AD32 -> 0 | Z32: =IF(AD32>=$AT$2,LOOKUP($AL$2,$AE$3:$AX$3,AE32:AX32),0)+IF($AY$4=2,AZ32,0)+IF($AY$4=3,BC32,0) -> 0 | AA32: =IF(Z32>0,RANK(Z32,$Z$4:$Z$53,0),0) -> 0 | AB32: =IF(W32=0,51,W32)+IF(A32="",50,0) -> 101 | AC32: =IF(AA32=0,51,AA32)+IF(A32="",50,0) -> 101 | AD32: 0 | AE32: 0 | AF32: =LARGE($B32:$U32,AF$3)+AE32 -> 0 | AG32: 0 | AH32: 0 | AI32: 0 | AJ32: 0 | AK32: 0 | AL32: 0 | AM32: 0 | AN32: 0 | AO32: 0 | AP32: 0 | AQ32: 0 | AR32: 0 | AS32: 0 | AT32: 0 | AU32: 0 | AV32: 0 | AW32: 0 | AX32: 0 | AZ32: 0 | BA32: 0 | BB32: 0 | BC32: =IF(X32>0,VLOOKUP(A32,Rang!$A$4:$AU$53,47,FALSE))/1000 -> 0
A33: =IF(Runden!A33="","",Runden!A33) ->  | B33: =IF(Rang!B33>0,VLOOKUP(Rang!B33,Einstellungen!$A$3:$B$52,2,FALSE),0) -> 0 | C33: =IF(Rang!C33>0,VLOOKUP(Rang!C33,Einstellungen!$A$3:$B$52,2,FALSE),0) -> 0 | D33: =IF(Rang!D33>0,VLOOKUP(Rang!D33,Einstellungen!$A$3:$B$52,2,FALSE),0) -> 0 | E33: =IF(Rang!E33>0,VLOOKUP(Rang!E33,Einstellungen!$A$3:$B$52,2,FALSE),0) -> 0 | F33: =IF(Rang!F33>0,VLOOKUP(Rang!F33,Einstellungen!$A$3:$B$52,2,FALSE),0) -> 0 | G33: =IF(Rang!G33>0,VLOOKUP(Rang!G33,Einstellungen!$A$3:$B$52,2,FALSE),0) -> 0 | H33: =IF(Rang!H33>0,VLOOKUP(Rang!H33,Einstellungen!$A$3:$B$52,2,FALSE),0) -> 0 | I33: =IF(Rang!I33>0,VLOOKUP(Rang!I33,Einstellungen!$A$3:$B$52,2,FALSE),0) -> 0 | J33: =IF(Rang!J33>0,VLOOKUP(Rang!J33,Einstellungen!$A$3:$B$52,2,FALSE),0) -> 0 | K33: =IF(Rang!K33>0,VLOOKUP(Rang!K33,Einstellungen!$A$3:$B$52,2,FALSE),0) -> 0 | L33: =IF(Rang!L33>0,VLOOKUP(Rang!L33,Einstellungen!$A$3:$B$52,2,FALSE),0) -> 0 | M33: =IF(Rang!M33>0,VLOOKUP(Rang!M33,Einstellungen!$A$3:$B$52,2,FALSE),0) -> 0 | N33: =IF(Rang!N33>0,VLOOKUP(Rang!N33,Einstellungen!$A$3:$B$52,2,FALSE),0) -> 0 | O33: =IF(Rang!O33>0,VLOOKUP(Rang!O33,Einstellungen!$A$3:$B$52,2,FALSE),0) -> 0 | P33: =IF(Rang!P33>0,VLOOKUP(Rang!P33,Einstellungen!$A$3:$B$52,2,FALSE),0) -> 0 | Q33: =IF(Rang!Q33>0,VLOOKUP(Rang!Q33,Einstellungen!$A$3:$B$52,2,FALSE),0) -> 0 | R33: =IF(Rang!R33>0,VLOOKUP(Rang!R33,Einstellungen!$A$3:$B$52,2,FALSE),0) -> 0 | S33: =IF(Rang!S33>0,VLOOKUP(Rang!S33,Einstellungen!$A$3:$B$52,2,FALSE),0) -> 0 | T33: =IF(Rang!T33>0,VLOOKUP(Rang!T33,Einstellungen!$A$3:$B$52,2,FALSE),0) -> 0 | U33: =IF(Rang!U33>0,VLOOKUP(Rang!U33,Einstellungen!$A$3:$B$52,2,FALSE),0) -> 0 | V33: =SUM(B33:U33)+IF($AY$4=2,AZ33,0)+IF($AY$4=3,BC33,0) -> 0 | W33: =IF(SUM(B33:U33)>0,RANK(V33,$V$4:$V$53,0),0) -> 0 | X33: =IF(SUM(B33:U33)>0,VLOOKUP(A33,TabRunden,22,FALSE),0) -> 0 | Y33: =AD33 -> 0 | Z33: =IF(AD33>=$AT$2,LOOKUP($AL$2,$AE$3:$AX$3,AE33:AX33),0)+IF($AY$4=2,AZ33,0)+IF($AY$4=3,BC33,0) -> 0 | AA33: =IF(Z33>0,RANK(Z33,$Z$4:$Z$53,0),0) -> 0 | AB33: =IF(W33=0,51,W33)+IF(A33="",50,0) -> 101 | AC33: =IF(AA33=0,51,AA33)+IF(A33="",50,0) -> 101 | AD33: 0 | AE33: 0 | AF33: =LARGE($B33:$U33,AF$3)+AE33 -> 0 | AG33: 0 | AH33: 0 | AI33: 0 | AJ33: 0 | AK33: 0 | AL33: 0 | AM33: 0 | AN33: 0 | AO33: 0 | AP33: 0 | AQ33: 0 | AR33: 0 | AS33: 0 | AT33: 0 | AU33: 0 | AV33: 0 | AW33: 0 | AX33: 0 | AZ33: 0 | BA33: 0 | BB33: 0 | BC33: =IF(X33>0,VLOOKUP(A33,Rang!$A$4:$AU$53,47,FALSE))/1000 -> 0
A34: =IF(Runden!A34="","",Runden!A34) ->  | B34: =IF(Rang!B34>0,VLOOKUP(Rang!B34,Einstellungen!$A$3:$B$52,2,FALSE),0) -> 0 | C34: =IF(Rang!C34>0,VLOOKUP(Rang!C34,Einstellungen!$A$3:$B$52,2,FALSE),0) -> 0 | D34: =IF(Rang!D34>0,VLOOKUP(Rang!D34,Einstellungen!$A$3:$B$52,2,FALSE),0) -> 0 | E34: =IF(Rang!E34>0,VLOOKUP(Rang!E34,Einstellungen!$A$3:$B$52,2,FALSE),0) -> 0 | F34: =IF(Rang!F34>0,VLOOKUP(Rang!F34,Einstellungen!$A$3:$B$52,2,FALSE),0) -> 0 | G34: =IF(Rang!G34>0,VLOOKUP(Rang!G34,Einstellungen!$A$3:$B$52,2,FALSE),0) -> 0 | H34: =IF(Rang!H34>0,VLOOKUP(Rang!H34,Einstellungen!$A$3:$B$52,2,FALSE),0) -> 0 | I34: =IF(Rang!I34>0,VLOOKUP(Rang!I34,Einstellungen!$A$3:$B$52,2,FALSE),0) -> 0 | J34: =IF(Rang!J34>0,VLOOKUP(Rang!J34,Einstellungen!$A$3:$B$52,2,FALSE),0) -> 0 | K34: =IF(Rang!K34>0,VLOOKUP(Rang!K34,Einstellungen!$A$3:$B$52,2,FALSE),0) -> 0 | L34: =IF(Rang!L34>0,VLOOKUP(Rang!L34,Einstellungen!$A$3:$B$52,2,FALSE),0) -> 0 | M34: =IF(Rang!M34>0,VLOOKUP(Rang!M34,Einstellungen!$A$3:$B$52,2,FALSE),0) -> 0 | N34: =IF(Rang!N34>0,VLOOKUP(Rang!N34,Einstellungen!$A$3:$B$52,2,FALSE),0) -> 0 | O34: =IF(Rang!O34>0,VLOOKUP(Rang!O34,Einstellungen!$A$3:$B$52,2,FALSE),0) -> 0 | P34: =IF(Rang!P34>0,VLOOKUP(Rang!P34,Einstellungen!$A$3:$B$52,2,FALSE),0) -> 0 | Q34: =IF(Rang!Q34>0,VLOOKUP(Rang!Q34,Einstellungen!$A$3:$B$52,2,FALSE),0) -> 0 | R34: =IF(Rang!R34>0,VLOOKUP(Rang!R34,Einstellungen!$A$3:$B$52,2,FALSE),0) -> 0 | S34: =IF(Rang!S34>0,VLOOKUP(Rang!S34,Einstellungen!$A$3:$B$52,2,FALSE),0) -> 0 | T34: =IF(Rang!T34>0,VLOOKUP(Rang!T34,Einstellungen!$A$3:$B$52,2,FALSE),0) -> 0 | U34: =IF(Rang!U34>0,VLOOKUP(Rang!U34,Einstellungen!$A$3:$B$52,2,FALSE),0) -> 0 | V34: =SUM(B34:U34)+IF($AY$4=2,AZ34,0)+IF($AY$4=3,BC34,0) -> 0 | W34: =IF(SUM(B34:U34)>0,RANK(V34,$V$4:$V$53,0),0) -> 0 | X34: =IF(SUM(B34:U34)>0,VLOOKUP(A34,TabRunden,22,FALSE),0) -> 0 | Y34: =AD34 -> 0 | Z34: =IF(AD34>=$AT$2,LOOKUP($AL$2,$AE$3:$AX$3,AE34:AX34),0)+IF($AY$4=2,AZ34,0)+IF($AY$4=3,BC34,0) -> 0 | AA34: =IF(Z34>0,RANK(Z34,$Z$4:$Z$53,0),0) -> 0 | AB34: =IF(W34=0,51,W34)+IF(A34="",50,0) -> 101 | AC34: =IF(AA34=0,51,AA34)+IF(A34="",50,0) -> 101 | AD34: 0 | AE34: 0 | AF34: =LARGE($B34:$U34,AF$3)+AE34 -> 0 | AG34: 0 | AH34: 0 | AI34: 0 | AJ34: 0 | AK34: 0 | AL34: 0 | AM34: 0 | AN34: 0 | AO34: 0 | AP34: 0 | AQ34: 0 | AR34: 0 | AS34: 0 | AT34: 0 | AU34: 0 | AV34: 0 | AW34: 0 | AX34: 0 | AZ34: 0 | BA34: 0 | BB34: 0 | BC34: =IF(X34>0,VLOOKUP(A34,Rang!$A$4:$AU$53,47,FALSE))/1000 -> 0
A35: =IF(Runden!A35="","",Runden!A35) ->  | B35: =IF(Rang!B35>0,VLOOKUP(Rang!B35,Einstellungen!$A$3:$B$52,2,FALSE),0) -> 0 | C35: =IF(Rang!C35>0,VLOOKUP(Rang!C35,Einstellungen!$A$3:$B$52,2,FALSE),0) -> 0 | D35: =IF(Rang!D35>0,VLOOKUP(Rang!D35,Einstellungen!$A$3:$B$52,2,FALSE),0) -> 0 | E35: =IF(Rang!E35>0,VLOOKUP(Rang!E35,Einstellungen!$A$3:$B$52,2,FALSE),0) -> 0 | F35: =IF(Rang!F35>0,VLOOKUP(Rang!F35,Einstellungen!$A$3:$B$52,2,FALSE),0) -> 0 | G35: =IF(Rang!G35>0,VLOOKUP(Rang!G35,Einstellungen!$A$3:$B$52,2,FALSE),0) -> 0 | H35: =IF(Rang!H35>0,VLOOKUP(Rang!H35,Einstellungen!$A$3:$B$52,2,FALSE),0) -> 0 | I35: =IF(Rang!I35>0,VLOOKUP(Rang!I35,Einstellungen!$A$3:$B$52,2,FALSE),0) -> 0 | J35: =IF(Rang!J35>0,VLOOKUP(Rang!J35,Einstellungen!$A$3:$B$52,2,FALSE),0) -> 0 | K35: =IF(Rang!K35>0,VLOOKUP(Rang!K35,Einstellungen!$A$3:$B$52,2,FALSE),0) -> 0 | L35: =IF(Rang!L35>0,VLOOKUP(Rang!L35,Einstellungen!$A$3:$B$52,2,FALSE),0) -> 0 | M35: =IF(Rang!M35>0,VLOOKUP(Rang!M35,Einstellungen!$A$3:$B$52,2,FALSE),0) -> 0 | N35: =IF(Rang!N35>0,VLOOKUP(Rang!N35,Einstellungen!$A$3:$B$52,2,FALSE),0) -> 0 | O35: =IF(Rang!O35>0,VLOOKUP(Rang!O35,Einstellungen!$A$3:$B$52,2,FALSE),0) -> 0 | P35: =IF(Rang!P35>0,VLOOKUP(Rang!P35,Einstellungen!$A$3:$B$52,2,FALSE),0) -> 0 | Q35: =IF(Rang!Q35>0,VLOOKUP(Rang!Q35,Einstellungen!$A$3:$B$52,2,FALSE),0) -> 0 | R35: =IF(Rang!R35>0,VLOOKUP(Rang!R35,Einstellungen!$A$3:$B$52,2,FALSE),0) -> 0 | S35: =IF(Rang!S35>0,VLOOKUP(Rang!S35,Einstellungen!$A$3:$B$52,2,FALSE),0) -> 0 | T35: =IF(Rang!T35>0,VLOOKUP(Rang!T35,Einstellungen!$A$3:$B$52,2,FALSE),0) -> 0 | U35: =IF(Rang!U35>0,VLOOKUP(Rang!U35,Einstellungen!$A$3:$B$52,2,FALSE),0) -> 0 | V35: =SUM(B35:U35)+IF($AY$4=2,AZ35,0)+IF($AY$4=3,BC35,0) -> 0 | W35: =IF(SUM(B35:U35)>0,RANK(V35,$V$4:$V$53,0),0) -> 0 | X35: =IF(SUM(B35:U35)>0,VLOOKUP(A35,TabRunden,22,FALSE),0) -> 0 | Y35: =AD35 -> 0 | Z35: =IF(AD35>=$AT$2,LOOKUP($AL$2,$AE$3:$AX$3,AE35:AX35),0)+IF($AY$4=2,AZ35,0)+IF($AY$4=3,BC35,0) -> 0 | AA35: =IF(Z35>0,RANK(Z35,$Z$4:$Z$53,0),0) -> 0 | AB35: =IF(W35=0,51,W35)+IF(A35="",50,0) -> 101 | AC35: =IF(AA35=0,51,AA35)+IF(A35="",50,0) -> 101 | AD35: 0 | AE35: 0 | AF35: =LARGE($B35:$U35,AF$3)+AE35 -> 0 | AG35: 0 | AH35: 0 | AI35: 0 | AJ35: 0 | AK35: 0 | AL35: 0 | AM35: 0 | AN35: 0 | AO35: 0 | AP35: 0 | AQ35: 0 | AR35: 0 | AS35: 0 | AT35: 0 | AU35: 0 | AV35: 0 | AW35: 0 | AX35: 0 | AZ35: 0 | BA35: 0 | BB35: 0 | BC35: =IF(X35>0,VLOOKUP(A35,Rang!$A$4:$AU$53,47,FALSE))/1000 -> 0
A36: =IF(Runden!A36="","",Runden!A36) ->  | B36: =IF(Rang!B36>0,VLOOKUP(Rang!B36,Einstellungen!$A$3:$B$52,2,FALSE),0) -> 0 | C36: =IF(Rang!C36>0,VLOOKUP(Rang!C36,Einstellungen!$A$3:$B$52,2,FALSE),0) -> 0 | D36: =IF(Rang!D36>0,VLOOKUP(Rang!D36,Einstellungen!$A$3:$B$52,2,FALSE),0) -> 0 | E36: =IF(Rang!E36>0,VLOOKUP(Rang!E36,Einstellungen!$A$3:$B$52,2,FALSE),0) -> 0 | F36: =IF(Rang!F36>0,VLOOKUP(Rang!F36,Einstellungen!$A$3:$B$52,2,FALSE),0) -> 0 | G36: =IF(Rang!G36>0,VLOOKUP(Rang!G36,Einstellungen!$A$3:$B$52,2,FALSE),0) -> 0 | H36: =IF(Rang!H36>0,VLOOKUP(Rang!H36,Einstellungen!$A$3:$B$52,2,FALSE),0) -> 0 | I36: =IF(Rang!I36>0,VLOOKUP(Rang!I36,Einstellungen!$A$3:$B$52,2,FALSE),0) -> 0 | J36: =IF(Rang!J36>0,VLOOKUP(Rang!J36,Einstellungen!$A$3:$B$52,2,FALSE),0) -> 0 | K36: =IF(Rang!K36>0,VLOOKUP(Rang!K36,Einstellungen!$A$3:$B$52,2,FALSE),0) -> 0 | L36: =IF(Rang!L36>0,VLOOKUP(Rang!L36,Einstellungen!$A$3:$B$52,2,FALSE),0) -> 0 | M36: =IF(Rang!M36>0,VLOOKUP(Rang!M36,Einstellungen!$A$3:$B$52,2,FALSE),0) -> 0 | N36: =IF(Rang!N36>0,VLOOKUP(Rang!N36,Einstellungen!$A$3:$B$52,2,FALSE),0) -> 0 | O36: =IF(Rang!O36>0,VLOOKUP(Rang!O36,Einstellungen!$A$3:$B$52,2,FALSE),0) -> 0 | P36: =IF(Rang!P36>0,VLOOKUP(Rang!P36,Einstellungen!$A$3:$B$52,2,FALSE),0) -> 0 | Q36: =IF(Rang!Q36>0,VLOOKUP(Rang!Q36,Einstellungen!$A$3:$B$52,2,FALSE),0) -> 0 | R36: =IF(Rang!R36>0,VLOOKUP(Rang!R36,Einstellungen!$A$3:$B$52,2,FALSE),0) -> 0 | S36: =IF(Rang!S36>0,VLOOKUP(Rang!S36,Einstellungen!$A$3:$B$52,2,FALSE),0) -> 0 | T36: =IF(Rang!T36>0,VLOOKUP(Rang!T36,Einstellungen!$A$3:$B$52,2,FALSE),0) -> 0 | U36: =IF(Rang!U36>0,VLOOKUP(Rang!U36,Einstellungen!$A$3:$B$52,2,FALSE),0) -> 0 | V36: =SUM(B36:U36)+IF($AY$4=2,AZ36,0)+IF($AY$4=3,BC36,0) -> 0 | W36: =IF(SUM(B36:U36)>0,RANK(V36,$V$4:$V$53,0),0) -> 0 | X36: =IF(SUM(B36:U36)>0,VLOOKUP(A36,TabRunden,22,FALSE),0) -> 0 | Y36: =AD36 -> 0 | Z36: =IF(AD36>=$AT$2,LOOKUP($AL$2,$AE$3:$AX$3,AE36:AX36),0)+IF($AY$4=2,AZ36,0)+IF($AY$4=3,BC36,0) -> 0 | AA36: =IF(Z36>0,RANK(Z36,$Z$4:$Z$53,0),0) -> 0 | AB36: =IF(W36=0,51,W36)+IF(A36="",50,0) -> 101 | AC36: =IF(AA36=0,51,AA36)+IF(A36="",50,0) -> 101 | AD36: =20-COUNTIF(B36:U36,0) -> 0 | AE36: =LARGE($B36:$U36,AE$3) -> 0 | AF36: =LARGE($B36:$U36,AF$3)+AE36 -> 0 | AG36: 0 | AH36: 0 | AI36: 0 | AJ36: 0 | AK36: 0 | AL36: 0 | AM36: 0 | AN36: 0 | AO36: 0 | AP36: 0 | AQ36: 0 | AR36: 0 | AS36: 0 | AT36: 0 | AU36: 0 | AV36: 0 | AW36: 0 | AX36: 0 | AZ36: 0 | BA36: 0 | BB36: 0 | BC36: =IF(X36>0,VLOOKUP(A36,Rang!$A$4:$AU$53,47,FALSE))/1000 -> 0
A37: =IF(Runden!A37="","",Runden!A37) ->  | B37: =IF(Rang!B37>0,VLOOKUP(Rang!B37,Einstellungen!$A$3:$B$52,2,FALSE),0) -> 0 | C37: =IF(Rang!C37>0,VLOOKUP(Rang!C37,Einstellungen!$A$3:$B$52,2,FALSE),0) -> 0 | D37: =IF(Rang!D37>0,VLOOKUP(Rang!D37,Einstellungen!$A$3:$B$52,2,FALSE),0) -> 0 | E37: =IF(Rang!E37>0,VLOOKUP(Rang!E37,Einstellungen!$A$3:$B$52,2,FALSE),0) -> 0 | F37: =IF(Rang!F37>0,VLOOKUP(Rang!F37,Einstellungen!$A$3:$B$52,2,FALSE),0) -> 0 | G37: =IF(Rang!G37>0,VLOOKUP(Rang!G37,Einstellungen!$A$3:$B$52,2,FALSE),0) -> 0 | H37: =IF(Rang!H37>0,VLOOKUP(Rang!H37,Einstellungen!$A$3:$B$52,2,FALSE),0) -> 0 | I37: =IF(Rang!I37>0,VLOOKUP(Rang!I37,Einstellungen!$A$3:$B$52,2,FALSE),0) -> 0 | J37: =IF(Rang!J37>0,VLOOKUP(Rang!J37,Einstellungen!$A$3:$B$52,2,FALSE),0) -> 0 | K37: =IF(Rang!K37>0,VLOOKUP(Rang!K37,Einstellungen!$A$3:$B$52,2,FALSE),0) -> 0 | L37: =IF(Rang!L37>0,VLOOKUP(Rang!L37,Einstellungen!$A$3:$B$52,2,FALSE),0) -> 0 | M37: =IF(Rang!M37>0,VLOOKUP(Rang!M37,Einstellungen!$A$3:$B$52,2,FALSE),0) -> 0 | N37: =IF(Rang!N37>0,VLOOKUP(Rang!N37,Einstellungen!$A$3:$B$52,2,FALSE),0) -> 0 | O37: =IF(Rang!O37>0,VLOOKUP(Rang!O37,Einstellungen!$A$3:$B$52,2,FALSE),0) -> 0 | P37: =IF(Rang!P37>0,VLOOKUP(Rang!P37,Einstellungen!$A$3:$B$52,2,FALSE),0) -> 0 | Q37: =IF(Rang!Q37>0,VLOOKUP(Rang!Q37,Einstellungen!$A$3:$B$52,2,FALSE),0) -> 0 | R37: =IF(Rang!R37>0,VLOOKUP(Rang!R37,Einstellungen!$A$3:$B$52,2,FALSE),0) -> 0 | S37: =IF(Rang!S37>0,VLOOKUP(Rang!S37,Einstellungen!$A$3:$B$52,2,FALSE),0) -> 0 | T37: =IF(Rang!T37>0,VLOOKUP(Rang!T37,Einstellungen!$A$3:$B$52,2,FALSE),0) -> 0 | U37: =IF(Rang!U37>0,VLOOKUP(Rang!U37,Einstellungen!$A$3:$B$52,2,FALSE),0) -> 0 | V37: =SUM(B37:U37)+IF($AY$4=2,AZ37,0)+IF($AY$4=3,BC37,0) -> 0 | W37: =IF(SUM(B37:U37)>0,RANK(V37,$V$4:$V$53,0),0) -> 0 | X37: =IF(SUM(B37:U37)>0,VLOOKUP(A37,TabRunden,22,FALSE),0) -> 0 | Y37: =AD37 -> 0 | Z37: =IF(AD37>=$AT$2,LOOKUP($AL$2,$AE$3:$AX$3,AE37:AX37),0)+IF($AY$4=2,AZ37,0)+IF($AY$4=3,BC37,0) -> 0 | AA37: =IF(Z37>0,RANK(Z37,$Z$4:$Z$53,0),0) -> 0 | AB37: =IF(W37=0,51,W37)+IF(A37="",50,0) -> 101 | AC37: =IF(AA37=0,51,AA37)+IF(A37="",50,0) -> 101 | AD37: 0 | AE37: 0 | AF37: =LARGE($B37:$U37,AF$3)+AE37 -> 0 | AG37: 0 | AH37: 0 | AI37: 0 | AJ37: 0 | AK37: 0 | AL37: 0 | AM37: 0 | AN37: 0 | AO37: 0 | AP37: 0 | AQ37: 0 | AR37: 0 | AS37: 0 | AT37: 0 | AU37: 0 | AV37: 0 | AW37: 0 | AX37: 0 | AZ37: 0 | BA37: 0 | BB37: 0 | BC37: =IF(X37>0,VLOOKUP(A37,Rang!$A$4:$AU$53,47,FALSE))/1000 -> 0
A38: =IF(Runden!A38="","",Runden!A38) ->  | B38: =IF(Rang!B38>0,VLOOKUP(Rang!B38,Einstellungen!$A$3:$B$52,2,FALSE),0) -> 0 | C38: =IF(Rang!C38>0,VLOOKUP(Rang!C38,Einstellungen!$A$3:$B$52,2,FALSE),0) -> 0 | D38: =IF(Rang!D38>0,VLOOKUP(Rang!D38,Einstellungen!$A$3:$B$52,2,FALSE),0) -> 0 | E38: =IF(Rang!E38>0,VLOOKUP(Rang!E38,Einstellungen!$A$3:$B$52,2,FALSE),0) -> 0 | F38: =IF(Rang!F38>0,VLOOKUP(Rang!F38,Einstellungen!$A$3:$B$52,2,FALSE),0) -> 0 | G38: =IF(Rang!G38>0,VLOOKUP(Rang!G38,Einstellungen!$A$3:$B$52,2,FALSE),0) -> 0 | H38: =IF(Rang!H38>0,VLOOKUP(Rang!H38,Einstellungen!$A$3:$B$52,2,FALSE),0) -> 0 | I38: =IF(Rang!I38>0,VLOOKUP(Rang!I38,Einstellungen!$A$3:$B$52,2,FALSE),0) -> 0 | J38: =IF(Rang!J38>0,VLOOKUP(Rang!J38,Einstellungen!$A$3:$B$52,2,FALSE),0) -> 0 | K38: =IF(Rang!K38>0,VLOOKUP(Rang!K38,Einstellungen!$A$3:$B$52,2,FALSE),0) -> 0 | L38: =IF(Rang!L38>0,VLOOKUP(Rang!L38,Einstellungen!$A$3:$B$52,2,FALSE),0) -> 0 | M38: =IF(Rang!M38>0,VLOOKUP(Rang!M38,Einstellungen!$A$3:$B$52,2,FALSE),0) -> 0 | N38: =IF(Rang!N38>0,VLOOKUP(Rang!N38,Einstellungen!$A$3:$B$52,2,FALSE),0) -> 0 | O38: =IF(Rang!O38>0,VLOOKUP(Rang!O38,Einstellungen!$A$3:$B$52,2,FALSE),0) -> 0 | P38: =IF(Rang!P38>0,VLOOKUP(Rang!P38,Einstellungen!$A$3:$B$52,2,FALSE),0) -> 0 | Q38: =IF(Rang!Q38>0,VLOOKUP(Rang!Q38,Einstellungen!$A$3:$B$52,2,FALSE),0) -> 0 | R38: =IF(Rang!R38>0,VLOOKUP(Rang!R38,Einstellungen!$A$3:$B$52,2,FALSE),0) -> 0 | S38: =IF(Rang!S38>0,VLOOKUP(Rang!S38,Einstellungen!$A$3:$B$52,2,FALSE),0) -> 0 | T38: =IF(Rang!T38>0,VLOOKUP(Rang!T38,Einstellungen!$A$3:$B$52,2,FALSE),0) -> 0 | U38: =IF(Rang!U38>0,VLOOKUP(Rang!U38,Einstellungen!$A$3:$B$52,2,FALSE),0) -> 0 | V38: =SUM(B38:U38)+IF($AY$4=2,AZ38,0)+IF($AY$4=3,BC38,0) -> 0 | W38: =IF(SUM(B38:U38)>0,RANK(V38,$V$4:$V$53,0),0) -> 0 | X38: =IF(SUM(B38:U38)>0,VLOOKUP(A38,TabRunden,22,FALSE),0) -> 0 | Y38: =AD38 -> 0 | Z38: =IF(AD38>=$AT$2,LOOKUP($AL$2,$AE$3:$AX$3,AE38:AX38),0)+IF($AY$4=2,AZ38,0)+IF($AY$4=3,BC38,0) -> 0 | AA38: =IF(Z38>0,RANK(Z38,$Z$4:$Z$53,0),0) -> 0 | AB38: =IF(W38=0,51,W38)+IF(A38="",50,0) -> 101 | AC38: =IF(AA38=0,51,AA38)+IF(A38="",50,0) -> 101 | AD38: 0 | AE38: 0 | AF38: =LARGE($B38:$U38,AF$3)+AE38 -> 0 | AG38: 0 | AH38: 0 | AI38: 0 | AJ38: 0 | AK38: 0 | AL38: 0 | AM38: 0 | AN38: 0 | AO38: 0 | AP38: 0 | AQ38: 0 | AR38: 0 | AS38: 0 | AT38: 0 | AU38: 0 | AV38: 0 | AW38: 0 | AX38: 0 | AZ38: 0 | BA38: 0 | BB38: 0 | BC38: =IF(X38>0,VLOOKUP(A38,Rang!$A$4:$AU$53,47,FALSE))/1000 -> 0
A39: =IF(Runden!A39="","",Runden!A39) ->  | B39: =IF(Rang!B39>0,VLOOKUP(Rang!B39,Einstellungen!$A$3:$B$52,2,FALSE),0) -> 0 | C39: =IF(Rang!C39>0,VLOOKUP(Rang!C39,Einstellungen!$A$3:$B$52,2,FALSE),0) -> 0 | D39: =IF(Rang!D39>0,VLOOKUP(Rang!D39,Einstellungen!$A$3:$B$52,2,FALSE),0) -> 0 | E39: =IF(Rang!E39>0,VLOOKUP(Rang!E39,Einstellungen!$A$3:$B$52,2,FALSE),0) -> 0 | F39: =IF(Rang!F39>0,VLOOKUP(Rang!F39,Einstellungen!$A$3:$B$52,2,FALSE),0) -> 0 | G39: =IF(Rang!G39>0,VLOOKUP(Rang!G39,Einstellungen!$A$3:$B$52,2,FALSE),0) -> 0 | H39: =IF(Rang!H39>0,VLOOKUP(Rang!H39,Einstellungen!$A$3:$B$52,2,FALSE),0) -> 0 | I39: =IF(Rang!I39>0,VLOOKUP(Rang!I39,Einstellungen!$A$3:$B$52,2,FALSE),0) -> 0 | J39: =IF(Rang!J39>0,VLOOKUP(Rang!J39,Einstellungen!$A$3:$B$52,2,FALSE),0) -> 0 | K39: =IF(Rang!K39>0,VLOOKUP(Rang!K39,Einstellungen!$A$3:$B$52,2,FALSE),0) -> 0 | L39: =IF(Rang!L39>0,VLOOKUP(Rang!L39,Einstellungen!$A$3:$B$52,2,FALSE),0) -> 0 | M39: =IF(Rang!M39>0,VLOOKUP(Rang!M39,Einstellungen!$A$3:$B$52,2,FALSE),0) -> 0 | N39: =IF(Rang!N39>0,VLOOKUP(Rang!N39,Einstellungen!$A$3:$B$52,2,FALSE),0) -> 0 | O39: =IF(Rang!O39>0,VLOOKUP(Rang!O39,Einstellungen!$A$3:$B$52,2,FALSE),0) -> 0 | P39: =IF(Rang!P39>0,VLOOKUP(Rang!P39,Einstellungen!$A$3:$B$52,2,FALSE),0) -> 0 | Q39: =IF(Rang!Q39>0,VLOOKUP(Rang!Q39,Einstellungen!$A$3:$B$52,2,FALSE),0) -> 0 | R39: =IF(Rang!R39>0,VLOOKUP(Rang!R39,Einstellungen!$A$3:$B$52,2,FALSE),0) -> 0 | S39: =IF(Rang!S39>0,VLOOKUP(Rang!S39,Einstellungen!$A$3:$B$52,2,FALSE),0) -> 0 | T39: =IF(Rang!T39>0,VLOOKUP(Rang!T39,Einstellungen!$A$3:$B$52,2,FALSE),0) -> 0 | U39: =IF(Rang!U39>0,VLOOKUP(Rang!U39,Einstellungen!$A$3:$B$52,2,FALSE),0) -> 0 | V39: =SUM(B39:U39)+IF($AY$4=2,AZ39,0)+IF($AY$4=3,BC39,0) -> 0 | W39: =IF(SUM(B39:U39)>0,RANK(V39,$V$4:$V$53,0),0) -> 0 | X39: =IF(SUM(B39:U39)>0,VLOOKUP(A39,TabRunden,22,FALSE),0) -> 0 | Y39: =AD39 -> 0 | Z39: =IF(AD39>=$AT$2,LOOKUP($AL$2,$AE$3:$AX$3,AE39:AX39),0)+IF($AY$4=2,AZ39,0)+IF($AY$4=3,BC39,0) -> 0 | AA39: =IF(Z39>0,RANK(Z39,$Z$4:$Z$53,0),0) -> 0 | AB39: =IF(W39=0,51,W39)+IF(A39="",50,0) -> 101 | AC39: =IF(AA39=0,51,AA39)+IF(A39="",50,0) -> 101 | AD39: 0 | AE39: 0 | AF39: =LARGE($B39:$U39,AF$3)+AE39 -> 0 | AG39: 0 | AH39: 0 | AI39: 0 | AJ39: 0 | AK39: 0 | AL39: 0 | AM39: 0 | AN39: 0 | AO39: 0 | AP39: 0 | AQ39: 0 | AR39: 0 | AS39: 0 | AT39: 0 | AU39: 0 | AV39: 0 | AW39: 0 | AX39: 0 | AZ39: 0 | BA39: 0 | BB39: 0 | BC39: =IF(X39>0,VLOOKUP(A39,Rang!$A$4:$AU$53,47,FALSE))/1000 -> 0
A40: =IF(Runden!A40="","",Runden!A40) ->  | B40: =IF(Rang!B40>0,VLOOKUP(Rang!B40,Einstellungen!$A$3:$B$52,2,FALSE),0) -> 0 | C40: =IF(Rang!C40>0,VLOOKUP(Rang!C40,Einstellungen!$A$3:$B$52,2,FALSE),0) -> 0 | D40: =IF(Rang!D40>0,VLOOKUP(Rang!D40,Einstellungen!$A$3:$B$52,2,FALSE),0) -> 0 | E40: =IF(Rang!E40>0,VLOOKUP(Rang!E40,Einstellungen!$A$3:$B$52,2,FALSE),0) -> 0 | F40: =IF(Rang!F40>0,VLOOKUP(Rang!F40,Einstellungen!$A$3:$B$52,2,FALSE),0) -> 0 | G40: =IF(Rang!G40>0,VLOOKUP(Rang!G40,Einstellungen!$A$3:$B$52,2,FALSE),0) -> 0 | H40: =IF(Rang!H40>0,VLOOKUP(Rang!H40,Einstellungen!$A$3:$B$52,2,FALSE),0) -> 0 | I40: =IF(Rang!I40>0,VLOOKUP(Rang!I40,Einstellungen!$A$3:$B$52,2,FALSE),0) -> 0 | J40: =IF(Rang!J40>0,VLOOKUP(Rang!J40,Einstellungen!$A$3:$B$52,2,FALSE),0) -> 0 | K40: =IF(Rang!K40>0,VLOOKUP(Rang!K40,Einstellungen!$A$3:$B$52,2,FALSE),0) -> 0 | L40: =IF(Rang!L40>0,VLOOKUP(Rang!L40,Einstellungen!$A$3:$B$52,2,FALSE),0) -> 0 | M40: =IF(Rang!M40>0,VLOOKUP(Rang!M40,Einstellungen!$A$3:$B$52,2,FALSE),0) -> 0 | N40: =IF(Rang!N40>0,VLOOKUP(Rang!N40,Einstellungen!$A$3:$B$52,2,FALSE),0) -> 0 | O40: =IF(Rang!O40>0,VLOOKUP(Rang!O40,Einstellungen!$A$3:$B$52,2,FALSE),0) -> 0 | P40: =IF(Rang!P40>0,VLOOKUP(Rang!P40,Einstellungen!$A$3:$B$52,2,FALSE),0) -> 0 | Q40: =IF(Rang!Q40>0,VLOOKUP(Rang!Q40,Einstellungen!$A$3:$B$52,2,FALSE),0) -> 0 | R40: =IF(Rang!R40>0,VLOOKUP(Rang!R40,Einstellungen!$A$3:$B$52,2,FALSE),0) -> 0 | S40: =IF(Rang!S40>0,VLOOKUP(Rang!S40,Einstellungen!$A$3:$B$52,2,FALSE),0) -> 0 | T40: =IF(Rang!T40>0,VLOOKUP(Rang!T40,Einstellungen!$A$3:$B$52,2,FALSE),0) -> 0 | U40: =IF(Rang!U40>0,VLOOKUP(Rang!U40,Einstellungen!$A$3:$B$52,2,FALSE),0) -> 0 | V40: =SUM(B40:U40)+IF($AY$4=2,AZ40,0)+IF($AY$4=3,BC40,0) -> 0 | W40: =IF(SUM(B40:U40)>0,RANK(V40,$V$4:$V$53,0),0) -> 0 | X40: =IF(SUM(B40:U40)>0,VLOOKUP(A40,TabRunden,22,FALSE),0) -> 0 | Y40: =AD40 -> 0 | Z40: =IF(AD40>=$AT$2,LOOKUP($AL$2,$AE$3:$AX$3,AE40:AX40),0)+IF($AY$4=2,AZ40,0)+IF($AY$4=3,BC40,0) -> 0 | AA40: =IF(Z40>0,RANK(Z40,$Z$4:$Z$53,0),0) -> 0 | AB40: =IF(W40=0,51,W40)+IF(A40="",50,0) -> 101 | AC40: =IF(AA40=0,51,AA40)+IF(A40="",50,0) -> 101 | AD40: 0 | AE40: 0 | AF40: =LARGE($B40:$U40,AF$3)+AE40 -> 0 | AG40: 0 | AH40: 0 | AI40: 0 | AJ40: 0 | AK40: 0 | AL40: 0 | AM40: 0 | AN40: 0 | AO40: 0 | AP40: 0 | AQ40: 0 | AR40: 0 | AS40: 0 | AT40: 0 | AU40: 0 | AV40: 0 | AW40: 0 | AX40: 0 | AZ40: 0 | BA40: 0 | BB40: 0 | BC40: =IF(X40>0,VLOOKUP(A40,Rang!$A$4:$AU$53,47,FALSE))/1000 -> 0
A41: =IF(Runden!A41="","",Runden!A41) ->  | B41: =IF(Rang!B41>0,VLOOKUP(Rang!B41,Einstellungen!$A$3:$B$52,2,FALSE),0) -> 0 | C41: =IF(Rang!C41>0,VLOOKUP(Rang!C41,Einstellungen!$A$3:$B$52,2,FALSE),0) -> 0 | D41: =IF(Rang!D41>0,VLOOKUP(Rang!D41,Einstellungen!$A$3:$B$52,2,FALSE),0) -> 0 | E41: =IF(Rang!E41>0,VLOOKUP(Rang!E41,Einstellungen!$A$3:$B$52,2,FALSE),0) -> 0 | F41: =IF(Rang!F41>0,VLOOKUP(Rang!F41,Einstellungen!$A$3:$B$52,2,FALSE),0) -> 0 | G41: =IF(Rang!G41>0,VLOOKUP(Rang!G41,Einstellungen!$A$3:$B$52,2,FALSE),0) -> 0 | H41: =IF(Rang!H41>0,VLOOKUP(Rang!H41,Einstellungen!$A$3:$B$52,2,FALSE),0) -> 0 | I41: =IF(Rang!I41>0,VLOOKUP(Rang!I41,Einstellungen!$A$3:$B$52,2,FALSE),0) -> 0 | J41: =IF(Rang!J41>0,VLOOKUP(Rang!J41,Einstellungen!$A$3:$B$52,2,FALSE),0) -> 0 | K41: =IF(Rang!K41>0,VLOOKUP(Rang!K41,Einstellungen!$A$3:$B$52,2,FALSE),0) -> 0 | L41: =IF(Rang!L41>0,VLOOKUP(Rang!L41,Einstellungen!$A$3:$B$52,2,FALSE),0) -> 0 | M41: =IF(Rang!M41>0,VLOOKUP(Rang!M41,Einstellungen!$A$3:$B$52,2,FALSE),0) -> 0 | N41: =IF(Rang!N41>0,VLOOKUP(Rang!N41,Einstellungen!$A$3:$B$52,2,FALSE),0) -> 0 | O41: =IF(Rang!O41>0,VLOOKUP(Rang!O41,Einstellungen!$A$3:$B$52,2,FALSE),0) -> 0 | P41: =IF(Rang!P41>0,VLOOKUP(Rang!P41,Einstellungen!$A$3:$B$52,2,FALSE),0) -> 0 | Q41: =IF(Rang!Q41>0,VLOOKUP(Rang!Q41,Einstellungen!$A$3:$B$52,2,FALSE),0) -> 0 | R41: =IF(Rang!R41>0,VLOOKUP(Rang!R41,Einstellungen!$A$3:$B$52,2,FALSE),0) -> 0 | S41: =IF(Rang!S41>0,VLOOKUP(Rang!S41,Einstellungen!$A$3:$B$52,2,FALSE),0) -> 0 | T41: =IF(Rang!T41>0,VLOOKUP(Rang!T41,Einstellungen!$A$3:$B$52,2,FALSE),0) -> 0 | U41: =IF(Rang!U41>0,VLOOKUP(Rang!U41,Einstellungen!$A$3:$B$52,2,FALSE),0) -> 0 | V41: =SUM(B41:U41)+IF($AY$4=2,AZ41,0)+IF($AY$4=3,BC41,0) -> 0 | W41: =IF(SUM(B41:U41)>0,RANK(V41,$V$4:$V$53,0),0) -> 0 | X41: =IF(SUM(B41:U41)>0,VLOOKUP(A41,TabRunden,22,FALSE),0) -> 0 | Y41: =AD41 -> 0 | Z41: =IF(AD41>=$AT$2,LOOKUP($AL$2,$AE$3:$AX$3,AE41:AX41),0)+IF($AY$4=2,AZ41,0)+IF($AY$4=3,BC41,0) -> 0 | AA41: =IF(Z41>0,RANK(Z41,$Z$4:$Z$53,0),0) -> 0 | AB41: =IF(W41=0,51,W41)+IF(A41="",50,0) -> 101 | AC41: =IF(AA41=0,51,AA41)+IF(A41="",50,0) -> 101 | AD41: 0 | AE41: 0 | AF41: =LARGE($B41:$U41,AF$3)+AE41 -> 0 | AG41: 0 | AH41: 0 | AI41: 0 | AJ41: 0 | AK41: 0 | AL41: 0 | AM41: 0 | AN41: 0 | AO41: 0 | AP41: 0 | AQ41: 0 | AR41: 0 | AS41: 0 | AT41: 0 | AU41: 0 | AV41: 0 | AW41: 0 | AX41: 0 | AZ41: 0 | BA41: 0 | BB41: 0 | BC41: =IF(X41>0,VLOOKUP(A41,Rang!$A$4:$AU$53,47,FALSE))/1000 -> 0
A42: =IF(Runden!A42="","",Runden!A42) ->  | B42: =IF(Rang!B42>0,VLOOKUP(Rang!B42,Einstellungen!$A$3:$B$52,2,FALSE),0) -> 0 | C42: =IF(Rang!C42>0,VLOOKUP(Rang!C42,Einstellungen!$A$3:$B$52,2,FALSE),0) -> 0 | D42: =IF(Rang!D42>0,VLOOKUP(Rang!D42,Einstellungen!$A$3:$B$52,2,FALSE),0) -> 0 | E42: =IF(Rang!E42>0,VLOOKUP(Rang!E42,Einstellungen!$A$3:$B$52,2,FALSE),0) -> 0 | F42: =IF(Rang!F42>0,VLOOKUP(Rang!F42,Einstellungen!$A$3:$B$52,2,FALSE),0) -> 0 | G42: =IF(Rang!G42>0,VLOOKUP(Rang!G42,Einstellungen!$A$3:$B$52,2,FALSE),0) -> 0 | H42: =IF(Rang!H42>0,VLOOKUP(Rang!H42,Einstellungen!$A$3:$B$52,2,FALSE),0) -> 0 | I42: =IF(Rang!I42>0,VLOOKUP(Rang!I42,Einstellungen!$A$3:$B$52,2,FALSE),0) -> 0 | J42: =IF(Rang!J42>0,VLOOKUP(Rang!J42,Einstellungen!$A$3:$B$52,2,FALSE),0) -> 0 | K42: =IF(Rang!K42>0,VLOOKUP(Rang!K42,Einstellungen!$A$3:$B$52,2,FALSE),0) -> 0 | L42: =IF(Rang!L42>0,VLOOKUP(Rang!L42,Einstellungen!$A$3:$B$52,2,FALSE),0) -> 0 | M42: =IF(Rang!M42>0,VLOOKUP(Rang!M42,Einstellungen!$A$3:$B$52,2,FALSE),0) -> 0 | N42: =IF(Rang!N42>0,VLOOKUP(Rang!N42,Einstellungen!$A$3:$B$52,2,FALSE),0) -> 0 | O42: =IF(Rang!O42>0,VLOOKUP(Rang!O42,Einstellungen!$A$3:$B$52,2,FALSE),0) -> 0 | P42: =IF(Rang!P42>0,VLOOKUP(Rang!P42,Einstellungen!$A$3:$B$52,2,FALSE),0) -> 0 | Q42: =IF(Rang!Q42>0,VLOOKUP(Rang!Q42,Einstellungen!$A$3:$B$52,2,FALSE),0) -> 0 | R42: =IF(Rang!R42>0,VLOOKUP(Rang!R42,Einstellungen!$A$3:$B$52,2,FALSE),0) -> 0 | S42: =IF(Rang!S42>0,VLOOKUP(Rang!S42,Einstellungen!$A$3:$B$52,2,FALSE),0) -> 0 | T42: =IF(Rang!T42>0,VLOOKUP(Rang!T42,Einstellungen!$A$3:$B$52,2,FALSE),0) -> 0 | U42: =IF(Rang!U42>0,VLOOKUP(Rang!U42,Einstellungen!$A$3:$B$52,2,FALSE),0) -> 0 | V42: =SUM(B42:U42)+IF($AY$4=2,AZ42,0)+IF($AY$4=3,BC42,0) -> 0 | W42: =IF(SUM(B42:U42)>0,RANK(V42,$V$4:$V$53,0),0) -> 0 | X42: =IF(SUM(B42:U42)>0,VLOOKUP(A42,TabRunden,22,FALSE),0) -> 0 | Y42: =AD42 -> 0 | Z42: =IF(AD42>=$AT$2,LOOKUP($AL$2,$AE$3:$AX$3,AE42:AX42),0)+IF($AY$4=2,AZ42,0)+IF($AY$4=3,BC42,0) -> 0 | AA42: =IF(Z42>0,RANK(Z42,$Z$4:$Z$53,0),0) -> 0 | AB42: =IF(W42=0,51,W42)+IF(A42="",50,0) -> 101 | AC42: =IF(AA42=0,51,AA42)+IF(A42="",50,0) -> 101 | AD42: 0 | AE42: 0 | AF42: =LARGE($B42:$U42,AF$3)+AE42 -> 0 | AG42: 0 | AH42: 0 | AI42: 0 | AJ42: 0 | AK42: 0 | AL42: 0 | AM42: 0 | AN42: 0 | AO42: 0 | AP42: 0 | AQ42: 0 | AR42: 0 | AS42: 0 | AT42: 0 | AU42: 0 | AV42: 0 | AW42: 0 | AX42: 0 | AZ42: 0 | BA42: 0 | BB42: 0 | BC42: =IF(X42>0,VLOOKUP(A42,Rang!$A$4:$AU$53,47,FALSE))/1000 -> 0
A43: =IF(Runden!A43="","",Runden!A43) ->  | B43: =IF(Rang!B43>0,VLOOKUP(Rang!B43,Einstellungen!$A$3:$B$52,2,FALSE),0) -> 0 | C43: =IF(Rang!C43>0,VLOOKUP(Rang!C43,Einstellungen!$A$3:$B$52,2,FALSE),0) -> 0 | D43: =IF(Rang!D43>0,VLOOKUP(Rang!D43,Einstellungen!$A$3:$B$52,2,FALSE),0) -> 0 | E43: =IF(Rang!E43>0,VLOOKUP(Rang!E43,Einstellungen!$A$3:$B$52,2,FALSE),0) -> 0 | F43: =IF(Rang!F43>0,VLOOKUP(Rang!F43,Einstellungen!$A$3:$B$52,2,FALSE),0) -> 0 | G43: =IF(Rang!G43>0,VLOOKUP(Rang!G43,Einstellungen!$A$3:$B$52,2,FALSE),0) -> 0 | H43: =IF(Rang!H43>0,VLOOKUP(Rang!H43,Einstellungen!$A$3:$B$52,2,FALSE),0) -> 0 | I43: =IF(Rang!I43>0,VLOOKUP(Rang!I43,Einstellungen!$A$3:$B$52,2,FALSE),0) -> 0 | J43: =IF(Rang!J43>0,VLOOKUP(Rang!J43,Einstellungen!$A$3:$B$52,2,FALSE),0) -> 0 | K43: =IF(Rang!K43>0,VLOOKUP(Rang!K43,Einstellungen!$A$3:$B$52,2,FALSE),0) -> 0 | L43: =IF(Rang!L43>0,VLOOKUP(Rang!L43,Einstellungen!$A$3:$B$52,2,FALSE),0) -> 0 | M43: =IF(Rang!M43>0,VLOOKUP(Rang!M43,Einstellungen!$A$3:$B$52,2,FALSE),0) -> 0 | N43: =IF(Rang!N43>0,VLOOKUP(Rang!N43,Einstellungen!$A$3:$B$52,2,FALSE),0) -> 0 | O43: =IF(Rang!O43>0,VLOOKUP(Rang!O43,Einstellungen!$A$3:$B$52,2,FALSE),0) -> 0 | P43: =IF(Rang!P43>0,VLOOKUP(Rang!P43,Einstellungen!$A$3:$B$52,2,FALSE),0) -> 0 | Q43: =IF(Rang!Q43>0,VLOOKUP(Rang!Q43,Einstellungen!$A$3:$B$52,2,FALSE),0) -> 0 | R43: =IF(Rang!R43>0,VLOOKUP(Rang!R43,Einstellungen!$A$3:$B$52,2,FALSE),0) -> 0 | S43: =IF(Rang!S43>0,VLOOKUP(Rang!S43,Einstellungen!$A$3:$B$52,2,FALSE),0) -> 0 | T43: =IF(Rang!T43>0,VLOOKUP(Rang!T43,Einstellungen!$A$3:$B$52,2,FALSE),0) -> 0 | U43: =IF(Rang!U43>0,VLOOKUP(Rang!U43,Einstellungen!$A$3:$B$52,2,FALSE),0) -> 0 | V43: =SUM(B43:U43)+IF($AY$4=2,AZ43,0)+IF($AY$4=3,BC43,0) -> 0 | W43: =IF(SUM(B43:U43)>0,RANK(V43,$V$4:$V$53,0),0) -> 0 | X43: =IF(SUM(B43:U43)>0,VLOOKUP(A43,TabRunden,22,FALSE),0) -> 0 | Y43: =AD43 -> 0 | Z43: =IF(AD43>=$AT$2,LOOKUP($AL$2,$AE$3:$AX$3,AE43:AX43),0)+IF($AY$4=2,AZ43,0)+IF($AY$4=3,BC43,0) -> 0 | AA43: =IF(Z43>0,RANK(Z43,$Z$4:$Z$53,0),0) -> 0 | AB43: =IF(W43=0,51,W43)+IF(A43="",50,0) -> 101 | AC43: =IF(AA43=0,51,AA43)+IF(A43="",50,0) -> 101 | AD43: 0 | AE43: 0 | AF43: =LARGE($B43:$U43,AF$3)+AE43 -> 0 | AG43: 0 | AH43: 0 | AI43: 0 | AJ43: 0 | AK43: 0 | AL43: 0 | AM43: 0 | AN43: 0 | AO43: 0 | AP43: 0 | AQ43: 0 | AR43: 0 | AS43: 0 | AT43: 0 | AU43: 0 | AV43: 0 | AW43: 0 | AX43: 0 | AZ43: 0 | BA43: 0 | BB43: 0 | BC43: =IF(X43>0,VLOOKUP(A43,Rang!$A$4:$AU$53,47,FALSE))/1000 -> 0
A44: =IF(Runden!A44="","",Runden!A44) ->  | B44: =IF(Rang!B44>0,VLOOKUP(Rang!B44,Einstellungen!$A$3:$B$52,2,FALSE),0) -> 0 | C44: =IF(Rang!C44>0,VLOOKUP(Rang!C44,Einstellungen!$A$3:$B$52,2,FALSE),0) -> 0 | D44: =IF(Rang!D44>0,VLOOKUP(Rang!D44,Einstellungen!$A$3:$B$52,2,FALSE),0) -> 0 | E44: =IF(Rang!E44>0,VLOOKUP(Rang!E44,Einstellungen!$A$3:$B$52,2,FALSE),0) -> 0 | F44: =IF(Rang!F44>0,VLOOKUP(Rang!F44,Einstellungen!$A$3:$B$52,2,FALSE),0) -> 0 | G44: =IF(Rang!G44>0,VLOOKUP(Rang!G44,Einstellungen!$A$3:$B$52,2,FALSE),0) -> 0 | H44: =IF(Rang!H44>0,VLOOKUP(Rang!H44,Einstellungen!$A$3:$B$52,2,FALSE),0) -> 0 | I44: =IF(Rang!I44>0,VLOOKUP(Rang!I44,Einstellungen!$A$3:$B$52,2,FALSE),0) -> 0 | J44: =IF(Rang!J44>0,VLOOKUP(Rang!J44,Einstellungen!$A$3:$B$52,2,FALSE),0) -> 0 | K44: =IF(Rang!K44>0,VLOOKUP(Rang!K44,Einstellungen!$A$3:$B$52,2,FALSE),0) -> 0 | L44: =IF(Rang!L44>0,VLOOKUP(Rang!L44,Einstellungen!$A$3:$B$52,2,FALSE),0) -> 0 | M44: =IF(Rang!M44>0,VLOOKUP(Rang!M44,Einstellungen!$A$3:$B$52,2,FALSE),0) -> 0 | N44: =IF(Rang!N44>0,VLOOKUP(Rang!N44,Einstellungen!$A$3:$B$52,2,FALSE),0) -> 0 | O44: =IF(Rang!O44>0,VLOOKUP(Rang!O44,Einstellungen!$A$3:$B$52,2,FALSE),0) -> 0 | P44: =IF(Rang!P44>0,VLOOKUP(Rang!P44,Einstellungen!$A$3:$B$52,2,FALSE),0) -> 0 | Q44: =IF(Rang!Q44>0,VLOOKUP(Rang!Q44,Einstellungen!$A$3:$B$52,2,FALSE),0) -> 0 | R44: =IF(Rang!R44>0,VLOOKUP(Rang!R44,Einstellungen!$A$3:$B$52,2,FALSE),0) -> 0 | S44: =IF(Rang!S44>0,VLOOKUP(Rang!S44,Einstellungen!$A$3:$B$52,2,FALSE),0) -> 0 | T44: =IF(Rang!T44>0,VLOOKUP(Rang!T44,Einstellungen!$A$3:$B$52,2,FALSE),0) -> 0 | U44: =IF(Rang!U44>0,VLOOKUP(Rang!U44,Einstellungen!$A$3:$B$52,2,FALSE),0) -> 0 | V44: =SUM(B44:U44)+IF($AY$4=2,AZ44,0)+IF($AY$4=3,BC44,0) -> 0 | W44: =IF(SUM(B44:U44)>0,RANK(V44,$V$4:$V$53,0),0) -> 0 | X44: =IF(SUM(B44:U44)>0,VLOOKUP(A44,TabRunden,22,FALSE),0) -> 0 | Y44: =AD44 -> 0 | Z44: =IF(AD44>=$AT$2,LOOKUP($AL$2,$AE$3:$AX$3,AE44:AX44),0)+IF($AY$4=2,AZ44,0)+IF($AY$4=3,BC44,0) -> 0 | AA44: =IF(Z44>0,RANK(Z44,$Z$4:$Z$53,0),0) -> 0 | AB44: =IF(W44=0,51,W44)+IF(A44="",50,0) -> 101 | AC44: =IF(AA44=0,51,AA44)+IF(A44="",50,0) -> 101 | AD44: 0 | AE44: 0 | AF44: =LARGE($B44:$U44,AF$3)+AE44 -> 0 | AG44: 0 | AH44: 0 | AI44: 0 | AJ44: 0 | AK44: 0 | AL44: 0 | AM44: 0 | AN44: 0 | AO44: 0 | AP44: 0 | AQ44: 0 | AR44: 0 | AS44: 0 | AT44: 0 | AU44: 0 | AV44: 0 | AW44: 0 | AX44: 0 | AZ44: 0 | BA44: 0 | BB44: 0 | BC44: =IF(X44>0,VLOOKUP(A44,Rang!$A$4:$AU$53,47,FALSE))/1000 -> 0
A45: =IF(Runden!A45="","",Runden!A45) ->  | B45: =IF(Rang!B45>0,VLOOKUP(Rang!B45,Einstellungen!$A$3:$B$52,2,FALSE),0) -> 0 | C45: =IF(Rang!C45>0,VLOOKUP(Rang!C45,Einstellungen!$A$3:$B$52,2,FALSE),0) -> 0 | D45: =IF(Rang!D45>0,VLOOKUP(Rang!D45,Einstellungen!$A$3:$B$52,2,FALSE),0) -> 0 | E45: =IF(Rang!E45>0,VLOOKUP(Rang!E45,Einstellungen!$A$3:$B$52,2,FALSE),0) -> 0 | F45: =IF(Rang!F45>0,VLOOKUP(Rang!F45,Einstellungen!$A$3:$B$52,2,FALSE),0) -> 0 | G45: =IF(Rang!G45>0,VLOOKUP(Rang!G45,Einstellungen!$A$3:$B$52,2,FALSE),0) -> 0 | H45: =IF(Rang!H45>0,VLOOKUP(Rang!H45,Einstellungen!$A$3:$B$52,2,FALSE),0) -> 0 | I45: =IF(Rang!I45>0,VLOOKUP(Rang!I45,Einstellungen!$A$3:$B$52,2,FALSE),0) -> 0 | J45: =IF(Rang!J45>0,VLOOKUP(Rang!J45,Einstellungen!$A$3:$B$52,2,FALSE),0) -> 0 | K45: =IF(Rang!K45>0,VLOOKUP(Rang!K45,Einstellungen!$A$3:$B$52,2,FALSE),0) -> 0 | L45: =IF(Rang!L45>0,VLOOKUP(Rang!L45,Einstellungen!$A$3:$B$52,2,FALSE),0) -> 0 | M45: =IF(Rang!M45>0,VLOOKUP(Rang!M45,Einstellungen!$A$3:$B$52,2,FALSE),0) -> 0 | N45: =IF(Rang!N45>0,VLOOKUP(Rang!N45,Einstellungen!$A$3:$B$52,2,FALSE),0) -> 0 | O45: =IF(Rang!O45>0,VLOOKUP(Rang!O45,Einstellungen!$A$3:$B$52,2,FALSE),0) -> 0 | P45: =IF(Rang!P45>0,VLOOKUP(Rang!P45,Einstellungen!$A$3:$B$52,2,FALSE),0) -> 0 | Q45: =IF(Rang!Q45>0,VLOOKUP(Rang!Q45,Einstellungen!$A$3:$B$52,2,FALSE),0) -> 0 | R45: =IF(Rang!R45>0,VLOOKUP(Rang!R45,Einstellungen!$A$3:$B$52,2,FALSE),0) -> 0 | S45: =IF(Rang!S45>0,VLOOKUP(Rang!S45,Einstellungen!$A$3:$B$52,2,FALSE),0) -> 0 | T45: =IF(Rang!T45>0,VLOOKUP(Rang!T45,Einstellungen!$A$3:$B$52,2,FALSE),0) -> 0 | U45: =IF(Rang!U45>0,VLOOKUP(Rang!U45,Einstellungen!$A$3:$B$52,2,FALSE),0) -> 0 | V45: =SUM(B45:U45)+IF($AY$4=2,AZ45,0)+IF($AY$4=3,BC45,0) -> 0 | W45: =IF(SUM(B45:U45)>0,RANK(V45,$V$4:$V$53,0),0) -> 0 | X45: =IF(SUM(B45:U45)>0,VLOOKUP(A45,TabRunden,22,FALSE),0) -> 0 | Y45: =AD45 -> 0 | Z45: =IF(AD45>=$AT$2,LOOKUP($AL$2,$AE$3:$AX$3,AE45:AX45),0)+IF($AY$4=2,AZ45,0)+IF($AY$4=3,BC45,0) -> 0 | AA45: =IF(Z45>0,RANK(Z45,$Z$4:$Z$53,0),0) -> 0 | AB45: =IF(W45=0,51,W45)+IF(A45="",50,0) -> 101 | AC45: =IF(AA45=0,51,AA45)+IF(A45="",50,0) -> 101 | AD45: 0 | AE45: 0 | AF45: =LARGE($B45:$U45,AF$3)+AE45 -> 0 | AG45: 0 | AH45: 0 | AI45: 0 | AJ45: 0 | AK45: 0 | AL45: 0 | AM45: 0 | AN45: 0 | AO45: 0 | AP45: 0 | AQ45: 0 | AR45: 0 | AS45: 0 | AT45: 0 | AU45: 0 | AV45: 0 | AW45: 0 | AX45: 0 | AZ45: 0 | BA45: 0 | BB45: 0 | BC45: =IF(X45>0,VLOOKUP(A45,Rang!$A$4:$AU$53,47,FALSE))/1000 -> 0
A46: =IF(Runden!A46="","",Runden!A46) ->  | B46: =IF(Rang!B46>0,VLOOKUP(Rang!B46,Einstellungen!$A$3:$B$52,2,FALSE),0) -> 0 | C46: =IF(Rang!C46>0,VLOOKUP(Rang!C46,Einstellungen!$A$3:$B$52,2,FALSE),0) -> 0 | D46: =IF(Rang!D46>0,VLOOKUP(Rang!D46,Einstellungen!$A$3:$B$52,2,FALSE),0) -> 0 | E46: =IF(Rang!E46>0,VLOOKUP(Rang!E46,Einstellungen!$A$3:$B$52,2,FALSE),0) -> 0 | F46: =IF(Rang!F46>0,VLOOKUP(Rang!F46,Einstellungen!$A$3:$B$52,2,FALSE),0) -> 0 | G46: =IF(Rang!G46>0,VLOOKUP(Rang!G46,Einstellungen!$A$3:$B$52,2,FALSE),0) -> 0 | H46: =IF(Rang!H46>0,VLOOKUP(Rang!H46,Einstellungen!$A$3:$B$52,2,FALSE),0) -> 0 | I46: =IF(Rang!I46>0,VLOOKUP(Rang!I46,Einstellungen!$A$3:$B$52,2,FALSE),0) -> 0 | J46: =IF(Rang!J46>0,VLOOKUP(Rang!J46,Einstellungen!$A$3:$B$52,2,FALSE),0) -> 0 | K46: =IF(Rang!K46>0,VLOOKUP(Rang!K46,Einstellungen!$A$3:$B$52,2,FALSE),0) -> 0 | L46: =IF(Rang!L46>0,VLOOKUP(Rang!L46,Einstellungen!$A$3:$B$52,2,FALSE),0) -> 0 | M46: =IF(Rang!M46>0,VLOOKUP(Rang!M46,Einstellungen!$A$3:$B$52,2,FALSE),0) -> 0 | N46: =IF(Rang!N46>0,VLOOKUP(Rang!N46,Einstellungen!$A$3:$B$52,2,FALSE),0) -> 0 | O46: =IF(Rang!O46>0,VLOOKUP(Rang!O46,Einstellungen!$A$3:$B$52,2,FALSE),0) -> 0 | P46: =IF(Rang!P46>0,VLOOKUP(Rang!P46,Einstellungen!$A$3:$B$52,2,FALSE),0) -> 0 | Q46: =IF(Rang!Q46>0,VLOOKUP(Rang!Q46,Einstellungen!$A$3:$B$52,2,FALSE),0) -> 0 | R46: =IF(Rang!R46>0,VLOOKUP(Rang!R46,Einstellungen!$A$3:$B$52,2,FALSE),0) -> 0 | S46: =IF(Rang!S46>0,VLOOKUP(Rang!S46,Einstellungen!$A$3:$B$52,2,FALSE),0) -> 0 | T46: =IF(Rang!T46>0,VLOOKUP(Rang!T46,Einstellungen!$A$3:$B$52,2,FALSE),0) -> 0 | U46: =IF(Rang!U46>0,VLOOKUP(Rang!U46,Einstellungen!$A$3:$B$52,2,FALSE),0) -> 0 | V46: =SUM(B46:U46)+IF($AY$4=2,AZ46,0)+IF($AY$4=3,BC46,0) -> 0 | W46: =IF(SUM(B46:U46)>0,RANK(V46,$V$4:$V$53,0),0) -> 0 | X46: =IF(SUM(B46:U46)>0,VLOOKUP(A46,TabRunden,22,FALSE),0) -> 0 | Y46: =AD46 -> 0 | Z46: =IF(AD46>=$AT$2,LOOKUP($AL$2,$AE$3:$AX$3,AE46:AX46),0)+IF($AY$4=2,AZ46,0)+IF($AY$4=3,BC46,0) -> 0 | AA46: =IF(Z46>0,RANK(Z46,$Z$4:$Z$53,0),0) -> 0 | AB46: =IF(W46=0,51,W46)+IF(A46="",50,0) -> 101 | AC46: =IF(AA46=0,51,AA46)+IF(A46="",50,0) -> 101 | AD46: 0 | AE46: 0 | AF46: =LARGE($B46:$U46,AF$3)+AE46 -> 0 | AG46: 0 | AH46: 0 | AI46: 0 | AJ46: 0 | AK46: 0 | AL46: 0 | AM46: 0 | AN46: 0 | AO46: 0 | AP46: 0 | AQ46: 0 | AR46: 0 | AS46: 0 | AT46: 0 | AU46: 0 | AV46: 0 | AW46: 0 | AX46: 0 | AZ46: 0 | BA46: 0 | BB46: 0 | BC46: =IF(X46>0,VLOOKUP(A46,Rang!$A$4:$AU$53,47,FALSE))/1000 -> 0
A47: =IF(Runden!A47="","",Runden!A47) ->  | B47: =IF(Rang!B47>0,VLOOKUP(Rang!B47,Einstellungen!$A$3:$B$52,2,FALSE),0) -> 0 | C47: =IF(Rang!C47>0,VLOOKUP(Rang!C47,Einstellungen!$A$3:$B$52,2,FALSE),0) -> 0 | D47: =IF(Rang!D47>0,VLOOKUP(Rang!D47,Einstellungen!$A$3:$B$52,2,FALSE),0) -> 0 | E47: =IF(Rang!E47>0,VLOOKUP(Rang!E47,Einstellungen!$A$3:$B$52,2,FALSE),0) -> 0 | F47: =IF(Rang!F47>0,VLOOKUP(Rang!F47,Einstellungen!$A$3:$B$52,2,FALSE),0) -> 0 | G47: =IF(Rang!G47>0,VLOOKUP(Rang!G47,Einstellungen!$A$3:$B$52,2,FALSE),0) -> 0 | H47: =IF(Rang!H47>0,VLOOKUP(Rang!H47,Einstellungen!$A$3:$B$52,2,FALSE),0) -> 0 | I47: =IF(Rang!I47>0,VLOOKUP(Rang!I47,Einstellungen!$A$3:$B$52,2,FALSE),0) -> 0 | J47: =IF(Rang!J47>0,VLOOKUP(Rang!J47,Einstellungen!$A$3:$B$52,2,FALSE),0) -> 0 | K47: =IF(Rang!K47>0,VLOOKUP(Rang!K47,Einstellungen!$A$3:$B$52,2,FALSE),0) -> 0 | L47: =IF(Rang!L47>0,VLOOKUP(Rang!L47,Einstellungen!$A$3:$B$52,2,FALSE),0) -> 0 | M47: =IF(Rang!M47>0,VLOOKUP(Rang!M47,Einstellungen!$A$3:$B$52,2,FALSE),0) -> 0 | N47: =IF(Rang!N47>0,VLOOKUP(Rang!N47,Einstellungen!$A$3:$B$52,2,FALSE),0) -> 0 | O47: =IF(Rang!O47>0,VLOOKUP(Rang!O47,Einstellungen!$A$3:$B$52,2,FALSE),0) -> 0 | P47: =IF(Rang!P47>0,VLOOKUP(Rang!P47,Einstellungen!$A$3:$B$52,2,FALSE),0) -> 0 | Q47: =IF(Rang!Q47>0,VLOOKUP(Rang!Q47,Einstellungen!$A$3:$B$52,2,FALSE),0) -> 0 | R47: =IF(Rang!R47>0,VLOOKUP(Rang!R47,Einstellungen!$A$3:$B$52,2,FALSE),0) -> 0 | S47: =IF(Rang!S47>0,VLOOKUP(Rang!S47,Einstellungen!$A$3:$B$52,2,FALSE),0) -> 0 | T47: =IF(Rang!T47>0,VLOOKUP(Rang!T47,Einstellungen!$A$3:$B$52,2,FALSE),0) -> 0 | U47: =IF(Rang!U47>0,VLOOKUP(Rang!U47,Einstellungen!$A$3:$B$52,2,FALSE),0) -> 0 | V47: =SUM(B47:U47)+IF($AY$4=2,AZ47,0)+IF($AY$4=3,BC47,0) -> 0 | W47: =IF(SUM(B47:U47)>0,RANK(V47,$V$4:$V$53,0),0) -> 0 | X47: =IF(SUM(B47:U47)>0,VLOOKUP(A47,TabRunden,22,FALSE),0) -> 0 | Y47: =AD47 -> 0 | Z47: =IF(AD47>=$AT$2,LOOKUP($AL$2,$AE$3:$AX$3,AE47:AX47),0)+IF($AY$4=2,AZ47,0)+IF($AY$4=3,BC47,0) -> 0 | AA47: =IF(Z47>0,RANK(Z47,$Z$4:$Z$53,0),0) -> 0 | AB47: =IF(W47=0,51,W47)+IF(A47="",50,0) -> 101 | AC47: =IF(AA47=0,51,AA47)+IF(A47="",50,0) -> 101 | AD47: 0 | AE47: 0 | AF47: =LARGE($B47:$U47,AF$3)+AE47 -> 0 | AG47: 0 | AH47: 0 | AI47: 0 | AJ47: 0 | AK47: 0 | AL47: 0 | AM47: 0 | AN47: 0 | AO47: 0 | AP47: 0 | AQ47: 0 | AR47: 0 | AS47: 0 | AT47: 0 | AU47: 0 | AV47: 0 | AW47: 0 | AX47: 0 | AZ47: 0 | BA47: 0 | BB47: 0 | BC47: =IF(X47>0,VLOOKUP(A47,Rang!$A$4:$AU$53,47,FALSE))/1000 -> 0
A48: =IF(Runden!A48="","",Runden!A48) ->  | B48: =IF(Rang!B48>0,VLOOKUP(Rang!B48,Einstellungen!$A$3:$B$52,2,FALSE),0) -> 0 | C48: =IF(Rang!C48>0,VLOOKUP(Rang!C48,Einstellungen!$A$3:$B$52,2,FALSE),0) -> 0 | D48: =IF(Rang!D48>0,VLOOKUP(Rang!D48,Einstellungen!$A$3:$B$52,2,FALSE),0) -> 0 | E48: =IF(Rang!E48>0,VLOOKUP(Rang!E48,Einstellungen!$A$3:$B$52,2,FALSE),0) -> 0 | F48: =IF(Rang!F48>0,VLOOKUP(Rang!F48,Einstellungen!$A$3:$B$52,2,FALSE),0) -> 0 | G48: =IF(Rang!G48>0,VLOOKUP(Rang!G48,Einstellungen!$A$3:$B$52,2,FALSE),0) -> 0 | H48: =IF(Rang!H48>0,VLOOKUP(Rang!H48,Einstellungen!$A$3:$B$52,2,FALSE),0) -> 0 | I48: =IF(Rang!I48>0,VLOOKUP(Rang!I48,Einstellungen!$A$3:$B$52,2,FALSE),0) -> 0 | J48: =IF(Rang!J48>0,VLOOKUP(Rang!J48,Einstellungen!$A$3:$B$52,2,FALSE),0) -> 0 | K48: =IF(Rang!K48>0,VLOOKUP(Rang!K48,Einstellungen!$A$3:$B$52,2,FALSE),0) -> 0 | L48: =IF(Rang!L48>0,VLOOKUP(Rang!L48,Einstellungen!$A$3:$B$52,2,FALSE),0) -> 0 | M48: =IF(Rang!M48>0,VLOOKUP(Rang!M48,Einstellungen!$A$3:$B$52,2,FALSE),0) -> 0 | N48: =IF(Rang!N48>0,VLOOKUP(Rang!N48,Einstellungen!$A$3:$B$52,2,FALSE),0) -> 0 | O48: =IF(Rang!O48>0,VLOOKUP(Rang!O48,Einstellungen!$A$3:$B$52,2,FALSE),0) -> 0 | P48: =IF(Rang!P48>0,VLOOKUP(Rang!P48,Einstellungen!$A$3:$B$52,2,FALSE),0) -> 0 | Q48: =IF(Rang!Q48>0,VLOOKUP(Rang!Q48,Einstellungen!$A$3:$B$52,2,FALSE),0) -> 0 | R48: =IF(Rang!R48>0,VLOOKUP(Rang!R48,Einstellungen!$A$3:$B$52,2,FALSE),0) -> 0 | S48: =IF(Rang!S48>0,VLOOKUP(Rang!S48,Einstellungen!$A$3:$B$52,2,FALSE),0) -> 0 | T48: =IF(Rang!T48>0,VLOOKUP(Rang!T48,Einstellungen!$A$3:$B$52,2,FALSE),0) -> 0 | U48: =IF(Rang!U48>0,VLOOKUP(Rang!U48,Einstellungen!$A$3:$B$52,2,FALSE),0) -> 0 | V48: =SUM(B48:U48)+IF($AY$4=2,AZ48,0)+IF($AY$4=3,BC48,0) -> 0 | W48: =IF(SUM(B48:U48)>0,RANK(V48,$V$4:$V$53,0),0) -> 0 | X48: =IF(SUM(B48:U48)>0,VLOOKUP(A48,TabRunden,22,FALSE),0) -> 0 | Y48: =AD48 -> 0 | Z48: =IF(AD48>=$AT$2,LOOKUP($AL$2,$AE$3:$AX$3,AE48:AX48),0)+IF($AY$4=2,AZ48,0)+IF($AY$4=3,BC48,0) -> 0 | AA48: =IF(Z48>0,RANK(Z48,$Z$4:$Z$53,0),0) -> 0 | AB48: =IF(W48=0,51,W48)+IF(A48="",50,0) -> 101 | AC48: =IF(AA48=0,51,AA48)+IF(A48="",50,0) -> 101 | AD48: 0 | AE48: 0 | AF48: =LARGE($B48:$U48,AF$3)+AE48 -> 0 | AG48: 0 | AH48: 0 | AI48: 0 | AJ48: 0 | AK48: 0 | AL48: 0 | AM48: 0 | AN48: 0 | AO48: 0 | AP48: 0 | AQ48: 0 | AR48: 0 | AS48: 0 | AT48: 0 | AU48: 0 | AV48: 0 | AW48: 0 | AX48: 0 | AZ48: 0 | BA48: 0 | BB48: 0 | BC48: =IF(X48>0,VLOOKUP(A48,Rang!$A$4:$AU$53,47,FALSE))/1000 -> 0
A49: =IF(Runden!A49="","",Runden!A49) ->  | B49: =IF(Rang!B49>0,VLOOKUP(Rang!B49,Einstellungen!$A$3:$B$52,2,FALSE),0) -> 0 | C49: =IF(Rang!C49>0,VLOOKUP(Rang!C49,Einstellungen!$A$3:$B$52,2,FALSE),0) -> 0 | D49: =IF(Rang!D49>0,VLOOKUP(Rang!D49,Einstellungen!$A$3:$B$52,2,FALSE),0) -> 0 | E49: =IF(Rang!E49>0,VLOOKUP(Rang!E49,Einstellungen!$A$3:$B$52,2,FALSE),0) -> 0 | F49: =IF(Rang!F49>0,VLOOKUP(Rang!F49,Einstellungen!$A$3:$B$52,2,FALSE),0) -> 0 | G49: =IF(Rang!G49>0,VLOOKUP(Rang!G49,Einstellungen!$A$3:$B$52,2,FALSE),0) -> 0 | H49: =IF(Rang!H49>0,VLOOKUP(Rang!H49,Einstellungen!$A$3:$B$52,2,FALSE),0) -> 0 | I49: =IF(Rang!I49>0,VLOOKUP(Rang!I49,Einstellungen!$A$3:$B$52,2,FALSE),0) -> 0 | J49: =IF(Rang!J49>0,VLOOKUP(Rang!J49,Einstellungen!$A$3:$B$52,2,FALSE),0) -> 0 | K49: =IF(Rang!K49>0,VLOOKUP(Rang!K49,Einstellungen!$A$3:$B$52,2,FALSE),0) -> 0 | L49: =IF(Rang!L49>0,VLOOKUP(Rang!L49,Einstellungen!$A$3:$B$52,2,FALSE),0) -> 0 | M49: =IF(Rang!M49>0,VLOOKUP(Rang!M49,Einstellungen!$A$3:$B$52,2,FALSE),0) -> 0 | N49: =IF(Rang!N49>0,VLOOKUP(Rang!N49,Einstellungen!$A$3:$B$52,2,FALSE),0) -> 0 | O49: =IF(Rang!O49>0,VLOOKUP(Rang!O49,Einstellungen!$A$3:$B$52,2,FALSE),0) -> 0 | P49: =IF(Rang!P49>0,VLOOKUP(Rang!P49,Einstellungen!$A$3:$B$52,2,FALSE),0) -> 0 | Q49: =IF(Rang!Q49>0,VLOOKUP(Rang!Q49,Einstellungen!$A$3:$B$52,2,FALSE),0) -> 0 | R49: =IF(Rang!R49>0,VLOOKUP(Rang!R49,Einstellungen!$A$3:$B$52,2,FALSE),0) -> 0 | S49: =IF(Rang!S49>0,VLOOKUP(Rang!S49,Einstellungen!$A$3:$B$52,2,FALSE),0) -> 0 | T49: =IF(Rang!T49>0,VLOOKUP(Rang!T49,Einstellungen!$A$3:$B$52,2,FALSE),0) -> 0 | U49: =IF(Rang!U49>0,VLOOKUP(Rang!U49,Einstellungen!$A$3:$B$52,2,FALSE),0) -> 0 | V49: =SUM(B49:U49)+IF($AY$4=2,AZ49,0)+IF($AY$4=3,BC49,0) -> 0 | W49: =IF(SUM(B49:U49)>0,RANK(V49,$V$4:$V$53,0),0) -> 0 | X49: =IF(SUM(B49:U49)>0,VLOOKUP(A49,TabRunden,22,FALSE),0) -> 0 | Y49: =AD49 -> 0 | Z49: =IF(AD49>=$AT$2,LOOKUP($AL$2,$AE$3:$AX$3,AE49:AX49),0)+IF($AY$4=2,AZ49,0)+IF($AY$4=3,BC49,0) -> 0 | AA49: =IF(Z49>0,RANK(Z49,$Z$4:$Z$53,0),0) -> 0 | AB49: =IF(W49=0,51,W49)+IF(A49="",50,0) -> 101 | AC49: =IF(AA49=0,51,AA49)+IF(A49="",50,0) -> 101 | AD49: 0 | AE49: 0 | AF49: =LARGE($B49:$U49,AF$3)+AE49 -> 0 | AG49: 0 | AH49: 0 | AI49: 0 | AJ49: 0 | AK49: 0 | AL49: 0 | AM49: 0 | AN49: 0 | AO49: 0 | AP49: 0 | AQ49: 0 | AR49: 0 | AS49: 0 | AT49: 0 | AU49: 0 | AV49: 0 | AW49: 0 | AX49: 0 | AZ49: 0 | BA49: 0 | BB49: 0 | BC49: =IF(X49>0,VLOOKUP(A49,Rang!$A$4:$AU$53,47,FALSE))/1000 -> 0
A50: =IF(Runden!A50="","",Runden!A50) ->  | B50: =IF(Rang!B50>0,VLOOKUP(Rang!B50,Einstellungen!$A$3:$B$52,2,FALSE),0) -> 0 | C50: =IF(Rang!C50>0,VLOOKUP(Rang!C50,Einstellungen!$A$3:$B$52,2,FALSE),0) -> 0 | D50: =IF(Rang!D50>0,VLOOKUP(Rang!D50,Einstellungen!$A$3:$B$52,2,FALSE),0) -> 0 | E50: =IF(Rang!E50>0,VLOOKUP(Rang!E50,Einstellungen!$A$3:$B$52,2,FALSE),0) -> 0 | F50: =IF(Rang!F50>0,VLOOKUP(Rang!F50,Einstellungen!$A$3:$B$52,2,FALSE),0) -> 0 | G50: =IF(Rang!G50>0,VLOOKUP(Rang!G50,Einstellungen!$A$3:$B$52,2,FALSE),0) -> 0 | H50: =IF(Rang!H50>0,VLOOKUP(Rang!H50,Einstellungen!$A$3:$B$52,2,FALSE),0) -> 0 | I50: =IF(Rang!I50>0,VLOOKUP(Rang!I50,Einstellungen!$A$3:$B$52,2,FALSE),0) -> 0 | J50: =IF(Rang!J50>0,VLOOKUP(Rang!J50,Einstellungen!$A$3:$B$52,2,FALSE),0) -> 0 | K50: =IF(Rang!K50>0,VLOOKUP(Rang!K50,Einstellungen!$A$3:$B$52,2,FALSE),0) -> 0 | L50: =IF(Rang!L50>0,VLOOKUP(Rang!L50,Einstellungen!$A$3:$B$52,2,FALSE),0) -> 0 | M50: =IF(Rang!M50>0,VLOOKUP(Rang!M50,Einstellungen!$A$3:$B$52,2,FALSE),0) -> 0 | N50: =IF(Rang!N50>0,VLOOKUP(Rang!N50,Einstellungen!$A$3:$B$52,2,FALSE),0) -> 0 | O50: =IF(Rang!O50>0,VLOOKUP(Rang!O50,Einstellungen!$A$3:$B$52,2,FALSE),0) -> 0 | P50: =IF(Rang!P50>0,VLOOKUP(Rang!P50,Einstellungen!$A$3:$B$52,2,FALSE),0) -> 0 | Q50: =IF(Rang!Q50>0,VLOOKUP(Rang!Q50,Einstellungen!$A$3:$B$52,2,FALSE),0) -> 0 | R50: =IF(Rang!R50>0,VLOOKUP(Rang!R50,Einstellungen!$A$3:$B$52,2,FALSE),0) -> 0 | S50: =IF(Rang!S50>0,VLOOKUP(Rang!S50,Einstellungen!$A$3:$B$52,2,FALSE),0) -> 0 | T50: =IF(Rang!T50>0,VLOOKUP(Rang!T50,Einstellungen!$A$3:$B$52,2,FALSE),0) -> 0 | U50: =IF(Rang!U50>0,VLOOKUP(Rang!U50,Einstellungen!$A$3:$B$52,2,FALSE),0) -> 0 | V50: =SUM(B50:U50)+IF($AY$4=2,AZ50,0)+IF($AY$4=3,BC50,0) -> 0 | W50: =IF(SUM(B50:U50)>0,RANK(V50,$V$4:$V$53,0),0) -> 0 | X50: =IF(SUM(B50:U50)>0,VLOOKUP(A50,TabRunden,22,FALSE),0) -> 0 | Y50: =AD50 -> 0 | Z50: =IF(AD50>=$AT$2,LOOKUP($AL$2,$AE$3:$AX$3,AE50:AX50),0)+IF($AY$4=2,AZ50,0)+IF($AY$4=3,BC50,0) -> 0 | AA50: =IF(Z50>0,RANK(Z50,$Z$4:$Z$53,0),0) -> 0 | AB50: =IF(W50=0,51,W50)+IF(A50="",50,0) -> 101 | AC50: =IF(AA50=0,51,AA50)+IF(A50="",50,0) -> 101 | AD50: 0 | AE50: 0 | AF50: =LARGE($B50:$U50,AF$3)+AE50 -> 0 | AG50: 0 | AH50: 0 | AI50: 0 | AJ50: 0 | AK50: 0 | AL50: 0 | AM50: 0 | AN50: 0 | AO50: 0 | AP50: 0 | AQ50: 0 | AR50: 0 | AS50: 0 | AT50: 0 | AU50: 0 | AV50: 0 | AW50: 0 | AX50: 0 | AZ50: 0 | BA50: 0 | BB50: 0 | BC50: =IF(X50>0,VLOOKUP(A50,Rang!$A$4:$AU$53,47,FALSE))/1000 -> 0
A51: =IF(Runden!A51="","",Runden!A51) ->  | B51: =IF(Rang!B51>0,VLOOKUP(Rang!B51,Einstellungen!$A$3:$B$52,2,FALSE),0) -> 0 | C51: =IF(Rang!C51>0,VLOOKUP(Rang!C51,Einstellungen!$A$3:$B$52,2,FALSE),0) -> 0 | D51: =IF(Rang!D51>0,VLOOKUP(Rang!D51,Einstellungen!$A$3:$B$52,2,FALSE),0) -> 0 | E51: =IF(Rang!E51>0,VLOOKUP(Rang!E51,Einstellungen!$A$3:$B$52,2,FALSE),0) -> 0 | F51: =IF(Rang!F51>0,VLOOKUP(Rang!F51,Einstellungen!$A$3:$B$52,2,FALSE),0) -> 0 | G51: =IF(Rang!G51>0,VLOOKUP(Rang!G51,Einstellungen!$A$3:$B$52,2,FALSE),0) -> 0 | H51: =IF(Rang!H51>0,VLOOKUP(Rang!H51,Einstellungen!$A$3:$B$52,2,FALSE),0) -> 0 | I51: =IF(Rang!I51>0,VLOOKUP(Rang!I51,Einstellungen!$A$3:$B$52,2,FALSE),0) -> 0 | J51: =IF(Rang!J51>0,VLOOKUP(Rang!J51,Einstellungen!$A$3:$B$52,2,FALSE),0) -> 0 | K51: =IF(Rang!K51>0,VLOOKUP(Rang!K51,Einstellungen!$A$3:$B$52,2,FALSE),0) -> 0 | L51: =IF(Rang!L51>0,VLOOKUP(Rang!L51,Einstellungen!$A$3:$B$52,2,FALSE),0) -> 0 | M51: =IF(Rang!M51>0,VLOOKUP(Rang!M51,Einstellungen!$A$3:$B$52,2,FALSE),0) -> 0 | N51: =IF(Rang!N51>0,VLOOKUP(Rang!N51,Einstellungen!$A$3:$B$52,2,FALSE),0) -> 0 | O51: =IF(Rang!O51>0,VLOOKUP(Rang!O51,Einstellungen!$A$3:$B$52,2,FALSE),0) -> 0 | P51: =IF(Rang!P51>0,VLOOKUP(Rang!P51,Einstellungen!$A$3:$B$52,2,FALSE),0) -> 0 | Q51: =IF(Rang!Q51>0,VLOOKUP(Rang!Q51,Einstellungen!$A$3:$B$52,2,FALSE),0) -> 0 | R51: =IF(Rang!R51>0,VLOOKUP(Rang!R51,Einstellungen!$A$3:$B$52,2,FALSE),0) -> 0 | S51: =IF(Rang!S51>0,VLOOKUP(Rang!S51,Einstellungen!$A$3:$B$52,2,FALSE),0) -> 0 | T51: =IF(Rang!T51>0,VLOOKUP(Rang!T51,Einstellungen!$A$3:$B$52,2,FALSE),0) -> 0 | U51: =IF(Rang!U51>0,VLOOKUP(Rang!U51,Einstellungen!$A$3:$B$52,2,FALSE),0) -> 0 | V51: =SUM(B51:U51)+IF($AY$4=2,AZ51,0)+IF($AY$4=3,BC51,0) -> 0 | W51: =IF(SUM(B51:U51)>0,RANK(V51,$V$4:$V$53,0),0) -> 0 | X51: =IF(SUM(B51:U51)>0,VLOOKUP(A51,TabRunden,22,FALSE),0) -> 0 | Y51: =AD51 -> 0 | Z51: =IF(AD51>=$AT$2,LOOKUP($AL$2,$AE$3:$AX$3,AE51:AX51),0)+IF($AY$4=2,AZ51,0)+IF($AY$4=3,BC51,0) -> 0 | AA51: =IF(Z51>0,RANK(Z51,$Z$4:$Z$53,0),0) -> 0 | AB51: =IF(W51=0,51,W51)+IF(A51="",50,0) -> 101 | AC51: =IF(AA51=0,51,AA51)+IF(A51="",50,0) -> 101 | AD51: 0 | AE51: 0 | AF51: =LARGE($B51:$U51,AF$3)+AE51 -> 0 | AG51: 0 | AH51: 0 | AI51: 0 | AJ51: 0 | AK51: 0 | AL51: 0 | AM51: 0 | AN51: 0 | AO51: 0 | AP51: 0 | AQ51: 0 | AR51: 0 | AS51: 0 | AT51: 0 | AU51: 0 | AV51: 0 | AW51: 0 | AX51: 0 | AZ51: 0 | BA51: 0 | BB51: 0 | BC51: =IF(X51>0,VLOOKUP(A51,Rang!$A$4:$AU$53,47,FALSE))/1000 -> 0
A52: =IF(Runden!A52="","",Runden!A52) ->  | B52: =IF(Rang!B52>0,VLOOKUP(Rang!B52,Einstellungen!$A$3:$B$52,2,FALSE),0) -> 0 | C52: =IF(Rang!C52>0,VLOOKUP(Rang!C52,Einstellungen!$A$3:$B$52,2,FALSE),0) -> 0 | D52: =IF(Rang!D52>0,VLOOKUP(Rang!D52,Einstellungen!$A$3:$B$52,2,FALSE),0) -> 0 | E52: =IF(Rang!E52>0,VLOOKUP(Rang!E52,Einstellungen!$A$3:$B$52,2,FALSE),0) -> 0 | F52: =IF(Rang!F52>0,VLOOKUP(Rang!F52,Einstellungen!$A$3:$B$52,2,FALSE),0) -> 0 | G52: =IF(Rang!G52>0,VLOOKUP(Rang!G52,Einstellungen!$A$3:$B$52,2,FALSE),0) -> 0 | H52: =IF(Rang!H52>0,VLOOKUP(Rang!H52,Einstellungen!$A$3:$B$52,2,FALSE),0) -> 0 | I52: =IF(Rang!I52>0,VLOOKUP(Rang!I52,Einstellungen!$A$3:$B$52,2,FALSE),0) -> 0 | J52: =IF(Rang!J52>0,VLOOKUP(Rang!J52,Einstellungen!$A$3:$B$52,2,FALSE),0) -> 0 | K52: =IF(Rang!K52>0,VLOOKUP(Rang!K52,Einstellungen!$A$3:$B$52,2,FALSE),0) -> 0 | L52: =IF(Rang!L52>0,VLOOKUP(Rang!L52,Einstellungen!$A$3:$B$52,2,FALSE),0) -> 0 | M52: =IF(Rang!M52>0,VLOOKUP(Rang!M52,Einstellungen!$A$3:$B$52,2,FALSE),0) -> 0 | N52: =IF(Rang!N52>0,VLOOKUP(Rang!N52,Einstellungen!$A$3:$B$52,2,FALSE),0) -> 0 | O52: =IF(Rang!O52>0,VLOOKUP(Rang!O52,Einstellungen!$A$3:$B$52,2,FALSE),0) -> 0 | P52: =IF(Rang!P52>0,VLOOKUP(Rang!P52,Einstellungen!$A$3:$B$52,2,FALSE),0) -> 0 | Q52: =IF(Rang!Q52>0,VLOOKUP(Rang!Q52,Einstellungen!$A$3:$B$52,2,FALSE),0) -> 0 | R52: =IF(Rang!R52>0,VLOOKUP(Rang!R52,Einstellungen!$A$3:$B$52,2,FALSE),0) -> 0 | S52: =IF(Rang!S52>0,VLOOKUP(Rang!S52,Einstellungen!$A$3:$B$52,2,FALSE),0) -> 0 | T52: =IF(Rang!T52>0,VLOOKUP(Rang!T52,Einstellungen!$A$3:$B$52,2,FALSE),0) -> 0 | U52: =IF(Rang!U52>0,VLOOKUP(Rang!U52,Einstellungen!$A$3:$B$52,2,FALSE),0) -> 0 | V52: =SUM(B52:U52)+IF($AY$4=2,AZ52,0)+IF($AY$4=3,BC52,0) -> 0 | W52: =IF(SUM(B52:U52)>0,RANK(V52,$V$4:$V$53,0),0) -> 0 | X52: =IF(SUM(B52:U52)>0,VLOOKUP(A52,TabRunden,22,FALSE),0) -> 0 | Y52: =AD52 -> 0 | Z52: =IF(AD52>=$AT$2,LOOKUP($AL$2,$AE$3:$AX$3,AE52:AX52),0)+IF($AY$4=2,AZ52,0)+IF($AY$4=3,BC52,0) -> 0 | AA52: =IF(Z52>0,RANK(Z52,$Z$4:$Z$53,0),0) -> 0 | AB52: =IF(W52=0,51,W52)+IF(A52="",50,0) -> 101 | AC52: =IF(AA52=0,51,AA52)+IF(A52="",50,0) -> 101 | AD52: 0 | AE52: 0 | AF52: =LARGE($B52:$U52,AF$3)+AE52 -> 0 | AG52: 0 | AH52: 0 | AI52: 0 | AJ52: 0 | AK52: 0 | AL52: 0 | AM52: 0 | AN52: 0 | AO52: 0 | AP52: 0 | AQ52: 0 | AR52: 0 | AS52: 0 | AT52: 0 | AU52: 0 | AV52: 0 | AW52: 0 | AX52: 0 | AZ52: 0 | BA52: 0 | BB52: 0 | BC52: =IF(X52>0,VLOOKUP(A52,Rang!$A$4:$AU$53,47,FALSE))/1000 -> 0
A53: =IF(Runden!A53="","",Runden!A53) ->  | B53: =IF(Rang!B53>0,VLOOKUP(Rang!B53,Einstellungen!$A$3:$B$52,2,FALSE),0) -> 0 | C53: =IF(Rang!C53>0,VLOOKUP(Rang!C53,Einstellungen!$A$3:$B$52,2,FALSE),0) -> 0 | D53: =IF(Rang!D53>0,VLOOKUP(Rang!D53,Einstellungen!$A$3:$B$52,2,FALSE),0) -> 0 | E53: =IF(Rang!E53>0,VLOOKUP(Rang!E53,Einstellungen!$A$3:$B$52,2,FALSE),0) -> 0 | F53: =IF(Rang!F53>0,VLOOKUP(Rang!F53,Einstellungen!$A$3:$B$52,2,FALSE),0) -> 0 | G53: =IF(Rang!G53>0,VLOOKUP(Rang!G53,Einstellungen!$A$3:$B$52,2,FALSE),0) -> 0 | H53: =IF(Rang!H53>0,VLOOKUP(Rang!H53,Einstellungen!$A$3:$B$52,2,FALSE),0) -> 0 | I53: =IF(Rang!I53>0,VLOOKUP(Rang!I53,Einstellungen!$A$3:$B$52,2,FALSE),0) -> 0 | J53: =IF(Rang!J53>0,VLOOKUP(Rang!J53,Einstellungen!$A$3:$B$52,2,FALSE),0) -> 0 | K53: =IF(Rang!K53>0,VLOOKUP(Rang!K53,Einstellungen!$A$3:$B$52,2,FALSE),0) -> 0 | L53: =IF(Rang!L53>0,VLOOKUP(Rang!L53,Einstellungen!$A$3:$B$52,2,FALSE),0) -> 0 | M53: =IF(Rang!M53>0,VLOOKUP(Rang!M53,Einstellungen!$A$3:$B$52,2,FALSE),0) -> 0 | N53: =IF(Rang!N53>0,VLOOKUP(Rang!N53,Einstellungen!$A$3:$B$52,2,FALSE),0) -> 0 | O53: =IF(Rang!O53>0,VLOOKUP(Rang!O53,Einstellungen!$A$3:$B$52,2,FALSE),0) -> 0 | P53: =IF(Rang!P53>0,VLOOKUP(Rang!P53,Einstellungen!$A$3:$B$52,2,FALSE),0) -> 0 | Q53: =IF(Rang!Q53>0,VLOOKUP(Rang!Q53,Einstellungen!$A$3:$B$52,2,FALSE),0) -> 0 | R53: =IF(Rang!R53>0,VLOOKUP(Rang!R53,Einstellungen!$A$3:$B$52,2,FALSE),0) -> 0 | S53: =IF(Rang!S53>0,VLOOKUP(Rang!S53,Einstellungen!$A$3:$B$52,2,FALSE),0) -> 0 | T53: =IF(Rang!T53>0,VLOOKUP(Rang!T53,Einstellungen!$A$3:$B$52,2,FALSE),0) -> 0 | U53: =IF(Rang!U53>0,VLOOKUP(Rang!U53,Einstellungen!$A$3:$B$52,2,FALSE),0) -> 0 | V53: =SUM(B53:U53)+IF($AY$4=2,AZ53,0)+IF($AY$4=3,BC53,0) -> 0 | W53: =IF(SUM(B53:U53)>0,RANK(V53,$V$4:$V$53,0),0) -> 0 | X53: =IF(SUM(B53:U53)>0,VLOOKUP(A53,TabRunden,22,FALSE),0) -> 0 | Y53: =AD53 -> 0 | Z53: =IF(AD53>=$AT$2,LOOKUP($AL$2,$AE$3:$AX$3,AE53:AX53),0)+IF($AY$4=2,AZ53,0)+IF($AY$4=3,BC53,0) -> 0 | AA53: =IF(Z53>0,RANK(Z53,$Z$4:$Z$53,0),0) -> 0 | AB53: =IF(W53=0,51,W53)+IF(A53="",50,0) -> 101 | AC53: =IF(AA53=0,51,AA53)+IF(A53="",50,0) -> 101 | AD53: 0 | AE53: 0 | AF53: =LARGE($B53:$U53,AF$3)+AE53 -> 0 | AG53: 0 | AH53: 0 | AI53: 0 | AJ53: 0 | AK53: 0 | AL53: 0 | AM53: 0 | AN53: 0 | AO53: 0 | AP53: 0 | AQ53: 0 | AR53: 0 | AS53: 0 | AT53: 0 | AU53: 0 | AV53: 0 | AW53: 0 | AX53: 0 | AZ53: 0 | BA53: 0 | BB53: 0 | BC53: =IF(X53>0,VLOOKUP(A53,Rang!$A$4:$AU$53,47,FALSE))/1000 -> 0
A54: Teilnehmer: | B54: =COUNTIF(B4:B53,">0") -> 10 | C54: =COUNTIF(C4:C53,">0") -> 0 | D54: 0 | E54: 0 | F54: 0 | G54: 0 | H54: 0 | I54: 0 | J54: 0 | K54: 0 | L54: 0 | M54: 0 | N54: 0 | O54: 0 | P54: 0 | Q54: 0 | R54: 0 | S54: 0 | T54: 0 | U54: 0

Sheet Ergebnis Lauf
A1: =Einstellungen!D9 -> DTM2019 | B1: Ergebnis Lauf: | D1: =COUNTIF(Runden!B54:U54,">0") -> 1 | G1: Gewertete | I1: Stand
C2: am | D2: =IF(D1=0,0,CHOOSE(D1,Runden!B3,Runden!C3,Runden!D3,Runden!E3,Runden!F3,Runden!G3,Runden!H3,Runden!I3,Runden!J3,Runden!K3,Runden!L3,Runden!M3,Runden!N3,Runden!O3,Runden!P3,Runden!Q3,Runden!R3,Runden!S3,Runden!T3,Runden!U3)) -> 2018-12-04 | G2: Läufe | H2: ="nach dem "&D1&". Lauf" -> nach dem 1. Lauf
A3: Name | B3: Runden | C3: Rang | D3: Punkte | F3: Name | G3: Anzahl | H3: Punkte | I3: Platz | J3: Runden
A4: =IF(Runden!A4="","",Runden!A4) -> Ronald | B4: =IF(A4="",0,VLOOKUP(A4,Runden!$A$4:$U$53,IF($D$1=0,2,$D$1+1),FALSE)) -> 134.65 | C4: =IF(A4="",0,VLOOKUP(A4,Rang!$A$4:$U$53,IF($D$1=0,2,$D$1+1),FALSE)) -> 7 | D4: =IF(A4="",0,VLOOKUP(A4,Punkte!$A$4:$U$53,IF($D$1=0,2,$D$1+1),FALSE)) -> 12 | E4: =IF(C4=0,51,C4)+VLOOKUP(A4,Punkte!$A$4:$AC$53,27,FALSE)*0.001 -> 7.007 | F4: =IF(Runden!A4="","",Runden!A4) -> Ronald | G4: =IF(F4="",0,VLOOKUP(F4,Punkte!$A$4:$AC$53,25,FALSE)) -> 1 | H4: =IF(F4="",0,VLOOKUP(F4,Punkte!$A$4:$AC$53,22,FALSE)) -> 12 | I4: =IF(F4="",0,VLOOKUP(F4,Punkte!$A$4:$AC$53,23,FALSE)) -> 7 | J4: =IF(F4="",0,VLOOKUP(F4,Punkte!$A$4:$AC$53,24,FALSE)) -> 134.65 | K4: =IF(I4=0,51,I4)+IF(F4="",50,0) -> 7
A5: =IF(Runden!A5="","",Runden!A5) -> Günter | B5: =IF(A5="",0,VLOOKUP(A5,Runden!$A$4:$U$53,IF($D$1=0,2,$D$1+1),FALSE)) -> 136.03 | C5: =IF(A5="",0,VLOOKUP(A5,Rang!$A$4:$U$53,IF($D$1=0,2,$D$1+1),FALSE)) -> 5 | D5: =IF(A5="",0,VLOOKUP(A5,Punkte!$A$4:$U$53,IF($D$1=0,2,$D$1+1),FALSE)) -> 14 | E5: =IF(C5=0,51,C5)+VLOOKUP(A5,Punkte!$A$4:$AC$53,27,FALSE)*0.001 -> 5.005 | F5: =IF(Runden!A5="","",Runden!A5) -> Günter | G5: =IF(F5="",0,VLOOKUP(F5,Punkte!$A$4:$AC$53,25,FALSE)) -> 1 | H5: =IF(F5="",0,VLOOKUP(F5,Punkte!$A$4:$AC$53,22,FALSE)) -> 14 | I5: =IF(F5="",0,VLOOKUP(F5,Punkte!$A$4:$AC$53,23,FALSE)) -> 5 | J5: =IF(F5="",0,VLOOKUP(F5,Punkte!$A$4:$AC$53,24,FALSE)) -> 136.03 | K5: 5
A6: =IF(Runden!A6="","",Runden!A6) -> Marcus | B6: =IF(A6="",0,VLOOKUP(A6,Runden!$A$4:$U$53,IF($D$1=0,2,$D$1+1),FALSE)) -> 135.39 | C6: =IF(A6="",0,VLOOKUP(A6,Rang!$A$4:$U$53,IF($D$1=0,2,$D$1+1),FALSE)) -> 6 | D6: =IF(A6="",0,VLOOKUP(A6,Punkte!$A$4:$U$53,IF($D$1=0,2,$D$1+1),FALSE)) -> 13 | E6: =IF(C6=0,51,C6)+VLOOKUP(A6,Punkte!$A$4:$AC$53,27,FALSE)*0.001 -> 6.006 | F6: =IF(Runden!A6="","",Runden!A6) -> Marcus | G6: =IF(F6="",0,VLOOKUP(F6,Punkte!$A$4:$AC$53,25,FALSE)) -> 1 | H6: =IF(F6="",0,VLOOKUP(F6,Punkte!$A$4:$AC$53,22,FALSE)) -> 13 | I6: =IF(F6="",0,VLOOKUP(F6,Punkte!$A$4:$AC$53,23,FALSE)) -> 6 | J6: =IF(F6="",0,VLOOKUP(F6,Punkte!$A$4:$AC$53,24,FALSE)) -> 135.39 | K6: 6
A7: =IF(Runden!A7="","",Runden!A7) -> Dietmar | B7: =IF(A7="",0,VLOOKUP(A7,Runden!$A$4:$U$53,IF($D$1=0,2,$D$1+1),FALSE)) -> 0 | C7: =IF(A7="",0,VLOOKUP(A7,Rang!$A$4:$U$53,IF($D$1=0,2,$D$1+1),FALSE)) -> 0 | D7: =IF(A7="",0,VLOOKUP(A7,Punkte!$A$4:$U$53,IF($D$1=0,2,$D$1+1),FALSE)) -> 0 | E7: =IF(C7=0,51,C7)+VLOOKUP(A7,Punkte!$A$4:$AC$53,27,FALSE)*0.001 -> 51 | F7: =IF(Runden!A7="","",Runden!A7) -> Dietmar | G7: =IF(F7="",0,VLOOKUP(F7,Punkte!$A$4:$AC$53,25,FALSE)) -> 0 | H7: =IF(F7="",0,VLOOKUP(F7,Punkte!$A$4:$AC$53,22,FALSE)) -> 0 | I7: =IF(F7="",0,VLOOKUP(F7,Punkte!$A$4:$AC$53,23,FALSE)) -> 0 | J7: =IF(F7="",0,VLOOKUP(F7,Punkte!$A$4:$AC$53,24,FALSE)) -> 0 | K7: 51
A8: =IF(Runden!A8="","",Runden!A8) -> Hans | B8: =IF(A8="",0,VLOOKUP(A8,Runden!$A$4:$U$53,IF($D$1=0,2,$D$1+1),FALSE)) -> 137.3 | C8: =IF(A8="",0,VLOOKUP(A8,Rang!$A$4:$U$53,IF($D$1=0,2,$D$1+1),FALSE)) -> 4 | D8: =IF(A8="",0,VLOOKUP(A8,Punkte!$A$4:$U$53,IF($D$1=0,2,$D$1+1),FALSE)) -> 15 | E8: =IF(C8=0,51,C8)+VLOOKUP(A8,Punkte!$A$4:$AC$53,27,FALSE)*0.001 -> 4.004 | F8: =IF(Runden!A8="","",Runden!A8) -> Hans | G8: =IF(F8="",0,VLOOKUP(F8,Punkte!$A$4:$AC$53,25,FALSE)) -> 1 | H8: =IF(F8="",0,VLOOKUP(F8,Punkte!$A$4:$AC$53,22,FALSE)) -> 15 | I8: =IF(F8="",0,VLOOKUP(F8,Punkte!$A$4:$AC$53,23,FALSE)) -> 4 | J8: =IF(F8="",0,VLOOKUP(F8,Punkte!$A$4:$AC$53,24,FALSE)) -> 137.3 | K8: 4
A9: =IF(Runden!A9="","",Runden!A9) -> Chris | B9: =IF(A9="",0,VLOOKUP(A9,Runden!$A$4:$U$53,IF($D$1=0,2,$D$1+1),FALSE)) -> 139.4 | C9: =IF(A9="",0,VLOOKUP(A9,Rang!$A$4:$U$53,IF($D$1=0,2,$D$1+1),FALSE)) -> 2 | D9: =IF(A9="",0,VLOOKUP(A9,Punkte!$A$4:$U$53,IF($D$1=0,2,$D$1+1),FALSE)) -> 18 | E9: =IF(C9=0,51,C9)+VLOOKUP(A9,Punkte!$A$4:$AC$53,27,FALSE)*0.001 -> 2.002 | F9: =IF(Runden!A9="","",Runden!A9) -> Chris | G9: =IF(F9="",0,VLOOKUP(F9,Punkte!$A$4:$AC$53,25,FALSE)) -> 1 | H9: =IF(F9="",0,VLOOKUP(F9,Punkte!$A$4:$AC$53,22,FALSE)) -> 18 | I9: =IF(F9="",0,VLOOKUP(F9,Punkte!$A$4:$AC$53,23,FALSE)) -> 2 | J9: =IF(F9="",0,VLOOKUP(F9,Punkte!$A$4:$AC$53,24,FALSE)) -> 139.4 | K9: 2
A10: =IF(Runden!A10="","",Runden!A10) -> Ewald | B10: =IF(A10="",0,VLOOKUP(A10,Runden!$A$4:$U$53,IF($D$1=0,2,$D$1+1),FALSE)) -> 143.05 | C10: =IF(A10="",0,VLOOKUP(A10,Rang!$A$4:$U$53,IF($D$1=0,2,$D$1+1),FALSE)) -> 1 | D10: =IF(A10="",0,VLOOKUP(A10,Punkte!$A$4:$U$53,IF($D$1=0,2,$D$1+1),FALSE)) -> 20 | E10: =IF(C10=0,51,C10)+VLOOKUP(A10,Punkte!$A$4:$AC$53,27,FALSE)*0.001 -> 1.001 | F10: =IF(Runden!A10="","",Runden!A10) -> Ewald | G10: =IF(F10="",0,VLOOKUP(F10,Punkte!$A$4:$AC$53,25,FALSE)) -> 1 | H10: =IF(F10="",0,VLOOKUP(F10,Punkte!$A$4:$AC$53,22,FALSE)) -> 20 | I10: =IF(F10="",0,VLOOKUP(F10,Punkte!$A$4:$AC$53,23,FALSE)) -> 1 | J10: =IF(F10="",0,VLOOKUP(F10,Punkte!$A$4:$AC$53,24,FALSE)) -> 143.05 | K10: 1
A11: =IF(Runden!A11="","",Runden!A11) -> Sven | B11: =IF(A11="",0,VLOOKUP(A11,Runden!$A$4:$U$53,IF($D$1=0,2,$D$1+1),FALSE)) -> 0 | C11: =IF(A11="",0,VLOOKUP(A11,Rang!$A$4:$U$53,IF($D$1=0,2,$D$1+1),FALSE)) -> 0 | D11: =IF(A11="",0,VLOOKUP(A11,Punkte!$A$4:$U$53,IF($D$1=0,2,$D$1+1),FALSE)) -> 0 | E11: =IF(C11=0,51,C11)+VLOOKUP(A11,Punkte!$A$4:$AC$53,27,FALSE)*0.001 -> 51 | F11: =IF(Runden!A11="","",Runden!A11) -> Sven | G11: =IF(F11="",0,VLOOKUP(F11,Punkte!$A$4:$AC$53,25,FALSE)) -> 0 | H11: =IF(F11="",0,VLOOKUP(F11,Punkte!$A$4:$AC$53,22,FALSE)) -> 0 | I11: =IF(F11="",0,VLOOKUP(F11,Punkte!$A$4:$AC$53,23,FALSE)) -> 0 | J11: =IF(F11="",0,VLOOKUP(F11,Punkte!$A$4:$AC$53,24,FALSE)) -> 0 | K11: 51
A12: =IF(Runden!A12="","",Runden!A12) -> Thomas G. | B12: =IF(A12="",0,VLOOKUP(A12,Runden!$A$4:$U$53,IF($D$1=0,2,$D$1+1),FALSE)) -> 117.71 | C12: =IF(A12="",0,VLOOKUP(A12,Rang!$A$4:$U$53,IF($D$1=0,2,$D$1+1),FALSE)) -> 10 | D12: =IF(A12="",0,VLOOKUP(A12,Punkte!$A$4:$U$53,IF($D$1=0,2,$D$1+1),FALSE)) -> 9 | E12: =IF(C12=0,51,C12)+VLOOKUP(A12,Punkte!$A$4:$AC$53,27,FALSE)*0.001 -> 10.01 | F12: =IF(Runden!A12="","",Runden!A12) -> Thomas G. | G12: =IF(F12="",0,VLOOKUP(F12,Punkte!$A$4:$AC$53,25,FALSE)) -> 1 | H12: =IF(F12="",0,VLOOKUP(F12,Punkte!$A$4:$AC$53,22,FALSE)) -> 9 | I12: =IF(F12="",0,VLOOKUP(F12,Punkte!$A$4:$AC$53,23,FALSE)) -> 10 | J12: =IF(F12="",0,VLOOKUP(F12,Punkte!$A$4:$AC$53,24,FALSE)) -> 117.71 | K12: 10
A13: =IF(Runden!A13="","",Runden!A13) -> Thomas S. | B13: =IF(A13="",0,VLOOKUP(A13,Runden!$A$4:$U$53,IF($D$1=0,2,$D$1+1),FALSE)) -> 120.57 | C13: =IF(A13="",0,VLOOKUP(A13,Rang!$A$4:$U$53,IF($D$1=0,2,$D$1+1),FALSE)) -> 9 | D13: =IF(A13="",0,VLOOKUP(A13,Punkte!$A$4:$U$53,IF($D$1=0,2,$D$1+1),FALSE)) -> 10 | E13: =IF(C13=0,51,C13)+VLOOKUP(A13,Punkte!$A$4:$AC$53,27,FALSE)*0.001 -> 9.009 | F13: =IF(Runden!A13="","",Runden!A13) -> Thomas S. | G13: =IF(F13="",0,VLOOKUP(F13,Punkte!$A$4:$AC$53,25,FALSE)) -> 1 | H13: =IF(F13="",0,VLOOKUP(F13,Punkte!$A$4:$AC$53,22,FALSE)) -> 10 | I13: =IF(F13="",0,VLOOKUP(F13,Punkte!$A$4:$AC$53,23,FALSE)) -> 9 | J13: =IF(F13="",0,VLOOKUP(F13,Punkte!$A$4:$AC$53,24,FALSE)) -> 120.57 | K13: 9
A14: =IF(Runden!A14="","",Runden!A14) -> Thomas V. | B14: =IF(A14="",0,VLOOKUP(A14,Runden!$A$4:$U$53,IF($D$1=0,2,$D$1+1),FALSE)) -> 138.22 | C14: =IF(A14="",0,VLOOKUP(A14,Rang!$A$4:$U$53,IF($D$1=0,2,$D$1+1),FALSE)) -> 3 | D14: =IF(A14="",0,VLOOKUP(A14,Punkte!$A$4:$U$53,IF($D$1=0,2,$D$1+1),FALSE)) -> 16 | E14: =IF(C14=0,51,C14)+VLOOKUP(A14,Punkte!$A$4:$AC$53,27,FALSE)*0.001 -> 3.003 | F14: =IF(Runden!A14="","",Runden!A14) -> Thomas V. | G14: =IF(F14="",0,VLOOKUP(F14,Punkte!$A$4:$AC$53,25,FALSE)) -> 1 | H14: =IF(F14="",0,VLOOKUP(F14,Punkte!$A$4:$AC$53,22,FALSE)) -> 16 | I14: =IF(F14="",0,VLOOKUP(F14,Punkte!$A$4:$AC$53,23,FALSE)) -> 3 | J14: =IF(F14="",0,VLOOKUP(F14,Punkte!$A$4:$AC$53,24,FALSE)) -> 138.22 | K14: 3
A15: =IF(Runden!A15="","",Runden!A15) -> Christoph | B15: =IF(A15="",0,VLOOKUP(A15,Runden!$A$4:$U$53,IF($D$1=0,2,$D$1+1),FALSE)) -> 124.57 | C15: =IF(A15="",0,VLOOKUP(A15,Rang!$A$4:$U$53,IF($D$1=0,2,$D$1+1),FALSE)) -> 8 | D15: =IF(A15="",0,VLOOKUP(A15,Punkte!$A$4:$U$53,IF($D$1=0,2,$D$1+1),FALSE)) -> 11 | E15: =IF(C15=0,51,C15)+VLOOKUP(A15,Punkte!$A$4:$AC$53,27,FALSE)*0.001 -> 8.008 | F15: =IF(Runden!A15="","",Runden!A15) -> Christoph | G15: =IF(F15="",0,VLOOKUP(F15,Punkte!$A$4:$AC$53,25,FALSE)) -> 1 | H15: =IF(F15="",0,VLOOKUP(F15,Punkte!$A$4:$AC$53,22,FALSE)) -> 11 | I15: =IF(F15="",0,VLOOKUP(F15,Punkte!$A$4:$AC$53,23,FALSE)) -> 8 | J15: =IF(F15="",0,VLOOKUP(F15,Punkte!$A$4:$AC$53,24,FALSE)) -> 124.57 | K15: 8
A16: =IF(Runden!A16="","",Runden!A16) -> Olli | B16: =IF(A16="",0,VLOOKUP(A16,Runden!$A$4:$U$53,IF($D$1=0,2,$D$1+1),FALSE)) -> 0 | C16: =IF(A16="",0,VLOOKUP(A16,Rang!$A$4:$U$53,IF($D$1=0,2,$D$1+1),FALSE)) -> 0 | D16: =IF(A16="",0,VLOOKUP(A16,Punkte!$A$4:$U$53,IF($D$1=0,2,$D$1+1),FALSE)) -> 0 | E16: =IF(C16=0,51,C16)+VLOOKUP(A16,Punkte!$A$4:$AC$53,27,FALSE)*0.001 -> 51 | F16: =IF(Runden!A16="","",Runden!A16) -> Olli | G16: =IF(F16="",0,VLOOKUP(F16,Punkte!$A$4:$AC$53,25,FALSE)) -> 0 | H16: =IF(F16="",0,VLOOKUP(F16,Punkte!$A$4:$AC$53,22,FALSE)) -> 0 | I16: =IF(F16="",0,VLOOKUP(F16,Punkte!$A$4:$AC$53,23,FALSE)) -> 0 | J16: =IF(F16="",0,VLOOKUP(F16,Punkte!$A$4:$AC$53,24,FALSE)) -> 0 | K16: 51
A17: =IF(Runden!A17="","",Runden!A17) -> Horst | B17: =IF(A17="",0,VLOOKUP(A17,Runden!$A$4:$U$53,IF($D$1=0,2,$D$1+1),FALSE)) -> 0 | C17: =IF(A17="",0,VLOOKUP(A17,Rang!$A$4:$U$53,IF($D$1=0,2,$D$1+1),FALSE)) -> 0 | D17: =IF(A17="",0,VLOOKUP(A17,Punkte!$A$4:$U$53,IF($D$1=0,2,$D$1+1),FALSE)) -> 0 | E17: =IF(C17=0,51,C17)+VLOOKUP(A17,Punkte!$A$4:$AC$53,27,FALSE)*0.001 -> 51 | F17: =IF(Runden!A17="","",Runden!A17) -> Horst | G17: =IF(F17="",0,VLOOKUP(F17,Punkte!$A$4:$AC$53,25,FALSE)) -> 0 | H17: =IF(F17="",0,VLOOKUP(F17,Punkte!$A$4:$AC$53,22,FALSE)) -> 0 | I17: =IF(F17="",0,VLOOKUP(F17,Punkte!$A$4:$AC$53,23,FALSE)) -> 0 | J17: =IF(F17="",0,VLOOKUP(F17,Punkte!$A$4:$AC$53,24,FALSE)) -> 0 | K17: 51
A18: =IF(Runden!A18="","",Runden!A18) ->  | B18: =IF(A18="",0,VLOOKUP(A18,Runden!$A$4:$U$53,IF($D$1=0,2,$D$1+1),FALSE)) -> 0 | C18: =IF(A18="",0,VLOOKUP(A18,Rang!$A$4:$U$53,IF($D$1=0,2,$D$1+1),FALSE)) -> 0 | D18: =IF(A18="",0,VLOOKUP(A18,Punkte!$A$4:$U$53,IF($D$1=0,2,$D$1+1),FALSE)) -> 0 | E18: =IF(C18=0,51,C18)+VLOOKUP(A18,Punkte!$A$4:$AC$53,27,FALSE)*0.001 -> 51 | F18: =IF(Runden!A18="","",Runden!A18) ->  | G18: =IF(F18="",0,VLOOKUP(F18,Punkte!$A$4:$AC$53,25,FALSE)) -> 0 | H18: =IF(F18="",0,VLOOKUP(F18,Punkte!$A$4:$AC$53,22,FALSE)) -> 0 | I18: =IF(F18="",0,VLOOKUP(F18,Punkte!$A$4:$AC$53,23,FALSE)) -> 0 | J18: =IF(F18="",0,VLOOKUP(F18,Punkte!$A$4:$AC$53,24,FALSE)) -> 0 | K18: 101
A19: =IF(Runden!A19="","",Runden!A19) ->  | B19: =IF(A19="",0,VLOOKUP(A19,Runden!$A$4:$U$53,IF($D$1=0,2,$D$1+1),FALSE)) -> 0 | C19: =IF(A19="",0,VLOOKUP(A19,Rang!$A$4:$U$53,IF($D$1=0,2,$D$1+1),FALSE)) -> 0 | D19: =IF(A19="",0,VLOOKUP(A19,Punkte!$A$4:$U$53,IF($D$1=0,2,$D$1+1),FALSE)) -> 0 | E19: =IF(C19=0,51,C19)+VLOOKUP(A19,Punkte!$A$4:$AC$53,27,FALSE)*0.001 -> 51 | F19: =IF(Runden!A19="","",Runden!A19) ->  | G19: =IF(F19="",0,VLOOKUP(F19,Punkte!$A$4:$AC$53,25,FALSE)) -> 0 | H19: =IF(F19="",0,VLOOKUP(F19,Punkte!$A$4:$AC$53,22,FALSE)) -> 0 | I19: =IF(F19="",0,VLOOKUP(F19,Punkte!$A$4:$AC$53,23,FALSE)) -> 0 | J19: =IF(F19="",0,VLOOKUP(F19,Punkte!$A$4:$AC$53,24,FALSE)) -> 0 | K19: 101
A20: =IF(Runden!A20="","",Runden!A20) ->  | B20: =IF(A20="",0,VLOOKUP(A20,Runden!$A$4:$U$53,IF($D$1=0,2,$D$1+1),FALSE)) -> 0 | C20: =IF(A20="",0,VLOOKUP(A20,Rang!$A$4:$U$53,IF($D$1=0,2,$D$1+1),FALSE)) -> 0 | D20: =IF(A20="",0,VLOOKUP(A20,Punkte!$A$4:$U$53,IF($D$1=0,2,$D$1+1),FALSE)) -> 0 | E20: =IF(C20=0,51,C20)+VLOOKUP(A20,Punkte!$A$4:$AC$53,27,FALSE)*0.001 -> 51 | F20: =IF(Runden!A20="","",Runden!A20) ->  | G20: =IF(F20="",0,VLOOKUP(F20,Punkte!$A$4:$AC$53,25,FALSE)) -> 0 | H20: =IF(F20="",0,VLOOKUP(F20,Punkte!$A$4:$AC$53,22,FALSE)) -> 0 | I20: =IF(F20="",0,VLOOKUP(F20,Punkte!$A$4:$AC$53,23,FALSE)) -> 0 | J20: =IF(F20="",0,VLOOKUP(F20,Punkte!$A$4:$AC$53,24,FALSE)) -> 0 | K20: 101
A21: =IF(Runden!A21="","",Runden!A21) ->  | B21: =IF(A21="",0,VLOOKUP(A21,Runden!$A$4:$U$53,IF($D$1=0,2,$D$1+1),FALSE)) -> 0 | C21: =IF(A21="",0,VLOOKUP(A21,Rang!$A$4:$U$53,IF($D$1=0,2,$D$1+1),FALSE)) -> 0 | D21: =IF(A21="",0,VLOOKUP(A21,Punkte!$A$4:$U$53,IF($D$1=0,2,$D$1+1),FALSE)) -> 0 | E21: =IF(C21=0,51,C21)+VLOOKUP(A21,Punkte!$A$4:$AC$53,27,FALSE)*0.001 -> 51 | F21: =IF(Runden!A21="","",Runden!A21) ->  | G21: =IF(F21="",0,VLOOKUP(F21,Punkte!$A$4:$AC$53,25,FALSE)) -> 0 | H21: =IF(F21="",0,VLOOKUP(F21,Punkte!$A$4:$AC$53,22,FALSE)) -> 0 | I21: =IF(F21="",0,VLOOKUP(F21,Punkte!$A$4:$AC$53,23,FALSE)) -> 0 | J21: =IF(F21="",0,VLOOKUP(F21,Punkte!$A$4:$AC$53,24,FALSE)) -> 0 | K21: 101
A22: =IF(Runden!A22="","",Runden!A22) ->  | B22: =IF(A22="",0,VLOOKUP(A22,Runden!$A$4:$U$53,IF($D$1=0,2,$D$1+1),FALSE)) -> 0 | C22: =IF(A22="",0,VLOOKUP(A22,Rang!$A$4:$U$53,IF($D$1=0,2,$D$1+1),FALSE)) -> 0 | D22: =IF(A22="",0,VLOOKUP(A22,Punkte!$A$4:$U$53,IF($D$1=0,2,$D$1+1),FALSE)) -> 0 | E22: =IF(C22=0,51,C22)+VLOOKUP(A22,Punkte!$A$4:$AC$53,27,FALSE)*0.001 -> 51 | F22: =IF(Runden!A22="","",Runden!A22) ->  | G22: =IF(F22="",0,VLOOKUP(F22,Punkte!$A$4:$AC$53,25,FALSE)) -> 0 | H22: =IF(F22="",0,VLOOKUP(F22,Punkte!$A$4:$AC$53,22,FALSE)) -> 0 | I22: =IF(F22="",0,VLOOKUP(F22,Punkte!$A$4:$AC$53,23,FALSE)) -> 0 | J22: =IF(F22="",0,VLOOKUP(F22,Punkte!$A$4:$AC$53,24,FALSE)) -> 0 | K22: =IF(I22=0,51,I22)+IF(F22="",50,0) -> 101
A23: =IF(Runden!A23="","",Runden!A23) ->  | B23: =IF(A23="",0,VLOOKUP(A23,Runden!$A$4:$U$53,IF($D$1=0,2,$D$1+1),FALSE)) -> 0 | C23: =IF(A23="",0,VLOOKUP(A23,Rang!$A$4:$U$53,IF($D$1=0,2,$D$1+1),FALSE)) -> 0 | D23: =IF(A23="",0,VLOOKUP(A23,Punkte!$A$4:$U$53,IF($D$1=0,2,$D$1+1),FALSE)) -> 0 | E23: =IF(C23=0,51,C23)+VLOOKUP(A23,Punkte!$A$4:$AC$53,27,FALSE)*0.001 -> 51 | F23: =IF(Runden!A23="","",Runden!A23) ->  | G23: =IF(F23="",0,VLOOKUP(F23,Punkte!$A$4:$AC$53,25,FALSE)) -> 0 | H23: =IF(F23="",0,VLOOKUP(F23,Punkte!$A$4:$AC$53,22,FALSE)) -> 0 | I23: =IF(F23="",0,VLOOKUP(F23,Punkte!$A$4:$AC$53,23,FALSE)) -> 0 | J23: =IF(F23="",0,VLOOKUP(F23,Punkte!$A$4:$AC$53,24,FALSE)) -> 0 | K23: 101
A24: =IF(Runden!A24="","",Runden!A24) ->  | B24: =IF(A24="",0,VLOOKUP(A24,Runden!$A$4:$U$53,IF($D$1=0,2,$D$1+1),FALSE)) -> 0 | C24: =IF(A24="",0,VLOOKUP(A24,Rang!$A$4:$U$53,IF($D$1=0,2,$D$1+1),FALSE)) -> 0 | D24: =IF(A24="",0,VLOOKUP(A24,Punkte!$A$4:$U$53,IF($D$1=0,2,$D$1+1),FALSE)) -> 0 | E24: =IF(C24=0,51,C24)+VLOOKUP(A24,Punkte!$A$4:$AC$53,27,FALSE)*0.001 -> 51 | F24: =IF(Runden!A24="","",Runden!A24) ->  | G24: =IF(F24="",0,VLOOKUP(F24,Punkte!$A$4:$AC$53,25,FALSE)) -> 0 | H24: =IF(F24="",0,VLOOKUP(F24,Punkte!$A$4:$AC$53,22,FALSE)) -> 0 | I24: =IF(F24="",0,VLOOKUP(F24,Punkte!$A$4:$AC$53,23,FALSE)) -> 0 | J24: =IF(F24="",0,VLOOKUP(F24,Punkte!$A$4:$AC$53,24,FALSE)) -> 0 | K24: 101
A25: =IF(Runden!A25="","",Runden!A25) ->  | B25: =IF(A25="",0,VLOOKUP(A25,Runden!$A$4:$U$53,IF($D$1=0,2,$D$1+1),FALSE)) -> 0 | C25: =IF(A25="",0,VLOOKUP(A25,Rang!$A$4:$U$53,IF($D$1=0,2,$D$1+1),FALSE)) -> 0 | D25: =IF(A25="",0,VLOOKUP(A25,Punkte!$A$4:$U$53,IF($D$1=0,2,$D$1+1),FALSE)) -> 0 | E25: =IF(C25=0,51,C25)+VLOOKUP(A25,Punkte!$A$4:$AC$53,27,FALSE)*0.001 -> 51 | F25: =IF(Runden!A25="","",Runden!A25) ->  | G25: =IF(F25="",0,VLOOKUP(F25,Punkte!$A$4:$AC$53,25,FALSE)) -> 0 | H25: =IF(F25="",0,VLOOKUP(F25,Punkte!$A$4:$AC$53,22,FALSE)) -> 0 | I25: =IF(F25="",0,VLOOKUP(F25,Punkte!$A$4:$AC$53,23,FALSE)) -> 0 | J25: =IF(F25="",0,VLOOKUP(F25,Punkte!$A$4:$AC$53,24,FALSE)) -> 0 | K25: 101
A26: =IF(Runden!A26="","",Runden!A26) ->  | B26: =IF(A26="",0,VLOOKUP(A26,Runden!$A$4:$U$53,IF($D$1=0,2,$D$1+1),FALSE)) -> 0 | C26: =IF(A26="",0,VLOOKUP(A26,Rang!$A$4:$U$53,IF($D$1=0,2,$D$1+1),FALSE)) -> 0 | D26: =IF(A26="",0,VLOOKUP(A26,Punkte!$A$4:$U$53,IF($D$1=0,2,$D$1+1),FALSE)) -> 0 | E26: =IF(C26=0,51,C26)+VLOOKUP(A26,Punkte!$A$4:$AC$53,27,FALSE)*0.001 -> 51 | F26: =IF(Runden!A26="","",Runden!A26) ->  | G26: =IF(F26="",0,VLOOKUP(F26,Punkte!$A$4:$AC$53,25,FALSE)) -> 0 | H26: =IF(F26="",0,VLOOKUP(F26,Punkte!$A$4:$AC$53,22,FALSE)) -> 0 | I26: =IF(F26="",0,VLOOKUP(F26,Punkte!$A$4:$AC$53,23,FALSE)) -> 0 | J26: =IF(F26="",0,VLOOKUP(F26,Punkte!$A$4:$AC$53,24,FALSE)) -> 0 | K26: 101
A27: =IF(Runden!A27="","",Runden!A27) ->  | B27: =IF(A27="",0,VLOOKUP(A27,Runden!$A$4:$U$53,IF($D$1=0,2,$D$1+1),FALSE)) -> 0 | C27: =IF(A27="",0,VLOOKUP(A27,Rang!$A$4:$U$53,IF($D$1=0,2,$D$1+1),FALSE)) -> 0 | D27: =IF(A27="",0,VLOOKUP(A27,Punkte!$A$4:$U$53,IF($D$1=0,2,$D$1+1),FALSE)) -> 0 | E27: =IF(C27=0,51,C27)+VLOOKUP(A27,Punkte!$A$4:$AC$53,27,FALSE)*0.001 -> 51 | F27: =IF(Runden!A27="","",Runden!A27) ->  | G27: =IF(F27="",0,VLOOKUP(F27,Punkte!$A$4:$AC$53,25,FALSE)) -> 0 | H27: =IF(F27="",0,VLOOKUP(F27,Punkte!$A$4:$AC$53,22,FALSE)) -> 0 | I27: =IF(F27="",0,VLOOKUP(F27,Punkte!$A$4:$AC$53,23,FALSE)) -> 0 | J27: =IF(F27="",0,VLOOKUP(F27,Punkte!$A$4:$AC$53,24,FALSE)) -> 0 | K27: 101
A28: =IF(Runden!A28="","",Runden!A28) ->  | B28: =IF(A28="",0,VLOOKUP(A28,Runden!$A$4:$U$53,IF($D$1=0,2,$D$1+1),FALSE)) -> 0 | C28: =IF(A28="",0,VLOOKUP(A28,Rang!$A$4:$U$53,IF($D$1=0,2,$D$1+1),FALSE)) -> 0 | D28: =IF(A28="",0,VLOOKUP(A28,Punkte!$A$4:$U$53,IF($D$1=0,2,$D$1+1),FALSE)) -> 0 | E28: =IF(C28=0,51,C28)+VLOOKUP(A28,Punkte!$A$4:$AC$53,27,FALSE)*0.001 -> 51 | F28: =IF(Runden!A28="","",Runden!A28) ->  | G28: =IF(F28="",0,VLOOKUP(F28,Punkte!$A$4:$AC$53,25,FALSE)) -> 0 | H28: =IF(F28="",0,VLOOKUP(F28,Punkte!$A$4:$AC$53,22,FALSE)) -> 0 | I28: =IF(F28="",0,VLOOKUP(F28,Punkte!$A$4:$AC$53,23,FALSE)) -> 0 | J28: =IF(F28="",0,VLOOKUP(F28,Punkte!$A$4:$AC$53,24,FALSE)) -> 0 | K28: 101
A29: =IF(Runden!A29="","",Runden!A29) ->  | B29: =IF(A29="",0,VLOOKUP(A29,Runden!$A$4:$U$53,IF($D$1=0,2,$D$1+1),FALSE)) -> 0 | C29: =IF(A29="",0,VLOOKUP(A29,Rang!$A$4:$U$53,IF($D$1=0,2,$D$1+1),FALSE)) -> 0 | D29: =IF(A29="",0,VLOOKUP(A29,Punkte!$A$4:$U$53,IF($D$1=0,2,$D$1+1),FALSE)) -> 0 | E29: =IF(C29=0,51,C29)+VLOOKUP(A29,Punkte!$A$4:$AC$53,27,FALSE)*0.001 -> 51 | F29: =IF(Runden!A29="","",Runden!A29) ->  | G29: =IF(F29="",0,VLOOKUP(F29,Punkte!$A$4:$AC$53,25,FALSE)) -> 0 | H29: =IF(F29="",0,VLOOKUP(F29,Punkte!$A$4:$AC$53,22,FALSE)) -> 0 | I29: =IF(F29="",0,VLOOKUP(F29,Punkte!$A$4:$AC$53,23,FALSE)) -> 0 | J29: =IF(F29="",0,VLOOKUP(F29,Punkte!$A$4:$AC$53,24,FALSE)) -> 0 | K29: 101
A30: =IF(Runden!A30="","",Runden!A30) ->  | B30: =IF(A30="",0,VLOOKUP(A30,Runden!$A$4:$U$53,IF($D$1=0,2,$D$1+1),FALSE)) -> 0 | C30: =IF(A30="",0,VLOOKUP(A30,Rang!$A$4:$U$53,IF($D$1=0,2,$D$1+1),FALSE)) -> 0 | D30: =IF(A30="",0,VLOOKUP(A30,Punkte!$A$4:$U$53,IF($D$1=0,2,$D$1+1),FALSE)) -> 0 | E30: =IF(C30=0,51,C30)+VLOOKUP(A30,Punkte!$A$4:$AC$53,27,FALSE)*0.001 -> 51 | F30: =IF(Runden!A30="","",Runden!A30) ->  | G30: =IF(F30="",0,VLOOKUP(F30,Punkte!$A$4:$AC$53,25,FALSE)) -> 0 | H30: =IF(F30="",0,VLOOKUP(F30,Punkte!$A$4:$AC$53,22,FALSE)) -> 0 | I30: =IF(F30="",0,VLOOKUP(F30,Punkte!$A$4:$AC$53,23,FALSE)) -> 0 | J30: =IF(F30="",0,VLOOKUP(F30,Punkte!$A$4:$AC$53,24,FALSE)) -> 0 | K30: 101
A31: =IF(Runden!A31="","",Runden!A31) ->  | B31: =IF(A31="",0,VLOOKUP(A31,Runden!$A$4:$U$53,IF($D$1=0,2,$D$1+1),FALSE)) -> 0 | C31: =IF(A31="",0,VLOOKUP(A31,Rang!$A$4:$U$53,IF($D$1=0,2,$D$1+1),FALSE)) -> 0 | D31: =IF(A31="",0,VLOOKUP(A31,Punkte!$A$4:$U$53,IF($D$1=0,2,$D$1+1),FALSE)) -> 0 | E31: =IF(C31=0,51,C31)+VLOOKUP(A31,Punkte!$A$4:$AC$53,27,FALSE)*0.001 -> 51 | F31: =IF(Runden!A31="","",Runden!A31) ->  | G31: =IF(F31="",0,VLOOKUP(F31,Punkte!$A$4:$AC$53,25,FALSE)) -> 0 | H31: =IF(F31="",0,VLOOKUP(F31,Punkte!$A$4:$AC$53,22,FALSE)) -> 0 | I31: =IF(F31="",0,VLOOKUP(F31,Punkte!$A$4:$AC$53,23,FALSE)) -> 0 | J31: =IF(F31="",0,VLOOKUP(F31,Punkte!$A$4:$AC$53,24,FALSE)) -> 0 | K31: 101
A32: =IF(Runden!A32="","",Runden!A32) ->  | B32: =IF(A32="",0,VLOOKUP(A32,Runden!$A$4:$U$53,IF($D$1=0,2,$D$1+1),FALSE)) -> 0 | C32: =IF(A32="",0,VLOOKUP(A32,Rang!$A$4:$U$53,IF($D$1=0,2,$D$1+1),FALSE)) -> 0 | D32: =IF(A32="",0,VLOOKUP(A32,Punkte!$A$4:$U$53,IF($D$1=0,2,$D$1+1),FALSE)) -> 0 | E32: =IF(C32=0,51,C32)+VLOOKUP(A32,Punkte!$A$4:$AC$53,27,FALSE)*0.001 -> 51 | F32: =IF(Runden!A32="","",Runden!A32) ->  | G32: =IF(F32="",0,VLOOKUP(F32,Punkte!$A$4:$AC$53,25,FALSE)) -> 0 | H32: =IF(F32="",0,VLOOKUP(F32,Punkte!$A$4:$AC$53,22,FALSE)) -> 0 | I32: =IF(F32="",0,VLOOKUP(F32,Punkte!$A$4:$AC$53,23,FALSE)) -> 0 | J32: =IF(F32="",0,VLOOKUP(F32,Punkte!$A$4:$AC$53,24,FALSE)) -> 0 | K32: 101
A33: =IF(Runden!A33="","",Runden!A33) ->  | B33: =IF(A33="",0,VLOOKUP(A33,Runden!$A$4:$U$53,IF($D$1=0,2,$D$1+1),FALSE)) -> 0 | C33: =IF(A33="",0,VLOOKUP(A33,Rang!$A$4:$U$53,IF($D$1=0,2,$D$1+1),FALSE)) -> 0 | D33: =IF(A33="",0,VLOOKUP(A33,Punkte!$A$4:$U$53,IF($D$1=0,2,$D$1+1),FALSE)) -> 0 | E33: =IF(C33=0,51,C33)+VLOOKUP(A33,Punkte!$A$4:$AC$53,27,FALSE)*0.001 -> 51 | F33: =IF(Runden!A33="","",Runden!A33) ->  | G33: =IF(F33="",0,VLOOKUP(F33,Punkte!$A$4:$AC$53,25,FALSE)) -> 0 | H33: =IF(F33="",0,VLOOKUP(F33,Punkte!$A$4:$AC$53,22,FALSE)) -> 0 | I33: =IF(F33="",0,VLOOKUP(F33,Punkte!$A$4:$AC$53,23,FALSE)) -> 0 | J33: =IF(F33="",0,VLOOKUP(F33,Punkte!$A$4:$AC$53,24,FALSE)) -> 0 | K33: 101
A34: =IF(Runden!A34="","",Runden!A34) ->  | B34: =IF(A34="",0,VLOOKUP(A34,Runden!$A$4:$U$53,IF($D$1=0,2,$D$1+1),FALSE)) -> 0 | C34: =IF(A34="",0,VLOOKUP(A34,Rang!$A$4:$U$53,IF($D$1=0,2,$D$1+1),FALSE)) -> 0 | D34: =IF(A34="",0,VLOOKUP(A34,Punkte!$A$4:$U$53,IF($D$1=0,2,$D$1+1),FALSE)) -> 0 | E34: =IF(C34=0,51,C34)+VLOOKUP(A34,Punkte!$A$4:$AC$53,27,FALSE)*0.001 -> 51 | F34: =IF(Runden!A34="","",Runden!A34) ->  | G34: =IF(F34="",0,VLOOKUP(F34,Punkte!$A$4:$AC$53,25,FALSE)) -> 0 | H34: =IF(F34="",0,VLOOKUP(F34,Punkte!$A$4:$AC$53,22,FALSE)) -> 0 | I34: =IF(F34="",0,VLOOKUP(F34,Punkte!$A$4:$AC$53,23,FALSE)) -> 0 | J34: =IF(F34="",0,VLOOKUP(F34,Punkte!$A$4:$AC$53,24,FALSE)) -> 0 | K34: 101
A35: =IF(Runden!A35="","",Runden!A35) ->  | B35: =IF(A35="",0,VLOOKUP(A35,Runden!$A$4:$U$53,IF($D$1=0,2,$D$1+1),FALSE)) -> 0 | C35: =IF(A35="",0,VLOOKUP(A35,Rang!$A$4:$U$53,IF($D$1=0,2,$D$1+1),FALSE)) -> 0 | D35: =IF(A35="",0,VLOOKUP(A35,Punkte!$A$4:$U$53,IF($D$1=0,2,$D$1+1),FALSE)) -> 0 | E35: =IF(C35=0,51,C35)+VLOOKUP(A35,Punkte!$A$4:$AC$53,27,FALSE)*0.001 -> 51 | F35: =IF(Runden!A35="","",Runden!A35) ->  | G35: =IF(F35="",0,VLOOKUP(F35,Punkte!$A$4:$AC$53,25,FALSE)) -> 0 | H35: =IF(F35="",0,VLOOKUP(F35,Punkte!$A$4:$AC$53,22,FALSE)) -> 0 | I35: =IF(F35="",0,VLOOKUP(F35,Punkte!$A$4:$AC$53,23,FALSE)) -> 0 | J35: =IF(F35="",0,VLOOKUP(F35,Punkte!$A$4:$AC$53,24,FALSE)) -> 0 | K35: 101
A36: =IF(Runden!A36="","",Runden!A36) ->  | B36: =IF(A36="",0,VLOOKUP(A36,Runden!$A$4:$U$53,IF($D$1=0,2,$D$1+1),FALSE)) -> 0 | C36: =IF(A36="",0,VLOOKUP(A36,Rang!$A$4:$U$53,IF($D$1=0,2,$D$1+1),FALSE)) -> 0 | D36: =IF(A36="",0,VLOOKUP(A36,Punkte!$A$4:$U$53,IF($D$1=0,2,$D$1+1),FALSE)) -> 0 | E36: =IF(C36=0,51,C36)+VLOOKUP(A36,Punkte!$A$4:$AC$53,27,FALSE)*0.001 -> 51 | F36: =IF(Runden!A36="","",Runden!A36) ->  | G36: =IF(F36="",0,VLOOKUP(F36,Punkte!$A$4:$AC$53,25,FALSE)) -> 0 | H36: =IF(F36="",0,VLOOKUP(F36,Punkte!$A$4:$AC$53,22,FALSE)) -> 0 | I36: =IF(F36="",0,VLOOKUP(F36,Punkte!$A$4:$AC$53,23,FALSE)) -> 0 | J36: =IF(F36="",0,VLOOKUP(F36,Punkte!$A$4:$AC$53,24,FALSE)) -> 0 | K36: 101
A37: =IF(Runden!A37="","",Runden!A37) ->  | B37: =IF(A37="",0,VLOOKUP(A37,Runden!$A$4:$U$53,IF($D$1=0,2,$D$1+1),FALSE)) -> 0 | C37: =IF(A37="",0,VLOOKUP(A37,Rang!$A$4:$U$53,IF($D$1=0,2,$D$1+1),FALSE)) -> 0 | D37: =IF(A37="",0,VLOOKUP(A37,Punkte!$A$4:$U$53,IF($D$1=0,2,$D$1+1),FALSE)) -> 0 | E37: =IF(C37=0,51,C37)+VLOOKUP(A37,Punkte!$A$4:$AC$53,27,FALSE)*0.001 -> 51 | F37: =IF(Runden!A37="","",Runden!A37) ->  | G37: =IF(F37="",0,VLOOKUP(F37,Punkte!$A$4:$AC$53,25,FALSE)) -> 0 | H37: =IF(F37="",0,VLOOKUP(F37,Punkte!$A$4:$AC$53,22,FALSE)) -> 0 | I37: =IF(F37="",0,VLOOKUP(F37,Punkte!$A$4:$AC$53,23,FALSE)) -> 0 | J37: =IF(F37="",0,VLOOKUP(F37,Punkte!$A$4:$AC$53,24,FALSE)) -> 0 | K37: 101
A38: =IF(Runden!A38="","",Runden!A38) ->  | B38: =IF(A38="",0,VLOOKUP(A38,Runden!$A$4:$U$53,IF($D$1=0,2,$D$1+1),FALSE)) -> 0 | C38: =IF(A38="",0,VLOOKUP(A38,Rang!$A$4:$U$53,IF($D$1=0,2,$D$1+1),FALSE)) -> 0 | D38: =IF(A38="",0,VLOOKUP(A38,Punkte!$A$4:$U$53,IF($D$1=0,2,$D$1+1),FALSE)) -> 0 | E38: =IF(C38=0,51,C38)+VLOOKUP(A38,Punkte!$A$4:$AC$53,27,FALSE)*0.001 -> 51 | F38: =IF(Runden!A38="","",Runden!A38) ->  | G38: =IF(F38="",0,VLOOKUP(F38,Punkte!$A$4:$AC$53,25,FALSE)) -> 0 | H38: =IF(F38="",0,VLOOKUP(F38,Punkte!$A$4:$AC$53,22,FALSE)) -> 0 | I38: =IF(F38="",0,VLOOKUP(F38,Punkte!$A$4:$AC$53,23,FALSE)) -> 0 | J38: =IF(F38="",0,VLOOKUP(F38,Punkte!$A$4:$AC$53,24,FALSE)) -> 0 | K38: 101
A39: =IF(Runden!A39="","",Runden!A39) ->  | B39: =IF(A39="",0,VLOOKUP(A39,Runden!$A$4:$U$53,IF($D$1=0,2,$D$1+1),FALSE)) -> 0 | C39: =IF(A39="",0,VLOOKUP(A39,Rang!$A$4:$U$53,IF($D$1=0,2,$D$1+1),FALSE)) -> 0 | D39: =IF(A39="",0,VLOOKUP(A39,Punkte!$A$4:$U$53,IF($D$1=0,2,$D$1+1),FALSE)) -> 0 | E39: =IF(C39=0,51,C39)+VLOOKUP(A39,Punkte!$A$4:$AC$53,27,FALSE)*0.001 -> 51 | F39: =IF(Runden!A39="","",Runden!A39) ->  | G39: =IF(F39="",0,VLOOKUP(F39,Punkte!$A$4:$AC$53,25,FALSE)) -> 0 | H39: =IF(F39="",0,VLOOKUP(F39,Punkte!$A$4:$AC$53,22,FALSE)) -> 0 | I39: =IF(F39="",0,VLOOKUP(F39,Punkte!$A$4:$AC$53,23,FALSE)) -> 0 | J39: =IF(F39="",0,VLOOKUP(F39,Punkte!$A$4:$AC$53,24,FALSE)) -> 0 | K39: 101
A40: =IF(Runden!A40="","",Runden!A40) ->  | B40: =IF(A40="",0,VLOOKUP(A40,Runden!$A$4:$U$53,IF($D$1=0,2,$D$1+1),FALSE)) -> 0 | C40: =IF(A40="",0,VLOOKUP(A40,Rang!$A$4:$U$53,IF($D$1=0,2,$D$1+1),FALSE)) -> 0 | D40: =IF(A40="",0,VLOOKUP(A40,Punkte!$A$4:$U$53,IF($D$1=0,2,$D$1+1),FALSE)) -> 0 | E40: =IF(C40=0,51,C40)+VLOOKUP(A40,Punkte!$A$4:$AC$53,27,FALSE)*0.001 -> 51 | F40: =IF(Runden!A40="","",Runden!A40) ->  | G40: =IF(F40="",0,VLOOKUP(F40,Punkte!$A$4:$AC$53,25,FALSE)) -> 0 | H40: =IF(F40="",0,VLOOKUP(F40,Punkte!$A$4:$AC$53,22,FALSE)) -> 0 | I40: =IF(F40="",0,VLOOKUP(F40,Punkte!$A$4:$AC$53,23,FALSE)) -> 0 | J40: =IF(F40="",0,VLOOKUP(F40,Punkte!$A$4:$AC$53,24,FALSE)) -> 0 | K40: 101
A41: =IF(Runden!A41="","",Runden!A41) ->  | B41: =IF(A41="",0,VLOOKUP(A41,Runden!$A$4:$U$53,IF($D$1=0,2,$D$1+1),FALSE)) -> 0 | C41: =IF(A41="",0,VLOOKUP(A41,Rang!$A$4:$U$53,IF($D$1=0,2,$D$1+1),FALSE)) -> 0 | D41: =IF(A41="",0,VLOOKUP(A41,Punkte!$A$4:$U$53,IF($D$1=0,2,$D$1+1),FALSE)) -> 0 | E41: =IF(C41=0,51,C41)+VLOOKUP(A41,Punkte!$A$4:$AC$53,27,FALSE)*0.001 -> 51 | F41: =IF(Runden!A41="","",Runden!A41) ->  | G41: =IF(F41="",0,VLOOKUP(F41,Punkte!$A$4:$AC$53,25,FALSE)) -> 0 | H41: =IF(F41="",0,VLOOKUP(F41,Punkte!$A$4:$AC$53,22,FALSE)) -> 0 | I41: =IF(F41="",0,VLOOKUP(F41,Punkte!$A$4:$AC$53,23,FALSE)) -> 0 | J41: =IF(F41="",0,VLOOKUP(F41,Punkte!$A$4:$AC$53,24,FALSE)) -> 0 | K41: 101
A42: =IF(Runden!A42="","",Runden!A42) ->  | B42: =IF(A42="",0,VLOOKUP(A42,Runden!$A$4:$U$53,IF($D$1=0,2,$D$1+1),FALSE)) -> 0 | C42: =IF(A42="",0,VLOOKUP(A42,Rang!$A$4:$U$53,IF($D$1=0,2,$D$1+1),FALSE)) -> 0 | D42: =IF(A42="",0,VLOOKUP(A42,Punkte!$A$4:$U$53,IF($D$1=0,2,$D$1+1),FALSE)) -> 0 | E42: =IF(C42=0,51,C42)+VLOOKUP(A42,Punkte!$A$4:$AC$53,27,FALSE)*0.001 -> 51 | F42: =IF(Runden!A42="","",Runden!A42) ->  | G42: =IF(F42="",0,VLOOKUP(F42,Punkte!$A$4:$AC$53,25,FALSE)) -> 0 | H42: =IF(F42="",0,VLOOKUP(F42,Punkte!$A$4:$AC$53,22,FALSE)) -> 0 | I42: =IF(F42="",0,VLOOKUP(F42,Punkte!$A$4:$AC$53,23,FALSE)) -> 0 | J42: =IF(F42="",0,VLOOKUP(F42,Punkte!$A$4:$AC$53,24,FALSE)) -> 0 | K42: 101
A43: =IF(Runden!A43="","",Runden!A43) ->  | B43: =IF(A43="",0,VLOOKUP(A43,Runden!$A$4:$U$53,IF($D$1=0,2,$D$1+1),FALSE)) -> 0 | C43: =IF(A43="",0,VLOOKUP(A43,Rang!$A$4:$U$53,IF($D$1=0,2,$D$1+1),FALSE)) -> 0 | D43: =IF(A43="",0,VLOOKUP(A43,Punkte!$A$4:$U$53,IF($D$1=0,2,$D$1+1),FALSE)) -> 0 | E43: =IF(C43=0,51,C43)+VLOOKUP(A43,Punkte!$A$4:$AC$53,27,FALSE)*0.001 -> 51 | F43: =IF(Runden!A43="","",Runden!A43) ->  | G43: =IF(F43="",0,VLOOKUP(F43,Punkte!$A$4:$AC$53,25,FALSE)) -> 0 | H43: =IF(F43="",0,VLOOKUP(F43,Punkte!$A$4:$AC$53,22,FALSE)) -> 0 | I43: =IF(F43="",0,VLOOKUP(F43,Punkte!$A$4:$AC$53,23,FALSE)) -> 0 | J43: =IF(F43="",0,VLOOKUP(F43,Punkte!$A$4:$AC$53,24,FALSE)) -> 0 | K43: 101
A44: =IF(Runden!A44="","",Runden!A44) ->  | B44: =IF(A44="",0,VLOOKUP(A44,Runden!$A$4:$U$53,IF($D$1=0,2,$D$1+1),FALSE)) -> 0 | C44: =IF(A44="",0,VLOOKUP(A44,Rang!$A$4:$U$53,IF($D$1=0,2,$D$1+1),FALSE)) -> 0 | D44: =IF(A44="",0,VLOOKUP(A44,Punkte!$A$4:$U$53,IF($D$1=0,2,$D$1+1),FALSE)) -> 0 | E44: =IF(C44=0,51,C44)+VLOOKUP(A44,Punkte!$A$4:$AC$53,27,FALSE)*0.001 -> 51 | F44: =IF(Runden!A44="","",Runden!A44) ->  | G44: =IF(F44="",0,VLOOKUP(F44,Punkte!$A$4:$AC$53,25,FALSE)) -> 0 | H44: =IF(F44="",0,VLOOKUP(F44,Punkte!$A$4:$AC$53,22,FALSE)) -> 0 | I44: =IF(F44="",0,VLOOKUP(F44,Punkte!$A$4:$AC$53,23,FALSE)) -> 0 | J44: =IF(F44="",0,VLOOKUP(F44,Punkte!$A$4:$AC$53,24,FALSE)) -> 0 | K44: 101
A45: =IF(Runden!A45="","",Runden!A45) ->  | B45: =IF(A45="",0,VLOOKUP(A45,Runden!$A$4:$U$53,IF($D$1=0,2,$D$1+1),FALSE)) -> 0 | C45: =IF(A45="",0,VLOOKUP(A45,Rang!$A$4:$U$53,IF($D$1=0,2,$D$1+1),FALSE)) -> 0 | D45: =IF(A45="",0,VLOOKUP(A45,Punkte!$A$4:$U$53,IF($D$1=0,2,$D$1+1),FALSE)) -> 0 | E45: =IF(C45=0,51,C45)+VLOOKUP(A45,Punkte!$A$4:$AC$53,27,FALSE)*0.001 -> 51 | F45: =IF(Runden!A45="","",Runden!A45) ->  | G45: =IF(F45="",0,VLOOKUP(F45,Punkte!$A$4:$AC$53,25,FALSE)) -> 0 | H45: =IF(F45="",0,VLOOKUP(F45,Punkte!$A$4:$AC$53,22,FALSE)) -> 0 | I45: =IF(F45="",0,VLOOKUP(F45,Punkte!$A$4:$AC$53,23,FALSE)) -> 0 | J45: =IF(F45="",0,VLOOKUP(F45,Punkte!$A$4:$AC$53,24,FALSE)) -> 0 | K45: 101
A46: =IF(Runden!A46="","",Runden!A46) ->  | B46: =IF(A46="",0,VLOOKUP(A46,Runden!$A$4:$U$53,IF($D$1=0,2,$D$1+1),FALSE)) -> 0 | C46: =IF(A46="",0,VLOOKUP(A46,Rang!$A$4:$U$53,IF($D$1=0,2,$D$1+1),FALSE)) -> 0 | D46: =IF(A46="",0,VLOOKUP(A46,Punkte!$A$4:$U$53,IF($D$1=0,2,$D$1+1),FALSE)) -> 0 | E46: =IF(C46=0,51,C46)+VLOOKUP(A46,Punkte!$A$4:$AC$53,27,FALSE)*0.001 -> 51 | F46: =IF(Runden!A46="","",Runden!A46) ->  | G46: =IF(F46="",0,VLOOKUP(F46,Punkte!$A$4:$AC$53,25,FALSE)) -> 0 | H46: =IF(F46="",0,VLOOKUP(F46,Punkte!$A$4:$AC$53,22,FALSE)) -> 0 | I46: =IF(F46="",0,VLOOKUP(F46,Punkte!$A$4:$AC$53,23,FALSE)) -> 0 | J46: =IF(F46="",0,VLOOKUP(F46,Punkte!$A$4:$AC$53,24,FALSE)) -> 0 | K46: 101
A47: =IF(Runden!A47="","",Runden!A47) ->  | B47: =IF(A47="",0,VLOOKUP(A47,Runden!$A$4:$U$53,IF($D$1=0,2,$D$1+1),FALSE)) -> 0 | C47: =IF(A47="",0,VLOOKUP(A47,Rang!$A$4:$U$53,IF($D$1=0,2,$D$1+1),FALSE)) -> 0 | D47: =IF(A47="",0,VLOOKUP(A47,Punkte!$A$4:$U$53,IF($D$1=0,2,$D$1+1),FALSE)) -> 0 | E47: =IF(C47=0,51,C47)+VLOOKUP(A47,Punkte!$A$4:$AC$53,27,FALSE)*0.001 -> 51 | F47: =IF(Runden!A47="","",Runden!A47) ->  | G47: =IF(F47="",0,VLOOKUP(F47,Punkte!$A$4:$AC$53,25,FALSE)) -> 0 | H47: =IF(F47="",0,VLOOKUP(F47,Punkte!$A$4:$AC$53,22,FALSE)) -> 0 | I47: =IF(F47="",0,VLOOKUP(F47,Punkte!$A$4:$AC$53,23,FALSE)) -> 0 | J47: =IF(F47="",0,VLOOKUP(F47,Punkte!$A$4:$AC$53,24,FALSE)) -> 0 | K47: 101
A48: =IF(Runden!A48="","",Runden!A48) ->  | B48: =IF(A48="",0,VLOOKUP(A48,Runden!$A$4:$U$53,IF($D$1=0,2,$D$1+1),FALSE)) -> 0 | C48: =IF(A48="",0,VLOOKUP(A48,Rang!$A$4:$U$53,IF($D$1=0,2,$D$1+1),FALSE)) -> 0 | D48: =IF(A48="",0,VLOOKUP(A48,Punkte!$A$4:$U$53,IF($D$1=0,2,$D$1+1),FALSE)) -> 0 | E48: =IF(C48=0,51,C48)+VLOOKUP(A48,Punkte!$A$4:$AC$53,27,FALSE)*0.001 -> 51 | F48: =IF(Runden!A48="","",Runden!A48) ->  | G48: =IF(F48="",0,VLOOKUP(F48,Punkte!$A$4:$AC$53,25,FALSE)) -> 0 | H48: =IF(F48="",0,VLOOKUP(F48,Punkte!$A$4:$AC$53,22,FALSE)) -> 0 | I48: =IF(F48="",0,VLOOKUP(F48,Punkte!$A$4:$AC$53,23,FALSE)) -> 0 | J48: =IF(F48="",0,VLOOKUP(F48,Punkte!$A$4:$AC$53,24,FALSE)) -> 0 | K48: 101
A49: =IF(Runden!A49="","",Runden!A49) ->  | B49: =IF(A49="",0,VLOOKUP(A49,Runden!$A$4:$U$53,IF($D$1=0,2,$D$1+1),FALSE)) -> 0 | C49: =IF(A49="",0,VLOOKUP(A49,Rang!$A$4:$U$53,IF($D$1=0,2,$D$1+1),FALSE)) -> 0 | D49: =IF(A49="",0,VLOOKUP(A49,Punkte!$A$4:$U$53,IF($D$1=0,2,$D$1+1),FALSE)) -> 0 | E49: =IF(C49=0,51,C49)+VLOOKUP(A49,Punkte!$A$4:$AC$53,27,FALSE)*0.001 -> 51 | F49: =IF(Runden!A49="","",Runden!A49) ->  | G49: =IF(F49="",0,VLOOKUP(F49,Punkte!$A$4:$AC$53,25,FALSE)) -> 0 | H49: =IF(F49="",0,VLOOKUP(F49,Punkte!$A$4:$AC$53,22,FALSE)) -> 0 | I49: =IF(F49="",0,VLOOKUP(F49,Punkte!$A$4:$AC$53,23,FALSE)) -> 0 | J49: =IF(F49="",0,VLOOKUP(F49,Punkte!$A$4:$AC$53,24,FALSE)) -> 0 | K49: 101
A50: =IF(Runden!A50="","",Runden!A50) ->  | B50: =IF(A50="",0,VLOOKUP(A50,Runden!$A$4:$U$53,IF($D$1=0,2,$D$1+1),FALSE)) -> 0 | C50: =IF(A50="",0,VLOOKUP(A50,Rang!$A$4:$U$53,IF($D$1=0,2,$D$1+1),FALSE)) -> 0 | D50: =IF(A50="",0,VLOOKUP(A50,Punkte!$A$4:$U$53,IF($D$1=0,2,$D$1+1),FALSE)) -> 0 | E50: =IF(C50=0,51,C50)+VLOOKUP(A50,Punkte!$A$4:$AC$53,27,FALSE)*0.001 -> 51 | F50: =IF(Runden!A50="","",Runden!A50) ->  | G50: =IF(F50="",0,VLOOKUP(F50,Punkte!$A$4:$AC$53,25,FALSE)) -> 0 | H50: =IF(F50="",0,VLOOKUP(F50,Punkte!$A$4:$AC$53,22,FALSE)) -> 0 | I50: =IF(F50="",0,VLOOKUP(F50,Punkte!$A$4:$AC$53,23,FALSE)) -> 0 | J50: =IF(F50="",0,VLOOKUP(F50,Punkte!$A$4:$AC$53,24,FALSE)) -> 0 | K50: 101
A51: =IF(Runden!A51="","",Runden!A51) ->  | B51: =IF(A51="",0,VLOOKUP(A51,Runden!$A$4:$U$53,IF($D$1=0,2,$D$1+1),FALSE)) -> 0 | C51: =IF(A51="",0,VLOOKUP(A51,Rang!$A$4:$U$53,IF($D$1=0,2,$D$1+1),FALSE)) -> 0 | D51: =IF(A51="",0,VLOOKUP(A51,Punkte!$A$4:$U$53,IF($D$1=0,2,$D$1+1),FALSE)) -> 0 | E51: =IF(C51=0,51,C51)+VLOOKUP(A51,Punkte!$A$4:$AC$53,27,FALSE)*0.001 -> 51 | F51: =IF(Runden!A51="","",Runden!A51) ->  | G51: =IF(F51="",0,VLOOKUP(F51,Punkte!$A$4:$AC$53,25,FALSE)) -> 0 | H51: =IF(F51="",0,VLOOKUP(F51,Punkte!$A$4:$AC$53,22,FALSE)) -> 0 | I51: =IF(F51="",0,VLOOKUP(F51,Punkte!$A$4:$AC$53,23,FALSE)) -> 0 | J51: =IF(F51="",0,VLOOKUP(F51,Punkte!$A$4:$AC$53,24,FALSE)) -> 0 | K51: 101
A52: =IF(Runden!A52="","",Runden!A52) ->  | B52: =IF(A52="",0,VLOOKUP(A52,Runden!$A$4:$U$53,IF($D$1=0,2,$D$1+1),FALSE)) -> 0 | C52: =IF(A52="",0,VLOOKUP(A52,Rang!$A$4:$U$53,IF($D$1=0,2,$D$1+1),FALSE)) -> 0 | D52: =IF(A52="",0,VLOOKUP(A52,Punkte!$A$4:$U$53,IF($D$1=0,2,$D$1+1),FALSE)) -> 0 | E52: =IF(C52=0,51,C52)+VLOOKUP(A52,Punkte!$A$4:$AC$53,27,FALSE)*0.001 -> 51 | F52: =IF(Runden!A52="","",Runden!A52) ->  | G52: =IF(F52="",0,VLOOKUP(F52,Punkte!$A$4:$AC$53,25,FALSE)) -> 0 | H52: =IF(F52="",0,VLOOKUP(F52,Punkte!$A$4:$AC$53,22,FALSE)) -> 0 | I52: =IF(F52="",0,VLOOKUP(F52,Punkte!$A$4:$AC$53,23,FALSE)) -> 0 | J52: =IF(F52="",0,VLOOKUP(F52,Punkte!$A$4:$AC$53,24,FALSE)) -> 0 | K52: 101
A53: =IF(Runden!A53="","",Runden!A53) ->  | B53: =IF(A53="",0,VLOOKUP(A53,Runden!$A$4:$U$53,IF($D$1=0,2,$D$1+1),FALSE)) -> 0 | C53: =IF(A53="",0,VLOOKUP(A53,Rang!$A$4:$U$53,IF($D$1=0,2,$D$1+1),FALSE)) -> 0 | D53: =IF(A53="",0,VLOOKUP(A53,Punkte!$A$4:$U$53,IF($D$1=0,2,$D$1+1),FALSE)) -> 0 | E53: =IF(C53=0,51,C53)+VLOOKUP(A53,Punkte!$A$4:$AC$53,27,FALSE)*0.001 -> 51 | F53: =IF(Runden!A53="","",Runden!A53) ->  | G53: =IF(F53="",0,VLOOKUP(F53,Punkte!$A$4:$AC$53,25,FALSE)) -> 0 | H53: =IF(F53="",0,VLOOKUP(F53,Punkte!$A$4:$AC$53,22,FALSE)) -> 0 | I53: =IF(F53="",0,VLOOKUP(F53,Punkte!$A$4:$AC$53,23,FALSE)) -> 0 | J53: =IF(F53="",0,VLOOKUP(F53,Punkte!$A$4:$AC$53,24,FALSE)) -> 0 | K53: 101
A54: ="Teilnehmer "&D1&". Lauf:" -> Teilnehmer 1. Lauf: | B54: =COUNTIF(B3:B53,">0") -> 10 | F54: Teilnehmer insgesamt: | H54: =COUNTIF(J4:J53,">0") -> 10
